{"text_format":"1","workbook":"xlsx","n_sheets":6,"sheets":["Mode-emploi","Calendrier","Demande de VS","Liste des DT-EIC-SITES","Programme de travail prev","Paramètres"],"not_rendered":{"charts":0,"images":3,"macros":1,"external_links":0,"defined_names":13,"comments":1,"pivot_tables":0},"unopened":[],"bounds":{"document_bytes":16777216,"sheet_cells":100000,"rows_first":2000,"rows_last":500,"rows_between":2000,"halvings":0,"cell_chars":16384,"cell_head_chars":4096},"cells_cut":0,"cells_raw":0,"read":"whole","date_system":"1900"}

{"sheet":"Mode-emploi","index":0,"n_rows":64,"n_cols":3,"rows_kept":64,"cut":false,"hidden":false,"merged":[[64,1,64,7],[31,2,32,7],[35,1,35,7],[36,1,36,7],[37,1,37,7],[38,1,38,7],[39,1,39,7],[43,1,45,7],[51,1,51,7],[52,1,52,7],[55,1,55,7],[63,1,63,7],[25,2,25,7],[10,1,10,7],[13,1,14,7],[17,1,17,7],[23,2,23,7],[24,2,24,7]]}
[]
["FORMULAIRE DE DEMANDE DE VOIES DE SERVICE"]
["MODE D'EMPLOI"]
[]
[null,"Pour toutes questions sur la complétude du fichier, contacter la PSEF : services.psef@sncf.fr"]
[]
[null,"Horaire de service : "]
[null,"Service Annuel : \u009f SA 2025 (du 15/12/2024 au 13/12/2025)"]
[]
[null,"Direction Territoriale SNCF Réseau : "]
[null,"Le candidat doit impérativement soumettre une demande (= un fichier) par périmètre de  Direction Territoriale SNCF Réseau. C'est un préalable obligatoire pour pouvoir sélectionner ensuite des sites dépendant du périmètre de celle-ci.\nExemple : si besoin de capacité sur les sites de Sibelin et Woippy, \nà Alors renseigner un formulaire pour la DT Auvergne Rhone Alpes pour Sibelin ET un formulaire pour la DT Grand-Est pour Woippy"]
[]
[null,"Site : "]
[null,"Site proposant des voies de service commercialisables. A choisir dans la liste déroulante des sites dépendant de la DT SNCF Réseau (à sélectionner obligatoirement au préalable)"]
[]
[]
[null,"Longueur minimale demandée en ml"]
[null,"Pour un site donné, par exemple, au choix, quatre lignes de fichier à 500 ml chacune, ou une seule ligne de fichier à 2000 ml"]
[]
[null,"Régime d'utilisation : "]
[null,"Renseigner le régime (ou fréquence) de circulation prévu : "]
[null,"Pour une circulation quotidienne, indiquer OUI dans quotidien ?. Les champs seront complétés automatiquement. "]
[null,"Pour tout autre régime d'utilisation, sélectionner les jours souhaités."]
[null,"Par exemple :","\u009f LU ME : signifie que le train est prévu de circuler tous les lundis et mercredis pendant la période demandée"]
[null,null,"\u009f Quotidien ? : du lundi au dimanche yc jours fériés, pendant la période demandée"]
[null,null,"\u009f Férié : jour de fêtes ( le 1er janvier, Pâques, le lundi de Pâques, le 1er mai, le 8 mai, l'Ascension, le lundi de Pentecôte, le 14 juillet, le 15 août, le 1er novembre, le 11 novembre et le 25 décembre)"]
[]
[null,"Période : "]
[null,"Renseigner une ligne pour chaque période de l'année concernée en choisissant une date de début et une date de fin"]
[null,"Par exemple :  \u009f SA2024 (pour tout le service annuel, en 2024 : du 10/12/2023 au 14/12/2024)"]
[null,null,"\u009f Du 01/07/2024 au 31/08/2024 (dates début et fin, si demande d'une période particulière)"]
[null,null,"\u009f Si une même demande de capacité concerne plusieurs périodes différentes alors il faudra renseigner une ligne par période. \nPar exemple, j'ai besoin de 700m pour le même train du 01/07/2024 au 31/08/2024 puis du 01/10/2024 au 14/12/2024, il faudra que je renseigne 2 lignes différentes en indiquant les périodes"]
[]
[]
[null,"Nombre de train accédant par jour sur le site : "]
[null,"\u009f Je suis un train qui entre chaque jour sur le même site, j'indique 1 train accédant à chaque fois."]
[null,"\u009f Je suis un train qui entre plusieurs fois par jour sur le  même site, j'indique le nombre de fois par jour où le train accède ."]
[null,"\u009f Je suis un train qui entre sur plusieurs sites différents, j'indique 1 accès sur chaque site."]
[null,"\u009f Je fais des manœuvres d'un train à l’intérieur du même site, j'indique 1 fois le train accédant."]
[null,"\u009f Je suis un train qui utilise des voies de service commercialisables pour faire une relève conducteur, j'indique le train accédant."]
[]
[]
[null,"Numéro de voie souhaité ; "]
[null,"La demande s'exprime par une expression de capacité en mètres linéaires de voie. \nEn complément, l'entreprise peut indiquer les numéros des voies qu'elle souhaite se voir allouer, mais sans garantie d'obtention."]
[]
[]
[]
[null,"Aptitude TE : "]
[null,"Aptitude Transport Exceptionnel de la voie (OUI / NON)"]
[]
[null,"Charge : "]
[null,"Se référer au chapitre 2.3.5 LIMITES DE CHARGE du DRR 2023"]
[null,"Les voies de service sont normalement classées en catégorie C4, sauf mention particulière portée dans les documents d’exploitation remis par SNCF Réseau aux entreprises ferroviaires."]
[null,"Electrification :"]
[null,"Electrification de la voie (OUI / NON)"]
[]
[null,"MD : "]
[null,"Aptitude de la voie à recevoir des Matières Dangereuses (OUI / NON)"]
[]
[null,"Prospection : "]
[null,"NON : besoin ferme du candidat ; OUI : besoin pour une prospection commerciale en cours"]
[]
[null,"Commentaires O/D : "]
[null,"Observations complémentaires sur le souhait du candidat, facilitant le traitement de la demande. \nPar exemple : Origine/Destination"]

{"sheet":"Calendrier","index":1,"n_rows":4,"n_cols":2,"rows_kept":4,"cut":false,"hidden":false,"merged":[]}
[]
["CALENDRIER  D'INSTRUCTION DES DEMANDES D'ALLOCATION DE CAPACITÉ"]
["VOIES DE SERVICE À USAGE COURANT"]
[null,"(cf. DRR chap. 7.3.5.6 b)"]

{"sheet":"Demande de VS","index":2,"n_rows":519,"n_cols":46,"rows_kept":519,"cut":false,"hidden":false,"merged":[[0,2,0,16],[2,2,2,12],[16,1,17,2],[16,3,16,14],[16,16,17,22],[8,2,8,12],[8,13,8,16],[10,2,10,12],[10,13,10,16],[12,2,12,12],[12,13,12,16],[2,13,2,16],[4,2,4,12],[4,13,4,16],[6,2,6,12],[6,13,6,16],[17,4,17,12],[17,13,17,14],[16,40,17,41],[16,44,17,45],[16,23,17,27],[16,28,17,31],[16,32,17,39],[16,42,18,42],[16,43,18,43]]}
[null,null,"EXPRESSION DE BESOIN EN VOIES DE SERVICE\nFiche à envoyer à la PSEF -  courriel : services.psef@sncf.fr "]
[]
[null,null,"Horaire de service * :",null,null,null,null,null,null,null,null,null,null,2025]
[]
[null,null,"Date de la demande * :",null,null,null,null,null,null,null,null,null,null,null,null,null,null,null,"Rappel : Calendrier d'envoi des demandes pour l'année A (cf. DRR chap. 7.3.5.6 b)"]
[]
[null,null,"Raison sociale du demandeur * : ",null,null,null,null,null,null,null,null,null,null,null,null,null,null,null,"\u009f Demandes initiales : jusqu'au 15 juin année A-1"]
[]
[null,null,"Identité du demandeur * :",null,null,null,null,null,null,null,null,null,null,null,null,null,null,null,"\u009f Demandes complémentaires : du 16 juin au 15 octobre année A-1"]
[]
[null,null,"Coordonnées du demandeur (courriel, tel.) * :",null,null,null,null,null,null,null,null,null,null,null,null,null,null,null,"\u009f Demandes tardives ou ad hoc : du 16 octobre année A-1 à fin de SA année A"]
[]
[null,null,"Direction Territoriale SNCF Réseau * :",null,null,null,null,null,null,null,null,null,null,"BFC"]
[null,"Les champs marqués d'un astérisque * sont à compléter obligatoirement par le Candidat, à défaut, la demande sera considérée comme incomplète et sera retournée au Candidat sans instruction. "]
[null,"Compléter une ligne par VS demandée ; si la demande concerne un linéaire sans nombre précis de voie, indiquer sur une seule ligne le linéaire global souhaité pour ce site."]
[null,"Consulter l'onglet \"Mode d'emploi\" au préalable"]
[null,"Localisation",null,"Capacité demandée",null,null,null,null,null,null,null,null,null,null,null,null,"Caractéristiques des Voie(s) demandée(s)",null,null,null,null,null,null,"Objectivation de la demande ",null,null,null,null,"Zone Réservée à SNCF Réseau - EIC et DT Réseau ",null,null,null,"Régime d'utilisation",null,null,null,null,null,null,null,"Période",null,"Commentaires (ex: jours exclus, infos complémentaires...) ou motif si refus"," Modèle contractuel retenu","Nombre d'Unités d'Œuvre (UO)\ncalcul de la redevance "]
[null,null,null,null,"Régime d'utilisation *",null,null,null,null,null,null,null,null,"Période *"]
["Index","Site *","EIC \n (pas de saisie ici)","Longueur minimale demandée en ml *","Quotidien?","LU","MA","ME","JE","VE","SA","DI","Férié","Du","au","Nombre de train accédant / jour *","Numéro de voie souhaité","Aptitude TE *","Electrification *","Charge *","MD *","Type \nd'utilisation *","Contraintes\nAutres","Type d'Activité  *","Nature du trafic  *","N° sillon \nou \nN° commande","Prospection","Commentaires  \nO/D","Type de réponse","id VS","N° de Voie\nallouée","Longueur utile totale allouée en ml","LU","MA","ME","JE","VE","SA","DI","Férié","Du","au",null,null,"Nb de jours d'utilisation","Nb de trains accédant"]
[{"$f":"_xlfn.SEQUENCE(500)","v":1},null,{"$f":"IFERROR(VLOOKUP(B20,Paramètres!$O$4:$P$2000,2,FALSE),\"\")","v":""},null,null,null,null,null,null,null,null,null,null,null,null,null,null,null,null,null,null,null,null,null,null,null,null,null,null,null,null,null,null,null,null,null,null,null,null,null,null,null,""]
[2,null,{"$f":"IFERROR(VLOOKUP(B21,Paramètres!$O$4:$P$2000,2,FALSE),\"\")","v":""},null,null,null,null,null,null,null,null,null,null,null,null,null,null,null,null,null,null,null,null,null,null,null,null,null,null,null,null,null,null,null,null,null,null,null,null,null,null,null,""]
[3,null,{"$f":"IFERROR(VLOOKUP(B22,Paramètres!$O$4:$P$2000,2,FALSE),\"\")","v":""},null,null,null,null,null,null,null,null,null,null,null,null,null,null,null,null,null,null,null,null,null,null,null,null,null,null,null,null,null,null,null,null,null,null,null,null,null,null,null,""]
[4,null,{"$f":"IFERROR(VLOOKUP(B23,Paramètres!$O$4:$P$2000,2,FALSE),\"\")","v":""},null,null,null,null,null,null,null,null,null,null,null,null,null,null,null,null,null,null,null,null,null,null,null,null,null,null,null,null,null,null,null,null,null,null,null,null,null,null,null,""]
[5,null,{"$f":"IFERROR(VLOOKUP(B24,Paramètres!$O$4:$P$2000,2,FALSE),\"\")","v":""},null,null,null,null,null,null,null,null,null,null,null,null,null,null,null,null,null,null,null,null,null,null,null,null,null,null,null,null,null,null,null,null,null,null,null,null,null,null,null,""]
[6,null,{"$f":"IFERROR(VLOOKUP(B25,Paramètres!$O$4:$P$2000,2,FALSE),\"\")","v":""},null,null,null,null,null,null,null,null,null,null,null,null,null,null,null,null,null,null,null,null,null,null,null,null,null,null,null,null,null,null,null,null,null,null,null,null,null,null,null,""]
[7,null,{"$f":"IFERROR(VLOOKUP(B26,Paramètres!$O$4:$P$2000,2,FALSE),\"\")","v":""},null,null,null,null,null,null,null,null,null,null,null,null,null,null,null,null,null,null,null,null,null,null,null,null,null,null,null,null,null,null,null,null,null,null,null,null,null,null,null,""]
[8,null,{"$f":"IFERROR(VLOOKUP(B27,Paramètres!$O$4:$P$2000,2,FALSE),\"\")","v":""},null,null,null,null,null,null,null,null,null,null,null,null,null,null,null,null,null,null,null,null,null,null,null,null,null,null,null,null,null,null,null,null,null,null,null,null,null,null,null,""]
[9,null,{"$f":"IFERROR(VLOOKUP(B28,Paramètres!$O$4:$P$2000,2,FALSE),\"\")","v":""}]
[10,null,{"$f":"IFERROR(VLOOKUP(B29,Paramètres!$O$4:$P$2000,2,FALSE),\"\")","v":""}]
[11,null,{"$f":"IFERROR(VLOOKUP(B30,Paramètres!$O$4:$P$2000,2,FALSE),\"\")","v":""}]
[12,null,{"$f":"IFERROR(VLOOKUP(B31,Paramètres!$O$4:$P$2000,2,FALSE),\"\")","v":""}]
[13,null,{"$f":"IFERROR(VLOOKUP(B32,Paramètres!$O$4:$P$2000,2,FALSE),\"\")","v":""}]
[14,null,{"$f":"IFERROR(VLOOKUP(B33,Paramètres!$O$4:$P$2000,2,FALSE),\"\")","v":""}]
[15,null,{"$f":"IFERROR(VLOOKUP(B34,Paramètres!$O$4:$P$2000,2,FALSE),\"\")","v":""}]
[16,null,{"$f":"IFERROR(VLOOKUP(B35,Paramètres!$O$4:$P$2000,2,FALSE),\"\")","v":""}]
[17,null,{"$f":"IFERROR(VLOOKUP(B36,Paramètres!$O$4:$P$2000,2,FALSE),\"\")","v":""}]
[18,null,{"$f":"IFERROR(VLOOKUP(B37,Paramètres!$O$4:$P$2000,2,FALSE),\"\")","v":""}]
[19,null,{"$f":"IFERROR(VLOOKUP(B38,Paramètres!$O$4:$P$2000,2,FALSE),\"\")","v":""}]
[20,null,{"$f":"IFERROR(VLOOKUP(B39,Paramètres!$O$4:$P$2000,2,FALSE),\"\")","v":""}]
[21,null,{"$f":"IFERROR(VLOOKUP(B40,Paramètres!$O$4:$P$2000,2,FALSE),\"\")","v":""}]
[22,null,{"$f":"IFERROR(VLOOKUP(B41,Paramètres!$O$4:$P$2000,2,FALSE),\"\")","v":""}]
[23,null,{"$f":"IFERROR(VLOOKUP(B42,Paramètres!$O$4:$P$2000,2,FALSE),\"\")","v":""}]
[24,null,{"$f":"IFERROR(VLOOKUP(B43,Paramètres!$O$4:$P$2000,2,FALSE),\"\")","v":""}]
[25,null,{"$f":"IFERROR(VLOOKUP(B44,Paramètres!$O$4:$P$2000,2,FALSE),\"\")","v":""}]
[26,null,{"$f":"IFERROR(VLOOKUP(B45,Paramètres!$O$4:$P$2000,2,FALSE),\"\")","v":""}]
[27,null,{"$f":"IFERROR(VLOOKUP(B46,Paramètres!$O$4:$P$2000,2,FALSE),\"\")","v":""}]
[28,null,{"$f":"IFERROR(VLOOKUP(B47,Paramètres!$O$4:$P$2000,2,FALSE),\"\")","v":""}]
[29,null,{"$f":"IFERROR(VLOOKUP(B48,Paramètres!$O$4:$P$2000,2,FALSE),\"\")","v":""}]
[30,null,{"$f":"IFERROR(VLOOKUP(B49,Paramètres!$O$4:$P$2000,2,FALSE),\"\")","v":""}]
[31,null,{"$f":"IFERROR(VLOOKUP(B50,Paramètres!$O$4:$P$2000,2,FALSE),\"\")","v":""}]
[32,null,{"$f":"IFERROR(VLOOKUP(B51,Paramètres!$O$4:$P$2000,2,FALSE),\"\")","v":""}]
[33,null,{"$f":"IFERROR(VLOOKUP(B52,Paramètres!$O$4:$P$2000,2,FALSE),\"\")","v":""}]
[34,null,{"$f":"IFERROR(VLOOKUP(B53,Paramètres!$O$4:$P$2000,2,FALSE),\"\")","v":""}]
[35,null,{"$f":"IFERROR(VLOOKUP(B54,Paramètres!$O$4:$P$2000,2,FALSE),\"\")","v":""}]
[36,null,{"$f":"IFERROR(VLOOKUP(B55,Paramètres!$O$4:$P$2000,2,FALSE),\"\")","v":""}]
[37,null,{"$f":"IFERROR(VLOOKUP(B56,Paramètres!$O$4:$P$2000,2,FALSE),\"\")","v":""}]
[38,null,{"$f":"IFERROR(VLOOKUP(B57,Paramètres!$O$4:$P$2000,2,FALSE),\"\")","v":""}]
[39,null,{"$f":"IFERROR(VLOOKUP(B58,Paramètres!$O$4:$P$2000,2,FALSE),\"\")","v":""}]
[40,null,{"$f":"IFERROR(VLOOKUP(B59,Paramètres!$O$4:$P$2000,2,FALSE),\"\")","v":""}]
[41,null,{"$f":"IFERROR(VLOOKUP(B60,Paramètres!$O$4:$P$2000,2,FALSE),\"\")","v":""}]
[42,null,{"$f":"IFERROR(VLOOKUP(B61,Paramètres!$O$4:$P$2000,2,FALSE),\"\")","v":""}]
[43,null,{"$f":"IFERROR(VLOOKUP(B62,Paramètres!$O$4:$P$2000,2,FALSE),\"\")","v":""}]
[44,null,{"$f":"IFERROR(VLOOKUP(B63,Paramètres!$O$4:$P$2000,2,FALSE),\"\")","v":""}]
[45,null,{"$f":"IFERROR(VLOOKUP(B64,Paramètres!$O$4:$P$2000,2,FALSE),\"\")","v":""}]
[46,null,{"$f":"IFERROR(VLOOKUP(B65,Paramètres!$O$4:$P$2000,2,FALSE),\"\")","v":""}]
[47,null,{"$f":"IFERROR(VLOOKUP(B66,Paramètres!$O$4:$P$2000,2,FALSE),\"\")","v":""}]
[48,null,{"$f":"IFERROR(VLOOKUP(B67,Paramètres!$O$4:$P$2000,2,FALSE),\"\")","v":""}]
[49,null,{"$f":"IFERROR(VLOOKUP(B68,Paramètres!$O$4:$P$2000,2,FALSE),\"\")","v":""}]
[50,null,{"$f":"IFERROR(VLOOKUP(B69,Paramètres!$O$4:$P$2000,2,FALSE),\"\")","v":""}]
[51,null,{"$f":"IFERROR(VLOOKUP(B70,Paramètres!$O$4:$P$2000,2,FALSE),\"\")","v":""}]
[52,null,{"$f":"IFERROR(VLOOKUP(B71,Paramètres!$O$4:$P$2000,2,FALSE),\"\")","v":""}]
[53,null,{"$f":"IFERROR(VLOOKUP(B72,Paramètres!$O$4:$P$2000,2,FALSE),\"\")","v":""}]
[54,null,{"$f":"IFERROR(VLOOKUP(B73,Paramètres!$O$4:$P$2000,2,FALSE),\"\")","v":""}]
[55,null,{"$f":"IFERROR(VLOOKUP(B74,Paramètres!$O$4:$P$2000,2,FALSE),\"\")","v":""}]
[56,null,{"$f":"IFERROR(VLOOKUP(B75,Paramètres!$O$4:$P$2000,2,FALSE),\"\")","v":""}]
[57,null,{"$f":"IFERROR(VLOOKUP(B76,Paramètres!$O$4:$P$2000,2,FALSE),\"\")","v":""}]
[58,null,{"$f":"IFERROR(VLOOKUP(B77,Paramètres!$O$4:$P$2000,2,FALSE),\"\")","v":""}]
[59,null,{"$f":"IFERROR(VLOOKUP(B78,Paramètres!$O$4:$P$2000,2,FALSE),\"\")","v":""}]
[60,null,{"$f":"IFERROR(VLOOKUP(B79,Paramètres!$O$4:$P$2000,2,FALSE),\"\")","v":""}]
[61,null,{"$f":"IFERROR(VLOOKUP(B80,Paramètres!$O$4:$P$2000,2,FALSE),\"\")","v":""}]
[62,null,{"$f":"IFERROR(VLOOKUP(B81,Paramètres!$O$4:$P$2000,2,FALSE),\"\")","v":""}]
[63,null,{"$f":"IFERROR(VLOOKUP(B82,Paramètres!$O$4:$P$2000,2,FALSE),\"\")","v":""}]
[64,null,{"$f":"IFERROR(VLOOKUP(B83,Paramètres!$O$4:$P$2000,2,FALSE),\"\")","v":""}]
[65,null,{"$f":"IFERROR(VLOOKUP(B84,Paramètres!$O$4:$P$2000,2,FALSE),\"\")","v":""}]
[66,null,{"$f":"IFERROR(VLOOKUP(B85,Paramètres!$O$4:$P$2000,2,FALSE),\"\")","v":""}]
[67,null,{"$f":"IFERROR(VLOOKUP(B86,Paramètres!$O$4:$P$2000,2,FALSE),\"\")","v":""}]
[68,null,{"$f":"IFERROR(VLOOKUP(B87,Paramètres!$O$4:$P$2000,2,FALSE),\"\")","v":""}]
[69,null,{"$f":"IFERROR(VLOOKUP(B88,Paramètres!$O$4:$P$2000,2,FALSE),\"\")","v":""}]
[70,null,{"$f":"IFERROR(VLOOKUP(B89,Paramètres!$O$4:$P$2000,2,FALSE),\"\")","v":""}]
[71,null,{"$f":"IFERROR(VLOOKUP(B90,Paramètres!$O$4:$P$2000,2,FALSE),\"\")","v":""}]
[72,null,{"$f":"IFERROR(VLOOKUP(B91,Paramètres!$O$4:$P$2000,2,FALSE),\"\")","v":""}]
[73,null,{"$f":"IFERROR(VLOOKUP(B92,Paramètres!$O$4:$P$2000,2,FALSE),\"\")","v":""}]
[74,null,{"$f":"IFERROR(VLOOKUP(B93,Paramètres!$O$4:$P$2000,2,FALSE),\"\")","v":""}]
[75,null,{"$f":"IFERROR(VLOOKUP(B94,Paramètres!$O$4:$P$2000,2,FALSE),\"\")","v":""}]
[76,null,{"$f":"IFERROR(VLOOKUP(B95,Paramètres!$O$4:$P$2000,2,FALSE),\"\")","v":""}]
[77,null,{"$f":"IFERROR(VLOOKUP(B96,Paramètres!$O$4:$P$2000,2,FALSE),\"\")","v":""}]
[78,null,{"$f":"IFERROR(VLOOKUP(B97,Paramètres!$O$4:$P$2000,2,FALSE),\"\")","v":""}]
[79,null,{"$f":"IFERROR(VLOOKUP(B98,Paramètres!$O$4:$P$2000,2,FALSE),\"\")","v":""}]
[80,null,{"$f":"IFERROR(VLOOKUP(B99,Paramètres!$O$4:$P$2000,2,FALSE),\"\")","v":""}]
[81,null,{"$f":"IFERROR(VLOOKUP(B100,Paramètres!$O$4:$P$2000,2,FALSE),\"\")","v":""}]
[82,null,{"$f":"IFERROR(VLOOKUP(B101,Paramètres!$O$4:$P$2000,2,FALSE),\"\")","v":""}]
[83,null,{"$f":"IFERROR(VLOOKUP(B102,Paramètres!$O$4:$P$2000,2,FALSE),\"\")","v":""}]
[84,null,{"$f":"IFERROR(VLOOKUP(B103,Paramètres!$O$4:$P$2000,2,FALSE),\"\")","v":""}]
[85,null,{"$f":"IFERROR(VLOOKUP(B104,Paramètres!$O$4:$P$2000,2,FALSE),\"\")","v":""}]
[86,null,{"$f":"IFERROR(VLOOKUP(B105,Paramètres!$O$4:$P$2000,2,FALSE),\"\")","v":""}]
[87,null,{"$f":"IFERROR(VLOOKUP(B106,Paramètres!$O$4:$P$2000,2,FALSE),\"\")","v":""}]
[88,null,{"$f":"IFERROR(VLOOKUP(B107,Paramètres!$O$4:$P$2000,2,FALSE),\"\")","v":""}]
[89,null,{"$f":"IFERROR(VLOOKUP(B108,Paramètres!$O$4:$P$2000,2,FALSE),\"\")","v":""}]
[90,null,{"$f":"IFERROR(VLOOKUP(B109,Paramètres!$O$4:$P$2000,2,FALSE),\"\")","v":""}]
[91,null,{"$f":"IFERROR(VLOOKUP(B110,Paramètres!$O$4:$P$2000,2,FALSE),\"\")","v":""}]
[92,null,{"$f":"IFERROR(VLOOKUP(B111,Paramètres!$O$4:$P$2000,2,FALSE),\"\")","v":""}]
[93,null,{"$f":"IFERROR(VLOOKUP(B112,Paramètres!$O$4:$P$2000,2,FALSE),\"\")","v":""}]
[94,null,{"$f":"IFERROR(VLOOKUP(B113,Paramètres!$O$4:$P$2000,2,FALSE),\"\")","v":""}]
[95,null,{"$f":"IFERROR(VLOOKUP(B114,Paramètres!$O$4:$P$2000,2,FALSE),\"\")","v":""}]
[96,null,{"$f":"IFERROR(VLOOKUP(B115,Paramètres!$O$4:$P$2000,2,FALSE),\"\")","v":""}]
[97,null,{"$f":"IFERROR(VLOOKUP(B116,Paramètres!$O$4:$P$2000,2,FALSE),\"\")","v":""}]
[98,null,{"$f":"IFERROR(VLOOKUP(B117,Paramètres!$O$4:$P$2000,2,FALSE),\"\")","v":""}]
[99,null,{"$f":"IFERROR(VLOOKUP(B118,Paramètres!$O$4:$P$2000,2,FALSE),\"\")","v":""}]
[100,null,{"$f":"IFERROR(VLOOKUP(B119,Paramètres!$O$4:$P$2000,2,FALSE),\"\")","v":""}]
[101,null,{"$f":"IFERROR(VLOOKUP(B120,Paramètres!$O$4:$P$2000,2,FALSE),\"\")","v":""}]
[102,null,{"$f":"IFERROR(VLOOKUP(B121,Paramètres!$O$4:$P$2000,2,FALSE),\"\")","v":""}]
[103,null,{"$f":"IFERROR(VLOOKUP(B122,Paramètres!$O$4:$P$2000,2,FALSE),\"\")","v":""}]
[104,null,{"$f":"IFERROR(VLOOKUP(B123,Paramètres!$O$4:$P$2000,2,FALSE),\"\")","v":""}]
[105,null,{"$f":"IFERROR(VLOOKUP(B124,Paramètres!$O$4:$P$2000,2,FALSE),\"\")","v":""}]
[106,null,{"$f":"IFERROR(VLOOKUP(B125,Paramètres!$O$4:$P$2000,2,FALSE),\"\")","v":""}]
[107,null,{"$f":"IFERROR(VLOOKUP(B126,Paramètres!$O$4:$P$2000,2,FALSE),\"\")","v":""}]
[108,null,{"$f":"IFERROR(VLOOKUP(B127,Paramètres!$O$4:$P$2000,2,FALSE),\"\")","v":""}]
[109,null,{"$f":"IFERROR(VLOOKUP(B128,Paramètres!$O$4:$P$2000,2,FALSE),\"\")","v":""}]
[110,null,{"$f":"IFERROR(VLOOKUP(B129,Paramètres!$O$4:$P$2000,2,FALSE),\"\")","v":""}]
[111,null,{"$f":"IFERROR(VLOOKUP(B130,Paramètres!$O$4:$P$2000,2,FALSE),\"\")","v":""}]
[112,null,{"$f":"IFERROR(VLOOKUP(B131,Paramètres!$O$4:$P$2000,2,FALSE),\"\")","v":""}]
[113,null,{"$f":"IFERROR(VLOOKUP(B132,Paramètres!$O$4:$P$2000,2,FALSE),\"\")","v":""}]
[114,null,{"$f":"IFERROR(VLOOKUP(B133,Paramètres!$O$4:$P$2000,2,FALSE),\"\")","v":""}]
[115,null,{"$f":"IFERROR(VLOOKUP(B134,Paramètres!$O$4:$P$2000,2,FALSE),\"\")","v":""}]
[116,null,{"$f":"IFERROR(VLOOKUP(B135,Paramètres!$O$4:$P$2000,2,FALSE),\"\")","v":""}]
[117,null,{"$f":"IFERROR(VLOOKUP(B136,Paramètres!$O$4:$P$2000,2,FALSE),\"\")","v":""}]
[118,null,{"$f":"IFERROR(VLOOKUP(B137,Paramètres!$O$4:$P$2000,2,FALSE),\"\")","v":""}]
[119,null,{"$f":"IFERROR(VLOOKUP(B138,Paramètres!$O$4:$P$2000,2,FALSE),\"\")","v":""}]
[120,null,{"$f":"IFERROR(VLOOKUP(B139,Paramètres!$O$4:$P$2000,2,FALSE),\"\")","v":""}]
[121,null,{"$f":"IFERROR(VLOOKUP(B140,Paramètres!$O$4:$P$2000,2,FALSE),\"\")","v":""}]
[122,null,{"$f":"IFERROR(VLOOKUP(B141,Paramètres!$O$4:$P$2000,2,FALSE),\"\")","v":""}]
[123,null,{"$f":"IFERROR(VLOOKUP(B142,Paramètres!$O$4:$P$2000,2,FALSE),\"\")","v":""}]
[124,null,{"$f":"IFERROR(VLOOKUP(B143,Paramètres!$O$4:$P$2000,2,FALSE),\"\")","v":""}]
[125,null,{"$f":"IFERROR(VLOOKUP(B144,Paramètres!$O$4:$P$2000,2,FALSE),\"\")","v":""}]
[126,null,{"$f":"IFERROR(VLOOKUP(B145,Paramètres!$O$4:$P$2000,2,FALSE),\"\")","v":""}]
[127,null,{"$f":"IFERROR(VLOOKUP(B146,Paramètres!$O$4:$P$2000,2,FALSE),\"\")","v":""}]
[128,null,{"$f":"IFERROR(VLOOKUP(B147,Paramètres!$O$4:$P$2000,2,FALSE),\"\")","v":""}]
[129,null,{"$f":"IFERROR(VLOOKUP(B148,Paramètres!$O$4:$P$2000,2,FALSE),\"\")","v":""}]
[130,null,{"$f":"IFERROR(VLOOKUP(B149,Paramètres!$O$4:$P$2000,2,FALSE),\"\")","v":""}]
[131,null,{"$f":"IFERROR(VLOOKUP(B150,Paramètres!$O$4:$P$2000,2,FALSE),\"\")","v":""}]
[132,null,{"$f":"IFERROR(VLOOKUP(B151,Paramètres!$O$4:$P$2000,2,FALSE),\"\")","v":""}]
[133,null,{"$f":"IFERROR(VLOOKUP(B152,Paramètres!$O$4:$P$2000,2,FALSE),\"\")","v":""}]
[134,null,{"$f":"IFERROR(VLOOKUP(B153,Paramètres!$O$4:$P$2000,2,FALSE),\"\")","v":""}]
[135,null,{"$f":"IFERROR(VLOOKUP(B154,Paramètres!$O$4:$P$2000,2,FALSE),\"\")","v":""}]
[136,null,{"$f":"IFERROR(VLOOKUP(B155,Paramètres!$O$4:$P$2000,2,FALSE),\"\")","v":""}]
[137,null,{"$f":"IFERROR(VLOOKUP(B156,Paramètres!$O$4:$P$2000,2,FALSE),\"\")","v":""}]
[138,null,{"$f":"IFERROR(VLOOKUP(B157,Paramètres!$O$4:$P$2000,2,FALSE),\"\")","v":""}]
[139,null,{"$f":"IFERROR(VLOOKUP(B158,Paramètres!$O$4:$P$2000,2,FALSE),\"\")","v":""}]
[140,null,{"$f":"IFERROR(VLOOKUP(B159,Paramètres!$O$4:$P$2000,2,FALSE),\"\")","v":""}]
[141,null,{"$f":"IFERROR(VLOOKUP(B160,Paramètres!$O$4:$P$2000,2,FALSE),\"\")","v":""}]
[142,null,{"$f":"IFERROR(VLOOKUP(B161,Paramètres!$O$4:$P$2000,2,FALSE),\"\")","v":""}]
[143,null,{"$f":"IFERROR(VLOOKUP(B162,Paramètres!$O$4:$P$2000,2,FALSE),\"\")","v":""}]
[144,null,{"$f":"IFERROR(VLOOKUP(B163,Paramètres!$O$4:$P$2000,2,FALSE),\"\")","v":""}]
[145,null,{"$f":"IFERROR(VLOOKUP(B164,Paramètres!$O$4:$P$2000,2,FALSE),\"\")","v":""}]
[146,null,{"$f":"IFERROR(VLOOKUP(B165,Paramètres!$O$4:$P$2000,2,FALSE),\"\")","v":""}]
[147,null,{"$f":"IFERROR(VLOOKUP(B166,Paramètres!$O$4:$P$2000,2,FALSE),\"\")","v":""}]
[148,null,{"$f":"IFERROR(VLOOKUP(B167,Paramètres!$O$4:$P$2000,2,FALSE),\"\")","v":""}]
[149,null,{"$f":"IFERROR(VLOOKUP(B168,Paramètres!$O$4:$P$2000,2,FALSE),\"\")","v":""}]
[150,null,{"$f":"IFERROR(VLOOKUP(B169,Paramètres!$O$4:$P$2000,2,FALSE),\"\")","v":""}]
[151,null,{"$f":"IFERROR(VLOOKUP(B170,Paramètres!$O$4:$P$2000,2,FALSE),\"\")","v":""}]
[152,null,{"$f":"IFERROR(VLOOKUP(B171,Paramètres!$O$4:$P$2000,2,FALSE),\"\")","v":""}]
[153,null,{"$f":"IFERROR(VLOOKUP(B172,Paramètres!$O$4:$P$2000,2,FALSE),\"\")","v":""}]
[154,null,{"$f":"IFERROR(VLOOKUP(B173,Paramètres!$O$4:$P$2000,2,FALSE),\"\")","v":""}]
[155,null,{"$f":"IFERROR(VLOOKUP(B174,Paramètres!$O$4:$P$2000,2,FALSE),\"\")","v":""}]
[156,null,{"$f":"IFERROR(VLOOKUP(B175,Paramètres!$O$4:$P$2000,2,FALSE),\"\")","v":""}]
[157,null,{"$f":"IFERROR(VLOOKUP(B176,Paramètres!$O$4:$P$2000,2,FALSE),\"\")","v":""}]
[158,null,{"$f":"IFERROR(VLOOKUP(B177,Paramètres!$O$4:$P$2000,2,FALSE),\"\")","v":""}]
[159,null,{"$f":"IFERROR(VLOOKUP(B178,Paramètres!$O$4:$P$2000,2,FALSE),\"\")","v":""}]
[160,null,{"$f":"IFERROR(VLOOKUP(B179,Paramètres!$O$4:$P$2000,2,FALSE),\"\")","v":""}]
[161,null,{"$f":"IFERROR(VLOOKUP(B180,Paramètres!$O$4:$P$2000,2,FALSE),\"\")","v":""}]
[162,null,{"$f":"IFERROR(VLOOKUP(B181,Paramètres!$O$4:$P$2000,2,FALSE),\"\")","v":""}]
[163,null,{"$f":"IFERROR(VLOOKUP(B182,Paramètres!$O$4:$P$2000,2,FALSE),\"\")","v":""}]
[164,null,{"$f":"IFERROR(VLOOKUP(B183,Paramètres!$O$4:$P$2000,2,FALSE),\"\")","v":""}]
[165,null,{"$f":"IFERROR(VLOOKUP(B184,Paramètres!$O$4:$P$2000,2,FALSE),\"\")","v":""}]
[166,null,{"$f":"IFERROR(VLOOKUP(B185,Paramètres!$O$4:$P$2000,2,FALSE),\"\")","v":""}]
[167,null,{"$f":"IFERROR(VLOOKUP(B186,Paramètres!$O$4:$P$2000,2,FALSE),\"\")","v":""}]
[168,null,{"$f":"IFERROR(VLOOKUP(B187,Paramètres!$O$4:$P$2000,2,FALSE),\"\")","v":""}]
[169,null,{"$f":"IFERROR(VLOOKUP(B188,Paramètres!$O$4:$P$2000,2,FALSE),\"\")","v":""}]
[170,null,{"$f":"IFERROR(VLOOKUP(B189,Paramètres!$O$4:$P$2000,2,FALSE),\"\")","v":""}]
[171,null,{"$f":"IFERROR(VLOOKUP(B190,Paramètres!$O$4:$P$2000,2,FALSE),\"\")","v":""}]
[172,null,{"$f":"IFERROR(VLOOKUP(B191,Paramètres!$O$4:$P$2000,2,FALSE),\"\")","v":""}]
[173,null,{"$f":"IFERROR(VLOOKUP(B192,Paramètres!$O$4:$P$2000,2,FALSE),\"\")","v":""}]
[174,null,{"$f":"IFERROR(VLOOKUP(B193,Paramètres!$O$4:$P$2000,2,FALSE),\"\")","v":""}]
[175,null,{"$f":"IFERROR(VLOOKUP(B194,Paramètres!$O$4:$P$2000,2,FALSE),\"\")","v":""}]
[176,null,{"$f":"IFERROR(VLOOKUP(B195,Paramètres!$O$4:$P$2000,2,FALSE),\"\")","v":""}]
[177,null,{"$f":"IFERROR(VLOOKUP(B196,Paramètres!$O$4:$P$2000,2,FALSE),\"\")","v":""}]
[178,null,{"$f":"IFERROR(VLOOKUP(B197,Paramètres!$O$4:$P$2000,2,FALSE),\"\")","v":""}]
[179,null,{"$f":"IFERROR(VLOOKUP(B198,Paramètres!$O$4:$P$2000,2,FALSE),\"\")","v":""}]
[180,null,{"$f":"IFERROR(VLOOKUP(B199,Paramètres!$O$4:$P$2000,2,FALSE),\"\")","v":""}]
[181,null,{"$f":"IFERROR(VLOOKUP(B200,Paramètres!$O$4:$P$2000,2,FALSE),\"\")","v":""}]
[182,null,{"$f":"IFERROR(VLOOKUP(B201,Paramètres!$O$4:$P$2000,2,FALSE),\"\")","v":""}]
[183,null,{"$f":"IFERROR(VLOOKUP(B202,Paramètres!$O$4:$P$2000,2,FALSE),\"\")","v":""}]
[184,null,{"$f":"IFERROR(VLOOKUP(B203,Paramètres!$O$4:$P$2000,2,FALSE),\"\")","v":""}]
[185,null,{"$f":"IFERROR(VLOOKUP(B204,Paramètres!$O$4:$P$2000,2,FALSE),\"\")","v":""}]
[186,null,{"$f":"IFERROR(VLOOKUP(B205,Paramètres!$O$4:$P$2000,2,FALSE),\"\")","v":""}]
[187,null,{"$f":"IFERROR(VLOOKUP(B206,Paramètres!$O$4:$P$2000,2,FALSE),\"\")","v":""}]
[188,null,{"$f":"IFERROR(VLOOKUP(B207,Paramètres!$O$4:$P$2000,2,FALSE),\"\")","v":""}]
[189,null,{"$f":"IFERROR(VLOOKUP(B208,Paramètres!$O$4:$P$2000,2,FALSE),\"\")","v":""}]
[190,null,{"$f":"IFERROR(VLOOKUP(B209,Paramètres!$O$4:$P$2000,2,FALSE),\"\")","v":""}]
[191,null,{"$f":"IFERROR(VLOOKUP(B210,Paramètres!$O$4:$P$2000,2,FALSE),\"\")","v":""}]
[192,null,{"$f":"IFERROR(VLOOKUP(B211,Paramètres!$O$4:$P$2000,2,FALSE),\"\")","v":""}]
[193,null,{"$f":"IFERROR(VLOOKUP(B212,Paramètres!$O$4:$P$2000,2,FALSE),\"\")","v":""}]
[194,null,{"$f":"IFERROR(VLOOKUP(B213,Paramètres!$O$4:$P$2000,2,FALSE),\"\")","v":""}]
[195,null,{"$f":"IFERROR(VLOOKUP(B214,Paramètres!$O$4:$P$2000,2,FALSE),\"\")","v":""}]
[196,null,{"$f":"IFERROR(VLOOKUP(B215,Paramètres!$O$4:$P$2000,2,FALSE),\"\")","v":""}]
[197,null,{"$f":"IFERROR(VLOOKUP(B216,Paramètres!$O$4:$P$2000,2,FALSE),\"\")","v":""}]
[198,null,{"$f":"IFERROR(VLOOKUP(B217,Paramètres!$O$4:$P$2000,2,FALSE),\"\")","v":""}]
[199,null,{"$f":"IFERROR(VLOOKUP(B218,Paramètres!$O$4:$P$2000,2,FALSE),\"\")","v":""}]
[200,null,{"$f":"IFERROR(VLOOKUP(B219,Paramètres!$O$4:$P$2000,2,FALSE),\"\")","v":""}]
[201,null,{"$f":"IFERROR(VLOOKUP(B220,Paramètres!$O$4:$P$2000,2,FALSE),\"\")","v":""}]
[202,null,{"$f":"IFERROR(VLOOKUP(B221,Paramètres!$O$4:$P$2000,2,FALSE),\"\")","v":""}]
[203,null,{"$f":"IFERROR(VLOOKUP(B222,Paramètres!$O$4:$P$2000,2,FALSE),\"\")","v":""}]
[204,null,{"$f":"IFERROR(VLOOKUP(B223,Paramètres!$O$4:$P$2000,2,FALSE),\"\")","v":""}]
[205,null,{"$f":"IFERROR(VLOOKUP(B224,Paramètres!$O$4:$P$2000,2,FALSE),\"\")","v":""}]
[206,null,{"$f":"IFERROR(VLOOKUP(B225,Paramètres!$O$4:$P$2000,2,FALSE),\"\")","v":""}]
[207,null,{"$f":"IFERROR(VLOOKUP(B226,Paramètres!$O$4:$P$2000,2,FALSE),\"\")","v":""}]
[208,null,{"$f":"IFERROR(VLOOKUP(B227,Paramètres!$O$4:$P$2000,2,FALSE),\"\")","v":""}]
[209,null,{"$f":"IFERROR(VLOOKUP(B228,Paramètres!$O$4:$P$2000,2,FALSE),\"\")","v":""}]
[210,null,{"$f":"IFERROR(VLOOKUP(B229,Paramètres!$O$4:$P$2000,2,FALSE),\"\")","v":""}]
[211,null,{"$f":"IFERROR(VLOOKUP(B230,Paramètres!$O$4:$P$2000,2,FALSE),\"\")","v":""}]
[212,null,{"$f":"IFERROR(VLOOKUP(B231,Paramètres!$O$4:$P$2000,2,FALSE),\"\")","v":""}]
[213,null,{"$f":"IFERROR(VLOOKUP(B232,Paramètres!$O$4:$P$2000,2,FALSE),\"\")","v":""}]
[214,null,{"$f":"IFERROR(VLOOKUP(B233,Paramètres!$O$4:$P$2000,2,FALSE),\"\")","v":""}]
[215,null,{"$f":"IFERROR(VLOOKUP(B234,Paramètres!$O$4:$P$2000,2,FALSE),\"\")","v":""}]
[216,null,{"$f":"IFERROR(VLOOKUP(B235,Paramètres!$O$4:$P$2000,2,FALSE),\"\")","v":""}]
[217,null,{"$f":"IFERROR(VLOOKUP(B236,Paramètres!$O$4:$P$2000,2,FALSE),\"\")","v":""}]
[218,null,{"$f":"IFERROR(VLOOKUP(B237,Paramètres!$O$4:$P$2000,2,FALSE),\"\")","v":""}]
[219,null,{"$f":"IFERROR(VLOOKUP(B238,Paramètres!$O$4:$P$2000,2,FALSE),\"\")","v":""}]
[220,null,{"$f":"IFERROR(VLOOKUP(B239,Paramètres!$O$4:$P$2000,2,FALSE),\"\")","v":""}]
[221,null,{"$f":"IFERROR(VLOOKUP(B240,Paramètres!$O$4:$P$2000,2,FALSE),\"\")","v":""}]
[222,null,{"$f":"IFERROR(VLOOKUP(B241,Paramètres!$O$4:$P$2000,2,FALSE),\"\")","v":""}]
[223,null,{"$f":"IFERROR(VLOOKUP(B242,Paramètres!$O$4:$P$2000,2,FALSE),\"\")","v":""}]
[224,null,{"$f":"IFERROR(VLOOKUP(B243,Paramètres!$O$4:$P$2000,2,FALSE),\"\")","v":""}]
[225,null,{"$f":"IFERROR(VLOOKUP(B244,Paramètres!$O$4:$P$2000,2,FALSE),\"\")","v":""}]
[226,null,{"$f":"IFERROR(VLOOKUP(B245,Paramètres!$O$4:$P$2000,2,FALSE),\"\")","v":""}]
[227,null,{"$f":"IFERROR(VLOOKUP(B246,Paramètres!$O$4:$P$2000,2,FALSE),\"\")","v":""}]
[228,null,{"$f":"IFERROR(VLOOKUP(B247,Paramètres!$O$4:$P$2000,2,FALSE),\"\")","v":""}]
[229,null,{"$f":"IFERROR(VLOOKUP(B248,Paramètres!$O$4:$P$2000,2,FALSE),\"\")","v":""}]
[230,null,{"$f":"IFERROR(VLOOKUP(B249,Paramètres!$O$4:$P$2000,2,FALSE),\"\")","v":""}]
[231,null,{"$f":"IFERROR(VLOOKUP(B250,Paramètres!$O$4:$P$2000,2,FALSE),\"\")","v":""}]
[232,null,{"$f":"IFERROR(VLOOKUP(B251,Paramètres!$O$4:$P$2000,2,FALSE),\"\")","v":""}]
[233,null,{"$f":"IFERROR(VLOOKUP(B252,Paramètres!$O$4:$P$2000,2,FALSE),\"\")","v":""}]
[234,null,{"$f":"IFERROR(VLOOKUP(B253,Paramètres!$O$4:$P$2000,2,FALSE),\"\")","v":""}]
[235,null,{"$f":"IFERROR(VLOOKUP(B254,Paramètres!$O$4:$P$2000,2,FALSE),\"\")","v":""}]
[236,null,{"$f":"IFERROR(VLOOKUP(B255,Paramètres!$O$4:$P$2000,2,FALSE),\"\")","v":""}]
[237,null,{"$f":"IFERROR(VLOOKUP(B256,Paramètres!$O$4:$P$2000,2,FALSE),\"\")","v":""}]
[238,null,{"$f":"IFERROR(VLOOKUP(B257,Paramètres!$O$4:$P$2000,2,FALSE),\"\")","v":""}]
[239,null,{"$f":"IFERROR(VLOOKUP(B258,Paramètres!$O$4:$P$2000,2,FALSE),\"\")","v":""}]
[240,null,{"$f":"IFERROR(VLOOKUP(B259,Paramètres!$O$4:$P$2000,2,FALSE),\"\")","v":""}]
[241,null,{"$f":"IFERROR(VLOOKUP(B260,Paramètres!$O$4:$P$2000,2,FALSE),\"\")","v":""}]
[242,null,{"$f":"IFERROR(VLOOKUP(B261,Paramètres!$O$4:$P$2000,2,FALSE),\"\")","v":""}]
[243,null,{"$f":"IFERROR(VLOOKUP(B262,Paramètres!$O$4:$P$2000,2,FALSE),\"\")","v":""}]
[244,null,{"$f":"IFERROR(VLOOKUP(B263,Paramètres!$O$4:$P$2000,2,FALSE),\"\")","v":""}]
[245,null,{"$f":"IFERROR(VLOOKUP(B264,Paramètres!$O$4:$P$2000,2,FALSE),\"\")","v":""}]
[246,null,{"$f":"IFERROR(VLOOKUP(B265,Paramètres!$O$4:$P$2000,2,FALSE),\"\")","v":""}]
[247,null,{"$f":"IFERROR(VLOOKUP(B266,Paramètres!$O$4:$P$2000,2,FALSE),\"\")","v":""}]
[248,null,{"$f":"IFERROR(VLOOKUP(B267,Paramètres!$O$4:$P$2000,2,FALSE),\"\")","v":""}]
[249,null,{"$f":"IFERROR(VLOOKUP(B268,Paramètres!$O$4:$P$2000,2,FALSE),\"\")","v":""}]
[250,null,{"$f":"IFERROR(VLOOKUP(B269,Paramètres!$O$4:$P$2000,2,FALSE),\"\")","v":""}]
[251,null,{"$f":"IFERROR(VLOOKUP(B270,Paramètres!$O$4:$P$2000,2,FALSE),\"\")","v":""}]
[252,null,{"$f":"IFERROR(VLOOKUP(B271,Paramètres!$O$4:$P$2000,2,FALSE),\"\")","v":""}]
[253,null,{"$f":"IFERROR(VLOOKUP(B272,Paramètres!$O$4:$P$2000,2,FALSE),\"\")","v":""}]
[254,null,{"$f":"IFERROR(VLOOKUP(B273,Paramètres!$O$4:$P$2000,2,FALSE),\"\")","v":""}]
[255,null,{"$f":"IFERROR(VLOOKUP(B274,Paramètres!$O$4:$P$2000,2,FALSE),\"\")","v":""}]
[256,null,{"$f":"IFERROR(VLOOKUP(B275,Paramètres!$O$4:$P$2000,2,FALSE),\"\")","v":""}]
[257,null,{"$f":"IFERROR(VLOOKUP(B276,Paramètres!$O$4:$P$2000,2,FALSE),\"\")","v":""}]
[258,null,{"$f":"IFERROR(VLOOKUP(B277,Paramètres!$O$4:$P$2000,2,FALSE),\"\")","v":""}]
[259,null,{"$f":"IFERROR(VLOOKUP(B278,Paramètres!$O$4:$P$2000,2,FALSE),\"\")","v":""}]
[260,null,{"$f":"IFERROR(VLOOKUP(B279,Paramètres!$O$4:$P$2000,2,FALSE),\"\")","v":""}]
[261,null,{"$f":"IFERROR(VLOOKUP(B280,Paramètres!$O$4:$P$2000,2,FALSE),\"\")","v":""}]
[262,null,{"$f":"IFERROR(VLOOKUP(B281,Paramètres!$O$4:$P$2000,2,FALSE),\"\")","v":""}]
[263,null,{"$f":"IFERROR(VLOOKUP(B282,Paramètres!$O$4:$P$2000,2,FALSE),\"\")","v":""}]
[264,null,{"$f":"IFERROR(VLOOKUP(B283,Paramètres!$O$4:$P$2000,2,FALSE),\"\")","v":""}]
[265,null,{"$f":"IFERROR(VLOOKUP(B284,Paramètres!$O$4:$P$2000,2,FALSE),\"\")","v":""}]
[266,null,{"$f":"IFERROR(VLOOKUP(B285,Paramètres!$O$4:$P$2000,2,FALSE),\"\")","v":""}]
[267,null,{"$f":"IFERROR(VLOOKUP(B286,Paramètres!$O$4:$P$2000,2,FALSE),\"\")","v":""}]
[268,null,{"$f":"IFERROR(VLOOKUP(B287,Paramètres!$O$4:$P$2000,2,FALSE),\"\")","v":""}]
[269,null,{"$f":"IFERROR(VLOOKUP(B288,Paramètres!$O$4:$P$2000,2,FALSE),\"\")","v":""}]
[270,null,{"$f":"IFERROR(VLOOKUP(B289,Paramètres!$O$4:$P$2000,2,FALSE),\"\")","v":""}]
[271,null,{"$f":"IFERROR(VLOOKUP(B290,Paramètres!$O$4:$P$2000,2,FALSE),\"\")","v":""}]
[272,null,{"$f":"IFERROR(VLOOKUP(B291,Paramètres!$O$4:$P$2000,2,FALSE),\"\")","v":""}]
[273,null,{"$f":"IFERROR(VLOOKUP(B292,Paramètres!$O$4:$P$2000,2,FALSE),\"\")","v":""}]
[274,null,{"$f":"IFERROR(VLOOKUP(B293,Paramètres!$O$4:$P$2000,2,FALSE),\"\")","v":""}]
[275,null,{"$f":"IFERROR(VLOOKUP(B294,Paramètres!$O$4:$P$2000,2,FALSE),\"\")","v":""}]
[276,null,{"$f":"IFERROR(VLOOKUP(B295,Paramètres!$O$4:$P$2000,2,FALSE),\"\")","v":""}]
[277,null,{"$f":"IFERROR(VLOOKUP(B296,Paramètres!$O$4:$P$2000,2,FALSE),\"\")","v":""}]
[278,null,{"$f":"IFERROR(VLOOKUP(B297,Paramètres!$O$4:$P$2000,2,FALSE),\"\")","v":""}]
[279,null,{"$f":"IFERROR(VLOOKUP(B298,Paramètres!$O$4:$P$2000,2,FALSE),\"\")","v":""}]
[280,null,{"$f":"IFERROR(VLOOKUP(B299,Paramètres!$O$4:$P$2000,2,FALSE),\"\")","v":""}]
[281,null,{"$f":"IFERROR(VLOOKUP(B300,Paramètres!$O$4:$P$2000,2,FALSE),\"\")","v":""}]
[282,null,{"$f":"IFERROR(VLOOKUP(B301,Paramètres!$O$4:$P$2000,2,FALSE),\"\")","v":""}]
[283,null,{"$f":"IFERROR(VLOOKUP(B302,Paramètres!$O$4:$P$2000,2,FALSE),\"\")","v":""}]
[284,null,{"$f":"IFERROR(VLOOKUP(B303,Paramètres!$O$4:$P$2000,2,FALSE),\"\")","v":""}]
[285,null,{"$f":"IFERROR(VLOOKUP(B304,Paramètres!$O$4:$P$2000,2,FALSE),\"\")","v":""}]
[286,null,{"$f":"IFERROR(VLOOKUP(B305,Paramètres!$O$4:$P$2000,2,FALSE),\"\")","v":""}]
[287,null,{"$f":"IFERROR(VLOOKUP(B306,Paramètres!$O$4:$P$2000,2,FALSE),\"\")","v":""}]
[288,null,{"$f":"IFERROR(VLOOKUP(B307,Paramètres!$O$4:$P$2000,2,FALSE),\"\")","v":""}]
[289,null,{"$f":"IFERROR(VLOOKUP(B308,Paramètres!$O$4:$P$2000,2,FALSE),\"\")","v":""}]
[290,null,{"$f":"IFERROR(VLOOKUP(B309,Paramètres!$O$4:$P$2000,2,FALSE),\"\")","v":""}]
[291,null,{"$f":"IFERROR(VLOOKUP(B310,Paramètres!$O$4:$P$2000,2,FALSE),\"\")","v":""}]
[292,null,{"$f":"IFERROR(VLOOKUP(B311,Paramètres!$O$4:$P$2000,2,FALSE),\"\")","v":""}]
[293,null,{"$f":"IFERROR(VLOOKUP(B312,Paramètres!$O$4:$P$2000,2,FALSE),\"\")","v":""}]
[294,null,{"$f":"IFERROR(VLOOKUP(B313,Paramètres!$O$4:$P$2000,2,FALSE),\"\")","v":""}]
[295,null,{"$f":"IFERROR(VLOOKUP(B314,Paramètres!$O$4:$P$2000,2,FALSE),\"\")","v":""}]
[296,null,{"$f":"IFERROR(VLOOKUP(B315,Paramètres!$O$4:$P$2000,2,FALSE),\"\")","v":""}]
[297,null,{"$f":"IFERROR(VLOOKUP(B316,Paramètres!$O$4:$P$2000,2,FALSE),\"\")","v":""}]
[298,null,{"$f":"IFERROR(VLOOKUP(B317,Paramètres!$O$4:$P$2000,2,FALSE),\"\")","v":""}]
[299,null,{"$f":"IFERROR(VLOOKUP(B318,Paramètres!$O$4:$P$2000,2,FALSE),\"\")","v":""}]
[300,null,{"$f":"IFERROR(VLOOKUP(B319,Paramètres!$O$4:$P$2000,2,FALSE),\"\")","v":""}]
[301,null,{"$f":"IFERROR(VLOOKUP(B320,Paramètres!$O$4:$P$2000,2,FALSE),\"\")","v":""}]
[302,null,{"$f":"IFERROR(VLOOKUP(B321,Paramètres!$O$4:$P$2000,2,FALSE),\"\")","v":""}]
[303,null,{"$f":"IFERROR(VLOOKUP(B322,Paramètres!$O$4:$P$2000,2,FALSE),\"\")","v":""}]
[304,null,{"$f":"IFERROR(VLOOKUP(B323,Paramètres!$O$4:$P$2000,2,FALSE),\"\")","v":""}]
[305,null,{"$f":"IFERROR(VLOOKUP(B324,Paramètres!$O$4:$P$2000,2,FALSE),\"\")","v":""}]
[306,null,{"$f":"IFERROR(VLOOKUP(B325,Paramètres!$O$4:$P$2000,2,FALSE),\"\")","v":""}]
[307,null,{"$f":"IFERROR(VLOOKUP(B326,Paramètres!$O$4:$P$2000,2,FALSE),\"\")","v":""}]
[308,null,{"$f":"IFERROR(VLOOKUP(B327,Paramètres!$O$4:$P$2000,2,FALSE),\"\")","v":""}]
[309,null,{"$f":"IFERROR(VLOOKUP(B328,Paramètres!$O$4:$P$2000,2,FALSE),\"\")","v":""}]
[310,null,{"$f":"IFERROR(VLOOKUP(B329,Paramètres!$O$4:$P$2000,2,FALSE),\"\")","v":""}]
[311,null,{"$f":"IFERROR(VLOOKUP(B330,Paramètres!$O$4:$P$2000,2,FALSE),\"\")","v":""}]
[312,null,{"$f":"IFERROR(VLOOKUP(B331,Paramètres!$O$4:$P$2000,2,FALSE),\"\")","v":""}]
[313,null,{"$f":"IFERROR(VLOOKUP(B332,Paramètres!$O$4:$P$2000,2,FALSE),\"\")","v":""}]
[314,null,{"$f":"IFERROR(VLOOKUP(B333,Paramètres!$O$4:$P$2000,2,FALSE),\"\")","v":""}]
[315,null,{"$f":"IFERROR(VLOOKUP(B334,Paramètres!$O$4:$P$2000,2,FALSE),\"\")","v":""}]
[316,null,{"$f":"IFERROR(VLOOKUP(B335,Paramètres!$O$4:$P$2000,2,FALSE),\"\")","v":""}]
[317,null,{"$f":"IFERROR(VLOOKUP(B336,Paramètres!$O$4:$P$2000,2,FALSE),\"\")","v":""}]
[318,null,{"$f":"IFERROR(VLOOKUP(B337,Paramètres!$O$4:$P$2000,2,FALSE),\"\")","v":""}]
[319,null,{"$f":"IFERROR(VLOOKUP(B338,Paramètres!$O$4:$P$2000,2,FALSE),\"\")","v":""}]
[320,null,{"$f":"IFERROR(VLOOKUP(B339,Paramètres!$O$4:$P$2000,2,FALSE),\"\")","v":""}]
[321,null,{"$f":"IFERROR(VLOOKUP(B340,Paramètres!$O$4:$P$2000,2,FALSE),\"\")","v":""}]
[322,null,{"$f":"IFERROR(VLOOKUP(B341,Paramètres!$O$4:$P$2000,2,FALSE),\"\")","v":""}]
[323,null,{"$f":"IFERROR(VLOOKUP(B342,Paramètres!$O$4:$P$2000,2,FALSE),\"\")","v":""}]
[324,null,{"$f":"IFERROR(VLOOKUP(B343,Paramètres!$O$4:$P$2000,2,FALSE),\"\")","v":""}]
[325,null,{"$f":"IFERROR(VLOOKUP(B344,Paramètres!$O$4:$P$2000,2,FALSE),\"\")","v":""}]
[326,null,{"$f":"IFERROR(VLOOKUP(B345,Paramètres!$O$4:$P$2000,2,FALSE),\"\")","v":""}]
[327,null,{"$f":"IFERROR(VLOOKUP(B346,Paramètres!$O$4:$P$2000,2,FALSE),\"\")","v":""}]
[328,null,{"$f":"IFERROR(VLOOKUP(B347,Paramètres!$O$4:$P$2000,2,FALSE),\"\")","v":""}]
[329,null,{"$f":"IFERROR(VLOOKUP(B348,Paramètres!$O$4:$P$2000,2,FALSE),\"\")","v":""}]
[330,null,{"$f":"IFERROR(VLOOKUP(B349,Paramètres!$O$4:$P$2000,2,FALSE),\"\")","v":""}]
[331,null,{"$f":"IFERROR(VLOOKUP(B350,Paramètres!$O$4:$P$2000,2,FALSE),\"\")","v":""}]
[332,null,{"$f":"IFERROR(VLOOKUP(B351,Paramètres!$O$4:$P$2000,2,FALSE),\"\")","v":""}]
[333,null,{"$f":"IFERROR(VLOOKUP(B352,Paramètres!$O$4:$P$2000,2,FALSE),\"\")","v":""}]
[334,null,{"$f":"IFERROR(VLOOKUP(B353,Paramètres!$O$4:$P$2000,2,FALSE),\"\")","v":""}]
[335,null,{"$f":"IFERROR(VLOOKUP(B354,Paramètres!$O$4:$P$2000,2,FALSE),\"\")","v":""}]
[336,null,{"$f":"IFERROR(VLOOKUP(B355,Paramètres!$O$4:$P$2000,2,FALSE),\"\")","v":""}]
[337,null,{"$f":"IFERROR(VLOOKUP(B356,Paramètres!$O$4:$P$2000,2,FALSE),\"\")","v":""}]
[338,null,{"$f":"IFERROR(VLOOKUP(B357,Paramètres!$O$4:$P$2000,2,FALSE),\"\")","v":""}]
[339,null,{"$f":"IFERROR(VLOOKUP(B358,Paramètres!$O$4:$P$2000,2,FALSE),\"\")","v":""}]
[340,null,{"$f":"IFERROR(VLOOKUP(B359,Paramètres!$O$4:$P$2000,2,FALSE),\"\")","v":""}]
[341,null,{"$f":"IFERROR(VLOOKUP(B360,Paramètres!$O$4:$P$2000,2,FALSE),\"\")","v":""}]
[342,null,{"$f":"IFERROR(VLOOKUP(B361,Paramètres!$O$4:$P$2000,2,FALSE),\"\")","v":""}]
[343,null,{"$f":"IFERROR(VLOOKUP(B362,Paramètres!$O$4:$P$2000,2,FALSE),\"\")","v":""}]
[344,null,{"$f":"IFERROR(VLOOKUP(B363,Paramètres!$O$4:$P$2000,2,FALSE),\"\")","v":""}]
[345,null,{"$f":"IFERROR(VLOOKUP(B364,Paramètres!$O$4:$P$2000,2,FALSE),\"\")","v":""}]
[346,null,{"$f":"IFERROR(VLOOKUP(B365,Paramètres!$O$4:$P$2000,2,FALSE),\"\")","v":""}]
[347,null,{"$f":"IFERROR(VLOOKUP(B366,Paramètres!$O$4:$P$2000,2,FALSE),\"\")","v":""}]
[348,null,{"$f":"IFERROR(VLOOKUP(B367,Paramètres!$O$4:$P$2000,2,FALSE),\"\")","v":""}]
[349,null,{"$f":"IFERROR(VLOOKUP(B368,Paramètres!$O$4:$P$2000,2,FALSE),\"\")","v":""}]
[350,null,{"$f":"IFERROR(VLOOKUP(B369,Paramètres!$O$4:$P$2000,2,FALSE),\"\")","v":""}]
[351,null,{"$f":"IFERROR(VLOOKUP(B370,Paramètres!$O$4:$P$2000,2,FALSE),\"\")","v":""}]
[352,null,{"$f":"IFERROR(VLOOKUP(B371,Paramètres!$O$4:$P$2000,2,FALSE),\"\")","v":""}]
[353,null,{"$f":"IFERROR(VLOOKUP(B372,Paramètres!$O$4:$P$2000,2,FALSE),\"\")","v":""}]
[354,null,{"$f":"IFERROR(VLOOKUP(B373,Paramètres!$O$4:$P$2000,2,FALSE),\"\")","v":""}]
[355,null,{"$f":"IFERROR(VLOOKUP(B374,Paramètres!$O$4:$P$2000,2,FALSE),\"\")","v":""}]
[356,null,{"$f":"IFERROR(VLOOKUP(B375,Paramètres!$O$4:$P$2000,2,FALSE),\"\")","v":""}]
[357,null,{"$f":"IFERROR(VLOOKUP(B376,Paramètres!$O$4:$P$2000,2,FALSE),\"\")","v":""}]
[358,null,{"$f":"IFERROR(VLOOKUP(B377,Paramètres!$O$4:$P$2000,2,FALSE),\"\")","v":""}]
[359,null,{"$f":"IFERROR(VLOOKUP(B378,Paramètres!$O$4:$P$2000,2,FALSE),\"\")","v":""}]
[360,null,{"$f":"IFERROR(VLOOKUP(B379,Paramètres!$O$4:$P$2000,2,FALSE),\"\")","v":""}]
[361,null,{"$f":"IFERROR(VLOOKUP(B380,Paramètres!$O$4:$P$2000,2,FALSE),\"\")","v":""}]
[362,null,{"$f":"IFERROR(VLOOKUP(B381,Paramètres!$O$4:$P$2000,2,FALSE),\"\")","v":""}]
[363,null,{"$f":"IFERROR(VLOOKUP(B382,Paramètres!$O$4:$P$2000,2,FALSE),\"\")","v":""}]
[364,null,{"$f":"IFERROR(VLOOKUP(B383,Paramètres!$O$4:$P$2000,2,FALSE),\"\")","v":""}]
[365,null,{"$f":"IFERROR(VLOOKUP(B384,Paramètres!$O$4:$P$2000,2,FALSE),\"\")","v":""}]
[366,null,{"$f":"IFERROR(VLOOKUP(B385,Paramètres!$O$4:$P$2000,2,FALSE),\"\")","v":""}]
[367,null,{"$f":"IFERROR(VLOOKUP(B386,Paramètres!$O$4:$P$2000,2,FALSE),\"\")","v":""}]
[368,null,{"$f":"IFERROR(VLOOKUP(B387,Paramètres!$O$4:$P$2000,2,FALSE),\"\")","v":""}]
[369,null,{"$f":"IFERROR(VLOOKUP(B388,Paramètres!$O$4:$P$2000,2,FALSE),\"\")","v":""}]
[370,null,{"$f":"IFERROR(VLOOKUP(B389,Paramètres!$O$4:$P$2000,2,FALSE),\"\")","v":""}]
[371,null,{"$f":"IFERROR(VLOOKUP(B390,Paramètres!$O$4:$P$2000,2,FALSE),\"\")","v":""}]
[372,null,{"$f":"IFERROR(VLOOKUP(B391,Paramètres!$O$4:$P$2000,2,FALSE),\"\")","v":""}]
[373,null,{"$f":"IFERROR(VLOOKUP(B392,Paramètres!$O$4:$P$2000,2,FALSE),\"\")","v":""}]
[374,null,{"$f":"IFERROR(VLOOKUP(B393,Paramètres!$O$4:$P$2000,2,FALSE),\"\")","v":""}]
[375,null,{"$f":"IFERROR(VLOOKUP(B394,Paramètres!$O$4:$P$2000,2,FALSE),\"\")","v":""}]
[376,null,{"$f":"IFERROR(VLOOKUP(B395,Paramètres!$O$4:$P$2000,2,FALSE),\"\")","v":""}]
[377,null,{"$f":"IFERROR(VLOOKUP(B396,Paramètres!$O$4:$P$2000,2,FALSE),\"\")","v":""}]
[378,null,{"$f":"IFERROR(VLOOKUP(B397,Paramètres!$O$4:$P$2000,2,FALSE),\"\")","v":""}]
[379,null,{"$f":"IFERROR(VLOOKUP(B398,Paramètres!$O$4:$P$2000,2,FALSE),\"\")","v":""}]
[380,null,{"$f":"IFERROR(VLOOKUP(B399,Paramètres!$O$4:$P$2000,2,FALSE),\"\")","v":""}]
[381,null,{"$f":"IFERROR(VLOOKUP(B400,Paramètres!$O$4:$P$2000,2,FALSE),\"\")","v":""}]
[382,null,{"$f":"IFERROR(VLOOKUP(B401,Paramètres!$O$4:$P$2000,2,FALSE),\"\")","v":""}]
[383,null,{"$f":"IFERROR(VLOOKUP(B402,Paramètres!$O$4:$P$2000,2,FALSE),\"\")","v":""}]
[384,null,{"$f":"IFERROR(VLOOKUP(B403,Paramètres!$O$4:$P$2000,2,FALSE),\"\")","v":""}]
[385,null,{"$f":"IFERROR(VLOOKUP(B404,Paramètres!$O$4:$P$2000,2,FALSE),\"\")","v":""}]
[386,null,{"$f":"IFERROR(VLOOKUP(B405,Paramètres!$O$4:$P$2000,2,FALSE),\"\")","v":""}]
[387,null,{"$f":"IFERROR(VLOOKUP(B406,Paramètres!$O$4:$P$2000,2,FALSE),\"\")","v":""}]
[388,null,{"$f":"IFERROR(VLOOKUP(B407,Paramètres!$O$4:$P$2000,2,FALSE),\"\")","v":""}]
[389,null,{"$f":"IFERROR(VLOOKUP(B408,Paramètres!$O$4:$P$2000,2,FALSE),\"\")","v":""}]
[390,null,{"$f":"IFERROR(VLOOKUP(B409,Paramètres!$O$4:$P$2000,2,FALSE),\"\")","v":""}]
[391,null,{"$f":"IFERROR(VLOOKUP(B410,Paramètres!$O$4:$P$2000,2,FALSE),\"\")","v":""}]
[392,null,{"$f":"IFERROR(VLOOKUP(B411,Paramètres!$O$4:$P$2000,2,FALSE),\"\")","v":""}]
[393,null,{"$f":"IFERROR(VLOOKUP(B412,Paramètres!$O$4:$P$2000,2,FALSE),\"\")","v":""}]
[394,null,{"$f":"IFERROR(VLOOKUP(B413,Paramètres!$O$4:$P$2000,2,FALSE),\"\")","v":""}]
[395,null,{"$f":"IFERROR(VLOOKUP(B414,Paramètres!$O$4:$P$2000,2,FALSE),\"\")","v":""}]
[396,null,{"$f":"IFERROR(VLOOKUP(B415,Paramètres!$O$4:$P$2000,2,FALSE),\"\")","v":""}]
[397,null,{"$f":"IFERROR(VLOOKUP(B416,Paramètres!$O$4:$P$2000,2,FALSE),\"\")","v":""}]
[398,null,{"$f":"IFERROR(VLOOKUP(B417,Paramètres!$O$4:$P$2000,2,FALSE),\"\")","v":""}]
[399,null,{"$f":"IFERROR(VLOOKUP(B418,Paramètres!$O$4:$P$2000,2,FALSE),\"\")","v":""}]
[400,null,{"$f":"IFERROR(VLOOKUP(B419,Paramètres!$O$4:$P$2000,2,FALSE),\"\")","v":""}]
[401,null,{"$f":"IFERROR(VLOOKUP(B420,Paramètres!$O$4:$P$2000,2,FALSE),\"\")","v":""}]
[402,null,{"$f":"IFERROR(VLOOKUP(B421,Paramètres!$O$4:$P$2000,2,FALSE),\"\")","v":""}]
[403,null,{"$f":"IFERROR(VLOOKUP(B422,Paramètres!$O$4:$P$2000,2,FALSE),\"\")","v":""}]
[404,null,{"$f":"IFERROR(VLOOKUP(B423,Paramètres!$O$4:$P$2000,2,FALSE),\"\")","v":""}]
[405,null,{"$f":"IFERROR(VLOOKUP(B424,Paramètres!$O$4:$P$2000,2,FALSE),\"\")","v":""}]
[406,null,{"$f":"IFERROR(VLOOKUP(B425,Paramètres!$O$4:$P$2000,2,FALSE),\"\")","v":""}]
[407,null,{"$f":"IFERROR(VLOOKUP(B426,Paramètres!$O$4:$P$2000,2,FALSE),\"\")","v":""}]
[408,null,{"$f":"IFERROR(VLOOKUP(B427,Paramètres!$O$4:$P$2000,2,FALSE),\"\")","v":""}]
[409,null,{"$f":"IFERROR(VLOOKUP(B428,Paramètres!$O$4:$P$2000,2,FALSE),\"\")","v":""}]
[410,null,{"$f":"IFERROR(VLOOKUP(B429,Paramètres!$O$4:$P$2000,2,FALSE),\"\")","v":""}]
[411,null,{"$f":"IFERROR(VLOOKUP(B430,Paramètres!$O$4:$P$2000,2,FALSE),\"\")","v":""}]
[412,null,{"$f":"IFERROR(VLOOKUP(B431,Paramètres!$O$4:$P$2000,2,FALSE),\"\")","v":""}]
[413,null,{"$f":"IFERROR(VLOOKUP(B432,Paramètres!$O$4:$P$2000,2,FALSE),\"\")","v":""}]
[414,null,{"$f":"IFERROR(VLOOKUP(B433,Paramètres!$O$4:$P$2000,2,FALSE),\"\")","v":""}]
[415,null,{"$f":"IFERROR(VLOOKUP(B434,Paramètres!$O$4:$P$2000,2,FALSE),\"\")","v":""}]
[416,null,{"$f":"IFERROR(VLOOKUP(B435,Paramètres!$O$4:$P$2000,2,FALSE),\"\")","v":""}]
[417,null,{"$f":"IFERROR(VLOOKUP(B436,Paramètres!$O$4:$P$2000,2,FALSE),\"\")","v":""}]
[418,null,{"$f":"IFERROR(VLOOKUP(B437,Paramètres!$O$4:$P$2000,2,FALSE),\"\")","v":""}]
[419,null,{"$f":"IFERROR(VLOOKUP(B438,Paramètres!$O$4:$P$2000,2,FALSE),\"\")","v":""}]
[420,null,{"$f":"IFERROR(VLOOKUP(B439,Paramètres!$O$4:$P$2000,2,FALSE),\"\")","v":""}]
[421,null,{"$f":"IFERROR(VLOOKUP(B440,Paramètres!$O$4:$P$2000,2,FALSE),\"\")","v":""}]
[422,null,{"$f":"IFERROR(VLOOKUP(B441,Paramètres!$O$4:$P$2000,2,FALSE),\"\")","v":""}]
[423,null,{"$f":"IFERROR(VLOOKUP(B442,Paramètres!$O$4:$P$2000,2,FALSE),\"\")","v":""}]
[424,null,{"$f":"IFERROR(VLOOKUP(B443,Paramètres!$O$4:$P$2000,2,FALSE),\"\")","v":""}]
[425,null,{"$f":"IFERROR(VLOOKUP(B444,Paramètres!$O$4:$P$2000,2,FALSE),\"\")","v":""}]
[426,null,{"$f":"IFERROR(VLOOKUP(B445,Paramètres!$O$4:$P$2000,2,FALSE),\"\")","v":""}]
[427,null,{"$f":"IFERROR(VLOOKUP(B446,Paramètres!$O$4:$P$2000,2,FALSE),\"\")","v":""}]
[428,null,{"$f":"IFERROR(VLOOKUP(B447,Paramètres!$O$4:$P$2000,2,FALSE),\"\")","v":""}]
[429,null,{"$f":"IFERROR(VLOOKUP(B448,Paramètres!$O$4:$P$2000,2,FALSE),\"\")","v":""}]
[430,null,{"$f":"IFERROR(VLOOKUP(B449,Paramètres!$O$4:$P$2000,2,FALSE),\"\")","v":""}]
[431,null,{"$f":"IFERROR(VLOOKUP(B450,Paramètres!$O$4:$P$2000,2,FALSE),\"\")","v":""}]
[432,null,{"$f":"IFERROR(VLOOKUP(B451,Paramètres!$O$4:$P$2000,2,FALSE),\"\")","v":""}]
[433,null,{"$f":"IFERROR(VLOOKUP(B452,Paramètres!$O$4:$P$2000,2,FALSE),\"\")","v":""}]
[434,null,{"$f":"IFERROR(VLOOKUP(B453,Paramètres!$O$4:$P$2000,2,FALSE),\"\")","v":""}]
[435,null,{"$f":"IFERROR(VLOOKUP(B454,Paramètres!$O$4:$P$2000,2,FALSE),\"\")","v":""}]
[436,null,{"$f":"IFERROR(VLOOKUP(B455,Paramètres!$O$4:$P$2000,2,FALSE),\"\")","v":""}]
[437,null,{"$f":"IFERROR(VLOOKUP(B456,Paramètres!$O$4:$P$2000,2,FALSE),\"\")","v":""}]
[438,null,{"$f":"IFERROR(VLOOKUP(B457,Paramètres!$O$4:$P$2000,2,FALSE),\"\")","v":""}]
[439,null,{"$f":"IFERROR(VLOOKUP(B458,Paramètres!$O$4:$P$2000,2,FALSE),\"\")","v":""}]
[440,null,{"$f":"IFERROR(VLOOKUP(B459,Paramètres!$O$4:$P$2000,2,FALSE),\"\")","v":""}]
[441,null,{"$f":"IFERROR(VLOOKUP(B460,Paramètres!$O$4:$P$2000,2,FALSE),\"\")","v":""}]
[442,null,{"$f":"IFERROR(VLOOKUP(B461,Paramètres!$O$4:$P$2000,2,FALSE),\"\")","v":""}]
[443,null,{"$f":"IFERROR(VLOOKUP(B462,Paramètres!$O$4:$P$2000,2,FALSE),\"\")","v":""}]
[444,null,{"$f":"IFERROR(VLOOKUP(B463,Paramètres!$O$4:$P$2000,2,FALSE),\"\")","v":""}]
[445,null,{"$f":"IFERROR(VLOOKUP(B464,Paramètres!$O$4:$P$2000,2,FALSE),\"\")","v":""}]
[446,null,{"$f":"IFERROR(VLOOKUP(B465,Paramètres!$O$4:$P$2000,2,FALSE),\"\")","v":""}]
[447,null,{"$f":"IFERROR(VLOOKUP(B466,Paramètres!$O$4:$P$2000,2,FALSE),\"\")","v":""}]
[448,null,{"$f":"IFERROR(VLOOKUP(B467,Paramètres!$O$4:$P$2000,2,FALSE),\"\")","v":""}]
[449,null,{"$f":"IFERROR(VLOOKUP(B468,Paramètres!$O$4:$P$2000,2,FALSE),\"\")","v":""}]
[450,null,{"$f":"IFERROR(VLOOKUP(B469,Paramètres!$O$4:$P$2000,2,FALSE),\"\")","v":""}]
[451,null,{"$f":"IFERROR(VLOOKUP(B470,Paramètres!$O$4:$P$2000,2,FALSE),\"\")","v":""}]
[452,null,{"$f":"IFERROR(VLOOKUP(B471,Paramètres!$O$4:$P$2000,2,FALSE),\"\")","v":""}]
[453,null,{"$f":"IFERROR(VLOOKUP(B472,Paramètres!$O$4:$P$2000,2,FALSE),\"\")","v":""}]
[454,null,{"$f":"IFERROR(VLOOKUP(B473,Paramètres!$O$4:$P$2000,2,FALSE),\"\")","v":""}]
[455,null,{"$f":"IFERROR(VLOOKUP(B474,Paramètres!$O$4:$P$2000,2,FALSE),\"\")","v":""}]
[456,null,{"$f":"IFERROR(VLOOKUP(B475,Paramètres!$O$4:$P$2000,2,FALSE),\"\")","v":""}]
[457,null,{"$f":"IFERROR(VLOOKUP(B476,Paramètres!$O$4:$P$2000,2,FALSE),\"\")","v":""}]
[458,null,{"$f":"IFERROR(VLOOKUP(B477,Paramètres!$O$4:$P$2000,2,FALSE),\"\")","v":""}]
[459,null,{"$f":"IFERROR(VLOOKUP(B478,Paramètres!$O$4:$P$2000,2,FALSE),\"\")","v":""}]
[460,null,{"$f":"IFERROR(VLOOKUP(B479,Paramètres!$O$4:$P$2000,2,FALSE),\"\")","v":""}]
[461,null,{"$f":"IFERROR(VLOOKUP(B480,Paramètres!$O$4:$P$2000,2,FALSE),\"\")","v":""}]
[462,null,{"$f":"IFERROR(VLOOKUP(B481,Paramètres!$O$4:$P$2000,2,FALSE),\"\")","v":""}]
[463,null,{"$f":"IFERROR(VLOOKUP(B482,Paramètres!$O$4:$P$2000,2,FALSE),\"\")","v":""}]
[464,null,{"$f":"IFERROR(VLOOKUP(B483,Paramètres!$O$4:$P$2000,2,FALSE),\"\")","v":""}]
[465,null,{"$f":"IFERROR(VLOOKUP(B484,Paramètres!$O$4:$P$2000,2,FALSE),\"\")","v":""}]
[466,null,{"$f":"IFERROR(VLOOKUP(B485,Paramètres!$O$4:$P$2000,2,FALSE),\"\")","v":""}]
[467,null,{"$f":"IFERROR(VLOOKUP(B486,Paramètres!$O$4:$P$2000,2,FALSE),\"\")","v":""}]
[468,null,{"$f":"IFERROR(VLOOKUP(B487,Paramètres!$O$4:$P$2000,2,FALSE),\"\")","v":""}]
[469,null,{"$f":"IFERROR(VLOOKUP(B488,Paramètres!$O$4:$P$2000,2,FALSE),\"\")","v":""}]
[470,null,{"$f":"IFERROR(VLOOKUP(B489,Paramètres!$O$4:$P$2000,2,FALSE),\"\")","v":""}]
[471,null,{"$f":"IFERROR(VLOOKUP(B490,Paramètres!$O$4:$P$2000,2,FALSE),\"\")","v":""}]
[472,null,{"$f":"IFERROR(VLOOKUP(B491,Paramètres!$O$4:$P$2000,2,FALSE),\"\")","v":""}]
[473,null,{"$f":"IFERROR(VLOOKUP(B492,Paramètres!$O$4:$P$2000,2,FALSE),\"\")","v":""}]
[474,null,{"$f":"IFERROR(VLOOKUP(B493,Paramètres!$O$4:$P$2000,2,FALSE),\"\")","v":""}]
[475,null,{"$f":"IFERROR(VLOOKUP(B494,Paramètres!$O$4:$P$2000,2,FALSE),\"\")","v":""}]
[476,null,{"$f":"IFERROR(VLOOKUP(B495,Paramètres!$O$4:$P$2000,2,FALSE),\"\")","v":""}]
[477,null,{"$f":"IFERROR(VLOOKUP(B496,Paramètres!$O$4:$P$2000,2,FALSE),\"\")","v":""}]
[478,null,{"$f":"IFERROR(VLOOKUP(B497,Paramètres!$O$4:$P$2000,2,FALSE),\"\")","v":""}]
[479,null,{"$f":"IFERROR(VLOOKUP(B498,Paramètres!$O$4:$P$2000,2,FALSE),\"\")","v":""}]
[480,null,{"$f":"IFERROR(VLOOKUP(B499,Paramètres!$O$4:$P$2000,2,FALSE),\"\")","v":""}]
[481,null,{"$f":"IFERROR(VLOOKUP(B500,Paramètres!$O$4:$P$2000,2,FALSE),\"\")","v":""}]
[482,null,{"$f":"IFERROR(VLOOKUP(B501,Paramètres!$O$4:$P$2000,2,FALSE),\"\")","v":""}]
[483,null,{"$f":"IFERROR(VLOOKUP(B502,Paramètres!$O$4:$P$2000,2,FALSE),\"\")","v":""}]
[484,null,{"$f":"IFERROR(VLOOKUP(B503,Paramètres!$O$4:$P$2000,2,FALSE),\"\")","v":""}]
[485,null,{"$f":"IFERROR(VLOOKUP(B504,Paramètres!$O$4:$P$2000,2,FALSE),\"\")","v":""}]
[486,null,{"$f":"IFERROR(VLOOKUP(B505,Paramètres!$O$4:$P$2000,2,FALSE),\"\")","v":""}]
[487,null,{"$f":"IFERROR(VLOOKUP(B506,Paramètres!$O$4:$P$2000,2,FALSE),\"\")","v":""}]
[488,null,{"$f":"IFERROR(VLOOKUP(B507,Paramètres!$O$4:$P$2000,2,FALSE),\"\")","v":""}]
[489,null,{"$f":"IFERROR(VLOOKUP(B508,Paramètres!$O$4:$P$2000,2,FALSE),\"\")","v":""}]
[490,null,{"$f":"IFERROR(VLOOKUP(B509,Paramètres!$O$4:$P$2000,2,FALSE),\"\")","v":""}]
[491,null,{"$f":"IFERROR(VLOOKUP(B510,Paramètres!$O$4:$P$2000,2,FALSE),\"\")","v":""}]
[492,null,{"$f":"IFERROR(VLOOKUP(B511,Paramètres!$O$4:$P$2000,2,FALSE),\"\")","v":""}]
[493,null,{"$f":"IFERROR(VLOOKUP(B512,Paramètres!$O$4:$P$2000,2,FALSE),\"\")","v":""}]
[494,null,{"$f":"IFERROR(VLOOKUP(B513,Paramètres!$O$4:$P$2000,2,FALSE),\"\")","v":""}]
[495,null,{"$f":"IFERROR(VLOOKUP(B514,Paramètres!$O$4:$P$2000,2,FALSE),\"\")","v":""}]
[496,null,{"$f":"IFERROR(VLOOKUP(B515,Paramètres!$O$4:$P$2000,2,FALSE),\"\")","v":""}]
[497,null,{"$f":"IFERROR(VLOOKUP(B516,Paramètres!$O$4:$P$2000,2,FALSE),\"\")","v":""}]
[498,null,{"$f":"IFERROR(VLOOKUP(B517,Paramètres!$O$4:$P$2000,2,FALSE),\"\")","v":""}]
[499,null,{"$f":"IFERROR(VLOOKUP(B518,Paramètres!$O$4:$P$2000,2,FALSE),\"\")","v":""}]
[500,null,{"$f":"IFERROR(VLOOKUP(B519,Paramètres!$O$4:$P$2000,2,FALSE),\"\")","v":""}]

{"sheet":"Liste des DT-EIC-SITES","index":3,"n_rows":808,"n_cols":4,"rows_kept":808,"cut":false,"hidden":false,"merged":[[1,1,2,3]]}
[]
[null,"Liste des voies commercialisables au 29/03/2024"]
[]
[]
[null,"Direction territoriale","Région SNCF (EIC)","Nom du site"]
[null,"AURA","EIC Alpes","Aix-les-Bains-Le Revard"]
[null,"AURA","EIC Alpes","Albertville"]
[null,"AURA","EIC Alpes","Ambérieu"]
[null,"AURA","EIC Alpes","Annecy"]
[null,"AURA","EIC Alpes","Annemasse"]
[null,"AURA","EIC Alpes","Bellegarde"]
[null,"AURA","EIC Alpes","Bourg-en-Bresse"]
[null,"AURA","EIC Alpes","Bourg-St-Maurice"]
[null,"AURA","EIC Alpes","Chambéry-Challes-les-Eaux"]
[null,"AURA","EIC Alpes","Clelles-Mens"]
[null,"AURA","EIC Alpes","Culoz"]
[null,"AURA","EIC Alpes","Épierre-St-Léger"]
[null,"AURA","EIC Alpes","Évian-les-Bains"]
[null,"AURA","EIC Alpes","Grenoble"]
[null,"AURA","EIC Alpes","Grenoble-Université-Gières"]
[null,"AURA","EIC Alpes","Grésy-sur-Isère"]
[null,"AURA","EIC Alpes","Jarrie-Vizille"]
[null,"AURA","EIC Alpes","La Roche-sur-Foron"]
[null,"AURA","EIC Alpes","Lus-la-Croix-Haute"]
[null,"AURA","EIC Alpes","Marignier"]
[null,"AURA","EIC Alpes","Modane"]
[null,"AURA","EIC Alpes","Montmélian"]
[null,"AURA","EIC Alpes","Notre-Dame-de-Briançon"]
[null,"AURA","EIC Alpes","Perrignier"]
[null,"AURA","EIC Alpes","Pontcharra-sur-Breda-Allevard"]
[null,"AURA","EIC Alpes","Pont-de-Claix"]
[null,"AURA","EIC Alpes","Rives"]
[null,"AURA","EIC Alpes","Sallanches-Combloux-Megève"]
[null,"AURA","EIC Alpes","St-André-le-Gaz"]
[null,"AURA","EIC Alpes","St-Avre-la-Chambre"]
[null,"AURA","EIC Alpes","St-Gervais-les-Bains-Le Fayet"]
[null,"AURA","EIC Alpes","St-Jean-de-Maurienne-Arvan"]
[null,"AURA","EIC Alpes","St-Marcellin"]
[null,"AURA","EIC Alpes","St-Michel-Valloire"]
[null,"AURA","EIC Alpes","Thonon-les-Bains"]
[null,"AURA","EIC Alpes","Viry"]
[null,"AURA","EIC Auvergne Nivernais","Arvant"]
[null,"AURA","EIC Auvergne Nivernais","Aurillac"]
[null,"AURA","EIC Auvergne Nivernais","Brioude"]
[null,"AURA","EIC Auvergne Nivernais","Clermont-Ferrand"]
[null,"AURA","EIC Auvergne Nivernais","Clermont-Les-Gravanches-Triage"]
[null,"AURA","EIC Auvergne Nivernais","Commentry"]
[null,"AURA","EIC Auvergne Nivernais","Cusset"]
[null,"AURA","EIC Auvergne Nivernais","Dompierre-Sept-Fons"]
[null,"AURA","EIC Auvergne Nivernais","Gannat"]
[null,"AURA","EIC Auvergne Nivernais","Issoire"]
[null,"AURA","EIC Auvergne Nivernais","La Ferté-Hauterive"]
[null,"AURA","EIC Auvergne Nivernais","Langeac"]
[null,"AURA","EIC Auvergne Nivernais","Lapeyrouse"]
[null,"AURA","EIC Auvergne Nivernais","Laqueuille"]
[null,"AURA","EIC Auvergne Nivernais","Le Puy-en-Velay"]
[null,"AURA","EIC Auvergne Nivernais","Lezoux"]
[null,"AURA","EIC Auvergne Nivernais","Montluçon-Eau"]
[null,"AURA","EIC Auvergne Nivernais","Montluçon-Ville"]
[null,"AURA","EIC Auvergne Nivernais","Moulins-sur-Allier"]
[null,"AURA","EIC Auvergne Nivernais","Neussargues"]
[null,"AURA","EIC Auvergne Nivernais","Pont-de-Dore"]
[null,"AURA","EIC Auvergne Nivernais","Puy-Guillaume"]
[null,"AURA","EIC Auvergne Nivernais","Riom-Châtel-Guyon"]
[null,"AURA","EIC Auvergne Nivernais","Sarliève-Cournon"]
[null,"AURA","EIC Auvergne Nivernais","St-Germain-des-Fossés"]
[null,"AURA","EIC Auvergne Nivernais","Thiers"]
[null,"AURA","EIC Auvergne Nivernais","Vichy"]
[null,"AURA","EIC Auvergne Nivernais","Vic-le-Comte"]
[null,"AURA","EIC Auvergne Nivernais","Volvic"]
[null,"AURA","EIC Rhône Alpes Lyon","Badan"]
[null,"AURA","EIC Rhône Alpes Lyon","Belleville-sur-Saône"]
[null,"AURA","EIC Rhône Alpes Lyon","Boën"]
[null,"AURA","EIC Rhône Alpes Lyon","Bonson"]
[null,"AURA","EIC Rhône Alpes Lyon","Bourgoin-Jallieu"]
[null,"AURA","EIC Rhône Alpes Lyon","Brignais"]
[null,"AURA","EIC Rhône Alpes Lyon","Chasse-sur-Rhône"]
[null,"AURA","EIC Rhône Alpes Lyon","Collonges-Fontaines"]
[null,"AURA","EIC Rhône Alpes Lyon","Condrieu"]
[null,"AURA","EIC Rhône Alpes Lyon","Crest"]
[null,"AURA","EIC Rhône Alpes Lyon","Die"]
[null,"AURA","EIC Rhône Alpes Lyon","ET Lyon-Mouche UPT Portes"]
[null,"AURA","EIC Rhône Alpes Lyon","Firminy"]
[null,"AURA","EIC Rhône Alpes Lyon","Givors"]
[null,"AURA","EIC Rhône Alpes Lyon","La Voulte-sur-Rhône"]
[null,"AURA","EIC Rhône Alpes Lyon","Le Pouzin"]
[null,"AURA","EIC Rhône Alpes Lyon","Le Teil"]
[null,"AURA","EIC Rhône Alpes Lyon","Livron"]
[null,"AURA","EIC Rhône Alpes Lyon","Lozanne"]
[null,"AURA","EIC Rhône Alpes Lyon","Lyon-Guillotière"]
[null,"AURA","EIC Rhône Alpes Lyon","Lyon-Part-Dieu"]
[null,"AURA","EIC Rhône Alpes Lyon","Lyon-Perrache"]
[null,"AURA","EIC Rhône Alpes Lyon","Lyon-Perrache-Marchandises"]
[null,"AURA","EIC Rhône Alpes Lyon","Lyon-Vaise"]
[null,"AURA","EIC Rhône Alpes Lyon","Meximieux-Pérouges"]
[null,"AURA","EIC Rhône Alpes Lyon","Montbrison"]
[null,"AURA","EIC Rhône Alpes Lyon","Montélimar"]
[null,"AURA","EIC Rhône Alpes Lyon","Montluel"]
[null,"AURA","EIC Rhône Alpes Lyon","Montrond-les-Bains"]
[null,"AURA","EIC Rhône Alpes Lyon","Oullins"]
[null,"AURA","EIC Rhône Alpes Lyon","Peyraud"]
[null,"AURA","EIC Rhône Alpes Lyon","Pierrelatte"]
[null,"AURA","EIC Rhône Alpes Lyon","Portes"]
[null,"AURA","EIC Rhône Alpes Lyon","Rive-de-Gier"]
[null,"AURA","EIC Rhône Alpes Lyon","Roanne"]
[null,"AURA","EIC Rhône Alpes Lyon","Romans-Bourg-de-Péage"]
[null,"AURA","EIC Rhône Alpes Lyon","Sathonay-Rillieux"]
[null,"AURA","EIC Rhône Alpes Lyon","Sibelin"]
[null,"AURA","EIC Rhône Alpes Lyon","St-Clair-les-Roches"]
[null,"AURA","EIC Rhône Alpes Lyon","St-Étienne-Châteaucreux"]
[null,"AURA","EIC Rhône Alpes Lyon","St-Étienne-Pont-de-l'Âne"]
[null,"AURA","EIC Rhône Alpes Lyon","St-Fons"]
[null,"AURA","EIC Rhône Alpes Lyon","St-Germain-au-Mont-d'Or"]
[null,"AURA","EIC Rhône Alpes Lyon","St-Just-St-Rambert"]
[null,"AURA","EIC Rhône Alpes Lyon","St-Priest"]
[null,"AURA","EIC Rhône Alpes Lyon","St-Quentin-Fallavier"]
[null,"AURA","EIC Rhône Alpes Lyon","St-Rambert d'Albon"]
[null,"AURA","EIC Rhône Alpes Lyon","St-Rambert-d'Albon"]
[null,"AURA","EIC Rhône Alpes Lyon","St-Romain-le-Puy"]
[null,"AURA","EIC Rhône Alpes Lyon","St-Vallier-sur-Rhône"]
[null,"AURA","EIC Rhône Alpes Lyon","Tassin"]
[null,"AURA","EIC Rhône Alpes Lyon","Technicentre TGV de Lyon"]
[null,"AURA","EIC Rhône Alpes Lyon","Valence"]
[null,"AURA","EIC Rhône Alpes Lyon","Veauche-St-Galmier"]
[null,"AURA","EIC Rhône Alpes Lyon","Vénissieux"]
[null,"AURA","EIC Rhône Alpes Lyon","Vénissieux-Sud"]
[null,"AURA","EIC Rhône Alpes Lyon","Villars-les-Dombes"]
[null,"AURA","EIC Rhône Alpes Lyon","Villefranche-sur-Saône"]
[null,"BFC","EIC Alsace","Belfort"]
[null,"BFC","EIC Alsace","Montbéliard"]
[null,"BFC","EIC Auvergne Nivernais","Cercy-la-Tour"]
[null,"BFC","EIC Auvergne Nivernais","Corbigny"]
[null,"BFC","EIC Auvergne Nivernais","Cosne-sur-Loire"]
[null,"BFC","EIC Auvergne Nivernais","La Charité-sur-Loire"]
[null,"BFC","EIC Auvergne Nivernais","Nevers"]
[null,"BFC","EIC Auvergne Nivernais","Saincaize"]
[null,"BFC","EIC Bourgogne Franche Comté","Aillevillers"]
[null,"BFC","EIC Bourgogne Franche Comté","Andelot"]
[null,"BFC","EIC Bourgogne Franche Comté","Autun"]
[null,"BFC","EIC Bourgogne Franche Comté","Auxonne"]
[null,"BFC","EIC Bourgogne Franche Comté","Besançon-St-Fergeux"]
[null,"BFC","EIC Bourgogne Franche Comté","Besançon-Viotte"]
[null,"BFC","EIC Bourgogne Franche Comté","Brazey-en-Plaine"]
[null,"BFC","EIC Bourgogne Franche Comté","Chagny"]
[null,"BFC","EIC Bourgogne Franche Comté","Chalon-sur-Saône"]
[null,"BFC","EIC Bourgogne Franche Comté","Digoin"]
[null,"BFC","EIC Bourgogne Franche Comté","Dijon-Porte-d'Ouche-Perrigny"]
[null,"BFC","EIC Bourgogne Franche Comté","Dijon-Porte-Neuve"]
[null,"BFC","EIC Bourgogne Franche Comté","Dijon-Ville"]
[null,"BFC","EIC Bourgogne Franche Comté","Dole"]
[null,"BFC","EIC Bourgogne Franche Comté","Étang"]
[null,"BFC","EIC Bourgogne Franche Comté","Faisceau dépôt"]
[null,"BFC","EIC Bourgogne Franche Comté","faisceau impair"]
[null,"BFC","EIC Bourgogne Franche Comté","Faisceau Plateforme Multimodale"]
[null,"BFC","EIC Bourgogne Franche Comté","Gevrey-Chambertin"]
[null,"BFC","EIC Bourgogne Franche Comté","Is-sur-Tille"]
[null,"BFC","EIC Bourgogne Franche Comté","Jussey"]
[null,"BFC","EIC Bourgogne Franche Comté","Les Laumes-Alésia"]
[null,"BFC","EIC Bourgogne Franche Comté","Le Valdahon"]
[null,"BFC","EIC Bourgogne Franche Comté","Lons-le-Saunier"]
[null,"BFC","EIC Bourgogne Franche Comté","Lure"]
[null,"BFC","EIC Bourgogne Franche Comté","Mâcon-Ville"]
[null,"BFC","EIC Bourgogne Franche Comté","Montbard"]
[null,"BFC","EIC Bourgogne Franche Comté","Montceau-les-Mines"]
[null,"BFC","EIC Bourgogne Franche Comté","Montchanin"]
[null,"BFC","EIC Bourgogne Franche Comté","Morez"]
[null,"BFC","EIC Bourgogne Franche Comté","Morteau"]
[null,"BFC","EIC Bourgogne Franche Comté","Mouchard"]
[null,"BFC","EIC Bourgogne Franche Comté","Nuits-sous-Ravières"]
[null,"BFC","EIC Bourgogne Franche Comté","Paray-le-Monial"]
[null,"BFC","EIC Bourgogne Franche Comté","Pontarlier"]
[null,"BFC","EIC Bourgogne Franche Comté","Seurre"]
[null,"BFC","EIC Bourgogne Franche Comté","St-Claude"]
[null,"BFC","EIC Bourgogne Franche Comté","Tavaux"]
[null,"BFC","EIC Bourgogne Franche Comté","Tiroir"]
[null,"BFC","EIC Bourgogne Franche Comté","Vesoul"]
[null,"BFC","EIC Paris Sud Est","Clamecy"]
[null,"BFC","EIC Paris Sud Est","Joigny"]
[null,"BFC","EIC Paris Sud Est","Laroche-Migennes"]
[null,"BFC","EIC Paris Sud Est","Port-Sec-de-Pacy"]
[null,"BFC","EIC Paris Sud Est","Sens"]
[null,"BFC","EIC Paris Sud Est","St-Florentin-Vergigny"]
[null,"BPL","EIC Bretagne Pays de la Loire","Angers-St-Laud"]
[null,"BPL","EIC Bretagne Pays de la Loire","Auray"]
[null,"BPL","EIC Bretagne Pays de la Loire","Brest"]
[null,"BPL","EIC Bretagne Pays de la Loire","Champagné"]
[null,"BPL","EIC Bretagne Pays de la Loire","Chantenay"]
[null,"BPL","EIC Bretagne Pays de la Loire","Châteaubriant"]
[null,"BPL","EIC Bretagne Pays de la Loire","Châtelaudren-Plouagat"]
[null,"BPL","EIC Bretagne Pays de la Loire","Cholet"]
[null,"BPL","EIC Bretagne Pays de la Loire","Connerré-Beillé"]
[null,"BPL","EIC Bretagne Pays de la Loire","Donges-Bonne Nouvelle"]
[null,"BPL","EIC Bretagne Pays de la Loire","Gérard"]
[null,"BPL","EIC Bretagne Pays de la Loire","Guingamp"]
[null,"BPL","EIC Bretagne Pays de la Loire","La Brohinière"]
[null,"BPL","EIC Bretagne Pays de la Loire","La Hutte-Coulombiers"]
[null,"BPL","EIC Bretagne Pays de la Loire","Lamballe"]
[null,"BPL","EIC Bretagne Pays de la Loire","La Roche-sur-Yon"]
[null,"BPL","EIC Bretagne Pays de la Loire","Laval"]
[null,"BPL","EIC Bretagne Pays de la Loire","Le Croisic"]
[null,"BPL","EIC Bretagne Pays de la Loire","Le Mans"]
[null,"BPL","EIC Bretagne Pays de la Loire","Les Sables-d'Olonne"]
[null,"BPL","EIC Bretagne Pays de la Loire","Lorient"]
[null,"BPL","EIC Bretagne Pays de la Loire","Montauban-de-Bretagne"]
[null,"BPL","EIC Bretagne Pays de la Loire","Montfort-le-Gesnois"]
[null,"BPL","EIC Bretagne Pays de la Loire","Montoir-de-Bretagne"]
[null,"BPL","EIC Bretagne Pays de la Loire","Montreuil-Bellay"]
[null,"BPL","EIC Bretagne Pays de la Loire","Nantes"]
[null,"BPL","EIC Bretagne Pays de la Loire","Nantes-Blottereau"]
[null,"BPL","EIC Bretagne Pays de la Loire","Nantes-État"]
[null,"BPL","EIC Bretagne Pays de la Loire","Penhoët"]
[null,"BPL","EIC Bretagne Pays de la Loire","Plestan"]
[null,"BPL","EIC Bretagne Pays de la Loire","Pleyber-Christ"]
[null,"BPL","EIC Bretagne Pays de la Loire","Plouaret-Trégor"]
[null,"BPL","EIC Bretagne Pays de la Loire","Pontivy"]
[null,"BPL","EIC Bretagne Pays de la Loire","Pornic"]
[null,"BPL","EIC Bretagne Pays de la Loire","Quimper"]
[null,"BPL","EIC Bretagne Pays de la Loire","Redon"]
[null,"BPL","EIC Bretagne Pays de la Loire","Rennes"]
[null,"BPL","EIC Bretagne Pays de la Loire","Rosporden"]
[null,"BPL","EIC Bretagne Pays de la Loire","Sablé-sur-Sarthe"]
[null,"BPL","EIC Bretagne Pays de la Loire","Saumur"]
[null,"BPL","EIC Bretagne Pays de la Loire","SCV (Poste 1)"]
[null,"BPL","EIC Bretagne Pays de la Loire","St-Brieuc"]
[null,"BPL","EIC Bretagne Pays de la Loire","St-Malo"]
[null,"BPL","EIC Bretagne Pays de la Loire","St-Nazaire"]
[null,"BPL","EIC Bretagne Pays de la Loire","Vannes"]
[null,"CVL","EIC Centre Limousin","Argenton-sur-Creuse"]
[null,"CVL","EIC Centre Limousin","Avord"]
[null,"CVL","EIC Centre Limousin","Beaugency"]
[null,"CVL","EIC Centre Limousin","Blois-Chambord"]
[null,"CVL","EIC Centre Limousin","Bourges"]
[null,"CVL","EIC Centre Limousin","Bricy-Boulay"]
[null,"CVL","EIC Centre Limousin","Brou"]
[null,"CVL","EIC Centre Limousin","Buzançais"]
[null,"CVL","EIC Centre Limousin","Chartres"]
[null,"CVL","EIC Centre Limousin","Châteaudun"]
[null,"CVL","EIC Centre Limousin","Château-Renault"]
[null,"CVL","EIC Centre Limousin","Châteauroux"]
[null,"CVL","EIC Centre Limousin","Issoudun"]
[null,"CVL","EIC Centre Limousin","La Ferté-St-Aubin"]
[null,"CVL","EIC Centre Limousin","La Guerche-sur-l'Aubois"]
[null,"CVL","EIC Centre Limousin","Les Aubrais-Orléans"]
[null,"CVL","EIC Centre Limousin","Meung-sur-Loire"]
[null,"CVL","EIC Centre Limousin","Neuillé-Pont-Pierre"]
[null,"CVL","EIC Centre Limousin","Neuvy-Pailloux"]
[null,"CVL","EIC Centre Limousin","Nogent-le-Rotrou"]
[null,"CVL","EIC Centre Limousin","Pithiviers"]
[null,"CVL","EIC Centre Limousin","Port-Boulet"]
[null,"CVL","EIC Centre Limousin","Port-de-Piles"]
[null,"CVL","EIC Centre Limousin","Reignac"]
[null,"CVL","EIC Centre Limousin","Salbris"]
[null,"CVL","EIC Centre Limousin","St-Aignan-Noyers"]
[null,"CVL","EIC Centre Limousin","St-Amand-Montrond-Orval"]
[null,"CVL","EIC Centre Limousin","St-Cyr-en-Val-La Source"]
[null,"CVL","EIC Centre Limousin","St-Florent-sur-Cher"]
[null,"CVL","EIC Centre Limousin","St-Pierre-des-Corps"]
[null,"CVL","EIC Centre Limousin","Thoré-la-Rochette"]
[null,"CVL","EIC Centre Limousin","Tours"]
[null,"CVL","EIC Centre Limousin","Toury"]
[null,"CVL","EIC Centre Limousin","Vendôme"]
[null,"CVL","EIC Centre Limousin","Vierzon-Ville"]
[null,"CVL","EIC Centre Limousin","Voves"]
[null,"CVL","EIC Paris Rive Gauche","Dreux"]
[null,"CVL","EIC Paris Sud Est","Gien"]
[null,"CVL","EIC Paris Sud Est","Malesherbes"]
[null,"CVL","EIC Paris Sud Est","Montargis"]
[null,"CVL","EIC Paris Sud Est","Nogent-sur-Vernisson"]
[null,"GE","EIC Alsace","Bantzenheim"]
[null,"GE","EIC Alsace","Colmar"]
[null,"GE","EIC Alsace","Haguenau"]
[null,"GE","EIC Alsace","Hausbergen"]
[null,"GE","EIC Alsace","Héming"]
[null,"GE","EIC Alsace","Mulhouse-Nord"]
[null,"GE","EIC Alsace","Réding"]
[null,"GE","EIC Alsace","Saales"]
[null,"GE","EIC Alsace","Sarrebourg"]
[null,"GE","EIC Alsace","Saverne"]
[null,"GE","EIC Alsace","Sélestat"]
[null,"GE","EIC Alsace","St-Louis"]
[null,"GE","EIC Alsace","Strasbourg-Neudorf"]
[null,"GE","EIC Alsace","Strasbourg-Ville"]
[null,"GE","EIC Alsace","Thann"]
[null,"GE","EIC Alsace","Wesserling"]
[null,"GE","EIC Lorraine Champagne Ardenne","Apach"]
[null,"GE","EIC Lorraine Champagne Ardenne","Arcis-sur-Aube"]
[null,"GE","EIC Lorraine Champagne Ardenne","Bar-le-Duc"]
[null,"GE","EIC Lorraine Champagne Ardenne","Blainville-Damelevières"]
[null,"GE","EIC Lorraine Champagne Ardenne","Châlons-en-Champagne"]
[null,"GE","EIC Lorraine Champagne Ardenne","Champigneulles"]
[null,"GE","EIC Lorraine Champagne Ardenne","Charleville-Mézières"]
[null,"GE","EIC Lorraine Champagne Ardenne","Chaumont"]
[null,"GE","EIC Lorraine Champagne Ardenne","Conflans-Jarny"]
[null,"GE","EIC Lorraine Champagne Ardenne","Culmont-Chalindrey"]
[null,"GE","EIC Lorraine Champagne Ardenne","Epernay"]
[null,"GE","EIC Lorraine Champagne Ardenne","Épinal"]
[null,"GE","EIC Lorraine Champagne Ardenne","Forbach"]
[null,"GE","EIC Lorraine Champagne Ardenne","Givet"]
[null,"GE","EIC Lorraine Champagne Ardenne","Gudmont"]
[null,"GE","EIC Lorraine Champagne Ardenne","Hagondange"]
[null,"GE","EIC Lorraine Champagne Ardenne","Jarville-la-Malgrange"]
[null,"GE","EIC Lorraine Champagne Ardenne","Langres"]
[null,"GE","EIC Lorraine Champagne Ardenne","Lérouville"]
[null,"GE","EIC Lorraine Champagne Ardenne","Longwy"]
[null,"GE","EIC Lorraine Champagne Ardenne","Metz-Ville"]
[null,"GE","EIC Lorraine Champagne Ardenne","Nançois-Tronville"]
[null,"GE","EIC Lorraine Champagne Ardenne","Nancy-Ville"]
[null,"GE","EIC Lorraine Champagne Ardenne","Neufchâteau"]
[null,"GE","EIC Lorraine Champagne Ardenne","Pagny-sur-Meuse"]
[null,"GE","EIC Lorraine Champagne Ardenne","Pagny-sur-Moselle"]
[null,"GE","EIC Lorraine Champagne Ardenne","Pont-à-Mousson"]
[null,"GE","EIC Lorraine Champagne Ardenne","Pont-St-Vincent"]
[null,"GE","EIC Lorraine Champagne Ardenne","Raon-l'Étape"]
[null,"GE","EIC Lorraine Champagne Ardenne","Reims"]
[null,"GE","EIC Lorraine Champagne Ardenne","Remiremont"]
[null,"GE","EIC Lorraine Champagne Ardenne","Revigny"]
[null,"GE","EIC Lorraine Champagne Ardenne","Sarreguemines"]
[null,"GE","EIC Lorraine Champagne Ardenne","Sedan"]
[null,"GE","EIC Lorraine Champagne Ardenne","St-Dié-des-Vosges"]
[null,"GE","EIC Lorraine Champagne Ardenne","St-Dizier"]
[null,"GE","EIC Lorraine Champagne Ardenne","Thionville"]
[null,"GE","EIC Lorraine Champagne Ardenne","Toul"]
[null,"GE","EIC Lorraine Champagne Ardenne","Troyes"]
[null,"GE","EIC Lorraine Champagne Ardenne","Uckange"]
[null,"GE","EIC Lorraine Champagne Ardenne","Varangéville-St-Nicolas"]
[null,"GE","EIC Lorraine Champagne Ardenne","Verdun"]
[null,"GE","EIC Lorraine Champagne Ardenne","Vitry-la-Ville"]
[null,"GE","EIC Lorraine Champagne Ardenne","Vitry-le-François"]
[null,"GE","EIC Lorraine Champagne Ardenne","Vittel"]
[null,"GE","EIC Lorraine Champagne Ardenne","Woippy"]
[null,"GE","EIC Lorraine Champagne Ardenne","Woippy Triage"]
[null,"HDF","EIC Hauts de France","Abbeville"]
[null,"HDF","EIC Hauts de France","Achiet"]
[null,"HDF","EIC Hauts de France","Ailly-sur-Noye"]
[null,"HDF","EIC Hauts de France","Amiens"]
[null,"HDF","EIC Hauts de France","Anor"]
[null,"HDF","EIC Hauts de France","Armentières"]
[null,"HDF","EIC Hauts de France","Arras"]
[null,"HDF","EIC Hauts de France","Athies-sous-Laon"]
[null,"HDF","EIC Hauts de France","Attin-Garage"]
[null,"HDF","EIC Hauts de France","Aulnoye-Aymeries"]
[null,"HDF","EIC Hauts de France","Béthune"]
[null,"HDF","EIC Hauts de France","Blanc-Misseron"]
[null,"HDF","EIC Hauts de France","Boisleux"]
[null,"HDF","EIC Hauts de France","Boulogne-Ville"]
[null,"HDF","EIC Hauts de France","Bully-Grenay"]
[null,"HDF","EIC Hauts de France","Busigny"]
[null,"HDF","EIC Hauts de France","Caffiers"]
[null,"HDF","EIC Hauts de France","Calais-Fréthun"]
[null,"HDF","EIC Hauts de France","Calais-Ville"]
[null,"HDF","EIC Hauts de France","Cambrai"]
[null,"HDF","EIC Hauts de France","Chaulnes"]
[null,"HDF","EIC Hauts de France","Chauny"]
[null,"HDF","EIC Hauts de France","Clermont-les-Fermes"]
[null,"HDF","EIC Hauts de France","Conchil-le-Temple"]
[null,"HDF","EIC Hauts de France","Corbehem"]
[null,"HDF","EIC Hauts de France","Coudekerque-Branche"]
[null,"HDF","EIC Hauts de France","Dannes-Camiers"]
[null,"HDF","EIC Hauts de France","Daours"]
[null,"HDF","EIC Hauts de France","Dercy-Mortiers"]
[null,"HDF","EIC Hauts de France","Desvres"]
[null,"HDF","EIC Hauts de France","Douai"]
[null,"HDF","EIC Hauts de France","Dunkerque"]
[null,"HDF","EIC Hauts de France","Estrées-St-Denis"]
[null,"HDF","EIC Hauts de France","Étaples-Le Touquet"]
[null,"HDF","EIC Hauts de France","ET Lille UPT Lens"]
[null,"HDF","EIC Hauts de France","Faisceau Port Fluvial"]
[null,"HDF","EIC Hauts de France","Fourmies"]
[null,"HDF","EIC Hauts de France","Grande-Synthe"]
[null,"HDF","EIC Hauts de France","Grandvilliers"]
[null,"HDF","EIC Hauts de France","Guignicourt"]
[null,"HDF","EIC Hauts de France","Ham"]
[null,"HDF","EIC Hauts de France","Haubourdin"]
[null,"HDF","EIC Hauts de France","Hautmont"]
[null,"HDF","EIC Hauts de France","Hazebrouck"]
[null,"HDF","EIC Hauts de France","Hénin-Beaumont"]
[null,"HDF","EIC Hauts de France","Hirson"]
[null,"HDF","EIC Hauts de France","Isbergues"]
[null,"HDF","EIC Hauts de France","Laon"]
[null,"HDF","EIC Hauts de France","Lens"]
[null,"HDF","EIC Hauts de France","Lille-Champ-de-Mars"]
[null,"HDF","EIC Hauts de France","Lille-Délivrance"]
[null,"HDF","EIC Hauts de France","Lille-Flandres"]
[null,"HDF","EIC Hauts de France","Longueau"]
[null,"HDF","EIC Hauts de France","Lourches"]
[null,"HDF","EIC Hauts de France","Lumbres"]
[null,"HDF","EIC Hauts de France","Marquise-Rinxent"]
[null,"HDF","EIC Hauts de France","Maubeuge"]
[null,"HDF","EIC Hauts de France","Montcornet"]
[null,"HDF","EIC Hauts de France","Montescourt"]
[null,"HDF","EIC Hauts de France","Montières"]
[null,"HDF","EIC Hauts de France","Nesle"]
[null,"HDF","EIC Hauts de France","Noyelles-sur-Mer"]
[null,"HDF","EIC Hauts de France","Noyon"]
[null,"HDF","EIC Hauts de France","Origny-Ste-Benoite"]
[null,"HDF","EIC Hauts de France","Outreau"]
[null,"HDF","EIC Hauts de France","Poix-de-Picardie"]
[null,"HDF","EIC Hauts de France","Pont-à-Vendin"]
[null,"HDF","EIC Hauts de France","Prouvy-Thiant"]
[null,"HDF","EIC Hauts de France","Saleux"]
[null,"HDF","EIC Hauts de France","Soissons"]
[null,"HDF","EIC Hauts de France","Somain"]
[null,"HDF","EIC Hauts de France","St-Erme"]
[null,"HDF","EIC Hauts de France","St-Omer"]
[null,"HDF","EIC Hauts de France","St-Pol-sur-Ternoise"]
[null,"HDF","EIC Hauts de France","St-Quentin"]
[null,"HDF","EIC Hauts de France","Tergnier"]
[null,"HDF","EIC Hauts de France","Tourcoing"]
[null,"HDF","EIC Hauts de France","Trith-St-Léger"]
[null,"HDF","EIC Hauts de France","Valenciennes"]
[null,"HDF","EIC Hauts de France","Villers-Cotterêts"]
[null,"HDF","EIC Lorraine Champagne Ardenne","Fère-en-Tardenois"]
[null,"HDF","EIC Lorraine Champagne Ardenne","Mézy"]
[null,"HDF","EIC Paris Est Ouest Francilien","Château-Thierry"]
[null,"HDF","EIC Paris Est Ouest Francilien","La Ferté-Milon"]
[null,"HDF","EIC Paris Nord","Bailleul-sur-Thérain"]
[null,"HDF","EIC Paris Nord","Beauvais"]
[null,"HDF","EIC Paris Nord","Bresles"]
[null,"HDF","EIC Paris Nord","Compiègne"]
[null,"HDF","EIC Paris Nord","Creil"]
[null,"HDF","EIC Paris Nord","Crépy-en-Valois"]
[null,"HDF","EIC Paris Nord","Lamotte-Breuil"]
[null,"HDF","EIC Paris Nord","Le Petit-Thérain"]
[null,"HDF","EIC Paris Nord","Le Plessis-Belleville"]
[null,"HDF","EIC Paris Nord","Longueil-Ste-Marie"]
[null,"HDF","EIC Paris Nord","Ormoy-Villers"]
[null,"HDF","EIC Paris Nord","Ribécourt"]
[null,"HDF","EIC Paris Nord","Thourotte"]
[null,"IDF","EIC Paris Est Ouest Francilien","Achères-Grand-Cormier"]
[null,"IDF","EIC Paris Est Ouest Francilien","Achères-Ville"]
[null,"IDF","EIC Paris Est Ouest Francilien","Argenteuil GC"]
[null,"IDF","EIC Paris Est Ouest Francilien","Bécon-les-Bruyères"]
[null,"IDF","EIC Paris Est Ouest Francilien","Bois-Colombes"]
[null,"IDF","EIC Paris Est Ouest Francilien","Cergy-le-Haut"]
[null,"IDF","EIC Paris Est Ouest Francilien","Cergy-St-Christophe"]
[null,"IDF","EIC Paris Est Ouest Francilien","Changis-St-Jean"]
[null,"IDF","EIC Paris Est Ouest Francilien","Émerainville-Pontault-Combault"]
[null,"IDF","EIC Paris Est Ouest Francilien","Garches-Marnes-la-Coquette"]
[null,"IDF","EIC Paris Est Ouest Francilien","Gargenville"]
[null,"IDF","EIC Paris Est Ouest Francilien","Gennevilliers"]
[null,"IDF","EIC Paris Est Ouest Francilien","Gretz-Armainvilliers"]
[null,"IDF","EIC Paris Est Ouest Francilien","La Défense"]
[null,"IDF","EIC Paris Est Ouest Francilien","La Ferté-sous-Jouarre"]
[null,"IDF","EIC Paris Est Ouest Francilien","La Garenne-Colombes"]
[null,"IDF","EIC Paris Est Ouest Francilien","Les Mureaux"]
[null,"IDF","EIC Paris Est Ouest Francilien","Longueville"]
[null,"IDF","EIC Paris Est Ouest Francilien","Mantes-la-Jolie"]
[null,"IDF","EIC Paris Est Ouest Francilien","Marly-le-Roi"]
[null,"IDF","EIC Paris Est Ouest Francilien","Meaux"]
[null,"IDF","EIC Paris Est Ouest Francilien","Nangis"]
[null,"IDF","EIC Paris Est Ouest Francilien","Noisy-le-Sec"]
[null,"IDF","EIC Paris Est Ouest Francilien","Pantin"]
[null,"IDF","EIC Paris Est Ouest Francilien","Paris-Batignolles"]
[null,"IDF","EIC Paris Est Ouest Francilien","Paris-St-Lazare"]
[null,"IDF","EIC Paris Est Ouest Francilien","Poissy"]
[null,"IDF","EIC Paris Est Ouest Francilien","Pont-Cardinet"]
[null,"IDF","EIC Paris Est Ouest Francilien","Les Portes de St-Cyr"]
[null,"IDF","EIC Paris Est Ouest Francilien","Provins"]
[null,"IDF","EIC Paris Est Ouest Francilien","RNUR Accès Est"]
[null,"IDF","EIC Paris Est Ouest Francilien","Rosny-sur-Seine"]
[null,"IDF","EIC Paris Est Ouest Francilien","St-Cloud"]
[null,"IDF","EIC Paris Est Ouest Francilien","Tournan"]
[null,"IDF","EIC Paris Est Ouest Francilien","Vaires-Torcy"]
[null,"IDF","EIC Paris Est Ouest Francilien","Versailles-Rive-Droite"]
[null,"IDF","EIC Paris Nord","Aulnay-sous-Bois"]
[null,"IDF","EIC Paris Nord","Épinay-Villetaneuse"]
[null,"IDF","EIC Paris Nord","Épluches"]
[null,"IDF","EIC Paris Nord","Ermont-Eaubonne"]
[null,"IDF","EIC Paris Nord","Dammartin-Juilly-St-Mard"]
[null,"IDF","EIC Paris Nord","Goussainville"]
[null,"IDF","EIC Paris Nord","Le Bourget"]
[null,"IDF","EIC Paris Nord","Mitry-Claye"]
[null,"IDF","EIC Paris Nord","Montigny-Beauchamp"]
[null,"IDF","EIC Paris Nord","Parc-des-Expositions"]
[null,"IDF","EIC Paris Nord","Paris-La Chapelle"]
[null,"IDF","EIC Paris Nord","Paris-Nord"]
[null,"IDF","EIC Paris Nord","Persan-Beaumont"]
[null,"IDF","EIC Paris Nord","Pontoise"]
[null,"IDF","EIC Paris Nord","St-Denis"]
[null,"IDF","EIC Paris Nord","St-Leu-la-Forêt"]
[null,"IDF","EIC Paris Nord","St-Ouen-les-Docks"]
[null,"IDF","EIC Paris Nord","Valmondois"]
[null,"IDF","EIC Paris Nord","Villeparisis"]
[null,"IDF","EIC Paris Rive Gauche","Brétigny"]
[null,"IDF","EIC Paris Rive Gauche","Clamart"]
[null,"IDF","EIC Paris Rive Gauche","Dourdan"]
[null,"IDF","EIC Paris Rive Gauche","Étampes"]
[null,"IDF","EIC Paris Rive Gauche","Ivry-sur-Seine"]
[null,"IDF","EIC Paris Rive Gauche","Juvisy"]
[null,"IDF","EIC Paris Rive Gauche","Massy-Palaiseau"]
[null,"IDF","EIC Paris Rive Gauche","Montfort-l'Amaury-Mère"]
[null,"IDF","EIC Paris Rive Gauche","Orly-Ville"]
[null,"IDF","EIC Paris Rive Gauche","Paris-Tolbiac"]
[null,"IDF","EIC Paris Rive Gauche","Paris-Vaugirard"]
[null,"IDF","EIC Paris Rive Gauche","Plaisir-Grignon"]
[null,"IDF","EIC Paris Rive Gauche","Rambouillet"]
[null,"IDF","EIC Paris Rive Gauche","Sèvres-Rive-Gauche"]
[null,"IDF","EIC Paris Rive Gauche","Trappes-Marchandises"]
[null,"IDF","EIC Paris Rive Gauche","UPM Ivry- Masséna (Technicentre PRG)"]
[null,"IDF","EIC Paris Rive Gauche","Versailles-Chantiers"]
[null,"IDF","EIC Paris Rive Gauche","Versailles-Matelots"]
[null,"IDF","EIC Paris Rive Gauche","Versailles-Rive-Gauche"]
[null,"IDF","EIC Paris Rive Gauche","Villeneuve-le-Roi"]
[null,"IDF","EIC Paris Sud Est","Bourron-Marlotte-Grez"]
[null,"IDF","EIC Paris Sud Est","Combs-la-Ville-Quincy"]
[null,"IDF","EIC Paris Sud Est","Corbeil-Essonnes"]
[null,"IDF","EIC Paris Sud Est","Le Vert-de-Maisons"]
[null,"IDF","EIC Paris Sud Est","Melun"]
[null,"IDF","EIC Paris Sud Est","Montereau"]
[null,"IDF","EIC Paris Sud Est","Moret-Veneux-les-Sablons"]
[null,"IDF","EIC Paris Sud Est","Nemours-St-Pierre"]
[null,"IDF","EIC Paris Sud Est","Paris-Bercy"]
[null,"IDF","EIC Paris Sud Est","Paris-Bercy-Conflans"]
[null,"IDF","EIC Paris Sud Est","Paris-Gare-de-Lyon"]
[null,"IDF","EIC Paris Sud Est","Ris-Orangis"]
[null,"IDF","EIC Paris Sud Est","Sucy-Bonneuil"]
[null,"IDF","EIC Paris Sud Est","Valenton"]
[null,"IDF","EIC Paris Sud Est","Vernou-sur-Seine"]
[null,"IDF","EIC Paris Sud Est","Villeneuve-St-Georges"]
[null,"IDF","EIC Paris Sud Est","Villeneuve-Triage"]
[null,"NA","EIC Aquitaine Poitou Charentes","Agen"]
[null,"NA","EIC Aquitaine Poitou Charentes","Aiffres"]
[null,"NA","EIC Aquitaine Poitou Charentes","Angoulême"]
[null,"NA","EIC Aquitaine Poitou Charentes","Arcachon"]
[null,"NA","EIC Aquitaine Poitou Charentes","Artix"]
[null,"NA","EIC Aquitaine Poitou Charentes","Ayron-Latillé"]
[null,"NA","EIC Aquitaine Poitou Charentes","Aytré"]
[null,"NA","EIC Aquitaine Poitou Charentes","Bassens"]
[null,"NA","EIC Aquitaine Poitou Charentes","Bassens-Appontements"]
[null,"NA","EIC Aquitaine Poitou Charentes","Bayonne"]
[null,"NA","EIC Aquitaine Poitou Charentes","Bergerac"]
[null,"NA","EIC Aquitaine Poitou Charentes","Blanquefort"]
[null,"NA","EIC Aquitaine Poitou Charentes","Bordeaux-Bastide"]
[null,"NA","EIC Aquitaine Poitou Charentes","Bordeaux-Hourcade"]
[null,"NA","EIC Aquitaine Poitou Charentes","Bordeaux-St-Jean"]
[null,"NA","EIC Aquitaine Poitou Charentes","Bruges"]
[null,"NA","EIC Aquitaine Poitou Charentes","Chalandray"]
[null,"NA","EIC Aquitaine Poitou Charentes","Charmant"]
[null,"NA","EIC Aquitaine Poitou Charentes","Chasseneuil (Vienne)"]
[null,"NA","EIC Aquitaine Poitou Charentes","Châteauneuf-sur-Charente"]
[null,"NA","EIC Aquitaine Poitou Charentes","Châtellerault"]
[null,"NA","EIC Aquitaine Poitou Charentes","Civaux"]
[null,"NA","EIC Aquitaine Poitou Charentes","Cognac"]
[null,"NA","EIC Aquitaine Poitou Charentes","Condat-le-Lardin"]
[null,"NA","EIC Aquitaine Poitou Charentes","Couhé-Vérac"]
[null,"NA","EIC Aquitaine Poitou Charentes","Coulombiers"]
[null,"NA","EIC Aquitaine Poitou Charentes","Coutras"]
[null,"NA","EIC Aquitaine Poitou Charentes","Dax"]
[null,"NA","EIC Aquitaine Poitou Charentes","Facture-Biganos"]
[null,"NA","EIC Aquitaine Poitou Charentes","Gazinet-Cestas"]
[null,"NA","EIC Aquitaine Poitou Charentes","Grand-Pont-Preuilly"]
[null,"NA","EIC Aquitaine Poitou Charentes","Hendaye"]
[null,"NA","EIC Aquitaine Poitou Charentes","Ingrandes-sur-Vienne"]
[null,"NA","EIC Aquitaine Poitou Charentes","Jardres"]
[null,"NA","EIC Aquitaine Poitou Charentes","La Couronne"]
[null,"NA","EIC Aquitaine Poitou Charentes","Lacq"]
[null,"NA","EIC Aquitaine Poitou Charentes","La Crèche"]
[null,"NA","EIC Aquitaine Poitou Charentes","Laluque"]
[null,"NA","EIC Aquitaine Poitou Charentes","Langon"]
[null,"NA","EIC Aquitaine Poitou Charentes","La Rochelle-Ville"]
[null,"NA","EIC Aquitaine Poitou Charentes","La Teste"]
[null,"NA","EIC Aquitaine Poitou Charentes","La Tricherie"]
[null,"NA","EIC Aquitaine Poitou Charentes","Le Boucau"]
[null,"NA","EIC Aquitaine Poitou Charentes","Le Buisson"]
[null,"NA","EIC Aquitaine Poitou Charentes","Lescar"]
[null,"NA","EIC Aquitaine Poitou Charentes","Les Ormes-sur-Vienne"]
[null,"NA","EIC Aquitaine Poitou Charentes","Lesparre"]
[null,"NA","EIC Aquitaine Poitou Charentes","Le Verdon"]
[null,"NA","EIC Aquitaine Poitou Charentes","Libourne"]
[null,"NA","EIC Aquitaine Poitou Charentes","Lusignan"]
[null,"NA","EIC Aquitaine Poitou Charentes","Marmande"]
[null,"NA","EIC Aquitaine Poitou Charentes","Mazières-Verruyes"]
[null,"NA","EIC Aquitaine Poitou Charentes","Mont-de-Marsan"]
[null,"NA","EIC Aquitaine Poitou Charentes","Montmoreau"]
[null,"NA","EIC Aquitaine Poitou Charentes","Montmorillon"]
[null,"NA","EIC Aquitaine Poitou Charentes","Montpon-Ménestérol"]
[null,"NA","EIC Aquitaine Poitou Charentes","Morcenx"]
[null,"NA","EIC Aquitaine Poitou Charentes","Mussidan"]
[null,"NA","EIC Aquitaine Poitou Charentes","Naintré-les-Barres"]
[null,"NA","EIC Aquitaine Poitou Charentes","Niort"]
[null,"NA","EIC Aquitaine Poitou Charentes","Parthenay"]
[null,"NA","EIC Aquitaine Poitou Charentes","Pau"]
[null,"NA","EIC Aquitaine Poitou Charentes","Pauillac"]
[null,"NA","EIC Aquitaine Poitou Charentes","Périgueux"]
[null,"NA","EIC Aquitaine Poitou Charentes","Poitiers"]
[null,"NA","EIC Aquitaine Poitou Charentes","Puyoô"]
[null,"NA","EIC Aquitaine Poitou Charentes","Rion-des-Landes"]
[null,"NA","EIC Aquitaine Poitou Charentes","Rochefort"]
[null,"NA","EIC Aquitaine Poitou Charentes","Royan"]
[null,"NA","EIC Aquitaine Poitou Charentes","Saintes"]
[null,"NA","EIC Aquitaine Poitou Charentes","Sireuil"]
[null,"NA","EIC Aquitaine Poitou Charentes","Solférino"]
[null,"NA","EIC Aquitaine Poitou Charentes","St-Jean-d'Angély"]
[null,"NA","EIC Aquitaine Poitou Charentes","St-Jean-Pied-de-Port"]
[null,"NA","EIC Aquitaine Poitou Charentes","St-Mariens-St-Yzan"]
[null,"NA","EIC Aquitaine Poitou Charentes","St-Saviol"]
[null,"NA","EIC Aquitaine Poitou Charentes","St-Ustre"]
[null,"NA","EIC Aquitaine Poitou Charentes","Thiviers"]
[null,"NA","EIC Aquitaine Poitou Charentes","Tonneins"]
[null,"NA","EIC Aquitaine Poitou Charentes","Ychoux"]
[null,"NA","EIC Bretagne Pays de la Loire","Bressuire"]
[null,"NA","EIC Bretagne Pays de la Loire","Luché"]
[null,"NA","EIC Bretagne Pays de la Loire","St-Varent"]
[null,"NA","EIC Bretagne Pays de la Loire","Thouars"]
[null,"NA","EIC Centre Limousin","Bessines"]
[null,"NA","EIC Centre Limousin","Brive-la-Gaillarde"]
[null,"NA","EIC Centre Limousin","Faisceau Lavage"]
[null,"NA","EIC Centre Limousin","Guéret"]
[null,"NA","EIC Centre Limousin","Lavaufranche"]
[null,"NA","EIC Centre Limousin","Le Dorat"]
[null,"NA","EIC Centre Limousin","St-Junien"]
[null,"NA","EIC Centre Limousin","St-Sulpice-Laurière"]
[null,"NA","EIC Centre Limousin","Ussac"]
[null,"NA","EIC Centre Limousin","Ussel"]
[null,"NA","EIC Centre Limousin","Verneuil-sur-Vienne"]
[null,"NO","EIC Normandie","Alençon"]
[null,"NO","EIC Normandie","Bréauté-Beuzeville"]
[null,"NO","EIC Normandie","Caen"]
[null,"NO","EIC Normandie","Cherbourg"]
[null,"NO","EIC Normandie","Dieppe"]
[null,"NO","EIC Normandie","Elbeuf-St-Aubin"]
[null,"NO","EIC Normandie","Étrépagny"]
[null,"NO","EIC Normandie","Évreux-Embranchement"]
[null,"NO","EIC Normandie","Gaillon-Aubevoye"]
[null,"NO","EIC Normandie","Gravenchon-Port-Jérome"]
[null,"NO","EIC Normandie","Le Havre"]
[null,"NO","EIC Normandie","Lisieux"]
[null,"NO","EIC Normandie","Maromme"]
[null,"NO","EIC Normandie","Petit-Couronne"]
[null,"NO","EIC Normandie","Petit-Quevilly"]
[null,"NO","EIC Normandie","Pont-de-l'Arche"]
[null,"NO","EIC Normandie","Rouen-Orléans"]
[null,"NO","EIC Normandie","Rouen-Rive-Droite"]
[null,"NO","EIC Normandie","Rouxmesnil"]
[null,"NO","EIC Normandie","Serqueux"]
[null,"NO","EIC Normandie","Serquigny"]
[null,"NO","EIC Normandie","Sotteville"]
[null,"NO","EIC Normandie","St-Pierre-lès-Elbeuf"]
[null,"NO","EIC Normandie","St-Valéry-en-Caux"]
[null,"NO","EIC Normandie","Trouville-Deauville"]
[null,"NO","EIC Normandie","Valognes"]
[null,"NO","EIC Normandie","Vernon-Giverny"]
[null,"NO","EIC Paris Est Ouest Francilien","Gisors"]
[null,"OCC","EIC Centre Limousin","Bretenoux-Biars"]
[null,"OCC","EIC Centre Limousin","EIV de Bretenoux-Biars"]
[null,"OCC","EIC Centre Limousin","Gignac-Cressensac"]
[null,"OCC","EIC Centre Limousin","St-Denis-près-Martel"]
[null,"OCC","EIC Languedoc Roussillon","Aigues-Mortes"]
[null,"OCC","EIC Languedoc Roussillon","Alès"]
[null,"OCC","EIC Languedoc Roussillon","Aumont-Aubrac"]
[null,"OCC","EIC Languedoc Roussillon","Banassac-La Canourgue"]
[null,"OCC","EIC Languedoc Roussillon","Beaucaire"]
[null,"OCC","EIC Languedoc Roussillon","Bédarieux"]
[null,"OCC","EIC Languedoc Roussillon","Béziers"]
[null,"OCC","EIC Languedoc Roussillon","Bourg-Madame"]
[null,"OCC","EIC Languedoc Roussillon","Carcassonne"]
[null,"OCC","EIC Languedoc Roussillon","Cases-de-Pène"]
[null,"OCC","EIC Languedoc Roussillon","Ceilhes-Roqueredonde"]
[null,"OCC","EIC Languedoc Roussillon","Cerbère"]
[null,"OCC","EIC Languedoc Roussillon","Chamborigaud"]
[null,"OCC","EIC Languedoc Roussillon","Chanac"]
[null,"OCC","EIC Languedoc Roussillon","Colombiers"]
[null,"OCC","EIC Languedoc Roussillon","Faisceau Vestric"]
[null,"OCC","EIC Languedoc Roussillon","Fontpédrouse-St-Thomas-les-Bains"]
[null,"OCC","EIC Languedoc Roussillon","Font-Romeu-Odeillo-Via"]
[null,"OCC","EIC Languedoc Roussillon","Génolhac"]
[null,"OCC","EIC Languedoc Roussillon","Grand'Combe-La Pise"]
[null,"OCC","EIC Languedoc Roussillon","Ille-sur-Têt"]
[null,"OCC","EIC Languedoc Roussillon","La Bastide-St-Laurent-les-Bains"]
[null,"OCC","EIC Languedoc Roussillon","Langogne"]
[null,"OCC","EIC Languedoc Roussillon","L'Ardoise"]
[null,"OCC","EIC Languedoc Roussillon","Laurens"]
[null,"OCC","EIC Languedoc Roussillon","Le Boulou-Perthus"]
[null,"OCC","EIC Languedoc Roussillon","Le Monastier"]
[null,"OCC","EIC Languedoc Roussillon","Lézignan (Aude)"]
[null,"OCC","EIC Languedoc Roussillon","Marvejols"]
[null,"OCC","EIC Languedoc Roussillon","Mende"]
[null,"OCC","EIC Languedoc Roussillon","Millau"]
[null,"OCC","EIC Languedoc Roussillon","Mont-Louis-La Cabanasse"]
[null,"OCC","EIC Languedoc Roussillon","Montpellier-les-Prés-d'Arènes"]
[null,"OCC","EIC Languedoc Roussillon","Montpellier-St-Roch"]
[null,"OCC","EIC Languedoc Roussillon","Narbonne"]
[null,"OCC","EIC Languedoc Roussillon","Nîmes-Courbessac (ex-Triage)"]
[null,"OCC","EIC Languedoc Roussillon","Nîmes (IE)"]
[null,"OCC","EIC Languedoc Roussillon","Nozières-Brignon"]
[null,"OCC","EIC Languedoc Roussillon","Olette-Canaveilles-les-Bains"]
[null,"OCC","EIC Languedoc Roussillon","Perpignan"]
[null,"OCC","EIC Languedoc Roussillon","Perpignan-Roussillon"]
[null,"OCC","EIC Languedoc Roussillon","Port-la-Nouvelle"]
[null,"OCC","EIC Languedoc Roussillon","Remoulins-Pont-du-Gard"]
[null,"OCC","EIC Languedoc Roussillon","Rivesaltes"]
[null,"OCC","EIC Languedoc Roussillon","Saillagouse"]
[null,"OCC","EIC Languedoc Roussillon","Sète"]
[null,"OCC","EIC Languedoc Roussillon","Sète (IE)"]
[null,"OCC","EIC Languedoc Roussillon","Sète-Voies-des-Quais"]
[null,"OCC","EIC Languedoc Roussillon","St-Césaire"]
[null,"OCC","EIC Languedoc Roussillon","St-Chély-d'Apcher"]
[null,"OCC","EIC Languedoc Roussillon","St-Jean-Pla-de-Corts"]
[null,"OCC","EIC Languedoc Roussillon","St-Sauveur-de-Peyre"]
[null,"OCC","EIC Languedoc Roussillon","Vauvert"]
[null,"OCC","EIC Languedoc Roussillon","Villefranche-Vernet-les-Bains"]
[null,"OCC","EIC Midi Pyrénées","Albi"]
[null,"OCC","EIC Midi Pyrénées","Auch"]
[null,"OCC","EIC Midi Pyrénées","Ax-les-Thermes"]
[null,"OCC","EIC Midi Pyrénées","Bagnac"]
[null,"OCC","EIC Midi Pyrénées","Baziège"]
[null,"OCC","EIC Midi Pyrénées","Boussens"]
[null,"OCC","EIC Midi Pyrénées","Cahors"]
[null,"OCC","EIC Midi Pyrénées","Capdenac"]
[null,"OCC","EIC Midi Pyrénées","Carbonne"]
[null,"OCC","EIC Midi Pyrénées","Carmaux"]
[null,"OCC","EIC Midi Pyrénées","Castelnaudary"]
[null,"OCC","EIC Midi Pyrénées","Castelnau-d'Estrétefonds"]
[null,"OCC","EIC Midi Pyrénées","Castelsarrasin"]
[null,"OCC","EIC Midi Pyrénées","Castres"]
[null,"OCC","EIC Midi Pyrénées","Caussade"]
[null,"OCC","EIC Midi Pyrénées","Cintegabelle"]
[null,"OCC","EIC Midi Pyrénées","Colomiers"]
[null,"OCC","EIC Midi Pyrénées","Damiatte-St-Paul"]
[null,"OCC","EIC Midi Pyrénées","Dieupentale"]
[null,"OCC","EIC Midi Pyrénées","Escalquens"]
[null,"OCC","EIC Midi Pyrénées","Faisceau Tarbes V62 à V90"]
[null,"OCC","EIC Midi Pyrénées","Fenouillet-St-Alban"]
[null,"OCC","EIC Midi Pyrénées","Foix"]
[null,"OCC","EIC Midi Pyrénées","Gourdon"]
[null,"OCC","EIC Midi Pyrénées","Gramat"]
[null,"OCC","EIC Midi Pyrénées","Grisolles"]
[null,"OCC","EIC Midi Pyrénées","Labarthe-Avezac"]
[null,"OCC","EIC Midi Pyrénées","Lannemezan"]
[null,"OCC","EIC Midi Pyrénées","La Roubinarie"]
[null,"OCC","EIC Midi Pyrénées","Latour-de-Carol-Enveitg"]
[null,"OCC","EIC Midi Pyrénées","Lavaur"]
[null,"OCC","EIC Midi Pyrénées","Lexos"]
[null,"OCC","EIC Midi Pyrénées","L'Hospitalet-près-l'Andorre"]
[null,"OCC","EIC Midi Pyrénées","L'Isle-Jourdain"]
[null,"OCC","EIC Midi Pyrénées","Lourdes"]
[null,"OCC","EIC Midi Pyrénées","Luzenac-Garanou"]
[null,"OCC","EIC Midi Pyrénées","Malause"]
[null,"OCC","EIC Midi Pyrénées","Mazamet"]
[null,"OCC","EIC Midi Pyrénées","Montauban-Ville-Bourbon"]
[null,"OCC","EIC Midi Pyrénées","Montréjeau-Gourdan-Polignan"]
[null,"OCC","EIC Midi Pyrénées","Naucelle"]
[null,"OCC","EIC Midi Pyrénées","Pamiers"]
[null,"OCC","EIC Midi Pyrénées","Portet-St-Simon"]
[null,"OCC","EIC Midi Pyrénées","Rodez"]
[null,"OCC","EIC Midi Pyrénées","Saverdun"]
[null,"OCC","EIC Midi Pyrénées","Sérignac"]
[null,"OCC","EIC Midi Pyrénées","St-Christophe"]
[null,"OCC","EIC Midi Pyrénées","St-Denis-Catus"]
[null,"OCC","EIC Midi Pyrénées","St-Gaudens"]
[null,"OCC","EIC Midi Pyrénées","St-Jory"]
[null,"OCC","EIC Midi Pyrénées","St-Sulpice"]
[null,"OCC","EIC Midi Pyrénées","Tarascon-sur-Ariège"]
[null,"OCC","EIC Midi Pyrénées","Tarbes"]
[null,"OCC","EIC Midi Pyrénées","Tessonnières"]
[null,"OCC","EIC Midi Pyrénées","Toulouse-Matabiau"]
[null,"OCC","EIC Midi Pyrénées","UPT Tarbes (ET Midi-Pyrénées)"]
[null,"OCC","EIC Midi Pyrénées","Valence-d'Agen"]
[null,"OCC","EIC Midi Pyrénées","Villefranche-de-Lauragais"]
[null,"OCC","EIC Midi Pyrénées","Viviez-Decazeville"]
[null,"PACA","EIC Provence Alpes Côte d'Azur","Aix-en-Provence"]
[null,"PACA","EIC Provence Alpes Côte d'Azur","Antibes"]
[null,"PACA","EIC Provence Alpes Côte d'Azur","Arles"]
[null,"PACA","EIC Provence Alpes Côte d'Azur","Aspres-sur-Buëch"]
[null,"PACA","EIC Provence Alpes Côte d'Azur","Aubagne"]
[null,"PACA","EIC Provence Alpes Côte d'Azur","Avignon-Centre"]
[null,"PACA","EIC Provence Alpes Côte d'Azur","Avignon-Fontcouverte"]
[null,"PACA","EIC Provence Alpes Côte d'Azur","Bollène-la-Croisière"]
[null,"PACA","EIC Provence Alpes Côte d'Azur","Breil-sur-Roya"]
[null,"PACA","EIC Provence Alpes Côte d'Azur","Briançon"]
[null,"PACA","EIC Provence Alpes Côte d'Azur","Cannes-Marchandises"]
[null,"PACA","EIC Provence Alpes Côte d'Azur","Carnoules"]
[null,"PACA","EIC Provence Alpes Côte d'Azur","Cavaillon"]
[null,"PACA","EIC Provence Alpes Côte d'Azur","Château-Arnoux-St-Auban"]
[null,"PACA","EIC Provence Alpes Côte d'Azur","Embrun"]
[null,"PACA","EIC Provence Alpes Côte d'Azur","Faisceau NOVATRANS Avignon-Champfleury"]
[null,"PACA","EIC Provence Alpes Côte d'Azur","Fos-Coussoul"]
[null,"PACA","EIC Provence Alpes Côte d'Azur","Gap"]
[null,"PACA","EIC Provence Alpes Côte d'Azur","Gardanne"]
[null,"PACA","EIC Provence Alpes Côte d'Azur","La Pauline-Hyères"]
[null,"PACA","EIC Provence Alpes Côte d'Azur","La Seyne-Six-Fours"]
[null,"PACA","EIC Provence Alpes Côte d'Azur","Les Arcs-Draguignan"]
[null,"PACA","EIC Provence Alpes Côte d'Azur","Manosque-Gréoux-les-Bains"]
[null,"PACA","EIC Provence Alpes Côte d'Azur","Marseille-Maritime-Arenc"]
[null,"PACA","EIC Provence Alpes Côte d'Azur","Marseille-Maritime-Canet"]
[null,"PACA","EIC Provence Alpes Côte d'Azur","Marseille-Prado"]
[null,"PACA","EIC Provence Alpes Côte d'Azur","Marseille-St-Charles"]
[null,"PACA","EIC Provence Alpes Côte d'Azur","Martigues"]
[null,"PACA","EIC Provence Alpes Côte d'Azur","Menton"]
[null,"PACA","EIC Provence Alpes Côte d'Azur","Miramas"]
[null,"PACA","EIC Provence Alpes Côte d'Azur","Nice-St-Roch"]
[null,"PACA","EIC Provence Alpes Côte d'Azur","Nice-Ville"]
[null,"PACA","EIC Provence Alpes Côte d'Azur","Orange"]
[null,"PACA","EIC Provence Alpes Côte d'Azur","Pas-des-Lanciers"]
[null,"PACA","EIC Provence Alpes Côte d'Azur","Pertuis"]
[null,"PACA","EIC Provence Alpes Côte d'Azur","Rognac"]
[null,"PACA","EIC Provence Alpes Côte d'Azur","Sisteron"]
[null,"PACA","EIC Provence Alpes Côte d'Azur","Sorgues-Châteauneuf-du-Pape"]
[null,"PACA","EIC Provence Alpes Côte d'Azur","St-Louis-les-Aygalades"]
[null,"PACA","EIC Provence Alpes Côte d'Azur","St-Marcel"]
[null,"PACA","EIC Provence Alpes Côte d'Azur","St-Martin-de-Crau"]
[null,"PACA","EIC Provence Alpes Côte d'Azur","St-Raphaël-Valescure"]
[null,"PACA","EIC Provence Alpes Côte d'Azur","Tarascon"]
[null,"PACA","EIC Provence Alpes Côte d'Azur","Toulon"]
[null,"PACA","EIC Provence Alpes Côte d'Azur","Triage Avignon"]
[null,"PACA","EIC Provence Alpes Côte d'Azur","Triage Miramas"]
[null,"PACA","EIC Provence Alpes Côte d'Azur","UP Miramas (Technicentre PACA)"]
[null,"PACA","EIC Provence Alpes Côte d'Azur","Veynes-Dévoluy"]

{"sheet":"Programme de travail prev","index":4,"n_rows":102,"n_cols":98,"rows_kept":102,"cut":false,"hidden":false,"merged":[[72,1,73,1],[72,2,72,25],[86,1,87,1],[86,2,86,25],[102,1,109,49],[30,1,31,1],[30,2,30,25],[44,1,45,1],[44,2,44,25],[58,1,59,1],[58,2,58,25],[0,5,0,25],[0,30,0,34],[0,40,0,46],[2,1,3,1],[16,1,17,1],[16,2,16,25]]}
[null,null,null,null,null,"Programme de travail (exemple)\n(document à fournir dans le cadre des concertations)",null,null,null,null,null,null,null,null,null,null,null,null,null,null,null,null,null,null,null,null,"Demandeur :",null,null,null,null,null,null,null,null,"Site demandé :"]
[]
[null,"Voies","LUNDI"]
[null,null,0,null,null,null,1,null,null,null,2,null,null,null,3,null,null,null,4,null,null,null,5,null,null,null,6,null,null,null,7,null,null,null,8,null,null,null,9,null,null,null,10,null,null,null,11,null,null,null,12,null,null,null,13,null,null,null,14,null,null,null,15,null,null,null,16,null,null,null,17,null,null,null,18,null,null,null,19,null,null,null,20,null,null,null,21,null,null,null,22,null,null,null,23]
[null,1]
[null,2]
[null,3]
[null,4]
[null,5]
[null,6]
[null,7]
[null,8]
[null,9]
[null,10]
[null,null,0,15,30,45,0,15,30,45,0,15,30,45,0,15,30,45,0,15,30,45,0,15,30,45,0,15,30,45,0,15,30,45,0,15,30,45,0,15,30,45,0,15,30,45,0,15,30,45,0,15,30,45,0,15,30,45,0,15,30,45,0,15,30,45,0,15,30,45,0,15,30,45,0,15,30,45,0,15,30,45,0,15,30,45,0,15,30,45,0,15,30,45,0,15,30,45]
[]
[null,"Voies","MARDI"]
[null,null,0,null,null,null,1,null,null,null,2,null,null,null,3,null,null,null,4,null,null,null,5,null,null,null,6,null,null,null,7,null,null,null,8,null,null,null,9,null,null,null,10,null,null,null,11,null,null,null,12,null,null,null,13,null,null,null,14,null,null,null,15,null,null,null,16,null,null,null,17,null,null,null,18,null,null,null,19,null,null,null,20,null,null,null,21,null,null,null,22,null,null,null,23]
[null,1]
[null,2]
[null,3]
[null,4]
[null,5]
[null,6]
[null,7]
[null,8]
[null,9]
[null,10]
[null,null,0,15,30,45,0,15,30,45,0,15,30,45,0,15,30,45,0,15,30,45,0,15,30,45,0,15,30,45,0,15,30,45,0,15,30,45,0,15,30,45,0,15,30,45,0,15,30,45,0,15,30,45,0,15,30,45,0,15,30,45,0,15,30,45,0,15,30,45,0,15,30,45,0,15,30,45,0,15,30,45,0,15,30,45,0,15,30,45,0,15,30,45,0,15,30,45]
[]
[null,"Voies","MERCREDI"]
[null,null,0,null,null,null,1,null,null,null,2,null,null,null,3,null,null,null,4,null,null,null,5,null,null,null,6,null,null,null,7,null,null,null,8,null,null,null,9,null,null,null,10,null,null,null,11,null,null,null,12,null,null,null,13,null,null,null,14,null,null,null,15,null,null,null,16,null,null,null,17,null,null,null,18,null,null,null,19,null,null,null,20,null,null,null,21,null,null,null,22,null,null,null,23]
[null,1]
[null,2]
[null,3]
[null,4]
[null,5]
[null,6]
[null,7]
[null,8]
[null,9]
[null,10]
[null,null,0,15,30,45,0,15,30,45,0,15,30,45,0,15,30,45,0,15,30,45,0,15,30,45,0,15,30,45,0,15,30,45,0,15,30,45,0,15,30,45,0,15,30,45,0,15,30,45,0,15,30,45,0,15,30,45,0,15,30,45,0,15,30,45,0,15,30,45,0,15,30,45,0,15,30,45,0,15,30,45,0,15,30,45,0,15,30,45,0,15,30,45,0,15,30,45]
[]
[null,"Voies","JEUDI"]
[null,null,0,null,null,null,1,null,null,null,2,null,null,null,3,null,null,null,4,null,null,null,5,null,null,null,6,null,null,null,7,null,null,null,8,null,null,null,9,null,null,null,10,null,null,null,11,null,null,null,12,null,null,null,13,null,null,null,14,null,null,null,15,null,null,null,16,null,null,null,17,null,null,null,18,null,null,null,19,null,null,null,20,null,null,null,21,null,null,null,22,null,null,null,23]
[null,1]
[null,2]
[null,3]
[null,4]
[null,5]
[null,6]
[null,7]
[null,8]
[null,9]
[null,10]
[null,null,0,15,30,45,0,15,30,45,0,15,30,45,0,15,30,45,0,15,30,45,0,15,30,45,0,15,30,45,0,15,30,45,0,15,30,45,0,15,30,45,0,15,30,45,0,15,30,45,0,15,30,45,0,15,30,45,0,15,30,45,0,15,30,45,0,15,30,45,0,15,30,45,0,15,30,45,0,15,30,45,0,15,30,45,0,15,30,45,0,15,30,45,0,15,30,45]
[]
[null,"Voies","VENDREDI"]
[null,null,0,null,null,null,1,null,null,null,2,null,null,null,3,null,null,null,4,null,null,null,5,null,null,null,6,null,null,null,7,null,null,null,8,null,null,null,9,null,null,null,10,null,null,null,11,null,null,null,12,null,null,null,13,null,null,null,14,null,null,null,15,null,null,null,16,null,null,null,17,null,null,null,18,null,null,null,19,null,null,null,20,null,null,null,21,null,null,null,22,null,null,null,23]
[null,1]
[null,2]
[null,3]
[null,4]
[null,5]
[null,6]
[null,7]
[null,8]
[null,9]
[null,10]
[null,null,0,15,30,45,0,15,30,45,0,15,30,45,0,15,30,45,0,15,30,45,0,15,30,45,0,15,30,45,0,15,30,45,0,15,30,45,0,15,30,45,0,15,30,45,0,15,30,45,0,15,30,45,0,15,30,45,0,15,30,45,0,15,30,45,0,15,30,45,0,15,30,45,0,15,30,45,0,15,30,45,0,15,30,45,0,15,30,45,0,15,30,45,0,15,30,45]
[]
[null,"Voies","SAMEDI"]
[null,null,0,null,null,null,1,null,null,null,2,null,null,null,3,null,null,null,4,null,null,null,5,null,null,null,6,null,null,null,7,null,null,null,8,null,null,null,9,null,null,null,10,null,null,null,11,null,null,null,12,null,null,null,13,null,null,null,14,null,null,null,15,null,null,null,16,null,null,null,17,null,null,null,18,null,null,null,19,null,null,null,20,null,null,null,21,null,null,null,22,null,null,null,23]
[null,1]
[null,2]
[null,3]
[null,4]
[null,5]
[null,6]
[null,7]
[null,8]
[null,9]
[null,10]
[null,null,0,15,30,45,0,15,30,45,0,15,30,45,0,15,30,45,0,15,30,45,0,15,30,45,0,15,30,45,0,15,30,45,0,15,30,45,0,15,30,45,0,15,30,45,0,15,30,45,0,15,30,45,0,15,30,45,0,15,30,45,0,15,30,45,0,15,30,45,0,15,30,45,0,15,30,45,0,15,30,45,0,15,30,45,0,15,30,45,0,15,30,45,0,15,30,45]
[]
[null,"Voies","DIMANCHIE"]
[null,null,0,null,null,null,1,null,null,null,2,null,null,null,3,null,null,null,4,null,null,null,5,null,null,null,6,null,null,null,7,null,null,null,8,null,null,null,9,null,null,null,10,null,null,null,11,null,null,null,12,null,null,null,13,null,null,null,14,null,null,null,15,null,null,null,16,null,null,null,17,null,null,null,18,null,null,null,19,null,null,null,20,null,null,null,21,null,null,null,22,null,null,null,23]
[null,1]
[null,2]
[null,3]
[null,4]
[null,5]
[null,6]
[null,7]
[null,8]
[null,9]
[null,10]
[null,null,0,15,30,45,0,15,30,45,0,15,30,45,0,15,30,45,0,15,30,45,0,15,30,45,0,15,30,45,0,15,30,45,0,15,30,45,0,15,30,45,0,15,30,45,0,15,30,45,0,15,30,45,0,15,30,45,0,15,30,45,0,15,30,45,0,15,30,45,0,15,30,45,0,15,30,45,0,15,30,45,0,15,30,45,0,15,30,45,0,15,30,45,0,15,30,45]
[]
[]
[null,"Notes"]

{"sheet":"Paramètres","index":5,"n_rows":805,"n_cols":33,"rows_kept":805,"cut":false,"hidden":true,"merged":[[0,1,0,12],[0,14,0,15],[0,17,1,17],[0,19,1,19],[0,21,1,21],[0,25,1,25],[0,27,1,27],[0,29,1,29],[1,14,1,15],[0,31,0,32],[0,23,1,23]]}
[null,"Tableau nécessaire pour la liste des DT et des sites",null,null,null,null,null,null,null,null,null,null,null,null,"Tableau necessaire pour la formule EIC",null,null,"Liste déroulante Oui/Non pour les colonnes E+R+S+U+AA (quotidien+Aptitude TE+Electrification+MD+Prospection)",null,"Liste déroulante C4/D4 pour la colonne T (Charge)",null,"Liste déroulante pour la colonne V (Type d'utilisation)",null,"Liste déroulante pour la colonne X (Type d'activité)",null,"Liste déroulante pour la colonne Y (Nature du trafic)",null,"Liste déroulante pour la colonne AC (Type de réponse)",null,"Liste déroulante pour la colonne AR (Modèle contractuel retenu)",null,"HDS 2025"]
[null,"DT →","AURA","BFC","BPL","CVL","GE","NO","HDF","IDF","NA","OCC","PACA",null,"Liste des voies commercialisables au 29/03/2024",null,null,null,null,null,null,null,null,null,null,null,null,null,null,null,null,"Du","Au"]
[null,"Liste des sites↓",{"$f":"_xlfn._xlws.SORT(_xlfn.CHOOSECOLS(_xlfn._xlws.FILTER('Liste des DT-EIC-SITES'!$B$6:$D$807,'Liste des DT-EIC-SITES'!$B$6:$B$807=C2),3),1,1)","v":"Aix-les-Bains-Le Revard"},{"$f":"_xlfn._xlws.SORT(_xlfn.CHOOSECOLS(_xlfn._xlws.FILTER('Liste des DT-EIC-SITES'!$B$6:$D$807,'Liste des DT-EIC-SITES'!$B$6:$B$807=D2),3),1,1)","v":"Aillevillers"},{"$f":"_xlfn._xlws.SORT(_xlfn.CHOOSECOLS(_xlfn._xlws.FILTER('Liste des DT-EIC-SITES'!$B$6:$D$807,'Liste des DT-EIC-SITES'!$B$6:$B$807=E2),3),1,1)","v":"Angers-St-Laud"},{"$f":"_xlfn._xlws.SORT(_xlfn.CHOOSECOLS(_xlfn._xlws.FILTER('Liste des DT-EIC-SITES'!$B$6:$D$807,'Liste des DT-EIC-SITES'!$B$6:$B$807=F2),3),1,1)","v":"Argenton-sur-Creuse"},{"$f":"_xlfn._xlws.SORT(_xlfn.CHOOSECOLS(_xlfn._xlws.FILTER('Liste des DT-EIC-SITES'!$B$6:$D$807,'Liste des DT-EIC-SITES'!$B$6:$B$807=G2),3),1,1)","v":"Apach"},{"$f":"_xlfn._xlws.SORT(_xlfn.CHOOSECOLS(_xlfn._xlws.FILTER('Liste des DT-EIC-SITES'!$B$6:$D$807,'Liste des DT-EIC-SITES'!$B$6:$B$807=H2),3),1,1)","v":"Alençon"},{"$f":"_xlfn._xlws.SORT(_xlfn.CHOOSECOLS(_xlfn._xlws.FILTER('Liste des DT-EIC-SITES'!$B$6:$D$807,'Liste des DT-EIC-SITES'!$B$6:$B$807=I2),3),1,1)","v":"Abbeville"},{"$f":"_xlfn._xlws.SORT(_xlfn.CHOOSECOLS(_xlfn._xlws.FILTER('Liste des DT-EIC-SITES'!$B$6:$D$807,'Liste des DT-EIC-SITES'!$B$6:$B$807=J2),3),1,1)","v":"Achères-Grand-Cormier"},{"$f":"_xlfn._xlws.SORT(_xlfn.CHOOSECOLS(_xlfn._xlws.FILTER('Liste des DT-EIC-SITES'!$B$6:$D$807,'Liste des DT-EIC-SITES'!$B$6:$B$807=K2),3),1,1)","v":"Agen"},{"$f":"_xlfn._xlws.SORT(_xlfn.CHOOSECOLS(_xlfn._xlws.FILTER('Liste des DT-EIC-SITES'!$B$6:$D$807,'Liste des DT-EIC-SITES'!$B$6:$B$807=L2),3),1,1)","v":"Aigues-Mortes"},{"$f":"_xlfn._xlws.SORT(_xlfn.CHOOSECOLS(_xlfn._xlws.FILTER('Liste des DT-EIC-SITES'!$B$6:$D$807,'Liste des DT-EIC-SITES'!$B$6:$B$807=M2),3),1,1)","v":"Aix-en-Provence"},null,"Nom du Site","Région SNCF (EIC)",null,"Oui",null,"C4",null,"Travail",null,"Voyageurs",null,"Fret auto",null,"Attribution Totale",null,"Contrat HDS",null,"2024-12-15","2025-12-13"]
[null,null,"Albertville","Andelot","Auray","Avord","Arcis-sur-Aube","Bréauté-Beuzeville","Achiet","Achères-Ville","Aiffres","Albi","Antibes",null,{"$f":"_xlfn._xlws.SORT(_xlfn.CHOOSECOLS('Liste des DT-EIC-SITES'!$B$6:$D$807,3),1,1)","v":"Abbeville"},{"$f":"_xlfn.XLOOKUP(O4,'Liste des DT-EIC-SITES'!D:D,'Liste des DT-EIC-SITES'!C:C)","v":"EIC Hauts de France"},null,"Non",null,"D4",null,"Stationnement",null,"Fret",null,"Fret céréales",null,"Attribution Partielle",null,"Déclaratif"]
[null,null,"Ambérieu","Autun","Brest","Beaugency","Bantzenheim","Caen","Ailly-sur-Noye","Argenteuil GC","Angoulême","Alès","Arles",null,"Achères-Grand-Cormier",{"$f":"_xlfn.XLOOKUP(O5,'Liste des DT-EIC-SITES'!D:D,'Liste des DT-EIC-SITES'!C:C)","v":"EIC Paris Est Ouest Francilien"},null,null,null,null,null,"Stationnement et travail",null,null,null,"Fret chimie",null,"Proposition Alternative",null,"Non concerné"]
[null,null,"Annecy","Auxonne","Champagné","Blois-Chambord","Bar-le-Duc","Cherbourg","Amiens","Aulnay-sous-Bois","Arcachon","Auch","Aspres-sur-Buëch",null,"Achères-Ville",{"$f":"_xlfn.XLOOKUP(O6,'Liste des DT-EIC-SITES'!D:D,'Liste des DT-EIC-SITES'!C:C)","v":"EIC Paris Est Ouest Francilien"},null,null,null,null,null,null,null,null,null,"Fret divers",null,"A l'étude"]
[null,null,"Annemasse","Belfort","Chantenay","Bourges","Blainville-Damelevières","Dieppe","Anor","Bécon-les-Bruyères","Artix","Aumont-Aubrac","Aubagne",null,"Achiet",{"$f":"_xlfn.XLOOKUP(O7,'Liste des DT-EIC-SITES'!D:D,'Liste des DT-EIC-SITES'!C:C)","v":"EIC Hauts de France"},null,null,null,null,null,null,null,null,null,"Fret granulat",null,"Demande Annulée"]
[null,null,"Arvant","Besançon-St-Fergeux","Châteaubriant","Bricy-Boulay","Châlons-en-Champagne","Elbeuf-St-Aubin","Armentières","Bois-Colombes","Ayron-Latillé","Ax-les-Thermes","Avignon-Centre",null,"Agen",{"$f":"_xlfn.XLOOKUP(O8,'Liste des DT-EIC-SITES'!D:D,'Liste des DT-EIC-SITES'!C:C)","v":"EIC Aquitaine Poitou Charentes"},null,null,null,null,null,null,null,null,null,"Fret métallurgie",null,"Refus"]
[null,null,"Aurillac","Besançon-Viotte","Châtelaudren-Plouagat","Brou","Champigneulles","Étrépagny","Arras","Bourron-Marlotte-Grez","Aytré","Bagnac","Avignon-Fontcouverte",null,"Aiffres",{"$f":"_xlfn.XLOOKUP(O9,'Liste des DT-EIC-SITES'!D:D,'Liste des DT-EIC-SITES'!C:C)","v":"EIC Aquitaine Poitou Charentes"},null,null,null,null,null,null,null,null,null,"Militaire"]
[null,null,"Badan","Brazey-en-Plaine","Cholet","Buzançais","Charleville-Mézières","Évreux-Embranchement","Athies-sous-Laon","Brétigny","Bassens","Banassac-La Canourgue","Bollène-la-Croisière",null,"Aigues-Mortes",{"$f":"_xlfn.XLOOKUP(O10,'Liste des DT-EIC-SITES'!D:D,'Liste des DT-EIC-SITES'!C:C)","v":"EIC Languedoc Roussillon"},null,null,null,null,null,null,null,null,null,"Voyageur autres"]
[null,null,"Bellegarde","Cercy-la-Tour","Connerré-Beillé","Chartres","Chaumont","Gaillon-Aubevoye","Attin-Garage","Cergy-le-Haut","Bassens-Appontements","Baziège","Breil-sur-Roya",null,"Aillevillers",{"$f":"_xlfn.XLOOKUP(O11,'Liste des DT-EIC-SITES'!D:D,'Liste des DT-EIC-SITES'!C:C)","v":"EIC Bourgogne Franche Comté"},null,null,null,null,null,null,null,null,null,"Voyageur conventionné"]
[null,null,"Belleville-sur-Saône","Chagny","Donges-Bonne Nouvelle","Châteaudun","Colmar","Gisors","Aulnoye-Aymeries","Cergy-St-Christophe","Bayonne","Beaucaire","Briançon",null,"Ailly-sur-Noye",{"$f":"_xlfn.XLOOKUP(O12,'Liste des DT-EIC-SITES'!D:D,'Liste des DT-EIC-SITES'!C:C)","v":"EIC Hauts de France"},null,null,null,null,null,null,null,null,null,"Voyageur GV"]
[null,null,"Boën","Chalon-sur-Saône","Gérard","Château-Renault","Conflans-Jarny","Gravenchon-Port-Jérome","Bailleul-sur-Thérain","Changis-St-Jean","Bergerac","Bédarieux","Cannes-Marchandises",null,"Aix-en-Provence",{"$f":"_xlfn.XLOOKUP(O13,'Liste des DT-EIC-SITES'!D:D,'Liste des DT-EIC-SITES'!C:C)","v":"EIC Provence Alpes Côte d'Azur"}]
[null,null,"Bonson","Clamecy","Guingamp","Châteauroux","Culmont-Chalindrey","Le Havre","Beauvais","Clamart","Bessines","Béziers","Carnoules",null,"Aix-les-Bains-Le Revard",{"$f":"_xlfn.XLOOKUP(O14,'Liste des DT-EIC-SITES'!D:D,'Liste des DT-EIC-SITES'!C:C)","v":"EIC Alpes"}]
[null,null,"Bourg-en-Bresse","Corbigny","La Brohinière","Dreux","Epernay","Lisieux","Béthune","Combs-la-Ville-Quincy","Blanquefort","Bourg-Madame","Cavaillon",null,"Albertville",{"$f":"_xlfn.XLOOKUP(O15,'Liste des DT-EIC-SITES'!D:D,'Liste des DT-EIC-SITES'!C:C)","v":"EIC Alpes"}]
[null,null,"Bourgoin-Jallieu","Cosne-sur-Loire","La Hutte-Coulombiers","Gien","Épinal","Maromme","Blanc-Misseron","Corbeil-Essonnes","Bordeaux-Bastide","Boussens","Château-Arnoux-St-Auban",null,"Albi",{"$f":"_xlfn.XLOOKUP(O16,'Liste des DT-EIC-SITES'!D:D,'Liste des DT-EIC-SITES'!C:C)","v":"EIC Midi Pyrénées"}]
[null,null,"Bourg-St-Maurice","Digoin","La Roche-sur-Yon","Issoudun","Forbach","Petit-Couronne","Boisleux","Dammartin-Juilly-St-Mard","Bordeaux-Hourcade","Bretenoux-Biars","Embrun",null,"Alençon",{"$f":"_xlfn.XLOOKUP(O17,'Liste des DT-EIC-SITES'!D:D,'Liste des DT-EIC-SITES'!C:C)","v":"EIC Normandie"}]
[null,null,"Brignais","Dijon-Porte-d'Ouche-Perrigny","Lamballe","La Ferté-St-Aubin","Givet","Petit-Quevilly","Boulogne-Ville","Dourdan","Bordeaux-St-Jean","Cahors","Faisceau NOVATRANS Avignon-Champfleury",null,"Alès",{"$f":"_xlfn.XLOOKUP(O18,'Liste des DT-EIC-SITES'!D:D,'Liste des DT-EIC-SITES'!C:C)","v":"EIC Languedoc Roussillon"}]
[null,null,"Brioude","Dijon-Porte-Neuve","Laval","La Guerche-sur-l'Aubois","Gudmont","Pont-de-l'Arche","Bresles","Émerainville-Pontault-Combault","Bressuire","Capdenac","Fos-Coussoul",null,"Ambérieu",{"$f":"_xlfn.XLOOKUP(O19,'Liste des DT-EIC-SITES'!D:D,'Liste des DT-EIC-SITES'!C:C)","v":"EIC Alpes"}]
[null,null,"Chambéry-Challes-les-Eaux","Dijon-Ville","Le Croisic","Les Aubrais-Orléans","Hagondange","Rouen-Orléans","Bully-Grenay","Épinay-Villetaneuse","Brive-la-Gaillarde","Carbonne","Gap",null,"Amiens",{"$f":"_xlfn.XLOOKUP(O20,'Liste des DT-EIC-SITES'!D:D,'Liste des DT-EIC-SITES'!C:C)","v":"EIC Hauts de France"}]
[null,null,"Chasse-sur-Rhône","Dole","Le Mans","Malesherbes","Haguenau","Rouen-Rive-Droite","Busigny","Épluches","Bruges","Carcassonne","Gardanne",null,"Andelot",{"$f":"_xlfn.XLOOKUP(O21,'Liste des DT-EIC-SITES'!D:D,'Liste des DT-EIC-SITES'!C:C)","v":"EIC Bourgogne Franche Comté"}]
[null,null,"Clelles-Mens","Étang","Les Sables-d'Olonne","Meung-sur-Loire","Hausbergen","Rouxmesnil","Caffiers","Ermont-Eaubonne","Chalandray","Carmaux","La Pauline-Hyères",null,"Angers-St-Laud",{"$f":"_xlfn.XLOOKUP(O22,'Liste des DT-EIC-SITES'!D:D,'Liste des DT-EIC-SITES'!C:C)","v":"EIC Bretagne Pays de la Loire"}]
[null,null,"Clermont-Ferrand","Faisceau dépôt","Lorient","Montargis","Héming","Serqueux","Calais-Fréthun","Étampes","Charmant","Cases-de-Pène","La Seyne-Six-Fours",null,"Angoulême",{"$f":"_xlfn.XLOOKUP(O23,'Liste des DT-EIC-SITES'!D:D,'Liste des DT-EIC-SITES'!C:C)","v":"EIC Aquitaine Poitou Charentes"}]
[null,null,"Clermont-Les-Gravanches-Triage","faisceau impair","Montauban-de-Bretagne","Neuillé-Pont-Pierre","Jarville-la-Malgrange","Serquigny","Calais-Ville","Garches-Marnes-la-Coquette","Chasseneuil (Vienne)","Castelnaudary","Les Arcs-Draguignan",null,"Annecy",{"$f":"_xlfn.XLOOKUP(O24,'Liste des DT-EIC-SITES'!D:D,'Liste des DT-EIC-SITES'!C:C)","v":"EIC Alpes"}]
[null,null,"Collonges-Fontaines","Faisceau Plateforme Multimodale","Montfort-le-Gesnois","Neuvy-Pailloux","Langres","Sotteville","Cambrai","Gargenville","Châteauneuf-sur-Charente","Castelnau-d'Estrétefonds","Manosque-Gréoux-les-Bains",null,"Annemasse",{"$f":"_xlfn.XLOOKUP(O25,'Liste des DT-EIC-SITES'!D:D,'Liste des DT-EIC-SITES'!C:C)","v":"EIC Alpes"}]
[null,null,"Commentry","Gevrey-Chambertin","Montoir-de-Bretagne","Nogent-le-Rotrou","Lérouville","St-Pierre-lès-Elbeuf","Château-Thierry","Gennevilliers","Châtellerault","Castelsarrasin","Marseille-Maritime-Arenc",null,"Anor",{"$f":"_xlfn.XLOOKUP(O26,'Liste des DT-EIC-SITES'!D:D,'Liste des DT-EIC-SITES'!C:C)","v":"EIC Hauts de France"}]
[null,null,"Condrieu","Is-sur-Tille","Montreuil-Bellay","Nogent-sur-Vernisson","Longwy","St-Valéry-en-Caux","Chaulnes","Goussainville","Civaux","Castres","Marseille-Maritime-Canet",null,"Antibes",{"$f":"_xlfn.XLOOKUP(O27,'Liste des DT-EIC-SITES'!D:D,'Liste des DT-EIC-SITES'!C:C)","v":"EIC Provence Alpes Côte d'Azur"}]
[null,null,"Crest","Joigny","Nantes","Pithiviers","Metz-Ville","Trouville-Deauville","Chauny","Gretz-Armainvilliers","Cognac","Caussade","Marseille-Prado",null,"Apach",{"$f":"_xlfn.XLOOKUP(O28,'Liste des DT-EIC-SITES'!D:D,'Liste des DT-EIC-SITES'!C:C)","v":"EIC Lorraine Champagne Ardenne"}]
[null,null,"Culoz","Jussey","Nantes-Blottereau","Port-Boulet","Mulhouse-Nord","Valognes","Clermont-les-Fermes","Ivry-sur-Seine","Condat-le-Lardin","Ceilhes-Roqueredonde","Marseille-St-Charles",null,"Arcachon",{"$f":"_xlfn.XLOOKUP(O29,'Liste des DT-EIC-SITES'!D:D,'Liste des DT-EIC-SITES'!C:C)","v":"EIC Aquitaine Poitou Charentes"}]
[null,null,"Cusset","La Charité-sur-Loire","Nantes-État","Port-de-Piles","Nançois-Tronville","Vernon-Giverny","Compiègne","Juvisy","Couhé-Vérac","Cerbère","Martigues",null,"Arcis-sur-Aube",{"$f":"_xlfn.XLOOKUP(O30,'Liste des DT-EIC-SITES'!D:D,'Liste des DT-EIC-SITES'!C:C)","v":"EIC Lorraine Champagne Ardenne"}]
[null,null,"Die","Laroche-Migennes","Penhoët","Reignac","Nancy-Ville",null,"Conchil-le-Temple","La Défense","Coulombiers","Chamborigaud","Menton",null,"Argenteuil GC",{"$f":"_xlfn.XLOOKUP(O31,'Liste des DT-EIC-SITES'!D:D,'Liste des DT-EIC-SITES'!C:C)","v":"EIC Paris Est Ouest Francilien"}]
[null,null,"Dompierre-Sept-Fons","Le Valdahon","Plestan","Salbris","Neufchâteau",null,"Corbehem","La Ferté-sous-Jouarre","Coutras","Chanac","Miramas",null,"Argenton-sur-Creuse",{"$f":"_xlfn.XLOOKUP(O32,'Liste des DT-EIC-SITES'!D:D,'Liste des DT-EIC-SITES'!C:C)","v":"EIC Centre Limousin"}]
[null,null,"Épierre-St-Léger","Les Laumes-Alésia","Pleyber-Christ","St-Aignan-Noyers","Pagny-sur-Meuse",null,"Coudekerque-Branche","La Garenne-Colombes","Dax","Cintegabelle","Nice-St-Roch",null,"Arles",{"$f":"_xlfn.XLOOKUP(O33,'Liste des DT-EIC-SITES'!D:D,'Liste des DT-EIC-SITES'!C:C)","v":"EIC Provence Alpes Côte d'Azur"}]
[null,null,"ET Lyon-Mouche UPT Portes","Lons-le-Saunier","Plouaret-Trégor","St-Amand-Montrond-Orval","Pagny-sur-Moselle",null,"Creil","Le Bourget","Facture-Biganos","Colombiers","Nice-Ville",null,"Armentières",{"$f":"_xlfn.XLOOKUP(O34,'Liste des DT-EIC-SITES'!D:D,'Liste des DT-EIC-SITES'!C:C)","v":"EIC Hauts de France"}]
[null,null,"Évian-les-Bains","Lure","Pontivy","St-Cyr-en-Val-La Source","Pont-à-Mousson",null,"Crépy-en-Valois","Le Vert-de-Maisons","Faisceau Lavage","Colomiers","Orange",null,"Arras",{"$f":"_xlfn.XLOOKUP(O35,'Liste des DT-EIC-SITES'!D:D,'Liste des DT-EIC-SITES'!C:C)","v":"EIC Hauts de France"}]
[null,null,"Firminy","Mâcon-Ville","Pornic","St-Florent-sur-Cher","Pont-St-Vincent",null,"Dannes-Camiers","Les Mureaux","Gazinet-Cestas","Damiatte-St-Paul","Pas-des-Lanciers",null,"Artix",{"$f":"_xlfn.XLOOKUP(O36,'Liste des DT-EIC-SITES'!D:D,'Liste des DT-EIC-SITES'!C:C)","v":"EIC Aquitaine Poitou Charentes"}]
[null,null,"Gannat","Montbard","Quimper","St-Pierre-des-Corps","Raon-l'Étape",null,"Daours","Les Portes de St-Cyr","Grand-Pont-Preuilly","Dieupentale","Pertuis",null,"Arvant",{"$f":"_xlfn.XLOOKUP(O37,'Liste des DT-EIC-SITES'!D:D,'Liste des DT-EIC-SITES'!C:C)","v":"EIC Auvergne Nivernais"}]
[null,null,"Givors","Montbéliard","Redon","Thoré-la-Rochette","Réding",null,"Dercy-Mortiers","Longueville","Guéret","EIV de Bretenoux-Biars","Rognac",null,"Aspres-sur-Buëch",{"$f":"_xlfn.XLOOKUP(O38,'Liste des DT-EIC-SITES'!D:D,'Liste des DT-EIC-SITES'!C:C)","v":"EIC Provence Alpes Côte d'Azur"}]
[null,null,"Grenoble","Montceau-les-Mines","Rennes","Tours","Reims",null,"Desvres","Mantes-la-Jolie","Hendaye","Escalquens","Sisteron",null,"Athies-sous-Laon",{"$f":"_xlfn.XLOOKUP(O39,'Liste des DT-EIC-SITES'!D:D,'Liste des DT-EIC-SITES'!C:C)","v":"EIC Hauts de France"}]
[null,null,"Grenoble-Université-Gières","Montchanin","Rosporden","Toury","Remiremont",null,"Douai","Marly-le-Roi","Ingrandes-sur-Vienne","Faisceau Tarbes V62 à V90","Sorgues-Châteauneuf-du-Pape",null,"Attin-Garage",{"$f":"_xlfn.XLOOKUP(O40,'Liste des DT-EIC-SITES'!D:D,'Liste des DT-EIC-SITES'!C:C)","v":"EIC Hauts de France"}]
[null,null,"Grésy-sur-Isère","Morez","Sablé-sur-Sarthe","Vendôme","Revigny",null,"Dunkerque","Massy-Palaiseau","Jardres","Faisceau Vestric","St-Louis-les-Aygalades",null,"Aubagne",{"$f":"_xlfn.XLOOKUP(O41,'Liste des DT-EIC-SITES'!D:D,'Liste des DT-EIC-SITES'!C:C)","v":"EIC Provence Alpes Côte d'Azur"}]
[null,null,"Issoire","Morteau","Saumur","Vierzon-Ville","Saales",null,"Estrées-St-Denis","Meaux","La Couronne","Fenouillet-St-Alban","St-Marcel",null,"Auch",{"$f":"_xlfn.XLOOKUP(O42,'Liste des DT-EIC-SITES'!D:D,'Liste des DT-EIC-SITES'!C:C)","v":"EIC Midi Pyrénées"}]
[null,null,"Jarrie-Vizille","Mouchard","SCV (Poste 1)","Voves","Sarrebourg",null,"ET Lille UPT Lens","Melun","La Crèche","Foix","St-Martin-de-Crau",null,"Aulnay-sous-Bois",{"$f":"_xlfn.XLOOKUP(O43,'Liste des DT-EIC-SITES'!D:D,'Liste des DT-EIC-SITES'!C:C)","v":"EIC Paris Nord"}]
[null,null,"La Ferté-Hauterive","Nevers","St-Brieuc",null,"Sarreguemines",null,"Étaples-Le Touquet","Mitry-Claye","La Rochelle-Ville","Fontpédrouse-St-Thomas-les-Bains","St-Raphaël-Valescure",null,"Aulnoye-Aymeries",{"$f":"_xlfn.XLOOKUP(O44,'Liste des DT-EIC-SITES'!D:D,'Liste des DT-EIC-SITES'!C:C)","v":"EIC Hauts de France"}]
[null,null,"La Roche-sur-Foron","Nuits-sous-Ravières","St-Malo",null,"Saverne",null,"Faisceau Port Fluvial","Montereau","La Teste","Font-Romeu-Odeillo-Via","Tarascon",null,"Aumont-Aubrac",{"$f":"_xlfn.XLOOKUP(O45,'Liste des DT-EIC-SITES'!D:D,'Liste des DT-EIC-SITES'!C:C)","v":"EIC Languedoc Roussillon"}]
[null,null,"La Voulte-sur-Rhône","Paray-le-Monial","St-Nazaire",null,"Sedan",null,"Fère-en-Tardenois","Montfort-l'Amaury-Mère","La Tricherie","Génolhac","Toulon",null,"Auray",{"$f":"_xlfn.XLOOKUP(O46,'Liste des DT-EIC-SITES'!D:D,'Liste des DT-EIC-SITES'!C:C)","v":"EIC Bretagne Pays de la Loire"}]
[null,null,"Langeac","Pontarlier","Vannes",null,"Sélestat",null,"Fourmies","Montigny-Beauchamp","Lacq","Gignac-Cressensac","Triage Avignon",null,"Aurillac",{"$f":"_xlfn.XLOOKUP(O47,'Liste des DT-EIC-SITES'!D:D,'Liste des DT-EIC-SITES'!C:C)","v":"EIC Auvergne Nivernais"}]
[null,null,"Lapeyrouse","Port-Sec-de-Pacy",null,null,"St-Dié-des-Vosges",null,"Grande-Synthe","Moret-Veneux-les-Sablons","Laluque","Gourdon","Triage Miramas",null,"Autun",{"$f":"_xlfn.XLOOKUP(O48,'Liste des DT-EIC-SITES'!D:D,'Liste des DT-EIC-SITES'!C:C)","v":"EIC Bourgogne Franche Comté"}]
[null,null,"Laqueuille","Saincaize",null,null,"St-Dizier",null,"Grandvilliers","Nangis","Langon","Gramat","UP Miramas (Technicentre PACA)",null,"Auxonne",{"$f":"_xlfn.XLOOKUP(O49,'Liste des DT-EIC-SITES'!D:D,'Liste des DT-EIC-SITES'!C:C)","v":"EIC Bourgogne Franche Comté"}]
[null,null,"Le Pouzin","Sens",null,null,"St-Louis",null,"Guignicourt","Nemours-St-Pierre","Lavaufranche","Grand'Combe-La Pise",null,null,"Avignon-Centre",{"$f":"_xlfn.XLOOKUP(O50,'Liste des DT-EIC-SITES'!D:D,'Liste des DT-EIC-SITES'!C:C)","v":"EIC Provence Alpes Côte d'Azur"}]
[null,null,"Le Puy-en-Velay","Seurre",null,null,"Strasbourg-Neudorf",null,"Ham","Noisy-le-Sec","Le Boucau","Grisolles",null,null,"Avignon-Fontcouverte",{"$f":"_xlfn.XLOOKUP(O51,'Liste des DT-EIC-SITES'!D:D,'Liste des DT-EIC-SITES'!C:C)","v":"EIC Provence Alpes Côte d'Azur"}]
[null,null,"Le Teil","St-Claude",null,null,"Strasbourg-Ville",null,"Haubourdin","Orly-Ville","Le Buisson","Ille-sur-Têt",null,null,"Avord",{"$f":"_xlfn.XLOOKUP(O52,'Liste des DT-EIC-SITES'!D:D,'Liste des DT-EIC-SITES'!C:C)","v":"EIC Centre Limousin"}]
[null,null,"Lezoux","St-Florentin-Vergigny",null,null,"Thann",null,"Hautmont","Pantin","Le Dorat","La Bastide-St-Laurent-les-Bains",null,null,"Ax-les-Thermes",{"$f":"_xlfn.XLOOKUP(O53,'Liste des DT-EIC-SITES'!D:D,'Liste des DT-EIC-SITES'!C:C)","v":"EIC Midi Pyrénées"}]
[null,null,"Livron","Tavaux",null,null,"Thionville",null,"Hazebrouck","Parc-des-Expositions","Le Verdon","La Roubinarie",null,null,"Ayron-Latillé",{"$f":"_xlfn.XLOOKUP(O54,'Liste des DT-EIC-SITES'!D:D,'Liste des DT-EIC-SITES'!C:C)","v":"EIC Aquitaine Poitou Charentes"}]
[null,null,"Lozanne","Tiroir",null,null,"Toul",null,"Hénin-Beaumont","Paris-Batignolles","Les Ormes-sur-Vienne","Labarthe-Avezac",null,null,"Aytré",{"$f":"_xlfn.XLOOKUP(O55,'Liste des DT-EIC-SITES'!D:D,'Liste des DT-EIC-SITES'!C:C)","v":"EIC Aquitaine Poitou Charentes"}]
[null,null,"Lus-la-Croix-Haute","Vesoul",null,null,"Troyes",null,"Hirson","Paris-Bercy","Lescar","Langogne",null,null,"Badan",{"$f":"_xlfn.XLOOKUP(O56,'Liste des DT-EIC-SITES'!D:D,'Liste des DT-EIC-SITES'!C:C)","v":"EIC Rhône Alpes Lyon"}]
[null,null,"Lyon-Guillotière",null,null,null,"Uckange",null,"Isbergues","Paris-Bercy-Conflans","Lesparre","Lannemezan",null,null,"Bagnac",{"$f":"_xlfn.XLOOKUP(O57,'Liste des DT-EIC-SITES'!D:D,'Liste des DT-EIC-SITES'!C:C)","v":"EIC Midi Pyrénées"}]
[null,null,"Lyon-Part-Dieu",null,null,null,"Varangéville-St-Nicolas",null,"La Ferté-Milon","Paris-Gare-de-Lyon","Libourne","L'Ardoise",null,null,"Bailleul-sur-Thérain",{"$f":"_xlfn.XLOOKUP(O58,'Liste des DT-EIC-SITES'!D:D,'Liste des DT-EIC-SITES'!C:C)","v":"EIC Paris Nord"}]
[null,null,"Lyon-Perrache",null,null,null,"Verdun",null,"Lamotte-Breuil","Paris-La Chapelle","Luché","Latour-de-Carol-Enveitg",null,null,"Banassac-La Canourgue",{"$f":"_xlfn.XLOOKUP(O59,'Liste des DT-EIC-SITES'!D:D,'Liste des DT-EIC-SITES'!C:C)","v":"EIC Languedoc Roussillon"}]
[null,null,"Lyon-Perrache-Marchandises",null,null,null,"Vitry-la-Ville",null,"Laon","Paris-Nord","Lusignan","Laurens",null,null,"Bantzenheim",{"$f":"_xlfn.XLOOKUP(O60,'Liste des DT-EIC-SITES'!D:D,'Liste des DT-EIC-SITES'!C:C)","v":"EIC Alsace"}]
[null,null,"Lyon-Vaise",null,null,null,"Vitry-le-François",null,"Le Petit-Thérain","Paris-St-Lazare","Marmande","Lavaur",null,null,"Bar-le-Duc",{"$f":"_xlfn.XLOOKUP(O61,'Liste des DT-EIC-SITES'!D:D,'Liste des DT-EIC-SITES'!C:C)","v":"EIC Lorraine Champagne Ardenne"}]
[null,null,"Marignier",null,null,null,"Vittel",null,"Le Plessis-Belleville","Paris-Tolbiac","Mazières-Verruyes","Le Boulou-Perthus",null,null,"Bassens",{"$f":"_xlfn.XLOOKUP(O62,'Liste des DT-EIC-SITES'!D:D,'Liste des DT-EIC-SITES'!C:C)","v":"EIC Aquitaine Poitou Charentes"}]
[null,null,"Meximieux-Pérouges",null,null,null,"Wesserling",null,"Lens","Paris-Vaugirard","Mont-de-Marsan","Le Monastier",null,null,"Bassens-Appontements",{"$f":"_xlfn.XLOOKUP(O63,'Liste des DT-EIC-SITES'!D:D,'Liste des DT-EIC-SITES'!C:C)","v":"EIC Aquitaine Poitou Charentes"}]
[null,null,"Modane",null,null,null,"Woippy",null,"Lille-Champ-de-Mars","Persan-Beaumont","Montmoreau","Lexos",null,null,"Bayonne",{"$f":"_xlfn.XLOOKUP(O64,'Liste des DT-EIC-SITES'!D:D,'Liste des DT-EIC-SITES'!C:C)","v":"EIC Aquitaine Poitou Charentes"}]
[null,null,"Montbrison",null,null,null,"Woippy Triage",null,"Lille-Délivrance","Plaisir-Grignon","Montmorillon","Lézignan (Aude)",null,null,"Baziège",{"$f":"_xlfn.XLOOKUP(O65,'Liste des DT-EIC-SITES'!D:D,'Liste des DT-EIC-SITES'!C:C)","v":"EIC Midi Pyrénées"}]
[null,null,"Montélimar",null,null,null,null,null,"Lille-Flandres","Poissy","Montpon-Ménestérol","L'Hospitalet-près-l'Andorre",null,null,"Beaucaire",{"$f":"_xlfn.XLOOKUP(O66,'Liste des DT-EIC-SITES'!D:D,'Liste des DT-EIC-SITES'!C:C)","v":"EIC Languedoc Roussillon"}]
[null,null,"Montluçon-Eau",null,null,null,null,null,"Longueau","Pont-Cardinet","Morcenx","L'Isle-Jourdain",null,null,"Beaugency",{"$f":"_xlfn.XLOOKUP(O67,'Liste des DT-EIC-SITES'!D:D,'Liste des DT-EIC-SITES'!C:C)","v":"EIC Centre Limousin"}]
[null,null,"Montluçon-Ville",null,null,null,null,null,"Longueil-Ste-Marie","Pontoise","Mussidan","Lourdes",null,null,"Beauvais",{"$f":"_xlfn.XLOOKUP(O68,'Liste des DT-EIC-SITES'!D:D,'Liste des DT-EIC-SITES'!C:C)","v":"EIC Paris Nord"}]
[null,null,"Montluel",null,null,null,null,null,"Lourches","Provins","Naintré-les-Barres","Luzenac-Garanou",null,null,"Bécon-les-Bruyères",{"$f":"_xlfn.XLOOKUP(O69,'Liste des DT-EIC-SITES'!D:D,'Liste des DT-EIC-SITES'!C:C)","v":"EIC Paris Est Ouest Francilien"}]
[null,null,"Montmélian",null,null,null,null,null,"Lumbres","Rambouillet","Niort","Malause",null,null,"Bédarieux",{"$f":"_xlfn.XLOOKUP(O70,'Liste des DT-EIC-SITES'!D:D,'Liste des DT-EIC-SITES'!C:C)","v":"EIC Languedoc Roussillon"}]
[null,null,"Montrond-les-Bains",null,null,null,null,null,"Marquise-Rinxent","Ris-Orangis","Parthenay","Marvejols",null,null,"Belfort",{"$f":"_xlfn.XLOOKUP(O71,'Liste des DT-EIC-SITES'!D:D,'Liste des DT-EIC-SITES'!C:C)","v":"EIC Alsace"}]
[null,null,"Moulins-sur-Allier",null,null,null,null,null,"Maubeuge","RNUR Accès Est","Pau","Mazamet",null,null,"Bellegarde",{"$f":"_xlfn.XLOOKUP(O72,'Liste des DT-EIC-SITES'!D:D,'Liste des DT-EIC-SITES'!C:C)","v":"EIC Alpes"}]
[null,null,"Neussargues",null,null,null,null,null,"Mézy","Rosny-sur-Seine","Pauillac","Mende",null,null,"Belleville-sur-Saône",{"$f":"_xlfn.XLOOKUP(O73,'Liste des DT-EIC-SITES'!D:D,'Liste des DT-EIC-SITES'!C:C)","v":"EIC Rhône Alpes Lyon"}]
[null,null,"Notre-Dame-de-Briançon",null,null,null,null,null,"Montcornet","Sèvres-Rive-Gauche","Périgueux","Millau",null,null,"Bergerac",{"$f":"_xlfn.XLOOKUP(O74,'Liste des DT-EIC-SITES'!D:D,'Liste des DT-EIC-SITES'!C:C)","v":"EIC Aquitaine Poitou Charentes"}]
[null,null,"Oullins",null,null,null,null,null,"Montescourt","St-Cloud","Poitiers","Montauban-Ville-Bourbon",null,null,"Besançon-St-Fergeux",{"$f":"_xlfn.XLOOKUP(O75,'Liste des DT-EIC-SITES'!D:D,'Liste des DT-EIC-SITES'!C:C)","v":"EIC Bourgogne Franche Comté"}]
[null,null,"Perrignier",null,null,null,null,null,"Montières","St-Denis","Puyoô","Mont-Louis-La Cabanasse",null,null,"Besançon-Viotte",{"$f":"_xlfn.XLOOKUP(O76,'Liste des DT-EIC-SITES'!D:D,'Liste des DT-EIC-SITES'!C:C)","v":"EIC Bourgogne Franche Comté"}]
[null,null,"Peyraud",null,null,null,null,null,"Nesle","St-Leu-la-Forêt","Rion-des-Landes","Montpellier-les-Prés-d'Arènes",null,null,"Bessines",{"$f":"_xlfn.XLOOKUP(O77,'Liste des DT-EIC-SITES'!D:D,'Liste des DT-EIC-SITES'!C:C)","v":"EIC Centre Limousin"}]
[null,null,"Pierrelatte",null,null,null,null,null,"Noyelles-sur-Mer","St-Ouen-les-Docks","Rochefort","Montpellier-St-Roch",null,null,"Béthune",{"$f":"_xlfn.XLOOKUP(O78,'Liste des DT-EIC-SITES'!D:D,'Liste des DT-EIC-SITES'!C:C)","v":"EIC Hauts de France"}]
[null,null,"Pontcharra-sur-Breda-Allevard",null,null,null,null,null,"Noyon","Sucy-Bonneuil","Royan","Montréjeau-Gourdan-Polignan",null,null,"Béziers",{"$f":"_xlfn.XLOOKUP(O79,'Liste des DT-EIC-SITES'!D:D,'Liste des DT-EIC-SITES'!C:C)","v":"EIC Languedoc Roussillon"}]
[null,null,"Pont-de-Claix",null,null,null,null,null,"Origny-Ste-Benoite","Tournan","Saintes","Narbonne",null,null,"Blainville-Damelevières",{"$f":"_xlfn.XLOOKUP(O80,'Liste des DT-EIC-SITES'!D:D,'Liste des DT-EIC-SITES'!C:C)","v":"EIC Lorraine Champagne Ardenne"}]
[null,null,"Pont-de-Dore",null,null,null,null,null,"Ormoy-Villers","Trappes-Marchandises","Sireuil","Naucelle",null,null,"Blanc-Misseron",{"$f":"_xlfn.XLOOKUP(O81,'Liste des DT-EIC-SITES'!D:D,'Liste des DT-EIC-SITES'!C:C)","v":"EIC Hauts de France"}]
[null,null,"Portes",null,null,null,null,null,"Outreau","UPM Ivry- Masséna (Technicentre PRG)","Solférino","Nîmes (IE)",null,null,"Blanquefort",{"$f":"_xlfn.XLOOKUP(O82,'Liste des DT-EIC-SITES'!D:D,'Liste des DT-EIC-SITES'!C:C)","v":"EIC Aquitaine Poitou Charentes"}]
[null,null,"Puy-Guillaume",null,null,null,null,null,"Poix-de-Picardie","Vaires-Torcy","St-Jean-d'Angély","Nîmes-Courbessac (ex-Triage)",null,null,"Blois-Chambord",{"$f":"_xlfn.XLOOKUP(O83,'Liste des DT-EIC-SITES'!D:D,'Liste des DT-EIC-SITES'!C:C)","v":"EIC Centre Limousin"}]
[null,null,"Riom-Châtel-Guyon",null,null,null,null,null,"Pont-à-Vendin","Valenton","St-Jean-Pied-de-Port","Nozières-Brignon",null,null,"Boën",{"$f":"_xlfn.XLOOKUP(O84,'Liste des DT-EIC-SITES'!D:D,'Liste des DT-EIC-SITES'!C:C)","v":"EIC Rhône Alpes Lyon"}]
[null,null,"Rive-de-Gier",null,null,null,null,null,"Prouvy-Thiant","Valmondois","St-Junien","Olette-Canaveilles-les-Bains",null,null,"Bois-Colombes",{"$f":"_xlfn.XLOOKUP(O85,'Liste des DT-EIC-SITES'!D:D,'Liste des DT-EIC-SITES'!C:C)","v":"EIC Paris Est Ouest Francilien"}]
[null,null,"Rives",null,null,null,null,null,"Ribécourt","Vernou-sur-Seine","St-Mariens-St-Yzan","Pamiers",null,null,"Boisleux",{"$f":"_xlfn.XLOOKUP(O86,'Liste des DT-EIC-SITES'!D:D,'Liste des DT-EIC-SITES'!C:C)","v":"EIC Hauts de France"}]
[null,null,"Roanne",null,null,null,null,null,"Saleux","Versailles-Chantiers","St-Saviol","Perpignan",null,null,"Bollène-la-Croisière",{"$f":"_xlfn.XLOOKUP(O87,'Liste des DT-EIC-SITES'!D:D,'Liste des DT-EIC-SITES'!C:C)","v":"EIC Provence Alpes Côte d'Azur"}]
[null,null,"Romans-Bourg-de-Péage",null,null,null,null,null,"Soissons","Versailles-Matelots","St-Sulpice-Laurière","Perpignan-Roussillon",null,null,"Bonson",{"$f":"_xlfn.XLOOKUP(O88,'Liste des DT-EIC-SITES'!D:D,'Liste des DT-EIC-SITES'!C:C)","v":"EIC Rhône Alpes Lyon"}]
[null,null,"Sallanches-Combloux-Megève",null,null,null,null,null,"Somain","Versailles-Rive-Droite","St-Ustre","Portet-St-Simon",null,null,"Bordeaux-Bastide",{"$f":"_xlfn.XLOOKUP(O89,'Liste des DT-EIC-SITES'!D:D,'Liste des DT-EIC-SITES'!C:C)","v":"EIC Aquitaine Poitou Charentes"}]
[null,null,"Sarliève-Cournon",null,null,null,null,null,"St-Erme","Versailles-Rive-Gauche","St-Varent","Port-la-Nouvelle",null,null,"Bordeaux-Hourcade",{"$f":"_xlfn.XLOOKUP(O90,'Liste des DT-EIC-SITES'!D:D,'Liste des DT-EIC-SITES'!C:C)","v":"EIC Aquitaine Poitou Charentes"}]
[null,null,"Sathonay-Rillieux",null,null,null,null,null,"St-Omer","Villeneuve-le-Roi","Thiviers","Remoulins-Pont-du-Gard",null,null,"Bordeaux-St-Jean",{"$f":"_xlfn.XLOOKUP(O91,'Liste des DT-EIC-SITES'!D:D,'Liste des DT-EIC-SITES'!C:C)","v":"EIC Aquitaine Poitou Charentes"}]
[null,null,"Sibelin",null,null,null,null,null,"St-Pol-sur-Ternoise","Villeneuve-St-Georges","Thouars","Rivesaltes",null,null,"Boulogne-Ville",{"$f":"_xlfn.XLOOKUP(O92,'Liste des DT-EIC-SITES'!D:D,'Liste des DT-EIC-SITES'!C:C)","v":"EIC Hauts de France"}]
[null,null,"St-André-le-Gaz",null,null,null,null,null,"St-Quentin","Villeneuve-Triage","Tonneins","Rodez",null,null,"Bourg-en-Bresse",{"$f":"_xlfn.XLOOKUP(O93,'Liste des DT-EIC-SITES'!D:D,'Liste des DT-EIC-SITES'!C:C)","v":"EIC Alpes"}]
[null,null,"St-Avre-la-Chambre",null,null,null,null,null,"Tergnier","Villeparisis","Ussac","Saillagouse",null,null,"Bourges",{"$f":"_xlfn.XLOOKUP(O94,'Liste des DT-EIC-SITES'!D:D,'Liste des DT-EIC-SITES'!C:C)","v":"EIC Centre Limousin"}]
[null,null,"St-Clair-les-Roches",null,null,null,null,null,"Thourotte",null,"Ussel","Saverdun",null,null,"Bourg-Madame",{"$f":"_xlfn.XLOOKUP(O95,'Liste des DT-EIC-SITES'!D:D,'Liste des DT-EIC-SITES'!C:C)","v":"EIC Languedoc Roussillon"}]
[null,null,"St-Étienne-Châteaucreux",null,null,null,null,null,"Tourcoing",null,"Verneuil-sur-Vienne","Sérignac",null,null,"Bourgoin-Jallieu",{"$f":"_xlfn.XLOOKUP(O96,'Liste des DT-EIC-SITES'!D:D,'Liste des DT-EIC-SITES'!C:C)","v":"EIC Rhône Alpes Lyon"}]
[null,null,"St-Étienne-Pont-de-l'Âne",null,null,null,null,null,"Trith-St-Léger",null,"Ychoux","Sète",null,null,"Bourg-St-Maurice",{"$f":"_xlfn.XLOOKUP(O97,'Liste des DT-EIC-SITES'!D:D,'Liste des DT-EIC-SITES'!C:C)","v":"EIC Alpes"}]
[null,null,"St-Fons",null,null,null,null,null,"Valenciennes",null,null,"Sète (IE)",null,null,"Bourron-Marlotte-Grez",{"$f":"_xlfn.XLOOKUP(O98,'Liste des DT-EIC-SITES'!D:D,'Liste des DT-EIC-SITES'!C:C)","v":"EIC Paris Sud Est"}]
[null,null,"St-Germain-au-Mont-d'Or",null,null,null,null,null,"Villers-Cotterêts",null,null,"Sète-Voies-des-Quais",null,null,"Boussens",{"$f":"_xlfn.XLOOKUP(O99,'Liste des DT-EIC-SITES'!D:D,'Liste des DT-EIC-SITES'!C:C)","v":"EIC Midi Pyrénées"}]
[null,null,"St-Germain-des-Fossés",null,null,null,null,null,null,null,null,"St-Césaire",null,null,"Brazey-en-Plaine",{"$f":"_xlfn.XLOOKUP(O100,'Liste des DT-EIC-SITES'!D:D,'Liste des DT-EIC-SITES'!C:C)","v":"EIC Bourgogne Franche Comté"}]
[null,null,"St-Gervais-les-Bains-Le Fayet",null,null,null,null,null,null,null,null,"St-Chély-d'Apcher",null,null,"Bréauté-Beuzeville",{"$f":"_xlfn.XLOOKUP(O101,'Liste des DT-EIC-SITES'!D:D,'Liste des DT-EIC-SITES'!C:C)","v":"EIC Normandie"}]
[null,null,"St-Jean-de-Maurienne-Arvan",null,null,null,null,null,null,null,null,"St-Christophe",null,null,"Breil-sur-Roya",{"$f":"_xlfn.XLOOKUP(O102,'Liste des DT-EIC-SITES'!D:D,'Liste des DT-EIC-SITES'!C:C)","v":"EIC Provence Alpes Côte d'Azur"}]
[null,null,"St-Just-St-Rambert",null,null,null,null,null,null,null,null,"St-Denis-Catus",null,null,"Bresles",{"$f":"_xlfn.XLOOKUP(O103,'Liste des DT-EIC-SITES'!D:D,'Liste des DT-EIC-SITES'!C:C)","v":"EIC Paris Nord"}]
[null,null,"St-Marcellin",null,null,null,null,null,null,null,null,"St-Denis-près-Martel",null,null,"Bressuire",{"$f":"_xlfn.XLOOKUP(O104,'Liste des DT-EIC-SITES'!D:D,'Liste des DT-EIC-SITES'!C:C)","v":"EIC Bretagne Pays de la Loire"}]
[null,null,"St-Michel-Valloire",null,null,null,null,null,null,null,null,"St-Gaudens",null,null,"Brest",{"$f":"_xlfn.XLOOKUP(O105,'Liste des DT-EIC-SITES'!D:D,'Liste des DT-EIC-SITES'!C:C)","v":"EIC Bretagne Pays de la Loire"}]
[null,null,"St-Priest",null,null,null,null,null,null,null,null,"St-Jean-Pla-de-Corts",null,null,"Bretenoux-Biars",{"$f":"_xlfn.XLOOKUP(O106,'Liste des DT-EIC-SITES'!D:D,'Liste des DT-EIC-SITES'!C:C)","v":"EIC Centre Limousin"}]
[null,null,"St-Quentin-Fallavier",null,null,null,null,null,null,null,null,"St-Jory",null,null,"Brétigny",{"$f":"_xlfn.XLOOKUP(O107,'Liste des DT-EIC-SITES'!D:D,'Liste des DT-EIC-SITES'!C:C)","v":"EIC Paris Rive Gauche"}]
[null,null,"St-Rambert d'Albon",null,null,null,null,null,null,null,null,"St-Sauveur-de-Peyre",null,null,"Briançon",{"$f":"_xlfn.XLOOKUP(O108,'Liste des DT-EIC-SITES'!D:D,'Liste des DT-EIC-SITES'!C:C)","v":"EIC Provence Alpes Côte d'Azur"}]
[null,null,"St-Rambert-d'Albon",null,null,null,null,null,null,null,null,"St-Sulpice",null,null,"Bricy-Boulay",{"$f":"_xlfn.XLOOKUP(O109,'Liste des DT-EIC-SITES'!D:D,'Liste des DT-EIC-SITES'!C:C)","v":"EIC Centre Limousin"}]
[null,null,"St-Romain-le-Puy",null,null,null,null,null,null,null,null,"Tarascon-sur-Ariège",null,null,"Brignais",{"$f":"_xlfn.XLOOKUP(O110,'Liste des DT-EIC-SITES'!D:D,'Liste des DT-EIC-SITES'!C:C)","v":"EIC Rhône Alpes Lyon"}]
[null,null,"St-Vallier-sur-Rhône",null,null,null,null,null,null,null,null,"Tarbes",null,null,"Brioude",{"$f":"_xlfn.XLOOKUP(O111,'Liste des DT-EIC-SITES'!D:D,'Liste des DT-EIC-SITES'!C:C)","v":"EIC Auvergne Nivernais"}]
[null,null,"Tassin",null,null,null,null,null,null,null,null,"Tessonnières",null,null,"Brive-la-Gaillarde",{"$f":"_xlfn.XLOOKUP(O112,'Liste des DT-EIC-SITES'!D:D,'Liste des DT-EIC-SITES'!C:C)","v":"EIC Centre Limousin"}]
[null,null,"Technicentre TGV de Lyon",null,null,null,null,null,null,null,null,"Toulouse-Matabiau",null,null,"Brou",{"$f":"_xlfn.XLOOKUP(O113,'Liste des DT-EIC-SITES'!D:D,'Liste des DT-EIC-SITES'!C:C)","v":"EIC Centre Limousin"}]
[null,null,"Thiers",null,null,null,null,null,null,null,null,"UPT Tarbes (ET Midi-Pyrénées)",null,null,"Bruges",{"$f":"_xlfn.XLOOKUP(O114,'Liste des DT-EIC-SITES'!D:D,'Liste des DT-EIC-SITES'!C:C)","v":"EIC Aquitaine Poitou Charentes"}]
[null,null,"Thonon-les-Bains",null,null,null,null,null,null,null,null,"Valence-d'Agen",null,null,"Bully-Grenay",{"$f":"_xlfn.XLOOKUP(O115,'Liste des DT-EIC-SITES'!D:D,'Liste des DT-EIC-SITES'!C:C)","v":"EIC Hauts de France"}]
[null,null,"Valence",null,null,null,null,null,null,null,null,"Vauvert",null,null,"Busigny",{"$f":"_xlfn.XLOOKUP(O116,'Liste des DT-EIC-SITES'!D:D,'Liste des DT-EIC-SITES'!C:C)","v":"EIC Hauts de France"}]
[null,null,"Veauche-St-Galmier",null,null,null,null,null,null,null,null,"Villefranche-de-Lauragais",null,null,"Buzançais",{"$f":"_xlfn.XLOOKUP(O117,'Liste des DT-EIC-SITES'!D:D,'Liste des DT-EIC-SITES'!C:C)","v":"EIC Centre Limousin"}]
[null,null,"Vénissieux",null,null,null,null,null,null,null,null,"Villefranche-Vernet-les-Bains",null,null,"Caen",{"$f":"_xlfn.XLOOKUP(O118,'Liste des DT-EIC-SITES'!D:D,'Liste des DT-EIC-SITES'!C:C)","v":"EIC Normandie"}]
[null,null,"Vénissieux-Sud",null,null,null,null,null,null,null,null,"Viviez-Decazeville",null,null,"Caffiers",{"$f":"_xlfn.XLOOKUP(O119,'Liste des DT-EIC-SITES'!D:D,'Liste des DT-EIC-SITES'!C:C)","v":"EIC Hauts de France"}]
[null,null,"Vichy",null,null,null,null,null,null,null,null,null,null,null,"Cahors",{"$f":"_xlfn.XLOOKUP(O120,'Liste des DT-EIC-SITES'!D:D,'Liste des DT-EIC-SITES'!C:C)","v":"EIC Midi Pyrénées"}]
[null,null,"Vic-le-Comte",null,null,null,null,null,null,null,null,null,null,null,"Calais-Fréthun",{"$f":"_xlfn.XLOOKUP(O121,'Liste des DT-EIC-SITES'!D:D,'Liste des DT-EIC-SITES'!C:C)","v":"EIC Hauts de France"}]
[null,null,"Villars-les-Dombes",null,null,null,null,null,null,null,null,null,null,null,"Calais-Ville",{"$f":"_xlfn.XLOOKUP(O122,'Liste des DT-EIC-SITES'!D:D,'Liste des DT-EIC-SITES'!C:C)","v":"EIC Hauts de France"}]
[null,null,"Villefranche-sur-Saône",null,null,null,null,null,null,null,null,null,null,null,"Cambrai",{"$f":"_xlfn.XLOOKUP(O123,'Liste des DT-EIC-SITES'!D:D,'Liste des DT-EIC-SITES'!C:C)","v":"EIC Hauts de France"}]
[null,null,"Viry",null,null,null,null,null,null,null,null,null,null,null,"Cannes-Marchandises",{"$f":"_xlfn.XLOOKUP(O124,'Liste des DT-EIC-SITES'!D:D,'Liste des DT-EIC-SITES'!C:C)","v":"EIC Provence Alpes Côte d'Azur"}]
[null,null,"Volvic",null,null,null,null,null,null,null,null,null,null,null,"Capdenac",{"$f":"_xlfn.XLOOKUP(O125,'Liste des DT-EIC-SITES'!D:D,'Liste des DT-EIC-SITES'!C:C)","v":"EIC Midi Pyrénées"}]
[null,null,null,null,null,null,null,null,null,null,null,null,null,null,"Carbonne",{"$f":"_xlfn.XLOOKUP(O126,'Liste des DT-EIC-SITES'!D:D,'Liste des DT-EIC-SITES'!C:C)","v":"EIC Midi Pyrénées"}]
[null,null,null,null,null,null,null,null,null,null,null,null,null,null,"Carcassonne",{"$f":"_xlfn.XLOOKUP(O127,'Liste des DT-EIC-SITES'!D:D,'Liste des DT-EIC-SITES'!C:C)","v":"EIC Languedoc Roussillon"}]
[null,null,null,null,null,null,null,null,null,null,null,null,null,null,"Carmaux",{"$f":"_xlfn.XLOOKUP(O128,'Liste des DT-EIC-SITES'!D:D,'Liste des DT-EIC-SITES'!C:C)","v":"EIC Midi Pyrénées"}]
[null,null,null,null,null,null,null,null,null,null,null,null,null,null,"Carnoules",{"$f":"_xlfn.XLOOKUP(O129,'Liste des DT-EIC-SITES'!D:D,'Liste des DT-EIC-SITES'!C:C)","v":"EIC Provence Alpes Côte d'Azur"}]
[null,null,null,null,null,null,null,null,null,null,null,null,null,null,"Cases-de-Pène",{"$f":"_xlfn.XLOOKUP(O130,'Liste des DT-EIC-SITES'!D:D,'Liste des DT-EIC-SITES'!C:C)","v":"EIC Languedoc Roussillon"}]
[null,null,null,null,null,null,null,null,null,null,null,null,null,null,"Castelnaudary",{"$f":"_xlfn.XLOOKUP(O131,'Liste des DT-EIC-SITES'!D:D,'Liste des DT-EIC-SITES'!C:C)","v":"EIC Midi Pyrénées"}]
[null,null,null,null,null,null,null,null,null,null,null,null,null,null,"Castelnau-d'Estrétefonds",{"$f":"_xlfn.XLOOKUP(O132,'Liste des DT-EIC-SITES'!D:D,'Liste des DT-EIC-SITES'!C:C)","v":"EIC Midi Pyrénées"}]
[null,null,null,null,null,null,null,null,null,null,null,null,null,null,"Castelsarrasin",{"$f":"_xlfn.XLOOKUP(O133,'Liste des DT-EIC-SITES'!D:D,'Liste des DT-EIC-SITES'!C:C)","v":"EIC Midi Pyrénées"}]
[null,null,null,null,null,null,null,null,null,null,null,null,null,null,"Castres",{"$f":"_xlfn.XLOOKUP(O134,'Liste des DT-EIC-SITES'!D:D,'Liste des DT-EIC-SITES'!C:C)","v":"EIC Midi Pyrénées"}]
[null,null,null,null,null,null,null,null,null,null,null,null,null,null,"Caussade",{"$f":"_xlfn.XLOOKUP(O135,'Liste des DT-EIC-SITES'!D:D,'Liste des DT-EIC-SITES'!C:C)","v":"EIC Midi Pyrénées"}]
[null,null,null,null,null,null,null,null,null,null,null,null,null,null,"Cavaillon",{"$f":"_xlfn.XLOOKUP(O136,'Liste des DT-EIC-SITES'!D:D,'Liste des DT-EIC-SITES'!C:C)","v":"EIC Provence Alpes Côte d'Azur"}]
[null,null,null,null,null,null,null,null,null,null,null,null,null,null,"Ceilhes-Roqueredonde",{"$f":"_xlfn.XLOOKUP(O137,'Liste des DT-EIC-SITES'!D:D,'Liste des DT-EIC-SITES'!C:C)","v":"EIC Languedoc Roussillon"}]
[null,null,null,null,null,null,null,null,null,null,null,null,null,null,"Cerbère",{"$f":"_xlfn.XLOOKUP(O138,'Liste des DT-EIC-SITES'!D:D,'Liste des DT-EIC-SITES'!C:C)","v":"EIC Languedoc Roussillon"}]
[null,null,null,null,null,null,null,null,null,null,null,null,null,null,"Cercy-la-Tour",{"$f":"_xlfn.XLOOKUP(O139,'Liste des DT-EIC-SITES'!D:D,'Liste des DT-EIC-SITES'!C:C)","v":"EIC Auvergne Nivernais"}]
[null,null,null,null,null,null,null,null,null,null,null,null,null,null,"Cergy-le-Haut",{"$f":"_xlfn.XLOOKUP(O140,'Liste des DT-EIC-SITES'!D:D,'Liste des DT-EIC-SITES'!C:C)","v":"EIC Paris Est Ouest Francilien"}]
[null,null,null,null,null,null,null,null,null,null,null,null,null,null,"Cergy-St-Christophe",{"$f":"_xlfn.XLOOKUP(O141,'Liste des DT-EIC-SITES'!D:D,'Liste des DT-EIC-SITES'!C:C)","v":"EIC Paris Est Ouest Francilien"}]
[null,null,null,null,null,null,null,null,null,null,null,null,null,null,"Chagny",{"$f":"_xlfn.XLOOKUP(O142,'Liste des DT-EIC-SITES'!D:D,'Liste des DT-EIC-SITES'!C:C)","v":"EIC Bourgogne Franche Comté"}]
[null,null,null,null,null,null,null,null,null,null,null,null,null,null,"Chalandray",{"$f":"_xlfn.XLOOKUP(O143,'Liste des DT-EIC-SITES'!D:D,'Liste des DT-EIC-SITES'!C:C)","v":"EIC Aquitaine Poitou Charentes"}]
[null,null,null,null,null,null,null,null,null,null,null,null,null,null,"Châlons-en-Champagne",{"$f":"_xlfn.XLOOKUP(O144,'Liste des DT-EIC-SITES'!D:D,'Liste des DT-EIC-SITES'!C:C)","v":"EIC Lorraine Champagne Ardenne"}]
[null,null,null,null,null,null,null,null,null,null,null,null,null,null,"Chalon-sur-Saône",{"$f":"_xlfn.XLOOKUP(O145,'Liste des DT-EIC-SITES'!D:D,'Liste des DT-EIC-SITES'!C:C)","v":"EIC Bourgogne Franche Comté"}]
[null,null,null,null,null,null,null,null,null,null,null,null,null,null,"Chambéry-Challes-les-Eaux",{"$f":"_xlfn.XLOOKUP(O146,'Liste des DT-EIC-SITES'!D:D,'Liste des DT-EIC-SITES'!C:C)","v":"EIC Alpes"}]
[null,null,null,null,null,null,null,null,null,null,null,null,null,null,"Chamborigaud",{"$f":"_xlfn.XLOOKUP(O147,'Liste des DT-EIC-SITES'!D:D,'Liste des DT-EIC-SITES'!C:C)","v":"EIC Languedoc Roussillon"}]
[null,null,null,null,null,null,null,null,null,null,null,null,null,null,"Champagné",{"$f":"_xlfn.XLOOKUP(O148,'Liste des DT-EIC-SITES'!D:D,'Liste des DT-EIC-SITES'!C:C)","v":"EIC Bretagne Pays de la Loire"}]
[null,null,null,null,null,null,null,null,null,null,null,null,null,null,"Champigneulles",{"$f":"_xlfn.XLOOKUP(O149,'Liste des DT-EIC-SITES'!D:D,'Liste des DT-EIC-SITES'!C:C)","v":"EIC Lorraine Champagne Ardenne"}]
[null,null,null,null,null,null,null,null,null,null,null,null,null,null,"Chanac",{"$f":"_xlfn.XLOOKUP(O150,'Liste des DT-EIC-SITES'!D:D,'Liste des DT-EIC-SITES'!C:C)","v":"EIC Languedoc Roussillon"}]
[null,null,null,null,null,null,null,null,null,null,null,null,null,null,"Changis-St-Jean",{"$f":"_xlfn.XLOOKUP(O151,'Liste des DT-EIC-SITES'!D:D,'Liste des DT-EIC-SITES'!C:C)","v":"EIC Paris Est Ouest Francilien"}]
[null,null,null,null,null,null,null,null,null,null,null,null,null,null,"Chantenay",{"$f":"_xlfn.XLOOKUP(O152,'Liste des DT-EIC-SITES'!D:D,'Liste des DT-EIC-SITES'!C:C)","v":"EIC Bretagne Pays de la Loire"}]
[null,null,null,null,null,null,null,null,null,null,null,null,null,null,"Charleville-Mézières",{"$f":"_xlfn.XLOOKUP(O153,'Liste des DT-EIC-SITES'!D:D,'Liste des DT-EIC-SITES'!C:C)","v":"EIC Lorraine Champagne Ardenne"}]
[null,null,null,null,null,null,null,null,null,null,null,null,null,null,"Charmant",{"$f":"_xlfn.XLOOKUP(O154,'Liste des DT-EIC-SITES'!D:D,'Liste des DT-EIC-SITES'!C:C)","v":"EIC Aquitaine Poitou Charentes"}]
[null,null,null,null,null,null,null,null,null,null,null,null,null,null,"Chartres",{"$f":"_xlfn.XLOOKUP(O155,'Liste des DT-EIC-SITES'!D:D,'Liste des DT-EIC-SITES'!C:C)","v":"EIC Centre Limousin"}]
[null,null,null,null,null,null,null,null,null,null,null,null,null,null,"Chasseneuil (Vienne)",{"$f":"_xlfn.XLOOKUP(O156,'Liste des DT-EIC-SITES'!D:D,'Liste des DT-EIC-SITES'!C:C)","v":"EIC Aquitaine Poitou Charentes"}]
[null,null,null,null,null,null,null,null,null,null,null,null,null,null,"Chasse-sur-Rhône",{"$f":"_xlfn.XLOOKUP(O157,'Liste des DT-EIC-SITES'!D:D,'Liste des DT-EIC-SITES'!C:C)","v":"EIC Rhône Alpes Lyon"}]
[null,null,null,null,null,null,null,null,null,null,null,null,null,null,"Château-Arnoux-St-Auban",{"$f":"_xlfn.XLOOKUP(O158,'Liste des DT-EIC-SITES'!D:D,'Liste des DT-EIC-SITES'!C:C)","v":"EIC Provence Alpes Côte d'Azur"}]
[null,null,null,null,null,null,null,null,null,null,null,null,null,null,"Châteaubriant",{"$f":"_xlfn.XLOOKUP(O159,'Liste des DT-EIC-SITES'!D:D,'Liste des DT-EIC-SITES'!C:C)","v":"EIC Bretagne Pays de la Loire"}]
[null,null,null,null,null,null,null,null,null,null,null,null,null,null,"Châteaudun",{"$f":"_xlfn.XLOOKUP(O160,'Liste des DT-EIC-SITES'!D:D,'Liste des DT-EIC-SITES'!C:C)","v":"EIC Centre Limousin"}]
[null,null,null,null,null,null,null,null,null,null,null,null,null,null,"Châteauneuf-sur-Charente",{"$f":"_xlfn.XLOOKUP(O161,'Liste des DT-EIC-SITES'!D:D,'Liste des DT-EIC-SITES'!C:C)","v":"EIC Aquitaine Poitou Charentes"}]
[null,null,null,null,null,null,null,null,null,null,null,null,null,null,"Château-Renault",{"$f":"_xlfn.XLOOKUP(O162,'Liste des DT-EIC-SITES'!D:D,'Liste des DT-EIC-SITES'!C:C)","v":"EIC Centre Limousin"}]
[null,null,null,null,null,null,null,null,null,null,null,null,null,null,"Châteauroux",{"$f":"_xlfn.XLOOKUP(O163,'Liste des DT-EIC-SITES'!D:D,'Liste des DT-EIC-SITES'!C:C)","v":"EIC Centre Limousin"}]
[null,null,null,null,null,null,null,null,null,null,null,null,null,null,"Château-Thierry",{"$f":"_xlfn.XLOOKUP(O164,'Liste des DT-EIC-SITES'!D:D,'Liste des DT-EIC-SITES'!C:C)","v":"EIC Paris Est Ouest Francilien"}]
[null,null,null,null,null,null,null,null,null,null,null,null,null,null,"Châtelaudren-Plouagat",{"$f":"_xlfn.XLOOKUP(O165,'Liste des DT-EIC-SITES'!D:D,'Liste des DT-EIC-SITES'!C:C)","v":"EIC Bretagne Pays de la Loire"}]
[null,null,null,null,null,null,null,null,null,null,null,null,null,null,"Châtellerault",{"$f":"_xlfn.XLOOKUP(O166,'Liste des DT-EIC-SITES'!D:D,'Liste des DT-EIC-SITES'!C:C)","v":"EIC Aquitaine Poitou Charentes"}]
[null,null,null,null,null,null,null,null,null,null,null,null,null,null,"Chaulnes",{"$f":"_xlfn.XLOOKUP(O167,'Liste des DT-EIC-SITES'!D:D,'Liste des DT-EIC-SITES'!C:C)","v":"EIC Hauts de France"}]
[null,null,null,null,null,null,null,null,null,null,null,null,null,null,"Chaumont",{"$f":"_xlfn.XLOOKUP(O168,'Liste des DT-EIC-SITES'!D:D,'Liste des DT-EIC-SITES'!C:C)","v":"EIC Lorraine Champagne Ardenne"}]
[null,null,null,null,null,null,null,null,null,null,null,null,null,null,"Chauny",{"$f":"_xlfn.XLOOKUP(O169,'Liste des DT-EIC-SITES'!D:D,'Liste des DT-EIC-SITES'!C:C)","v":"EIC Hauts de France"}]
[null,null,null,null,null,null,null,null,null,null,null,null,null,null,"Cherbourg",{"$f":"_xlfn.XLOOKUP(O170,'Liste des DT-EIC-SITES'!D:D,'Liste des DT-EIC-SITES'!C:C)","v":"EIC Normandie"}]
[null,null,null,null,null,null,null,null,null,null,null,null,null,null,"Cholet",{"$f":"_xlfn.XLOOKUP(O171,'Liste des DT-EIC-SITES'!D:D,'Liste des DT-EIC-SITES'!C:C)","v":"EIC Bretagne Pays de la Loire"}]
[null,null,null,null,null,null,null,null,null,null,null,null,null,null,"Cintegabelle",{"$f":"_xlfn.XLOOKUP(O172,'Liste des DT-EIC-SITES'!D:D,'Liste des DT-EIC-SITES'!C:C)","v":"EIC Midi Pyrénées"}]
[null,null,null,null,null,null,null,null,null,null,null,null,null,null,"Civaux",{"$f":"_xlfn.XLOOKUP(O173,'Liste des DT-EIC-SITES'!D:D,'Liste des DT-EIC-SITES'!C:C)","v":"EIC Aquitaine Poitou Charentes"}]
[null,null,null,null,null,null,null,null,null,null,null,null,null,null,"Clamart",{"$f":"_xlfn.XLOOKUP(O174,'Liste des DT-EIC-SITES'!D:D,'Liste des DT-EIC-SITES'!C:C)","v":"EIC Paris Rive Gauche"}]
[null,null,null,null,null,null,null,null,null,null,null,null,null,null,"Clamecy",{"$f":"_xlfn.XLOOKUP(O175,'Liste des DT-EIC-SITES'!D:D,'Liste des DT-EIC-SITES'!C:C)","v":"EIC Paris Sud Est"}]
[null,null,null,null,null,null,null,null,null,null,null,null,null,null,"Clelles-Mens",{"$f":"_xlfn.XLOOKUP(O176,'Liste des DT-EIC-SITES'!D:D,'Liste des DT-EIC-SITES'!C:C)","v":"EIC Alpes"}]
[null,null,null,null,null,null,null,null,null,null,null,null,null,null,"Clermont-Ferrand",{"$f":"_xlfn.XLOOKUP(O177,'Liste des DT-EIC-SITES'!D:D,'Liste des DT-EIC-SITES'!C:C)","v":"EIC Auvergne Nivernais"}]
[null,null,null,null,null,null,null,null,null,null,null,null,null,null,"Clermont-les-Fermes",{"$f":"_xlfn.XLOOKUP(O178,'Liste des DT-EIC-SITES'!D:D,'Liste des DT-EIC-SITES'!C:C)","v":"EIC Hauts de France"}]
[null,null,null,null,null,null,null,null,null,null,null,null,null,null,"Clermont-Les-Gravanches-Triage",{"$f":"_xlfn.XLOOKUP(O179,'Liste des DT-EIC-SITES'!D:D,'Liste des DT-EIC-SITES'!C:C)","v":"EIC Auvergne Nivernais"}]
[null,null,null,null,null,null,null,null,null,null,null,null,null,null,"Cognac",{"$f":"_xlfn.XLOOKUP(O180,'Liste des DT-EIC-SITES'!D:D,'Liste des DT-EIC-SITES'!C:C)","v":"EIC Aquitaine Poitou Charentes"}]
[null,null,null,null,null,null,null,null,null,null,null,null,null,null,"Collonges-Fontaines",{"$f":"_xlfn.XLOOKUP(O181,'Liste des DT-EIC-SITES'!D:D,'Liste des DT-EIC-SITES'!C:C)","v":"EIC Rhône Alpes Lyon"}]
[null,null,null,null,null,null,null,null,null,null,null,null,null,null,"Colmar",{"$f":"_xlfn.XLOOKUP(O182,'Liste des DT-EIC-SITES'!D:D,'Liste des DT-EIC-SITES'!C:C)","v":"EIC Alsace"}]
[null,null,null,null,null,null,null,null,null,null,null,null,null,null,"Colombiers",{"$f":"_xlfn.XLOOKUP(O183,'Liste des DT-EIC-SITES'!D:D,'Liste des DT-EIC-SITES'!C:C)","v":"EIC Languedoc Roussillon"}]
[null,null,null,null,null,null,null,null,null,null,null,null,null,null,"Colomiers",{"$f":"_xlfn.XLOOKUP(O184,'Liste des DT-EIC-SITES'!D:D,'Liste des DT-EIC-SITES'!C:C)","v":"EIC Midi Pyrénées"}]
[null,null,null,null,null,null,null,null,null,null,null,null,null,null,"Combs-la-Ville-Quincy",{"$f":"_xlfn.XLOOKUP(O185,'Liste des DT-EIC-SITES'!D:D,'Liste des DT-EIC-SITES'!C:C)","v":"EIC Paris Sud Est"}]
[null,null,null,null,null,null,null,null,null,null,null,null,null,null,"Commentry",{"$f":"_xlfn.XLOOKUP(O186,'Liste des DT-EIC-SITES'!D:D,'Liste des DT-EIC-SITES'!C:C)","v":"EIC Auvergne Nivernais"}]
[null,null,null,null,null,null,null,null,null,null,null,null,null,null,"Compiègne",{"$f":"_xlfn.XLOOKUP(O187,'Liste des DT-EIC-SITES'!D:D,'Liste des DT-EIC-SITES'!C:C)","v":"EIC Paris Nord"}]
[null,null,null,null,null,null,null,null,null,null,null,null,null,null,"Conchil-le-Temple",{"$f":"_xlfn.XLOOKUP(O188,'Liste des DT-EIC-SITES'!D:D,'Liste des DT-EIC-SITES'!C:C)","v":"EIC Hauts de France"}]
[null,null,null,null,null,null,null,null,null,null,null,null,null,null,"Condat-le-Lardin",{"$f":"_xlfn.XLOOKUP(O189,'Liste des DT-EIC-SITES'!D:D,'Liste des DT-EIC-SITES'!C:C)","v":"EIC Aquitaine Poitou Charentes"}]
[null,null,null,null,null,null,null,null,null,null,null,null,null,null,"Condrieu",{"$f":"_xlfn.XLOOKUP(O190,'Liste des DT-EIC-SITES'!D:D,'Liste des DT-EIC-SITES'!C:C)","v":"EIC Rhône Alpes Lyon"}]
[null,null,null,null,null,null,null,null,null,null,null,null,null,null,"Conflans-Jarny",{"$f":"_xlfn.XLOOKUP(O191,'Liste des DT-EIC-SITES'!D:D,'Liste des DT-EIC-SITES'!C:C)","v":"EIC Lorraine Champagne Ardenne"}]
[null,null,null,null,null,null,null,null,null,null,null,null,null,null,"Connerré-Beillé",{"$f":"_xlfn.XLOOKUP(O192,'Liste des DT-EIC-SITES'!D:D,'Liste des DT-EIC-SITES'!C:C)","v":"EIC Bretagne Pays de la Loire"}]
[null,null,null,null,null,null,null,null,null,null,null,null,null,null,"Corbehem",{"$f":"_xlfn.XLOOKUP(O193,'Liste des DT-EIC-SITES'!D:D,'Liste des DT-EIC-SITES'!C:C)","v":"EIC Hauts de France"}]
[null,null,null,null,null,null,null,null,null,null,null,null,null,null,"Corbeil-Essonnes",{"$f":"_xlfn.XLOOKUP(O194,'Liste des DT-EIC-SITES'!D:D,'Liste des DT-EIC-SITES'!C:C)","v":"EIC Paris Sud Est"}]
[null,null,null,null,null,null,null,null,null,null,null,null,null,null,"Corbigny",{"$f":"_xlfn.XLOOKUP(O195,'Liste des DT-EIC-SITES'!D:D,'Liste des DT-EIC-SITES'!C:C)","v":"EIC Auvergne Nivernais"}]
[null,null,null,null,null,null,null,null,null,null,null,null,null,null,"Cosne-sur-Loire",{"$f":"_xlfn.XLOOKUP(O196,'Liste des DT-EIC-SITES'!D:D,'Liste des DT-EIC-SITES'!C:C)","v":"EIC Auvergne Nivernais"}]
[null,null,null,null,null,null,null,null,null,null,null,null,null,null,"Coudekerque-Branche",{"$f":"_xlfn.XLOOKUP(O197,'Liste des DT-EIC-SITES'!D:D,'Liste des DT-EIC-SITES'!C:C)","v":"EIC Hauts de France"}]
[null,null,null,null,null,null,null,null,null,null,null,null,null,null,"Couhé-Vérac",{"$f":"_xlfn.XLOOKUP(O198,'Liste des DT-EIC-SITES'!D:D,'Liste des DT-EIC-SITES'!C:C)","v":"EIC Aquitaine Poitou Charentes"}]
[null,null,null,null,null,null,null,null,null,null,null,null,null,null,"Coulombiers",{"$f":"_xlfn.XLOOKUP(O199,'Liste des DT-EIC-SITES'!D:D,'Liste des DT-EIC-SITES'!C:C)","v":"EIC Aquitaine Poitou Charentes"}]
[null,null,null,null,null,null,null,null,null,null,null,null,null,null,"Coutras",{"$f":"_xlfn.XLOOKUP(O200,'Liste des DT-EIC-SITES'!D:D,'Liste des DT-EIC-SITES'!C:C)","v":"EIC Aquitaine Poitou Charentes"}]
[null,null,null,null,null,null,null,null,null,null,null,null,null,null,"Creil",{"$f":"_xlfn.XLOOKUP(O201,'Liste des DT-EIC-SITES'!D:D,'Liste des DT-EIC-SITES'!C:C)","v":"EIC Paris Nord"}]
[null,null,null,null,null,null,null,null,null,null,null,null,null,null,"Crépy-en-Valois",{"$f":"_xlfn.XLOOKUP(O202,'Liste des DT-EIC-SITES'!D:D,'Liste des DT-EIC-SITES'!C:C)","v":"EIC Paris Nord"}]
[null,null,null,null,null,null,null,null,null,null,null,null,null,null,"Crest",{"$f":"_xlfn.XLOOKUP(O203,'Liste des DT-EIC-SITES'!D:D,'Liste des DT-EIC-SITES'!C:C)","v":"EIC Rhône Alpes Lyon"}]
[null,null,null,null,null,null,null,null,null,null,null,null,null,null,"Culmont-Chalindrey",{"$f":"_xlfn.XLOOKUP(O204,'Liste des DT-EIC-SITES'!D:D,'Liste des DT-EIC-SITES'!C:C)","v":"EIC Lorraine Champagne Ardenne"}]
[null,null,null,null,null,null,null,null,null,null,null,null,null,null,"Culoz",{"$f":"_xlfn.XLOOKUP(O205,'Liste des DT-EIC-SITES'!D:D,'Liste des DT-EIC-SITES'!C:C)","v":"EIC Alpes"}]
[null,null,null,null,null,null,null,null,null,null,null,null,null,null,"Cusset",{"$f":"_xlfn.XLOOKUP(O206,'Liste des DT-EIC-SITES'!D:D,'Liste des DT-EIC-SITES'!C:C)","v":"EIC Auvergne Nivernais"}]
[null,null,null,null,null,null,null,null,null,null,null,null,null,null,"Damiatte-St-Paul",{"$f":"_xlfn.XLOOKUP(O207,'Liste des DT-EIC-SITES'!D:D,'Liste des DT-EIC-SITES'!C:C)","v":"EIC Midi Pyrénées"}]
[null,null,null,null,null,null,null,null,null,null,null,null,null,null,"Dammartin-Juilly-St-Mard",{"$f":"_xlfn.XLOOKUP(O208,'Liste des DT-EIC-SITES'!D:D,'Liste des DT-EIC-SITES'!C:C)","v":"EIC Paris Nord"}]
[null,null,null,null,null,null,null,null,null,null,null,null,null,null,"Dannes-Camiers",{"$f":"_xlfn.XLOOKUP(O209,'Liste des DT-EIC-SITES'!D:D,'Liste des DT-EIC-SITES'!C:C)","v":"EIC Hauts de France"}]
[null,null,null,null,null,null,null,null,null,null,null,null,null,null,"Daours",{"$f":"_xlfn.XLOOKUP(O210,'Liste des DT-EIC-SITES'!D:D,'Liste des DT-EIC-SITES'!C:C)","v":"EIC Hauts de France"}]
[null,null,null,null,null,null,null,null,null,null,null,null,null,null,"Dax",{"$f":"_xlfn.XLOOKUP(O211,'Liste des DT-EIC-SITES'!D:D,'Liste des DT-EIC-SITES'!C:C)","v":"EIC Aquitaine Poitou Charentes"}]
[null,null,null,null,null,null,null,null,null,null,null,null,null,null,"Dercy-Mortiers",{"$f":"_xlfn.XLOOKUP(O212,'Liste des DT-EIC-SITES'!D:D,'Liste des DT-EIC-SITES'!C:C)","v":"EIC Hauts de France"}]
[null,null,null,null,null,null,null,null,null,null,null,null,null,null,"Desvres",{"$f":"_xlfn.XLOOKUP(O213,'Liste des DT-EIC-SITES'!D:D,'Liste des DT-EIC-SITES'!C:C)","v":"EIC Hauts de France"}]
[null,null,null,null,null,null,null,null,null,null,null,null,null,null,"Die",{"$f":"_xlfn.XLOOKUP(O214,'Liste des DT-EIC-SITES'!D:D,'Liste des DT-EIC-SITES'!C:C)","v":"EIC Rhône Alpes Lyon"}]
[null,null,null,null,null,null,null,null,null,null,null,null,null,null,"Dieppe",{"$f":"_xlfn.XLOOKUP(O215,'Liste des DT-EIC-SITES'!D:D,'Liste des DT-EIC-SITES'!C:C)","v":"EIC Normandie"}]
[null,null,null,null,null,null,null,null,null,null,null,null,null,null,"Dieupentale",{"$f":"_xlfn.XLOOKUP(O216,'Liste des DT-EIC-SITES'!D:D,'Liste des DT-EIC-SITES'!C:C)","v":"EIC Midi Pyrénées"}]
[null,null,null,null,null,null,null,null,null,null,null,null,null,null,"Digoin",{"$f":"_xlfn.XLOOKUP(O217,'Liste des DT-EIC-SITES'!D:D,'Liste des DT-EIC-SITES'!C:C)","v":"EIC Bourgogne Franche Comté"}]
[null,null,null,null,null,null,null,null,null,null,null,null,null,null,"Dijon-Porte-d'Ouche-Perrigny",{"$f":"_xlfn.XLOOKUP(O218,'Liste des DT-EIC-SITES'!D:D,'Liste des DT-EIC-SITES'!C:C)","v":"EIC Bourgogne Franche Comté"}]
[null,null,null,null,null,null,null,null,null,null,null,null,null,null,"Dijon-Porte-Neuve",{"$f":"_xlfn.XLOOKUP(O219,'Liste des DT-EIC-SITES'!D:D,'Liste des DT-EIC-SITES'!C:C)","v":"EIC Bourgogne Franche Comté"}]
[null,null,null,null,null,null,null,null,null,null,null,null,null,null,"Dijon-Ville",{"$f":"_xlfn.XLOOKUP(O220,'Liste des DT-EIC-SITES'!D:D,'Liste des DT-EIC-SITES'!C:C)","v":"EIC Bourgogne Franche Comté"}]
[null,null,null,null,null,null,null,null,null,null,null,null,null,null,"Dole",{"$f":"_xlfn.XLOOKUP(O221,'Liste des DT-EIC-SITES'!D:D,'Liste des DT-EIC-SITES'!C:C)","v":"EIC Bourgogne Franche Comté"}]
[null,null,null,null,null,null,null,null,null,null,null,null,null,null,"Dompierre-Sept-Fons",{"$f":"_xlfn.XLOOKUP(O222,'Liste des DT-EIC-SITES'!D:D,'Liste des DT-EIC-SITES'!C:C)","v":"EIC Auvergne Nivernais"}]
[null,null,null,null,null,null,null,null,null,null,null,null,null,null,"Donges-Bonne Nouvelle",{"$f":"_xlfn.XLOOKUP(O223,'Liste des DT-EIC-SITES'!D:D,'Liste des DT-EIC-SITES'!C:C)","v":"EIC Bretagne Pays de la Loire"}]
[null,null,null,null,null,null,null,null,null,null,null,null,null,null,"Douai",{"$f":"_xlfn.XLOOKUP(O224,'Liste des DT-EIC-SITES'!D:D,'Liste des DT-EIC-SITES'!C:C)","v":"EIC Hauts de France"}]
[null,null,null,null,null,null,null,null,null,null,null,null,null,null,"Dourdan",{"$f":"_xlfn.XLOOKUP(O225,'Liste des DT-EIC-SITES'!D:D,'Liste des DT-EIC-SITES'!C:C)","v":"EIC Paris Rive Gauche"}]
[null,null,null,null,null,null,null,null,null,null,null,null,null,null,"Dreux",{"$f":"_xlfn.XLOOKUP(O226,'Liste des DT-EIC-SITES'!D:D,'Liste des DT-EIC-SITES'!C:C)","v":"EIC Paris Rive Gauche"}]
[null,null,null,null,null,null,null,null,null,null,null,null,null,null,"Dunkerque",{"$f":"_xlfn.XLOOKUP(O227,'Liste des DT-EIC-SITES'!D:D,'Liste des DT-EIC-SITES'!C:C)","v":"EIC Hauts de France"}]
[null,null,null,null,null,null,null,null,null,null,null,null,null,null,"EIV de Bretenoux-Biars",{"$f":"_xlfn.XLOOKUP(O228,'Liste des DT-EIC-SITES'!D:D,'Liste des DT-EIC-SITES'!C:C)","v":"EIC Centre Limousin"}]
[null,null,null,null,null,null,null,null,null,null,null,null,null,null,"Elbeuf-St-Aubin",{"$f":"_xlfn.XLOOKUP(O229,'Liste des DT-EIC-SITES'!D:D,'Liste des DT-EIC-SITES'!C:C)","v":"EIC Normandie"}]
[null,null,null,null,null,null,null,null,null,null,null,null,null,null,"Embrun",{"$f":"_xlfn.XLOOKUP(O230,'Liste des DT-EIC-SITES'!D:D,'Liste des DT-EIC-SITES'!C:C)","v":"EIC Provence Alpes Côte d'Azur"}]
[null,null,null,null,null,null,null,null,null,null,null,null,null,null,"Émerainville-Pontault-Combault",{"$f":"_xlfn.XLOOKUP(O231,'Liste des DT-EIC-SITES'!D:D,'Liste des DT-EIC-SITES'!C:C)","v":"EIC Paris Est Ouest Francilien"}]
[null,null,null,null,null,null,null,null,null,null,null,null,null,null,"Epernay",{"$f":"_xlfn.XLOOKUP(O232,'Liste des DT-EIC-SITES'!D:D,'Liste des DT-EIC-SITES'!C:C)","v":"EIC Lorraine Champagne Ardenne"}]
[null,null,null,null,null,null,null,null,null,null,null,null,null,null,"Épierre-St-Léger",{"$f":"_xlfn.XLOOKUP(O233,'Liste des DT-EIC-SITES'!D:D,'Liste des DT-EIC-SITES'!C:C)","v":"EIC Alpes"}]
[null,null,null,null,null,null,null,null,null,null,null,null,null,null,"Épinal",{"$f":"_xlfn.XLOOKUP(O234,'Liste des DT-EIC-SITES'!D:D,'Liste des DT-EIC-SITES'!C:C)","v":"EIC Lorraine Champagne Ardenne"}]
[null,null,null,null,null,null,null,null,null,null,null,null,null,null,"Épinay-Villetaneuse",{"$f":"_xlfn.XLOOKUP(O235,'Liste des DT-EIC-SITES'!D:D,'Liste des DT-EIC-SITES'!C:C)","v":"EIC Paris Nord"}]
[null,null,null,null,null,null,null,null,null,null,null,null,null,null,"Épluches",{"$f":"_xlfn.XLOOKUP(O236,'Liste des DT-EIC-SITES'!D:D,'Liste des DT-EIC-SITES'!C:C)","v":"EIC Paris Nord"}]
[null,null,null,null,null,null,null,null,null,null,null,null,null,null,"Ermont-Eaubonne",{"$f":"_xlfn.XLOOKUP(O237,'Liste des DT-EIC-SITES'!D:D,'Liste des DT-EIC-SITES'!C:C)","v":"EIC Paris Nord"}]
[null,null,null,null,null,null,null,null,null,null,null,null,null,null,"Escalquens",{"$f":"_xlfn.XLOOKUP(O238,'Liste des DT-EIC-SITES'!D:D,'Liste des DT-EIC-SITES'!C:C)","v":"EIC Midi Pyrénées"}]
[null,null,null,null,null,null,null,null,null,null,null,null,null,null,"Estrées-St-Denis",{"$f":"_xlfn.XLOOKUP(O239,'Liste des DT-EIC-SITES'!D:D,'Liste des DT-EIC-SITES'!C:C)","v":"EIC Hauts de France"}]
[null,null,null,null,null,null,null,null,null,null,null,null,null,null,"ET Lille UPT Lens",{"$f":"_xlfn.XLOOKUP(O240,'Liste des DT-EIC-SITES'!D:D,'Liste des DT-EIC-SITES'!C:C)","v":"EIC Hauts de France"}]
[null,null,null,null,null,null,null,null,null,null,null,null,null,null,"ET Lyon-Mouche UPT Portes",{"$f":"_xlfn.XLOOKUP(O241,'Liste des DT-EIC-SITES'!D:D,'Liste des DT-EIC-SITES'!C:C)","v":"EIC Rhône Alpes Lyon"}]
[null,null,null,null,null,null,null,null,null,null,null,null,null,null,"Étampes",{"$f":"_xlfn.XLOOKUP(O242,'Liste des DT-EIC-SITES'!D:D,'Liste des DT-EIC-SITES'!C:C)","v":"EIC Paris Rive Gauche"}]
[null,null,null,null,null,null,null,null,null,null,null,null,null,null,"Étang",{"$f":"_xlfn.XLOOKUP(O243,'Liste des DT-EIC-SITES'!D:D,'Liste des DT-EIC-SITES'!C:C)","v":"EIC Bourgogne Franche Comté"}]
[null,null,null,null,null,null,null,null,null,null,null,null,null,null,"Étaples-Le Touquet",{"$f":"_xlfn.XLOOKUP(O244,'Liste des DT-EIC-SITES'!D:D,'Liste des DT-EIC-SITES'!C:C)","v":"EIC Hauts de France"}]
[null,null,null,null,null,null,null,null,null,null,null,null,null,null,"Étrépagny",{"$f":"_xlfn.XLOOKUP(O245,'Liste des DT-EIC-SITES'!D:D,'Liste des DT-EIC-SITES'!C:C)","v":"EIC Normandie"}]
[null,null,null,null,null,null,null,null,null,null,null,null,null,null,"Évian-les-Bains",{"$f":"_xlfn.XLOOKUP(O246,'Liste des DT-EIC-SITES'!D:D,'Liste des DT-EIC-SITES'!C:C)","v":"EIC Alpes"}]
[null,null,null,null,null,null,null,null,null,null,null,null,null,null,"Évreux-Embranchement",{"$f":"_xlfn.XLOOKUP(O247,'Liste des DT-EIC-SITES'!D:D,'Liste des DT-EIC-SITES'!C:C)","v":"EIC Normandie"}]
[null,null,null,null,null,null,null,null,null,null,null,null,null,null,"Facture-Biganos",{"$f":"_xlfn.XLOOKUP(O248,'Liste des DT-EIC-SITES'!D:D,'Liste des DT-EIC-SITES'!C:C)","v":"EIC Aquitaine Poitou Charentes"}]
[null,null,null,null,null,null,null,null,null,null,null,null,null,null,"Faisceau dépôt",{"$f":"_xlfn.XLOOKUP(O249,'Liste des DT-EIC-SITES'!D:D,'Liste des DT-EIC-SITES'!C:C)","v":"EIC Bourgogne Franche Comté"}]
[null,null,null,null,null,null,null,null,null,null,null,null,null,null,"faisceau impair",{"$f":"_xlfn.XLOOKUP(O250,'Liste des DT-EIC-SITES'!D:D,'Liste des DT-EIC-SITES'!C:C)","v":"EIC Bourgogne Franche Comté"}]
[null,null,null,null,null,null,null,null,null,null,null,null,null,null,"Faisceau Lavage",{"$f":"_xlfn.XLOOKUP(O251,'Liste des DT-EIC-SITES'!D:D,'Liste des DT-EIC-SITES'!C:C)","v":"EIC Centre Limousin"}]
[null,null,null,null,null,null,null,null,null,null,null,null,null,null,"Faisceau NOVATRANS Avignon-Champfleury",{"$f":"_xlfn.XLOOKUP(O252,'Liste des DT-EIC-SITES'!D:D,'Liste des DT-EIC-SITES'!C:C)","v":"EIC Provence Alpes Côte d'Azur"}]
[null,null,null,null,null,null,null,null,null,null,null,null,null,null,"Faisceau Plateforme Multimodale",{"$f":"_xlfn.XLOOKUP(O253,'Liste des DT-EIC-SITES'!D:D,'Liste des DT-EIC-SITES'!C:C)","v":"EIC Bourgogne Franche Comté"}]
[null,null,null,null,null,null,null,null,null,null,null,null,null,null,"Faisceau Port Fluvial",{"$f":"_xlfn.XLOOKUP(O254,'Liste des DT-EIC-SITES'!D:D,'Liste des DT-EIC-SITES'!C:C)","v":"EIC Hauts de France"}]
[null,null,null,null,null,null,null,null,null,null,null,null,null,null,"Faisceau Tarbes V62 à V90",{"$f":"_xlfn.XLOOKUP(O255,'Liste des DT-EIC-SITES'!D:D,'Liste des DT-EIC-SITES'!C:C)","v":"EIC Midi Pyrénées"}]
[null,null,null,null,null,null,null,null,null,null,null,null,null,null,"Faisceau Vestric",{"$f":"_xlfn.XLOOKUP(O256,'Liste des DT-EIC-SITES'!D:D,'Liste des DT-EIC-SITES'!C:C)","v":"EIC Languedoc Roussillon"}]
[null,null,null,null,null,null,null,null,null,null,null,null,null,null,"Fenouillet-St-Alban",{"$f":"_xlfn.XLOOKUP(O257,'Liste des DT-EIC-SITES'!D:D,'Liste des DT-EIC-SITES'!C:C)","v":"EIC Midi Pyrénées"}]
[null,null,null,null,null,null,null,null,null,null,null,null,null,null,"Fère-en-Tardenois",{"$f":"_xlfn.XLOOKUP(O258,'Liste des DT-EIC-SITES'!D:D,'Liste des DT-EIC-SITES'!C:C)","v":"EIC Lorraine Champagne Ardenne"}]
[null,null,null,null,null,null,null,null,null,null,null,null,null,null,"Firminy",{"$f":"_xlfn.XLOOKUP(O259,'Liste des DT-EIC-SITES'!D:D,'Liste des DT-EIC-SITES'!C:C)","v":"EIC Rhône Alpes Lyon"}]
[null,null,null,null,null,null,null,null,null,null,null,null,null,null,"Foix",{"$f":"_xlfn.XLOOKUP(O260,'Liste des DT-EIC-SITES'!D:D,'Liste des DT-EIC-SITES'!C:C)","v":"EIC Midi Pyrénées"}]
[null,null,null,null,null,null,null,null,null,null,null,null,null,null,"Fontpédrouse-St-Thomas-les-Bains",{"$f":"_xlfn.XLOOKUP(O261,'Liste des DT-EIC-SITES'!D:D,'Liste des DT-EIC-SITES'!C:C)","v":"EIC Languedoc Roussillon"}]
[null,null,null,null,null,null,null,null,null,null,null,null,null,null,"Font-Romeu-Odeillo-Via",{"$f":"_xlfn.XLOOKUP(O262,'Liste des DT-EIC-SITES'!D:D,'Liste des DT-EIC-SITES'!C:C)","v":"EIC Languedoc Roussillon"}]
[null,null,null,null,null,null,null,null,null,null,null,null,null,null,"Forbach",{"$f":"_xlfn.XLOOKUP(O263,'Liste des DT-EIC-SITES'!D:D,'Liste des DT-EIC-SITES'!C:C)","v":"EIC Lorraine Champagne Ardenne"}]
[null,null,null,null,null,null,null,null,null,null,null,null,null,null,"Fos-Coussoul",{"$f":"_xlfn.XLOOKUP(O264,'Liste des DT-EIC-SITES'!D:D,'Liste des DT-EIC-SITES'!C:C)","v":"EIC Provence Alpes Côte d'Azur"}]
[null,null,null,null,null,null,null,null,null,null,null,null,null,null,"Fourmies",{"$f":"_xlfn.XLOOKUP(O265,'Liste des DT-EIC-SITES'!D:D,'Liste des DT-EIC-SITES'!C:C)","v":"EIC Hauts de France"}]
[null,null,null,null,null,null,null,null,null,null,null,null,null,null,"Gaillon-Aubevoye",{"$f":"_xlfn.XLOOKUP(O266,'Liste des DT-EIC-SITES'!D:D,'Liste des DT-EIC-SITES'!C:C)","v":"EIC Normandie"}]
[null,null,null,null,null,null,null,null,null,null,null,null,null,null,"Gannat",{"$f":"_xlfn.XLOOKUP(O267,'Liste des DT-EIC-SITES'!D:D,'Liste des DT-EIC-SITES'!C:C)","v":"EIC Auvergne Nivernais"}]
[null,null,null,null,null,null,null,null,null,null,null,null,null,null,"Gap",{"$f":"_xlfn.XLOOKUP(O268,'Liste des DT-EIC-SITES'!D:D,'Liste des DT-EIC-SITES'!C:C)","v":"EIC Provence Alpes Côte d'Azur"}]
[null,null,null,null,null,null,null,null,null,null,null,null,null,null,"Garches-Marnes-la-Coquette",{"$f":"_xlfn.XLOOKUP(O269,'Liste des DT-EIC-SITES'!D:D,'Liste des DT-EIC-SITES'!C:C)","v":"EIC Paris Est Ouest Francilien"}]
[null,null,null,null,null,null,null,null,null,null,null,null,null,null,"Gardanne",{"$f":"_xlfn.XLOOKUP(O270,'Liste des DT-EIC-SITES'!D:D,'Liste des DT-EIC-SITES'!C:C)","v":"EIC Provence Alpes Côte d'Azur"}]
[null,null,null,null,null,null,null,null,null,null,null,null,null,null,"Gargenville",{"$f":"_xlfn.XLOOKUP(O271,'Liste des DT-EIC-SITES'!D:D,'Liste des DT-EIC-SITES'!C:C)","v":"EIC Paris Est Ouest Francilien"}]
[null,null,null,null,null,null,null,null,null,null,null,null,null,null,"Gazinet-Cestas",{"$f":"_xlfn.XLOOKUP(O272,'Liste des DT-EIC-SITES'!D:D,'Liste des DT-EIC-SITES'!C:C)","v":"EIC Aquitaine Poitou Charentes"}]
[null,null,null,null,null,null,null,null,null,null,null,null,null,null,"Gennevilliers",{"$f":"_xlfn.XLOOKUP(O273,'Liste des DT-EIC-SITES'!D:D,'Liste des DT-EIC-SITES'!C:C)","v":"EIC Paris Est Ouest Francilien"}]
[null,null,null,null,null,null,null,null,null,null,null,null,null,null,"Génolhac",{"$f":"_xlfn.XLOOKUP(O274,'Liste des DT-EIC-SITES'!D:D,'Liste des DT-EIC-SITES'!C:C)","v":"EIC Languedoc Roussillon"}]
[null,null,null,null,null,null,null,null,null,null,null,null,null,null,"Gérard",{"$f":"_xlfn.XLOOKUP(O275,'Liste des DT-EIC-SITES'!D:D,'Liste des DT-EIC-SITES'!C:C)","v":"EIC Bretagne Pays de la Loire"}]
[null,null,null,null,null,null,null,null,null,null,null,null,null,null,"Gevrey-Chambertin",{"$f":"_xlfn.XLOOKUP(O276,'Liste des DT-EIC-SITES'!D:D,'Liste des DT-EIC-SITES'!C:C)","v":"EIC Bourgogne Franche Comté"}]
[null,null,null,null,null,null,null,null,null,null,null,null,null,null,"Gien",{"$f":"_xlfn.XLOOKUP(O277,'Liste des DT-EIC-SITES'!D:D,'Liste des DT-EIC-SITES'!C:C)","v":"EIC Paris Sud Est"}]
[null,null,null,null,null,null,null,null,null,null,null,null,null,null,"Gignac-Cressensac",{"$f":"_xlfn.XLOOKUP(O278,'Liste des DT-EIC-SITES'!D:D,'Liste des DT-EIC-SITES'!C:C)","v":"EIC Centre Limousin"}]
[null,null,null,null,null,null,null,null,null,null,null,null,null,null,"Gisors",{"$f":"_xlfn.XLOOKUP(O279,'Liste des DT-EIC-SITES'!D:D,'Liste des DT-EIC-SITES'!C:C)","v":"EIC Paris Est Ouest Francilien"}]
[null,null,null,null,null,null,null,null,null,null,null,null,null,null,"Givet",{"$f":"_xlfn.XLOOKUP(O280,'Liste des DT-EIC-SITES'!D:D,'Liste des DT-EIC-SITES'!C:C)","v":"EIC Lorraine Champagne Ardenne"}]
[null,null,null,null,null,null,null,null,null,null,null,null,null,null,"Givors",{"$f":"_xlfn.XLOOKUP(O281,'Liste des DT-EIC-SITES'!D:D,'Liste des DT-EIC-SITES'!C:C)","v":"EIC Rhône Alpes Lyon"}]
[null,null,null,null,null,null,null,null,null,null,null,null,null,null,"Gourdon",{"$f":"_xlfn.XLOOKUP(O282,'Liste des DT-EIC-SITES'!D:D,'Liste des DT-EIC-SITES'!C:C)","v":"EIC Midi Pyrénées"}]
[null,null,null,null,null,null,null,null,null,null,null,null,null,null,"Goussainville",{"$f":"_xlfn.XLOOKUP(O283,'Liste des DT-EIC-SITES'!D:D,'Liste des DT-EIC-SITES'!C:C)","v":"EIC Paris Nord"}]
[null,null,null,null,null,null,null,null,null,null,null,null,null,null,"Gramat",{"$f":"_xlfn.XLOOKUP(O284,'Liste des DT-EIC-SITES'!D:D,'Liste des DT-EIC-SITES'!C:C)","v":"EIC Midi Pyrénées"}]
[null,null,null,null,null,null,null,null,null,null,null,null,null,null,"Grand'Combe-La Pise",{"$f":"_xlfn.XLOOKUP(O285,'Liste des DT-EIC-SITES'!D:D,'Liste des DT-EIC-SITES'!C:C)","v":"EIC Languedoc Roussillon"}]
[null,null,null,null,null,null,null,null,null,null,null,null,null,null,"Grande-Synthe",{"$f":"_xlfn.XLOOKUP(O286,'Liste des DT-EIC-SITES'!D:D,'Liste des DT-EIC-SITES'!C:C)","v":"EIC Hauts de France"}]
[null,null,null,null,null,null,null,null,null,null,null,null,null,null,"Grand-Pont-Preuilly",{"$f":"_xlfn.XLOOKUP(O287,'Liste des DT-EIC-SITES'!D:D,'Liste des DT-EIC-SITES'!C:C)","v":"EIC Aquitaine Poitou Charentes"}]
[null,null,null,null,null,null,null,null,null,null,null,null,null,null,"Grandvilliers",{"$f":"_xlfn.XLOOKUP(O288,'Liste des DT-EIC-SITES'!D:D,'Liste des DT-EIC-SITES'!C:C)","v":"EIC Hauts de France"}]
[null,null,null,null,null,null,null,null,null,null,null,null,null,null,"Gravenchon-Port-Jérome",{"$f":"_xlfn.XLOOKUP(O289,'Liste des DT-EIC-SITES'!D:D,'Liste des DT-EIC-SITES'!C:C)","v":"EIC Normandie"}]
[null,null,null,null,null,null,null,null,null,null,null,null,null,null,"Grenoble",{"$f":"_xlfn.XLOOKUP(O290,'Liste des DT-EIC-SITES'!D:D,'Liste des DT-EIC-SITES'!C:C)","v":"EIC Alpes"}]
[null,null,null,null,null,null,null,null,null,null,null,null,null,null,"Grenoble-Université-Gières",{"$f":"_xlfn.XLOOKUP(O291,'Liste des DT-EIC-SITES'!D:D,'Liste des DT-EIC-SITES'!C:C)","v":"EIC Alpes"}]
[null,null,null,null,null,null,null,null,null,null,null,null,null,null,"Grésy-sur-Isère",{"$f":"_xlfn.XLOOKUP(O292,'Liste des DT-EIC-SITES'!D:D,'Liste des DT-EIC-SITES'!C:C)","v":"EIC Alpes"}]
[null,null,null,null,null,null,null,null,null,null,null,null,null,null,"Gretz-Armainvilliers",{"$f":"_xlfn.XLOOKUP(O293,'Liste des DT-EIC-SITES'!D:D,'Liste des DT-EIC-SITES'!C:C)","v":"EIC Paris Est Ouest Francilien"}]
[null,null,null,null,null,null,null,null,null,null,null,null,null,null,"Grisolles",{"$f":"_xlfn.XLOOKUP(O294,'Liste des DT-EIC-SITES'!D:D,'Liste des DT-EIC-SITES'!C:C)","v":"EIC Midi Pyrénées"}]
[null,null,null,null,null,null,null,null,null,null,null,null,null,null,"Gudmont",{"$f":"_xlfn.XLOOKUP(O295,'Liste des DT-EIC-SITES'!D:D,'Liste des DT-EIC-SITES'!C:C)","v":"EIC Lorraine Champagne Ardenne"}]
[null,null,null,null,null,null,null,null,null,null,null,null,null,null,"Guéret",{"$f":"_xlfn.XLOOKUP(O296,'Liste des DT-EIC-SITES'!D:D,'Liste des DT-EIC-SITES'!C:C)","v":"EIC Centre Limousin"}]
[null,null,null,null,null,null,null,null,null,null,null,null,null,null,"Guignicourt",{"$f":"_xlfn.XLOOKUP(O297,'Liste des DT-EIC-SITES'!D:D,'Liste des DT-EIC-SITES'!C:C)","v":"EIC Hauts de France"}]
[null,null,null,null,null,null,null,null,null,null,null,null,null,null,"Guingamp",{"$f":"_xlfn.XLOOKUP(O298,'Liste des DT-EIC-SITES'!D:D,'Liste des DT-EIC-SITES'!C:C)","v":"EIC Bretagne Pays de la Loire"}]
[null,null,null,null,null,null,null,null,null,null,null,null,null,null,"Hagondange",{"$f":"_xlfn.XLOOKUP(O299,'Liste des DT-EIC-SITES'!D:D,'Liste des DT-EIC-SITES'!C:C)","v":"EIC Lorraine Champagne Ardenne"}]
[null,null,null,null,null,null,null,null,null,null,null,null,null,null,"Haguenau",{"$f":"_xlfn.XLOOKUP(O300,'Liste des DT-EIC-SITES'!D:D,'Liste des DT-EIC-SITES'!C:C)","v":"EIC Alsace"}]
[null,null,null,null,null,null,null,null,null,null,null,null,null,null,"Ham",{"$f":"_xlfn.XLOOKUP(O301,'Liste des DT-EIC-SITES'!D:D,'Liste des DT-EIC-SITES'!C:C)","v":"EIC Hauts de France"}]
[null,null,null,null,null,null,null,null,null,null,null,null,null,null,"Haubourdin",{"$f":"_xlfn.XLOOKUP(O302,'Liste des DT-EIC-SITES'!D:D,'Liste des DT-EIC-SITES'!C:C)","v":"EIC Hauts de France"}]
[null,null,null,null,null,null,null,null,null,null,null,null,null,null,"Hausbergen",{"$f":"_xlfn.XLOOKUP(O303,'Liste des DT-EIC-SITES'!D:D,'Liste des DT-EIC-SITES'!C:C)","v":"EIC Alsace"}]
[null,null,null,null,null,null,null,null,null,null,null,null,null,null,"Hautmont",{"$f":"_xlfn.XLOOKUP(O304,'Liste des DT-EIC-SITES'!D:D,'Liste des DT-EIC-SITES'!C:C)","v":"EIC Hauts de France"}]
[null,null,null,null,null,null,null,null,null,null,null,null,null,null,"Hazebrouck",{"$f":"_xlfn.XLOOKUP(O305,'Liste des DT-EIC-SITES'!D:D,'Liste des DT-EIC-SITES'!C:C)","v":"EIC Hauts de France"}]
[null,null,null,null,null,null,null,null,null,null,null,null,null,null,"Héming",{"$f":"_xlfn.XLOOKUP(O306,'Liste des DT-EIC-SITES'!D:D,'Liste des DT-EIC-SITES'!C:C)","v":"EIC Alsace"}]
[null,null,null,null,null,null,null,null,null,null,null,null,null,null,"Hendaye",{"$f":"_xlfn.XLOOKUP(O307,'Liste des DT-EIC-SITES'!D:D,'Liste des DT-EIC-SITES'!C:C)","v":"EIC Aquitaine Poitou Charentes"}]
[null,null,null,null,null,null,null,null,null,null,null,null,null,null,"Hénin-Beaumont",{"$f":"_xlfn.XLOOKUP(O308,'Liste des DT-EIC-SITES'!D:D,'Liste des DT-EIC-SITES'!C:C)","v":"EIC Hauts de France"}]
[null,null,null,null,null,null,null,null,null,null,null,null,null,null,"Hirson",{"$f":"_xlfn.XLOOKUP(O309,'Liste des DT-EIC-SITES'!D:D,'Liste des DT-EIC-SITES'!C:C)","v":"EIC Hauts de France"}]
[null,null,null,null,null,null,null,null,null,null,null,null,null,null,"Ille-sur-Têt",{"$f":"_xlfn.XLOOKUP(O310,'Liste des DT-EIC-SITES'!D:D,'Liste des DT-EIC-SITES'!C:C)","v":"EIC Languedoc Roussillon"}]
[null,null,null,null,null,null,null,null,null,null,null,null,null,null,"Ingrandes-sur-Vienne",{"$f":"_xlfn.XLOOKUP(O311,'Liste des DT-EIC-SITES'!D:D,'Liste des DT-EIC-SITES'!C:C)","v":"EIC Aquitaine Poitou Charentes"}]
[null,null,null,null,null,null,null,null,null,null,null,null,null,null,"Isbergues",{"$f":"_xlfn.XLOOKUP(O312,'Liste des DT-EIC-SITES'!D:D,'Liste des DT-EIC-SITES'!C:C)","v":"EIC Hauts de France"}]
[null,null,null,null,null,null,null,null,null,null,null,null,null,null,"Issoire",{"$f":"_xlfn.XLOOKUP(O313,'Liste des DT-EIC-SITES'!D:D,'Liste des DT-EIC-SITES'!C:C)","v":"EIC Auvergne Nivernais"}]
[null,null,null,null,null,null,null,null,null,null,null,null,null,null,"Issoudun",{"$f":"_xlfn.XLOOKUP(O314,'Liste des DT-EIC-SITES'!D:D,'Liste des DT-EIC-SITES'!C:C)","v":"EIC Centre Limousin"}]
[null,null,null,null,null,null,null,null,null,null,null,null,null,null,"Is-sur-Tille",{"$f":"_xlfn.XLOOKUP(O315,'Liste des DT-EIC-SITES'!D:D,'Liste des DT-EIC-SITES'!C:C)","v":"EIC Bourgogne Franche Comté"}]
[null,null,null,null,null,null,null,null,null,null,null,null,null,null,"Ivry-sur-Seine",{"$f":"_xlfn.XLOOKUP(O316,'Liste des DT-EIC-SITES'!D:D,'Liste des DT-EIC-SITES'!C:C)","v":"EIC Paris Rive Gauche"}]
[null,null,null,null,null,null,null,null,null,null,null,null,null,null,"Jardres",{"$f":"_xlfn.XLOOKUP(O317,'Liste des DT-EIC-SITES'!D:D,'Liste des DT-EIC-SITES'!C:C)","v":"EIC Aquitaine Poitou Charentes"}]
[null,null,null,null,null,null,null,null,null,null,null,null,null,null,"Jarrie-Vizille",{"$f":"_xlfn.XLOOKUP(O318,'Liste des DT-EIC-SITES'!D:D,'Liste des DT-EIC-SITES'!C:C)","v":"EIC Alpes"}]
[null,null,null,null,null,null,null,null,null,null,null,null,null,null,"Jarville-la-Malgrange",{"$f":"_xlfn.XLOOKUP(O319,'Liste des DT-EIC-SITES'!D:D,'Liste des DT-EIC-SITES'!C:C)","v":"EIC Lorraine Champagne Ardenne"}]
[null,null,null,null,null,null,null,null,null,null,null,null,null,null,"Joigny",{"$f":"_xlfn.XLOOKUP(O320,'Liste des DT-EIC-SITES'!D:D,'Liste des DT-EIC-SITES'!C:C)","v":"EIC Paris Sud Est"}]
[null,null,null,null,null,null,null,null,null,null,null,null,null,null,"Jussey",{"$f":"_xlfn.XLOOKUP(O321,'Liste des DT-EIC-SITES'!D:D,'Liste des DT-EIC-SITES'!C:C)","v":"EIC Bourgogne Franche Comté"}]
[null,null,null,null,null,null,null,null,null,null,null,null,null,null,"Juvisy",{"$f":"_xlfn.XLOOKUP(O322,'Liste des DT-EIC-SITES'!D:D,'Liste des DT-EIC-SITES'!C:C)","v":"EIC Paris Rive Gauche"}]
[null,null,null,null,null,null,null,null,null,null,null,null,null,null,"La Bastide-St-Laurent-les-Bains",{"$f":"_xlfn.XLOOKUP(O323,'Liste des DT-EIC-SITES'!D:D,'Liste des DT-EIC-SITES'!C:C)","v":"EIC Languedoc Roussillon"}]
[null,null,null,null,null,null,null,null,null,null,null,null,null,null,"La Brohinière",{"$f":"_xlfn.XLOOKUP(O324,'Liste des DT-EIC-SITES'!D:D,'Liste des DT-EIC-SITES'!C:C)","v":"EIC Bretagne Pays de la Loire"}]
[null,null,null,null,null,null,null,null,null,null,null,null,null,null,"La Charité-sur-Loire",{"$f":"_xlfn.XLOOKUP(O325,'Liste des DT-EIC-SITES'!D:D,'Liste des DT-EIC-SITES'!C:C)","v":"EIC Auvergne Nivernais"}]
[null,null,null,null,null,null,null,null,null,null,null,null,null,null,"La Couronne",{"$f":"_xlfn.XLOOKUP(O326,'Liste des DT-EIC-SITES'!D:D,'Liste des DT-EIC-SITES'!C:C)","v":"EIC Aquitaine Poitou Charentes"}]
[null,null,null,null,null,null,null,null,null,null,null,null,null,null,"La Crèche",{"$f":"_xlfn.XLOOKUP(O327,'Liste des DT-EIC-SITES'!D:D,'Liste des DT-EIC-SITES'!C:C)","v":"EIC Aquitaine Poitou Charentes"}]
[null,null,null,null,null,null,null,null,null,null,null,null,null,null,"La Défense",{"$f":"_xlfn.XLOOKUP(O328,'Liste des DT-EIC-SITES'!D:D,'Liste des DT-EIC-SITES'!C:C)","v":"EIC Paris Est Ouest Francilien"}]
[null,null,null,null,null,null,null,null,null,null,null,null,null,null,"La Ferté-Hauterive",{"$f":"_xlfn.XLOOKUP(O329,'Liste des DT-EIC-SITES'!D:D,'Liste des DT-EIC-SITES'!C:C)","v":"EIC Auvergne Nivernais"}]
[null,null,null,null,null,null,null,null,null,null,null,null,null,null,"La Ferté-Milon",{"$f":"_xlfn.XLOOKUP(O330,'Liste des DT-EIC-SITES'!D:D,'Liste des DT-EIC-SITES'!C:C)","v":"EIC Paris Est Ouest Francilien"}]
[null,null,null,null,null,null,null,null,null,null,null,null,null,null,"La Ferté-sous-Jouarre",{"$f":"_xlfn.XLOOKUP(O331,'Liste des DT-EIC-SITES'!D:D,'Liste des DT-EIC-SITES'!C:C)","v":"EIC Paris Est Ouest Francilien"}]
[null,null,null,null,null,null,null,null,null,null,null,null,null,null,"La Ferté-St-Aubin",{"$f":"_xlfn.XLOOKUP(O332,'Liste des DT-EIC-SITES'!D:D,'Liste des DT-EIC-SITES'!C:C)","v":"EIC Centre Limousin"}]
[null,null,null,null,null,null,null,null,null,null,null,null,null,null,"La Garenne-Colombes",{"$f":"_xlfn.XLOOKUP(O333,'Liste des DT-EIC-SITES'!D:D,'Liste des DT-EIC-SITES'!C:C)","v":"EIC Paris Est Ouest Francilien"}]
[null,null,null,null,null,null,null,null,null,null,null,null,null,null,"La Guerche-sur-l'Aubois",{"$f":"_xlfn.XLOOKUP(O334,'Liste des DT-EIC-SITES'!D:D,'Liste des DT-EIC-SITES'!C:C)","v":"EIC Centre Limousin"}]
[null,null,null,null,null,null,null,null,null,null,null,null,null,null,"La Hutte-Coulombiers",{"$f":"_xlfn.XLOOKUP(O335,'Liste des DT-EIC-SITES'!D:D,'Liste des DT-EIC-SITES'!C:C)","v":"EIC Bretagne Pays de la Loire"}]
[null,null,null,null,null,null,null,null,null,null,null,null,null,null,"La Pauline-Hyères",{"$f":"_xlfn.XLOOKUP(O336,'Liste des DT-EIC-SITES'!D:D,'Liste des DT-EIC-SITES'!C:C)","v":"EIC Provence Alpes Côte d'Azur"}]
[null,null,null,null,null,null,null,null,null,null,null,null,null,null,"La Rochelle-Ville",{"$f":"_xlfn.XLOOKUP(O337,'Liste des DT-EIC-SITES'!D:D,'Liste des DT-EIC-SITES'!C:C)","v":"EIC Aquitaine Poitou Charentes"}]
[null,null,null,null,null,null,null,null,null,null,null,null,null,null,"La Roche-sur-Foron",{"$f":"_xlfn.XLOOKUP(O338,'Liste des DT-EIC-SITES'!D:D,'Liste des DT-EIC-SITES'!C:C)","v":"EIC Alpes"}]
[null,null,null,null,null,null,null,null,null,null,null,null,null,null,"La Roche-sur-Yon",{"$f":"_xlfn.XLOOKUP(O339,'Liste des DT-EIC-SITES'!D:D,'Liste des DT-EIC-SITES'!C:C)","v":"EIC Bretagne Pays de la Loire"}]
[null,null,null,null,null,null,null,null,null,null,null,null,null,null,"La Roubinarie",{"$f":"_xlfn.XLOOKUP(O340,'Liste des DT-EIC-SITES'!D:D,'Liste des DT-EIC-SITES'!C:C)","v":"EIC Midi Pyrénées"}]
[null,null,null,null,null,null,null,null,null,null,null,null,null,null,"La Seyne-Six-Fours",{"$f":"_xlfn.XLOOKUP(O341,'Liste des DT-EIC-SITES'!D:D,'Liste des DT-EIC-SITES'!C:C)","v":"EIC Provence Alpes Côte d'Azur"}]
[null,null,null,null,null,null,null,null,null,null,null,null,null,null,"La Teste",{"$f":"_xlfn.XLOOKUP(O342,'Liste des DT-EIC-SITES'!D:D,'Liste des DT-EIC-SITES'!C:C)","v":"EIC Aquitaine Poitou Charentes"}]
[null,null,null,null,null,null,null,null,null,null,null,null,null,null,"La Tricherie",{"$f":"_xlfn.XLOOKUP(O343,'Liste des DT-EIC-SITES'!D:D,'Liste des DT-EIC-SITES'!C:C)","v":"EIC Aquitaine Poitou Charentes"}]
[null,null,null,null,null,null,null,null,null,null,null,null,null,null,"La Voulte-sur-Rhône",{"$f":"_xlfn.XLOOKUP(O344,'Liste des DT-EIC-SITES'!D:D,'Liste des DT-EIC-SITES'!C:C)","v":"EIC Rhône Alpes Lyon"}]
[null,null,null,null,null,null,null,null,null,null,null,null,null,null,"Labarthe-Avezac",{"$f":"_xlfn.XLOOKUP(O345,'Liste des DT-EIC-SITES'!D:D,'Liste des DT-EIC-SITES'!C:C)","v":"EIC Midi Pyrénées"}]
[null,null,null,null,null,null,null,null,null,null,null,null,null,null,"Lacq",{"$f":"_xlfn.XLOOKUP(O346,'Liste des DT-EIC-SITES'!D:D,'Liste des DT-EIC-SITES'!C:C)","v":"EIC Aquitaine Poitou Charentes"}]
[null,null,null,null,null,null,null,null,null,null,null,null,null,null,"Laluque",{"$f":"_xlfn.XLOOKUP(O347,'Liste des DT-EIC-SITES'!D:D,'Liste des DT-EIC-SITES'!C:C)","v":"EIC Aquitaine Poitou Charentes"}]
[null,null,null,null,null,null,null,null,null,null,null,null,null,null,"Lamballe",{"$f":"_xlfn.XLOOKUP(O348,'Liste des DT-EIC-SITES'!D:D,'Liste des DT-EIC-SITES'!C:C)","v":"EIC Bretagne Pays de la Loire"}]
[null,null,null,null,null,null,null,null,null,null,null,null,null,null,"Lamotte-Breuil",{"$f":"_xlfn.XLOOKUP(O349,'Liste des DT-EIC-SITES'!D:D,'Liste des DT-EIC-SITES'!C:C)","v":"EIC Paris Nord"}]
[null,null,null,null,null,null,null,null,null,null,null,null,null,null,"Langeac",{"$f":"_xlfn.XLOOKUP(O350,'Liste des DT-EIC-SITES'!D:D,'Liste des DT-EIC-SITES'!C:C)","v":"EIC Auvergne Nivernais"}]
[null,null,null,null,null,null,null,null,null,null,null,null,null,null,"Langogne",{"$f":"_xlfn.XLOOKUP(O351,'Liste des DT-EIC-SITES'!D:D,'Liste des DT-EIC-SITES'!C:C)","v":"EIC Languedoc Roussillon"}]
[null,null,null,null,null,null,null,null,null,null,null,null,null,null,"Langon",{"$f":"_xlfn.XLOOKUP(O352,'Liste des DT-EIC-SITES'!D:D,'Liste des DT-EIC-SITES'!C:C)","v":"EIC Aquitaine Poitou Charentes"}]
[null,null,null,null,null,null,null,null,null,null,null,null,null,null,"Langres",{"$f":"_xlfn.XLOOKUP(O353,'Liste des DT-EIC-SITES'!D:D,'Liste des DT-EIC-SITES'!C:C)","v":"EIC Lorraine Champagne Ardenne"}]
[null,null,null,null,null,null,null,null,null,null,null,null,null,null,"Lannemezan",{"$f":"_xlfn.XLOOKUP(O354,'Liste des DT-EIC-SITES'!D:D,'Liste des DT-EIC-SITES'!C:C)","v":"EIC Midi Pyrénées"}]
[null,null,null,null,null,null,null,null,null,null,null,null,null,null,"Laon",{"$f":"_xlfn.XLOOKUP(O355,'Liste des DT-EIC-SITES'!D:D,'Liste des DT-EIC-SITES'!C:C)","v":"EIC Hauts de France"}]
[null,null,null,null,null,null,null,null,null,null,null,null,null,null,"Lapeyrouse",{"$f":"_xlfn.XLOOKUP(O356,'Liste des DT-EIC-SITES'!D:D,'Liste des DT-EIC-SITES'!C:C)","v":"EIC Auvergne Nivernais"}]
[null,null,null,null,null,null,null,null,null,null,null,null,null,null,"Laqueuille",{"$f":"_xlfn.XLOOKUP(O357,'Liste des DT-EIC-SITES'!D:D,'Liste des DT-EIC-SITES'!C:C)","v":"EIC Auvergne Nivernais"}]
[null,null,null,null,null,null,null,null,null,null,null,null,null,null,"L'Ardoise",{"$f":"_xlfn.XLOOKUP(O358,'Liste des DT-EIC-SITES'!D:D,'Liste des DT-EIC-SITES'!C:C)","v":"EIC Languedoc Roussillon"}]
[null,null,null,null,null,null,null,null,null,null,null,null,null,null,"Laroche-Migennes",{"$f":"_xlfn.XLOOKUP(O359,'Liste des DT-EIC-SITES'!D:D,'Liste des DT-EIC-SITES'!C:C)","v":"EIC Paris Sud Est"}]
[null,null,null,null,null,null,null,null,null,null,null,null,null,null,"Latour-de-Carol-Enveitg",{"$f":"_xlfn.XLOOKUP(O360,'Liste des DT-EIC-SITES'!D:D,'Liste des DT-EIC-SITES'!C:C)","v":"EIC Midi Pyrénées"}]
[null,null,null,null,null,null,null,null,null,null,null,null,null,null,"Laurens",{"$f":"_xlfn.XLOOKUP(O361,'Liste des DT-EIC-SITES'!D:D,'Liste des DT-EIC-SITES'!C:C)","v":"EIC Languedoc Roussillon"}]
[null,null,null,null,null,null,null,null,null,null,null,null,null,null,"Laval",{"$f":"_xlfn.XLOOKUP(O362,'Liste des DT-EIC-SITES'!D:D,'Liste des DT-EIC-SITES'!C:C)","v":"EIC Bretagne Pays de la Loire"}]
[null,null,null,null,null,null,null,null,null,null,null,null,null,null,"Lavaufranche",{"$f":"_xlfn.XLOOKUP(O363,'Liste des DT-EIC-SITES'!D:D,'Liste des DT-EIC-SITES'!C:C)","v":"EIC Centre Limousin"}]
[null,null,null,null,null,null,null,null,null,null,null,null,null,null,"Lavaur",{"$f":"_xlfn.XLOOKUP(O364,'Liste des DT-EIC-SITES'!D:D,'Liste des DT-EIC-SITES'!C:C)","v":"EIC Midi Pyrénées"}]
[null,null,null,null,null,null,null,null,null,null,null,null,null,null,"Le Boucau",{"$f":"_xlfn.XLOOKUP(O365,'Liste des DT-EIC-SITES'!D:D,'Liste des DT-EIC-SITES'!C:C)","v":"EIC Aquitaine Poitou Charentes"}]
[null,null,null,null,null,null,null,null,null,null,null,null,null,null,"Le Boulou-Perthus",{"$f":"_xlfn.XLOOKUP(O366,'Liste des DT-EIC-SITES'!D:D,'Liste des DT-EIC-SITES'!C:C)","v":"EIC Languedoc Roussillon"}]
[null,null,null,null,null,null,null,null,null,null,null,null,null,null,"Le Bourget",{"$f":"_xlfn.XLOOKUP(O367,'Liste des DT-EIC-SITES'!D:D,'Liste des DT-EIC-SITES'!C:C)","v":"EIC Paris Nord"}]
[null,null,null,null,null,null,null,null,null,null,null,null,null,null,"Le Buisson",{"$f":"_xlfn.XLOOKUP(O368,'Liste des DT-EIC-SITES'!D:D,'Liste des DT-EIC-SITES'!C:C)","v":"EIC Aquitaine Poitou Charentes"}]
[null,null,null,null,null,null,null,null,null,null,null,null,null,null,"Le Croisic",{"$f":"_xlfn.XLOOKUP(O369,'Liste des DT-EIC-SITES'!D:D,'Liste des DT-EIC-SITES'!C:C)","v":"EIC Bretagne Pays de la Loire"}]
[null,null,null,null,null,null,null,null,null,null,null,null,null,null,"Le Dorat",{"$f":"_xlfn.XLOOKUP(O370,'Liste des DT-EIC-SITES'!D:D,'Liste des DT-EIC-SITES'!C:C)","v":"EIC Centre Limousin"}]
[null,null,null,null,null,null,null,null,null,null,null,null,null,null,"Le Havre",{"$f":"_xlfn.XLOOKUP(O371,'Liste des DT-EIC-SITES'!D:D,'Liste des DT-EIC-SITES'!C:C)","v":"EIC Normandie"}]
[null,null,null,null,null,null,null,null,null,null,null,null,null,null,"Le Mans",{"$f":"_xlfn.XLOOKUP(O372,'Liste des DT-EIC-SITES'!D:D,'Liste des DT-EIC-SITES'!C:C)","v":"EIC Bretagne Pays de la Loire"}]
[null,null,null,null,null,null,null,null,null,null,null,null,null,null,"Le Monastier",{"$f":"_xlfn.XLOOKUP(O373,'Liste des DT-EIC-SITES'!D:D,'Liste des DT-EIC-SITES'!C:C)","v":"EIC Languedoc Roussillon"}]
[null,null,null,null,null,null,null,null,null,null,null,null,null,null,"Le Petit-Thérain",{"$f":"_xlfn.XLOOKUP(O374,'Liste des DT-EIC-SITES'!D:D,'Liste des DT-EIC-SITES'!C:C)","v":"EIC Paris Nord"}]
[null,null,null,null,null,null,null,null,null,null,null,null,null,null,"Le Plessis-Belleville",{"$f":"_xlfn.XLOOKUP(O375,'Liste des DT-EIC-SITES'!D:D,'Liste des DT-EIC-SITES'!C:C)","v":"EIC Paris Nord"}]
[null,null,null,null,null,null,null,null,null,null,null,null,null,null,"Le Pouzin",{"$f":"_xlfn.XLOOKUP(O376,'Liste des DT-EIC-SITES'!D:D,'Liste des DT-EIC-SITES'!C:C)","v":"EIC Rhône Alpes Lyon"}]
[null,null,null,null,null,null,null,null,null,null,null,null,null,null,"Le Puy-en-Velay",{"$f":"_xlfn.XLOOKUP(O377,'Liste des DT-EIC-SITES'!D:D,'Liste des DT-EIC-SITES'!C:C)","v":"EIC Auvergne Nivernais"}]
[null,null,null,null,null,null,null,null,null,null,null,null,null,null,"Le Teil",{"$f":"_xlfn.XLOOKUP(O378,'Liste des DT-EIC-SITES'!D:D,'Liste des DT-EIC-SITES'!C:C)","v":"EIC Rhône Alpes Lyon"}]
[null,null,null,null,null,null,null,null,null,null,null,null,null,null,"Le Valdahon",{"$f":"_xlfn.XLOOKUP(O379,'Liste des DT-EIC-SITES'!D:D,'Liste des DT-EIC-SITES'!C:C)","v":"EIC Bourgogne Franche Comté"}]
[null,null,null,null,null,null,null,null,null,null,null,null,null,null,"Le Verdon",{"$f":"_xlfn.XLOOKUP(O380,'Liste des DT-EIC-SITES'!D:D,'Liste des DT-EIC-SITES'!C:C)","v":"EIC Aquitaine Poitou Charentes"}]
[null,null,null,null,null,null,null,null,null,null,null,null,null,null,"Le Vert-de-Maisons",{"$f":"_xlfn.XLOOKUP(O381,'Liste des DT-EIC-SITES'!D:D,'Liste des DT-EIC-SITES'!C:C)","v":"EIC Paris Sud Est"}]
[null,null,null,null,null,null,null,null,null,null,null,null,null,null,"Lens",{"$f":"_xlfn.XLOOKUP(O382,'Liste des DT-EIC-SITES'!D:D,'Liste des DT-EIC-SITES'!C:C)","v":"EIC Hauts de France"}]
[null,null,null,null,null,null,null,null,null,null,null,null,null,null,"Lérouville",{"$f":"_xlfn.XLOOKUP(O383,'Liste des DT-EIC-SITES'!D:D,'Liste des DT-EIC-SITES'!C:C)","v":"EIC Lorraine Champagne Ardenne"}]
[null,null,null,null,null,null,null,null,null,null,null,null,null,null,"Les Arcs-Draguignan",{"$f":"_xlfn.XLOOKUP(O384,'Liste des DT-EIC-SITES'!D:D,'Liste des DT-EIC-SITES'!C:C)","v":"EIC Provence Alpes Côte d'Azur"}]
[null,null,null,null,null,null,null,null,null,null,null,null,null,null,"Les Aubrais-Orléans",{"$f":"_xlfn.XLOOKUP(O385,'Liste des DT-EIC-SITES'!D:D,'Liste des DT-EIC-SITES'!C:C)","v":"EIC Centre Limousin"}]
[null,null,null,null,null,null,null,null,null,null,null,null,null,null,"Les Laumes-Alésia",{"$f":"_xlfn.XLOOKUP(O386,'Liste des DT-EIC-SITES'!D:D,'Liste des DT-EIC-SITES'!C:C)","v":"EIC Bourgogne Franche Comté"}]
[null,null,null,null,null,null,null,null,null,null,null,null,null,null,"Les Mureaux",{"$f":"_xlfn.XLOOKUP(O387,'Liste des DT-EIC-SITES'!D:D,'Liste des DT-EIC-SITES'!C:C)","v":"EIC Paris Est Ouest Francilien"}]
[null,null,null,null,null,null,null,null,null,null,null,null,null,null,"Les Ormes-sur-Vienne",{"$f":"_xlfn.XLOOKUP(O388,'Liste des DT-EIC-SITES'!D:D,'Liste des DT-EIC-SITES'!C:C)","v":"EIC Aquitaine Poitou Charentes"}]
[null,null,null,null,null,null,null,null,null,null,null,null,null,null,"Les Portes de St-Cyr",{"$f":"_xlfn.XLOOKUP(O389,'Liste des DT-EIC-SITES'!D:D,'Liste des DT-EIC-SITES'!C:C)","v":"EIC Paris Est Ouest Francilien"}]
[null,null,null,null,null,null,null,null,null,null,null,null,null,null,"Les Sables-d'Olonne",{"$f":"_xlfn.XLOOKUP(O390,'Liste des DT-EIC-SITES'!D:D,'Liste des DT-EIC-SITES'!C:C)","v":"EIC Bretagne Pays de la Loire"}]
[null,null,null,null,null,null,null,null,null,null,null,null,null,null,"Lescar",{"$f":"_xlfn.XLOOKUP(O391,'Liste des DT-EIC-SITES'!D:D,'Liste des DT-EIC-SITES'!C:C)","v":"EIC Aquitaine Poitou Charentes"}]
[null,null,null,null,null,null,null,null,null,null,null,null,null,null,"Lesparre",{"$f":"_xlfn.XLOOKUP(O392,'Liste des DT-EIC-SITES'!D:D,'Liste des DT-EIC-SITES'!C:C)","v":"EIC Aquitaine Poitou Charentes"}]
[null,null,null,null,null,null,null,null,null,null,null,null,null,null,"Lexos",{"$f":"_xlfn.XLOOKUP(O393,'Liste des DT-EIC-SITES'!D:D,'Liste des DT-EIC-SITES'!C:C)","v":"EIC Midi Pyrénées"}]
[null,null,null,null,null,null,null,null,null,null,null,null,null,null,"Lézignan (Aude)",{"$f":"_xlfn.XLOOKUP(O394,'Liste des DT-EIC-SITES'!D:D,'Liste des DT-EIC-SITES'!C:C)","v":"EIC Languedoc Roussillon"}]
[null,null,null,null,null,null,null,null,null,null,null,null,null,null,"Lezoux",{"$f":"_xlfn.XLOOKUP(O395,'Liste des DT-EIC-SITES'!D:D,'Liste des DT-EIC-SITES'!C:C)","v":"EIC Auvergne Nivernais"}]
[null,null,null,null,null,null,null,null,null,null,null,null,null,null,"L'Hospitalet-près-l'Andorre",{"$f":"_xlfn.XLOOKUP(O396,'Liste des DT-EIC-SITES'!D:D,'Liste des DT-EIC-SITES'!C:C)","v":"EIC Midi Pyrénées"}]
[null,null,null,null,null,null,null,null,null,null,null,null,null,null,"Libourne",{"$f":"_xlfn.XLOOKUP(O397,'Liste des DT-EIC-SITES'!D:D,'Liste des DT-EIC-SITES'!C:C)","v":"EIC Aquitaine Poitou Charentes"}]
[null,null,null,null,null,null,null,null,null,null,null,null,null,null,"Lille-Champ-de-Mars",{"$f":"_xlfn.XLOOKUP(O398,'Liste des DT-EIC-SITES'!D:D,'Liste des DT-EIC-SITES'!C:C)","v":"EIC Hauts de France"}]
[null,null,null,null,null,null,null,null,null,null,null,null,null,null,"Lille-Délivrance",{"$f":"_xlfn.XLOOKUP(O399,'Liste des DT-EIC-SITES'!D:D,'Liste des DT-EIC-SITES'!C:C)","v":"EIC Hauts de France"}]
[null,null,null,null,null,null,null,null,null,null,null,null,null,null,"Lille-Flandres",{"$f":"_xlfn.XLOOKUP(O400,'Liste des DT-EIC-SITES'!D:D,'Liste des DT-EIC-SITES'!C:C)","v":"EIC Hauts de France"}]
[null,null,null,null,null,null,null,null,null,null,null,null,null,null,"Lisieux",{"$f":"_xlfn.XLOOKUP(O401,'Liste des DT-EIC-SITES'!D:D,'Liste des DT-EIC-SITES'!C:C)","v":"EIC Normandie"}]
[null,null,null,null,null,null,null,null,null,null,null,null,null,null,"L'Isle-Jourdain",{"$f":"_xlfn.XLOOKUP(O402,'Liste des DT-EIC-SITES'!D:D,'Liste des DT-EIC-SITES'!C:C)","v":"EIC Midi Pyrénées"}]
[null,null,null,null,null,null,null,null,null,null,null,null,null,null,"Livron",{"$f":"_xlfn.XLOOKUP(O403,'Liste des DT-EIC-SITES'!D:D,'Liste des DT-EIC-SITES'!C:C)","v":"EIC Rhône Alpes Lyon"}]
[null,null,null,null,null,null,null,null,null,null,null,null,null,null,"Longueau",{"$f":"_xlfn.XLOOKUP(O404,'Liste des DT-EIC-SITES'!D:D,'Liste des DT-EIC-SITES'!C:C)","v":"EIC Hauts de France"}]
[null,null,null,null,null,null,null,null,null,null,null,null,null,null,"Longueil-Ste-Marie",{"$f":"_xlfn.XLOOKUP(O405,'Liste des DT-EIC-SITES'!D:D,'Liste des DT-EIC-SITES'!C:C)","v":"EIC Paris Nord"}]
[null,null,null,null,null,null,null,null,null,null,null,null,null,null,"Longueville",{"$f":"_xlfn.XLOOKUP(O406,'Liste des DT-EIC-SITES'!D:D,'Liste des DT-EIC-SITES'!C:C)","v":"EIC Paris Est Ouest Francilien"}]
[null,null,null,null,null,null,null,null,null,null,null,null,null,null,"Longwy",{"$f":"_xlfn.XLOOKUP(O407,'Liste des DT-EIC-SITES'!D:D,'Liste des DT-EIC-SITES'!C:C)","v":"EIC Lorraine Champagne Ardenne"}]
[null,null,null,null,null,null,null,null,null,null,null,null,null,null,"Lons-le-Saunier",{"$f":"_xlfn.XLOOKUP(O408,'Liste des DT-EIC-SITES'!D:D,'Liste des DT-EIC-SITES'!C:C)","v":"EIC Bourgogne Franche Comté"}]
[null,null,null,null,null,null,null,null,null,null,null,null,null,null,"Lorient",{"$f":"_xlfn.XLOOKUP(O409,'Liste des DT-EIC-SITES'!D:D,'Liste des DT-EIC-SITES'!C:C)","v":"EIC Bretagne Pays de la Loire"}]
[null,null,null,null,null,null,null,null,null,null,null,null,null,null,"Lourches",{"$f":"_xlfn.XLOOKUP(O410,'Liste des DT-EIC-SITES'!D:D,'Liste des DT-EIC-SITES'!C:C)","v":"EIC Hauts de France"}]
[null,null,null,null,null,null,null,null,null,null,null,null,null,null,"Lourdes",{"$f":"_xlfn.XLOOKUP(O411,'Liste des DT-EIC-SITES'!D:D,'Liste des DT-EIC-SITES'!C:C)","v":"EIC Midi Pyrénées"}]
[null,null,null,null,null,null,null,null,null,null,null,null,null,null,"Lozanne",{"$f":"_xlfn.XLOOKUP(O412,'Liste des DT-EIC-SITES'!D:D,'Liste des DT-EIC-SITES'!C:C)","v":"EIC Rhône Alpes Lyon"}]
[null,null,null,null,null,null,null,null,null,null,null,null,null,null,"Luché",{"$f":"_xlfn.XLOOKUP(O413,'Liste des DT-EIC-SITES'!D:D,'Liste des DT-EIC-SITES'!C:C)","v":"EIC Bretagne Pays de la Loire"}]
[null,null,null,null,null,null,null,null,null,null,null,null,null,null,"Lumbres",{"$f":"_xlfn.XLOOKUP(O414,'Liste des DT-EIC-SITES'!D:D,'Liste des DT-EIC-SITES'!C:C)","v":"EIC Hauts de France"}]
[null,null,null,null,null,null,null,null,null,null,null,null,null,null,"Lure",{"$f":"_xlfn.XLOOKUP(O415,'Liste des DT-EIC-SITES'!D:D,'Liste des DT-EIC-SITES'!C:C)","v":"EIC Bourgogne Franche Comté"}]
[null,null,null,null,null,null,null,null,null,null,null,null,null,null,"Lusignan",{"$f":"_xlfn.XLOOKUP(O416,'Liste des DT-EIC-SITES'!D:D,'Liste des DT-EIC-SITES'!C:C)","v":"EIC Aquitaine Poitou Charentes"}]
[null,null,null,null,null,null,null,null,null,null,null,null,null,null,"Lus-la-Croix-Haute",{"$f":"_xlfn.XLOOKUP(O417,'Liste des DT-EIC-SITES'!D:D,'Liste des DT-EIC-SITES'!C:C)","v":"EIC Alpes"}]
[null,null,null,null,null,null,null,null,null,null,null,null,null,null,"Luzenac-Garanou",{"$f":"_xlfn.XLOOKUP(O418,'Liste des DT-EIC-SITES'!D:D,'Liste des DT-EIC-SITES'!C:C)","v":"EIC Midi Pyrénées"}]
[null,null,null,null,null,null,null,null,null,null,null,null,null,null,"Lyon-Guillotière",{"$f":"_xlfn.XLOOKUP(O419,'Liste des DT-EIC-SITES'!D:D,'Liste des DT-EIC-SITES'!C:C)","v":"EIC Rhône Alpes Lyon"}]
[null,null,null,null,null,null,null,null,null,null,null,null,null,null,"Lyon-Part-Dieu",{"$f":"_xlfn.XLOOKUP(O420,'Liste des DT-EIC-SITES'!D:D,'Liste des DT-EIC-SITES'!C:C)","v":"EIC Rhône Alpes Lyon"}]
[null,null,null,null,null,null,null,null,null,null,null,null,null,null,"Lyon-Perrache",{"$f":"_xlfn.XLOOKUP(O421,'Liste des DT-EIC-SITES'!D:D,'Liste des DT-EIC-SITES'!C:C)","v":"EIC Rhône Alpes Lyon"}]
[null,null,null,null,null,null,null,null,null,null,null,null,null,null,"Lyon-Perrache-Marchandises",{"$f":"_xlfn.XLOOKUP(O422,'Liste des DT-EIC-SITES'!D:D,'Liste des DT-EIC-SITES'!C:C)","v":"EIC Rhône Alpes Lyon"}]
[null,null,null,null,null,null,null,null,null,null,null,null,null,null,"Lyon-Vaise",{"$f":"_xlfn.XLOOKUP(O423,'Liste des DT-EIC-SITES'!D:D,'Liste des DT-EIC-SITES'!C:C)","v":"EIC Rhône Alpes Lyon"}]
[null,null,null,null,null,null,null,null,null,null,null,null,null,null,"Mâcon-Ville",{"$f":"_xlfn.XLOOKUP(O424,'Liste des DT-EIC-SITES'!D:D,'Liste des DT-EIC-SITES'!C:C)","v":"EIC Bourgogne Franche Comté"}]
[null,null,null,null,null,null,null,null,null,null,null,null,null,null,"Malause",{"$f":"_xlfn.XLOOKUP(O425,'Liste des DT-EIC-SITES'!D:D,'Liste des DT-EIC-SITES'!C:C)","v":"EIC Midi Pyrénées"}]
[null,null,null,null,null,null,null,null,null,null,null,null,null,null,"Malesherbes",{"$f":"_xlfn.XLOOKUP(O426,'Liste des DT-EIC-SITES'!D:D,'Liste des DT-EIC-SITES'!C:C)","v":"EIC Paris Sud Est"}]
[null,null,null,null,null,null,null,null,null,null,null,null,null,null,"Manosque-Gréoux-les-Bains",{"$f":"_xlfn.XLOOKUP(O427,'Liste des DT-EIC-SITES'!D:D,'Liste des DT-EIC-SITES'!C:C)","v":"EIC Provence Alpes Côte d'Azur"}]
[null,null,null,null,null,null,null,null,null,null,null,null,null,null,"Mantes-la-Jolie",{"$f":"_xlfn.XLOOKUP(O428,'Liste des DT-EIC-SITES'!D:D,'Liste des DT-EIC-SITES'!C:C)","v":"EIC Paris Est Ouest Francilien"}]
[null,null,null,null,null,null,null,null,null,null,null,null,null,null,"Marignier",{"$f":"_xlfn.XLOOKUP(O429,'Liste des DT-EIC-SITES'!D:D,'Liste des DT-EIC-SITES'!C:C)","v":"EIC Alpes"}]
[null,null,null,null,null,null,null,null,null,null,null,null,null,null,"Marly-le-Roi",{"$f":"_xlfn.XLOOKUP(O430,'Liste des DT-EIC-SITES'!D:D,'Liste des DT-EIC-SITES'!C:C)","v":"EIC Paris Est Ouest Francilien"}]
[null,null,null,null,null,null,null,null,null,null,null,null,null,null,"Marmande",{"$f":"_xlfn.XLOOKUP(O431,'Liste des DT-EIC-SITES'!D:D,'Liste des DT-EIC-SITES'!C:C)","v":"EIC Aquitaine Poitou Charentes"}]
[null,null,null,null,null,null,null,null,null,null,null,null,null,null,"Maromme",{"$f":"_xlfn.XLOOKUP(O432,'Liste des DT-EIC-SITES'!D:D,'Liste des DT-EIC-SITES'!C:C)","v":"EIC Normandie"}]
[null,null,null,null,null,null,null,null,null,null,null,null,null,null,"Marquise-Rinxent",{"$f":"_xlfn.XLOOKUP(O433,'Liste des DT-EIC-SITES'!D:D,'Liste des DT-EIC-SITES'!C:C)","v":"EIC Hauts de France"}]
[null,null,null,null,null,null,null,null,null,null,null,null,null,null,"Marseille-Maritime-Arenc",{"$f":"_xlfn.XLOOKUP(O434,'Liste des DT-EIC-SITES'!D:D,'Liste des DT-EIC-SITES'!C:C)","v":"EIC Provence Alpes Côte d'Azur"}]
[null,null,null,null,null,null,null,null,null,null,null,null,null,null,"Marseille-Maritime-Canet",{"$f":"_xlfn.XLOOKUP(O435,'Liste des DT-EIC-SITES'!D:D,'Liste des DT-EIC-SITES'!C:C)","v":"EIC Provence Alpes Côte d'Azur"}]
[null,null,null,null,null,null,null,null,null,null,null,null,null,null,"Marseille-Prado",{"$f":"_xlfn.XLOOKUP(O436,'Liste des DT-EIC-SITES'!D:D,'Liste des DT-EIC-SITES'!C:C)","v":"EIC Provence Alpes Côte d'Azur"}]
[null,null,null,null,null,null,null,null,null,null,null,null,null,null,"Marseille-St-Charles",{"$f":"_xlfn.XLOOKUP(O437,'Liste des DT-EIC-SITES'!D:D,'Liste des DT-EIC-SITES'!C:C)","v":"EIC Provence Alpes Côte d'Azur"}]
[null,null,null,null,null,null,null,null,null,null,null,null,null,null,"Martigues",{"$f":"_xlfn.XLOOKUP(O438,'Liste des DT-EIC-SITES'!D:D,'Liste des DT-EIC-SITES'!C:C)","v":"EIC Provence Alpes Côte d'Azur"}]
[null,null,null,null,null,null,null,null,null,null,null,null,null,null,"Marvejols",{"$f":"_xlfn.XLOOKUP(O439,'Liste des DT-EIC-SITES'!D:D,'Liste des DT-EIC-SITES'!C:C)","v":"EIC Languedoc Roussillon"}]
[null,null,null,null,null,null,null,null,null,null,null,null,null,null,"Massy-Palaiseau",{"$f":"_xlfn.XLOOKUP(O440,'Liste des DT-EIC-SITES'!D:D,'Liste des DT-EIC-SITES'!C:C)","v":"EIC Paris Rive Gauche"}]
[null,null,null,null,null,null,null,null,null,null,null,null,null,null,"Maubeuge",{"$f":"_xlfn.XLOOKUP(O441,'Liste des DT-EIC-SITES'!D:D,'Liste des DT-EIC-SITES'!C:C)","v":"EIC Hauts de France"}]
[null,null,null,null,null,null,null,null,null,null,null,null,null,null,"Mazamet",{"$f":"_xlfn.XLOOKUP(O442,'Liste des DT-EIC-SITES'!D:D,'Liste des DT-EIC-SITES'!C:C)","v":"EIC Midi Pyrénées"}]
[null,null,null,null,null,null,null,null,null,null,null,null,null,null,"Mazières-Verruyes",{"$f":"_xlfn.XLOOKUP(O443,'Liste des DT-EIC-SITES'!D:D,'Liste des DT-EIC-SITES'!C:C)","v":"EIC Aquitaine Poitou Charentes"}]
[null,null,null,null,null,null,null,null,null,null,null,null,null,null,"Meaux",{"$f":"_xlfn.XLOOKUP(O444,'Liste des DT-EIC-SITES'!D:D,'Liste des DT-EIC-SITES'!C:C)","v":"EIC Paris Est Ouest Francilien"}]
[null,null,null,null,null,null,null,null,null,null,null,null,null,null,"Melun",{"$f":"_xlfn.XLOOKUP(O445,'Liste des DT-EIC-SITES'!D:D,'Liste des DT-EIC-SITES'!C:C)","v":"EIC Paris Sud Est"}]
[null,null,null,null,null,null,null,null,null,null,null,null,null,null,"Mende",{"$f":"_xlfn.XLOOKUP(O446,'Liste des DT-EIC-SITES'!D:D,'Liste des DT-EIC-SITES'!C:C)","v":"EIC Languedoc Roussillon"}]
[null,null,null,null,null,null,null,null,null,null,null,null,null,null,"Menton",{"$f":"_xlfn.XLOOKUP(O447,'Liste des DT-EIC-SITES'!D:D,'Liste des DT-EIC-SITES'!C:C)","v":"EIC Provence Alpes Côte d'Azur"}]
[null,null,null,null,null,null,null,null,null,null,null,null,null,null,"Metz-Ville",{"$f":"_xlfn.XLOOKUP(O448,'Liste des DT-EIC-SITES'!D:D,'Liste des DT-EIC-SITES'!C:C)","v":"EIC Lorraine Champagne Ardenne"}]
[null,null,null,null,null,null,null,null,null,null,null,null,null,null,"Meung-sur-Loire",{"$f":"_xlfn.XLOOKUP(O449,'Liste des DT-EIC-SITES'!D:D,'Liste des DT-EIC-SITES'!C:C)","v":"EIC Centre Limousin"}]
[null,null,null,null,null,null,null,null,null,null,null,null,null,null,"Meximieux-Pérouges",{"$f":"_xlfn.XLOOKUP(O450,'Liste des DT-EIC-SITES'!D:D,'Liste des DT-EIC-SITES'!C:C)","v":"EIC Rhône Alpes Lyon"}]
[null,null,null,null,null,null,null,null,null,null,null,null,null,null,"Mézy",{"$f":"_xlfn.XLOOKUP(O451,'Liste des DT-EIC-SITES'!D:D,'Liste des DT-EIC-SITES'!C:C)","v":"EIC Lorraine Champagne Ardenne"}]
[null,null,null,null,null,null,null,null,null,null,null,null,null,null,"Millau",{"$f":"_xlfn.XLOOKUP(O452,'Liste des DT-EIC-SITES'!D:D,'Liste des DT-EIC-SITES'!C:C)","v":"EIC Languedoc Roussillon"}]
[null,null,null,null,null,null,null,null,null,null,null,null,null,null,"Miramas",{"$f":"_xlfn.XLOOKUP(O453,'Liste des DT-EIC-SITES'!D:D,'Liste des DT-EIC-SITES'!C:C)","v":"EIC Provence Alpes Côte d'Azur"}]
[null,null,null,null,null,null,null,null,null,null,null,null,null,null,"Mitry-Claye",{"$f":"_xlfn.XLOOKUP(O454,'Liste des DT-EIC-SITES'!D:D,'Liste des DT-EIC-SITES'!C:C)","v":"EIC Paris Nord"}]
[null,null,null,null,null,null,null,null,null,null,null,null,null,null,"Modane",{"$f":"_xlfn.XLOOKUP(O455,'Liste des DT-EIC-SITES'!D:D,'Liste des DT-EIC-SITES'!C:C)","v":"EIC Alpes"}]
[null,null,null,null,null,null,null,null,null,null,null,null,null,null,"Montargis",{"$f":"_xlfn.XLOOKUP(O456,'Liste des DT-EIC-SITES'!D:D,'Liste des DT-EIC-SITES'!C:C)","v":"EIC Paris Sud Est"}]
[null,null,null,null,null,null,null,null,null,null,null,null,null,null,"Montauban-de-Bretagne",{"$f":"_xlfn.XLOOKUP(O457,'Liste des DT-EIC-SITES'!D:D,'Liste des DT-EIC-SITES'!C:C)","v":"EIC Bretagne Pays de la Loire"}]
[null,null,null,null,null,null,null,null,null,null,null,null,null,null,"Montauban-Ville-Bourbon",{"$f":"_xlfn.XLOOKUP(O458,'Liste des DT-EIC-SITES'!D:D,'Liste des DT-EIC-SITES'!C:C)","v":"EIC Midi Pyrénées"}]
[null,null,null,null,null,null,null,null,null,null,null,null,null,null,"Montbard",{"$f":"_xlfn.XLOOKUP(O459,'Liste des DT-EIC-SITES'!D:D,'Liste des DT-EIC-SITES'!C:C)","v":"EIC Bourgogne Franche Comté"}]
[null,null,null,null,null,null,null,null,null,null,null,null,null,null,"Montbéliard",{"$f":"_xlfn.XLOOKUP(O460,'Liste des DT-EIC-SITES'!D:D,'Liste des DT-EIC-SITES'!C:C)","v":"EIC Alsace"}]
[null,null,null,null,null,null,null,null,null,null,null,null,null,null,"Montbrison",{"$f":"_xlfn.XLOOKUP(O461,'Liste des DT-EIC-SITES'!D:D,'Liste des DT-EIC-SITES'!C:C)","v":"EIC Rhône Alpes Lyon"}]
[null,null,null,null,null,null,null,null,null,null,null,null,null,null,"Montceau-les-Mines",{"$f":"_xlfn.XLOOKUP(O462,'Liste des DT-EIC-SITES'!D:D,'Liste des DT-EIC-SITES'!C:C)","v":"EIC Bourgogne Franche Comté"}]
[null,null,null,null,null,null,null,null,null,null,null,null,null,null,"Montchanin",{"$f":"_xlfn.XLOOKUP(O463,'Liste des DT-EIC-SITES'!D:D,'Liste des DT-EIC-SITES'!C:C)","v":"EIC Bourgogne Franche Comté"}]
[null,null,null,null,null,null,null,null,null,null,null,null,null,null,"Montcornet",{"$f":"_xlfn.XLOOKUP(O464,'Liste des DT-EIC-SITES'!D:D,'Liste des DT-EIC-SITES'!C:C)","v":"EIC Hauts de France"}]
[null,null,null,null,null,null,null,null,null,null,null,null,null,null,"Mont-de-Marsan",{"$f":"_xlfn.XLOOKUP(O465,'Liste des DT-EIC-SITES'!D:D,'Liste des DT-EIC-SITES'!C:C)","v":"EIC Aquitaine Poitou Charentes"}]
[null,null,null,null,null,null,null,null,null,null,null,null,null,null,"Montélimar",{"$f":"_xlfn.XLOOKUP(O466,'Liste des DT-EIC-SITES'!D:D,'Liste des DT-EIC-SITES'!C:C)","v":"EIC Rhône Alpes Lyon"}]
[null,null,null,null,null,null,null,null,null,null,null,null,null,null,"Montereau",{"$f":"_xlfn.XLOOKUP(O467,'Liste des DT-EIC-SITES'!D:D,'Liste des DT-EIC-SITES'!C:C)","v":"EIC Paris Sud Est"}]
[null,null,null,null,null,null,null,null,null,null,null,null,null,null,"Montescourt",{"$f":"_xlfn.XLOOKUP(O468,'Liste des DT-EIC-SITES'!D:D,'Liste des DT-EIC-SITES'!C:C)","v":"EIC Hauts de France"}]
[null,null,null,null,null,null,null,null,null,null,null,null,null,null,"Montfort-l'Amaury-Mère",{"$f":"_xlfn.XLOOKUP(O469,'Liste des DT-EIC-SITES'!D:D,'Liste des DT-EIC-SITES'!C:C)","v":"EIC Paris Rive Gauche"}]
[null,null,null,null,null,null,null,null,null,null,null,null,null,null,"Montfort-le-Gesnois",{"$f":"_xlfn.XLOOKUP(O470,'Liste des DT-EIC-SITES'!D:D,'Liste des DT-EIC-SITES'!C:C)","v":"EIC Bretagne Pays de la Loire"}]
[null,null,null,null,null,null,null,null,null,null,null,null,null,null,"Montières",{"$f":"_xlfn.XLOOKUP(O471,'Liste des DT-EIC-SITES'!D:D,'Liste des DT-EIC-SITES'!C:C)","v":"EIC Hauts de France"}]
[null,null,null,null,null,null,null,null,null,null,null,null,null,null,"Montigny-Beauchamp",{"$f":"_xlfn.XLOOKUP(O472,'Liste des DT-EIC-SITES'!D:D,'Liste des DT-EIC-SITES'!C:C)","v":"EIC Paris Nord"}]
[null,null,null,null,null,null,null,null,null,null,null,null,null,null,"Mont-Louis-La Cabanasse",{"$f":"_xlfn.XLOOKUP(O473,'Liste des DT-EIC-SITES'!D:D,'Liste des DT-EIC-SITES'!C:C)","v":"EIC Languedoc Roussillon"}]
[null,null,null,null,null,null,null,null,null,null,null,null,null,null,"Montluçon-Eau",{"$f":"_xlfn.XLOOKUP(O474,'Liste des DT-EIC-SITES'!D:D,'Liste des DT-EIC-SITES'!C:C)","v":"EIC Auvergne Nivernais"}]
[null,null,null,null,null,null,null,null,null,null,null,null,null,null,"Montluçon-Ville",{"$f":"_xlfn.XLOOKUP(O475,'Liste des DT-EIC-SITES'!D:D,'Liste des DT-EIC-SITES'!C:C)","v":"EIC Auvergne Nivernais"}]
[null,null,null,null,null,null,null,null,null,null,null,null,null,null,"Montluel",{"$f":"_xlfn.XLOOKUP(O476,'Liste des DT-EIC-SITES'!D:D,'Liste des DT-EIC-SITES'!C:C)","v":"EIC Rhône Alpes Lyon"}]
[null,null,null,null,null,null,null,null,null,null,null,null,null,null,"Montmélian",{"$f":"_xlfn.XLOOKUP(O477,'Liste des DT-EIC-SITES'!D:D,'Liste des DT-EIC-SITES'!C:C)","v":"EIC Alpes"}]
[null,null,null,null,null,null,null,null,null,null,null,null,null,null,"Montmoreau",{"$f":"_xlfn.XLOOKUP(O478,'Liste des DT-EIC-SITES'!D:D,'Liste des DT-EIC-SITES'!C:C)","v":"EIC Aquitaine Poitou Charentes"}]
[null,null,null,null,null,null,null,null,null,null,null,null,null,null,"Montmorillon",{"$f":"_xlfn.XLOOKUP(O479,'Liste des DT-EIC-SITES'!D:D,'Liste des DT-EIC-SITES'!C:C)","v":"EIC Aquitaine Poitou Charentes"}]
[null,null,null,null,null,null,null,null,null,null,null,null,null,null,"Montoir-de-Bretagne",{"$f":"_xlfn.XLOOKUP(O480,'Liste des DT-EIC-SITES'!D:D,'Liste des DT-EIC-SITES'!C:C)","v":"EIC Bretagne Pays de la Loire"}]
[null,null,null,null,null,null,null,null,null,null,null,null,null,null,"Montpellier-les-Prés-d'Arènes",{"$f":"_xlfn.XLOOKUP(O481,'Liste des DT-EIC-SITES'!D:D,'Liste des DT-EIC-SITES'!C:C)","v":"EIC Languedoc Roussillon"}]
[null,null,null,null,null,null,null,null,null,null,null,null,null,null,"Montpellier-St-Roch",{"$f":"_xlfn.XLOOKUP(O482,'Liste des DT-EIC-SITES'!D:D,'Liste des DT-EIC-SITES'!C:C)","v":"EIC Languedoc Roussillon"}]
[null,null,null,null,null,null,null,null,null,null,null,null,null,null,"Montpon-Ménestérol",{"$f":"_xlfn.XLOOKUP(O483,'Liste des DT-EIC-SITES'!D:D,'Liste des DT-EIC-SITES'!C:C)","v":"EIC Aquitaine Poitou Charentes"}]
[null,null,null,null,null,null,null,null,null,null,null,null,null,null,"Montréjeau-Gourdan-Polignan",{"$f":"_xlfn.XLOOKUP(O484,'Liste des DT-EIC-SITES'!D:D,'Liste des DT-EIC-SITES'!C:C)","v":"EIC Midi Pyrénées"}]
[null,null,null,null,null,null,null,null,null,null,null,null,null,null,"Montreuil-Bellay",{"$f":"_xlfn.XLOOKUP(O485,'Liste des DT-EIC-SITES'!D:D,'Liste des DT-EIC-SITES'!C:C)","v":"EIC Bretagne Pays de la Loire"}]
[null,null,null,null,null,null,null,null,null,null,null,null,null,null,"Montrond-les-Bains",{"$f":"_xlfn.XLOOKUP(O486,'Liste des DT-EIC-SITES'!D:D,'Liste des DT-EIC-SITES'!C:C)","v":"EIC Rhône Alpes Lyon"}]
[null,null,null,null,null,null,null,null,null,null,null,null,null,null,"Morcenx",{"$f":"_xlfn.XLOOKUP(O487,'Liste des DT-EIC-SITES'!D:D,'Liste des DT-EIC-SITES'!C:C)","v":"EIC Aquitaine Poitou Charentes"}]
[null,null,null,null,null,null,null,null,null,null,null,null,null,null,"Moret-Veneux-les-Sablons",{"$f":"_xlfn.XLOOKUP(O488,'Liste des DT-EIC-SITES'!D:D,'Liste des DT-EIC-SITES'!C:C)","v":"EIC Paris Sud Est"}]
[null,null,null,null,null,null,null,null,null,null,null,null,null,null,"Morez",{"$f":"_xlfn.XLOOKUP(O489,'Liste des DT-EIC-SITES'!D:D,'Liste des DT-EIC-SITES'!C:C)","v":"EIC Bourgogne Franche Comté"}]
[null,null,null,null,null,null,null,null,null,null,null,null,null,null,"Morteau",{"$f":"_xlfn.XLOOKUP(O490,'Liste des DT-EIC-SITES'!D:D,'Liste des DT-EIC-SITES'!C:C)","v":"EIC Bourgogne Franche Comté"}]
[null,null,null,null,null,null,null,null,null,null,null,null,null,null,"Mouchard",{"$f":"_xlfn.XLOOKUP(O491,'Liste des DT-EIC-SITES'!D:D,'Liste des DT-EIC-SITES'!C:C)","v":"EIC Bourgogne Franche Comté"}]
[null,null,null,null,null,null,null,null,null,null,null,null,null,null,"Moulins-sur-Allier",{"$f":"_xlfn.XLOOKUP(O492,'Liste des DT-EIC-SITES'!D:D,'Liste des DT-EIC-SITES'!C:C)","v":"EIC Auvergne Nivernais"}]
[null,null,null,null,null,null,null,null,null,null,null,null,null,null,"Mulhouse-Nord",{"$f":"_xlfn.XLOOKUP(O493,'Liste des DT-EIC-SITES'!D:D,'Liste des DT-EIC-SITES'!C:C)","v":"EIC Alsace"}]
[null,null,null,null,null,null,null,null,null,null,null,null,null,null,"Mussidan",{"$f":"_xlfn.XLOOKUP(O494,'Liste des DT-EIC-SITES'!D:D,'Liste des DT-EIC-SITES'!C:C)","v":"EIC Aquitaine Poitou Charentes"}]
[null,null,null,null,null,null,null,null,null,null,null,null,null,null,"Naintré-les-Barres",{"$f":"_xlfn.XLOOKUP(O495,'Liste des DT-EIC-SITES'!D:D,'Liste des DT-EIC-SITES'!C:C)","v":"EIC Aquitaine Poitou Charentes"}]
[null,null,null,null,null,null,null,null,null,null,null,null,null,null,"Nançois-Tronville",{"$f":"_xlfn.XLOOKUP(O496,'Liste des DT-EIC-SITES'!D:D,'Liste des DT-EIC-SITES'!C:C)","v":"EIC Lorraine Champagne Ardenne"}]
[null,null,null,null,null,null,null,null,null,null,null,null,null,null,"Nancy-Ville",{"$f":"_xlfn.XLOOKUP(O497,'Liste des DT-EIC-SITES'!D:D,'Liste des DT-EIC-SITES'!C:C)","v":"EIC Lorraine Champagne Ardenne"}]
[null,null,null,null,null,null,null,null,null,null,null,null,null,null,"Nangis",{"$f":"_xlfn.XLOOKUP(O498,'Liste des DT-EIC-SITES'!D:D,'Liste des DT-EIC-SITES'!C:C)","v":"EIC Paris Est Ouest Francilien"}]
[null,null,null,null,null,null,null,null,null,null,null,null,null,null,"Nantes",{"$f":"_xlfn.XLOOKUP(O499,'Liste des DT-EIC-SITES'!D:D,'Liste des DT-EIC-SITES'!C:C)","v":"EIC Bretagne Pays de la Loire"}]
[null,null,null,null,null,null,null,null,null,null,null,null,null,null,"Nantes-Blottereau",{"$f":"_xlfn.XLOOKUP(O500,'Liste des DT-EIC-SITES'!D:D,'Liste des DT-EIC-SITES'!C:C)","v":"EIC Bretagne Pays de la Loire"}]
[null,null,null,null,null,null,null,null,null,null,null,null,null,null,"Nantes-État",{"$f":"_xlfn.XLOOKUP(O501,'Liste des DT-EIC-SITES'!D:D,'Liste des DT-EIC-SITES'!C:C)","v":"EIC Bretagne Pays de la Loire"}]
[null,null,null,null,null,null,null,null,null,null,null,null,null,null,"Narbonne",{"$f":"_xlfn.XLOOKUP(O502,'Liste des DT-EIC-SITES'!D:D,'Liste des DT-EIC-SITES'!C:C)","v":"EIC Languedoc Roussillon"}]
[null,null,null,null,null,null,null,null,null,null,null,null,null,null,"Naucelle",{"$f":"_xlfn.XLOOKUP(O503,'Liste des DT-EIC-SITES'!D:D,'Liste des DT-EIC-SITES'!C:C)","v":"EIC Midi Pyrénées"}]
[null,null,null,null,null,null,null,null,null,null,null,null,null,null,"Nemours-St-Pierre",{"$f":"_xlfn.XLOOKUP(O504,'Liste des DT-EIC-SITES'!D:D,'Liste des DT-EIC-SITES'!C:C)","v":"EIC Paris Sud Est"}]
[null,null,null,null,null,null,null,null,null,null,null,null,null,null,"Nesle",{"$f":"_xlfn.XLOOKUP(O505,'Liste des DT-EIC-SITES'!D:D,'Liste des DT-EIC-SITES'!C:C)","v":"EIC Hauts de France"}]
[null,null,null,null,null,null,null,null,null,null,null,null,null,null,"Neufchâteau",{"$f":"_xlfn.XLOOKUP(O506,'Liste des DT-EIC-SITES'!D:D,'Liste des DT-EIC-SITES'!C:C)","v":"EIC Lorraine Champagne Ardenne"}]
[null,null,null,null,null,null,null,null,null,null,null,null,null,null,"Neuillé-Pont-Pierre",{"$f":"_xlfn.XLOOKUP(O507,'Liste des DT-EIC-SITES'!D:D,'Liste des DT-EIC-SITES'!C:C)","v":"EIC Centre Limousin"}]
[null,null,null,null,null,null,null,null,null,null,null,null,null,null,"Neussargues",{"$f":"_xlfn.XLOOKUP(O508,'Liste des DT-EIC-SITES'!D:D,'Liste des DT-EIC-SITES'!C:C)","v":"EIC Auvergne Nivernais"}]
[null,null,null,null,null,null,null,null,null,null,null,null,null,null,"Neuvy-Pailloux",{"$f":"_xlfn.XLOOKUP(O509,'Liste des DT-EIC-SITES'!D:D,'Liste des DT-EIC-SITES'!C:C)","v":"EIC Centre Limousin"}]
[null,null,null,null,null,null,null,null,null,null,null,null,null,null,"Nevers",{"$f":"_xlfn.XLOOKUP(O510,'Liste des DT-EIC-SITES'!D:D,'Liste des DT-EIC-SITES'!C:C)","v":"EIC Auvergne Nivernais"}]
[null,null,null,null,null,null,null,null,null,null,null,null,null,null,"Nice-St-Roch",{"$f":"_xlfn.XLOOKUP(O511,'Liste des DT-EIC-SITES'!D:D,'Liste des DT-EIC-SITES'!C:C)","v":"EIC Provence Alpes Côte d'Azur"}]
[null,null,null,null,null,null,null,null,null,null,null,null,null,null,"Nice-Ville",{"$f":"_xlfn.XLOOKUP(O512,'Liste des DT-EIC-SITES'!D:D,'Liste des DT-EIC-SITES'!C:C)","v":"EIC Provence Alpes Côte d'Azur"}]
[null,null,null,null,null,null,null,null,null,null,null,null,null,null,"Nîmes (IE)",{"$f":"_xlfn.XLOOKUP(O513,'Liste des DT-EIC-SITES'!D:D,'Liste des DT-EIC-SITES'!C:C)","v":"EIC Languedoc Roussillon"}]
[null,null,null,null,null,null,null,null,null,null,null,null,null,null,"Nîmes-Courbessac (ex-Triage)",{"$f":"_xlfn.XLOOKUP(O514,'Liste des DT-EIC-SITES'!D:D,'Liste des DT-EIC-SITES'!C:C)","v":"EIC Languedoc Roussillon"}]
[null,null,null,null,null,null,null,null,null,null,null,null,null,null,"Niort",{"$f":"_xlfn.XLOOKUP(O515,'Liste des DT-EIC-SITES'!D:D,'Liste des DT-EIC-SITES'!C:C)","v":"EIC Aquitaine Poitou Charentes"}]
[null,null,null,null,null,null,null,null,null,null,null,null,null,null,"Nogent-le-Rotrou",{"$f":"_xlfn.XLOOKUP(O516,'Liste des DT-EIC-SITES'!D:D,'Liste des DT-EIC-SITES'!C:C)","v":"EIC Centre Limousin"}]
[null,null,null,null,null,null,null,null,null,null,null,null,null,null,"Nogent-sur-Vernisson",{"$f":"_xlfn.XLOOKUP(O517,'Liste des DT-EIC-SITES'!D:D,'Liste des DT-EIC-SITES'!C:C)","v":"EIC Paris Sud Est"}]
[null,null,null,null,null,null,null,null,null,null,null,null,null,null,"Noisy-le-Sec",{"$f":"_xlfn.XLOOKUP(O518,'Liste des DT-EIC-SITES'!D:D,'Liste des DT-EIC-SITES'!C:C)","v":"EIC Paris Est Ouest Francilien"}]
[null,null,null,null,null,null,null,null,null,null,null,null,null,null,"Notre-Dame-de-Briançon",{"$f":"_xlfn.XLOOKUP(O519,'Liste des DT-EIC-SITES'!D:D,'Liste des DT-EIC-SITES'!C:C)","v":"EIC Alpes"}]
[null,null,null,null,null,null,null,null,null,null,null,null,null,null,"Noyelles-sur-Mer",{"$f":"_xlfn.XLOOKUP(O520,'Liste des DT-EIC-SITES'!D:D,'Liste des DT-EIC-SITES'!C:C)","v":"EIC Hauts de France"}]
[null,null,null,null,null,null,null,null,null,null,null,null,null,null,"Noyon",{"$f":"_xlfn.XLOOKUP(O521,'Liste des DT-EIC-SITES'!D:D,'Liste des DT-EIC-SITES'!C:C)","v":"EIC Hauts de France"}]
[null,null,null,null,null,null,null,null,null,null,null,null,null,null,"Nozières-Brignon",{"$f":"_xlfn.XLOOKUP(O522,'Liste des DT-EIC-SITES'!D:D,'Liste des DT-EIC-SITES'!C:C)","v":"EIC Languedoc Roussillon"}]
[null,null,null,null,null,null,null,null,null,null,null,null,null,null,"Nuits-sous-Ravières",{"$f":"_xlfn.XLOOKUP(O523,'Liste des DT-EIC-SITES'!D:D,'Liste des DT-EIC-SITES'!C:C)","v":"EIC Bourgogne Franche Comté"}]
[null,null,null,null,null,null,null,null,null,null,null,null,null,null,"Olette-Canaveilles-les-Bains",{"$f":"_xlfn.XLOOKUP(O524,'Liste des DT-EIC-SITES'!D:D,'Liste des DT-EIC-SITES'!C:C)","v":"EIC Languedoc Roussillon"}]
[null,null,null,null,null,null,null,null,null,null,null,null,null,null,"Orange",{"$f":"_xlfn.XLOOKUP(O525,'Liste des DT-EIC-SITES'!D:D,'Liste des DT-EIC-SITES'!C:C)","v":"EIC Provence Alpes Côte d'Azur"}]
[null,null,null,null,null,null,null,null,null,null,null,null,null,null,"Origny-Ste-Benoite",{"$f":"_xlfn.XLOOKUP(O526,'Liste des DT-EIC-SITES'!D:D,'Liste des DT-EIC-SITES'!C:C)","v":"EIC Hauts de France"}]
[null,null,null,null,null,null,null,null,null,null,null,null,null,null,"Orly-Ville",{"$f":"_xlfn.XLOOKUP(O527,'Liste des DT-EIC-SITES'!D:D,'Liste des DT-EIC-SITES'!C:C)","v":"EIC Paris Rive Gauche"}]
[null,null,null,null,null,null,null,null,null,null,null,null,null,null,"Ormoy-Villers",{"$f":"_xlfn.XLOOKUP(O528,'Liste des DT-EIC-SITES'!D:D,'Liste des DT-EIC-SITES'!C:C)","v":"EIC Paris Nord"}]
[null,null,null,null,null,null,null,null,null,null,null,null,null,null,"Oullins",{"$f":"_xlfn.XLOOKUP(O529,'Liste des DT-EIC-SITES'!D:D,'Liste des DT-EIC-SITES'!C:C)","v":"EIC Rhône Alpes Lyon"}]
[null,null,null,null,null,null,null,null,null,null,null,null,null,null,"Outreau",{"$f":"_xlfn.XLOOKUP(O530,'Liste des DT-EIC-SITES'!D:D,'Liste des DT-EIC-SITES'!C:C)","v":"EIC Hauts de France"}]
[null,null,null,null,null,null,null,null,null,null,null,null,null,null,"Pagny-sur-Meuse",{"$f":"_xlfn.XLOOKUP(O531,'Liste des DT-EIC-SITES'!D:D,'Liste des DT-EIC-SITES'!C:C)","v":"EIC Lorraine Champagne Ardenne"}]
[null,null,null,null,null,null,null,null,null,null,null,null,null,null,"Pagny-sur-Moselle",{"$f":"_xlfn.XLOOKUP(O532,'Liste des DT-EIC-SITES'!D:D,'Liste des DT-EIC-SITES'!C:C)","v":"EIC Lorraine Champagne Ardenne"}]
[null,null,null,null,null,null,null,null,null,null,null,null,null,null,"Pamiers",{"$f":"_xlfn.XLOOKUP(O533,'Liste des DT-EIC-SITES'!D:D,'Liste des DT-EIC-SITES'!C:C)","v":"EIC Midi Pyrénées"}]
[null,null,null,null,null,null,null,null,null,null,null,null,null,null,"Pantin",{"$f":"_xlfn.XLOOKUP(O534,'Liste des DT-EIC-SITES'!D:D,'Liste des DT-EIC-SITES'!C:C)","v":"EIC Paris Est Ouest Francilien"}]
[null,null,null,null,null,null,null,null,null,null,null,null,null,null,"Paray-le-Monial",{"$f":"_xlfn.XLOOKUP(O535,'Liste des DT-EIC-SITES'!D:D,'Liste des DT-EIC-SITES'!C:C)","v":"EIC Bourgogne Franche Comté"}]
[null,null,null,null,null,null,null,null,null,null,null,null,null,null,"Parc-des-Expositions",{"$f":"_xlfn.XLOOKUP(O536,'Liste des DT-EIC-SITES'!D:D,'Liste des DT-EIC-SITES'!C:C)","v":"EIC Paris Nord"}]
[null,null,null,null,null,null,null,null,null,null,null,null,null,null,"Paris-Batignolles",{"$f":"_xlfn.XLOOKUP(O537,'Liste des DT-EIC-SITES'!D:D,'Liste des DT-EIC-SITES'!C:C)","v":"EIC Paris Est Ouest Francilien"}]
[null,null,null,null,null,null,null,null,null,null,null,null,null,null,"Paris-Bercy",{"$f":"_xlfn.XLOOKUP(O538,'Liste des DT-EIC-SITES'!D:D,'Liste des DT-EIC-SITES'!C:C)","v":"EIC Paris Sud Est"}]
[null,null,null,null,null,null,null,null,null,null,null,null,null,null,"Paris-Bercy-Conflans",{"$f":"_xlfn.XLOOKUP(O539,'Liste des DT-EIC-SITES'!D:D,'Liste des DT-EIC-SITES'!C:C)","v":"EIC Paris Sud Est"}]
[null,null,null,null,null,null,null,null,null,null,null,null,null,null,"Paris-Gare-de-Lyon",{"$f":"_xlfn.XLOOKUP(O540,'Liste des DT-EIC-SITES'!D:D,'Liste des DT-EIC-SITES'!C:C)","v":"EIC Paris Sud Est"}]
[null,null,null,null,null,null,null,null,null,null,null,null,null,null,"Paris-La Chapelle",{"$f":"_xlfn.XLOOKUP(O541,'Liste des DT-EIC-SITES'!D:D,'Liste des DT-EIC-SITES'!C:C)","v":"EIC Paris Nord"}]
[null,null,null,null,null,null,null,null,null,null,null,null,null,null,"Paris-Nord",{"$f":"_xlfn.XLOOKUP(O542,'Liste des DT-EIC-SITES'!D:D,'Liste des DT-EIC-SITES'!C:C)","v":"EIC Paris Nord"}]
[null,null,null,null,null,null,null,null,null,null,null,null,null,null,"Paris-St-Lazare",{"$f":"_xlfn.XLOOKUP(O543,'Liste des DT-EIC-SITES'!D:D,'Liste des DT-EIC-SITES'!C:C)","v":"EIC Paris Est Ouest Francilien"}]
[null,null,null,null,null,null,null,null,null,null,null,null,null,null,"Paris-Tolbiac",{"$f":"_xlfn.XLOOKUP(O544,'Liste des DT-EIC-SITES'!D:D,'Liste des DT-EIC-SITES'!C:C)","v":"EIC Paris Rive Gauche"}]
[null,null,null,null,null,null,null,null,null,null,null,null,null,null,"Paris-Vaugirard",{"$f":"_xlfn.XLOOKUP(O545,'Liste des DT-EIC-SITES'!D:D,'Liste des DT-EIC-SITES'!C:C)","v":"EIC Paris Rive Gauche"}]
[null,null,null,null,null,null,null,null,null,null,null,null,null,null,"Parthenay",{"$f":"_xlfn.XLOOKUP(O546,'Liste des DT-EIC-SITES'!D:D,'Liste des DT-EIC-SITES'!C:C)","v":"EIC Aquitaine Poitou Charentes"}]
[null,null,null,null,null,null,null,null,null,null,null,null,null,null,"Pas-des-Lanciers",{"$f":"_xlfn.XLOOKUP(O547,'Liste des DT-EIC-SITES'!D:D,'Liste des DT-EIC-SITES'!C:C)","v":"EIC Provence Alpes Côte d'Azur"}]
[null,null,null,null,null,null,null,null,null,null,null,null,null,null,"Pau",{"$f":"_xlfn.XLOOKUP(O548,'Liste des DT-EIC-SITES'!D:D,'Liste des DT-EIC-SITES'!C:C)","v":"EIC Aquitaine Poitou Charentes"}]
[null,null,null,null,null,null,null,null,null,null,null,null,null,null,"Pauillac",{"$f":"_xlfn.XLOOKUP(O549,'Liste des DT-EIC-SITES'!D:D,'Liste des DT-EIC-SITES'!C:C)","v":"EIC Aquitaine Poitou Charentes"}]
[null,null,null,null,null,null,null,null,null,null,null,null,null,null,"Penhoët",{"$f":"_xlfn.XLOOKUP(O550,'Liste des DT-EIC-SITES'!D:D,'Liste des DT-EIC-SITES'!C:C)","v":"EIC Bretagne Pays de la Loire"}]
[null,null,null,null,null,null,null,null,null,null,null,null,null,null,"Périgueux",{"$f":"_xlfn.XLOOKUP(O551,'Liste des DT-EIC-SITES'!D:D,'Liste des DT-EIC-SITES'!C:C)","v":"EIC Aquitaine Poitou Charentes"}]
[null,null,null,null,null,null,null,null,null,null,null,null,null,null,"Perpignan",{"$f":"_xlfn.XLOOKUP(O552,'Liste des DT-EIC-SITES'!D:D,'Liste des DT-EIC-SITES'!C:C)","v":"EIC Languedoc Roussillon"}]
[null,null,null,null,null,null,null,null,null,null,null,null,null,null,"Perpignan-Roussillon",{"$f":"_xlfn.XLOOKUP(O553,'Liste des DT-EIC-SITES'!D:D,'Liste des DT-EIC-SITES'!C:C)","v":"EIC Languedoc Roussillon"}]
[null,null,null,null,null,null,null,null,null,null,null,null,null,null,"Perrignier",{"$f":"_xlfn.XLOOKUP(O554,'Liste des DT-EIC-SITES'!D:D,'Liste des DT-EIC-SITES'!C:C)","v":"EIC Alpes"}]
[null,null,null,null,null,null,null,null,null,null,null,null,null,null,"Persan-Beaumont",{"$f":"_xlfn.XLOOKUP(O555,'Liste des DT-EIC-SITES'!D:D,'Liste des DT-EIC-SITES'!C:C)","v":"EIC Paris Nord"}]
[null,null,null,null,null,null,null,null,null,null,null,null,null,null,"Pertuis",{"$f":"_xlfn.XLOOKUP(O556,'Liste des DT-EIC-SITES'!D:D,'Liste des DT-EIC-SITES'!C:C)","v":"EIC Provence Alpes Côte d'Azur"}]
[null,null,null,null,null,null,null,null,null,null,null,null,null,null,"Petit-Couronne",{"$f":"_xlfn.XLOOKUP(O557,'Liste des DT-EIC-SITES'!D:D,'Liste des DT-EIC-SITES'!C:C)","v":"EIC Normandie"}]
[null,null,null,null,null,null,null,null,null,null,null,null,null,null,"Petit-Quevilly",{"$f":"_xlfn.XLOOKUP(O558,'Liste des DT-EIC-SITES'!D:D,'Liste des DT-EIC-SITES'!C:C)","v":"EIC Normandie"}]
[null,null,null,null,null,null,null,null,null,null,null,null,null,null,"Peyraud",{"$f":"_xlfn.XLOOKUP(O559,'Liste des DT-EIC-SITES'!D:D,'Liste des DT-EIC-SITES'!C:C)","v":"EIC Rhône Alpes Lyon"}]
[null,null,null,null,null,null,null,null,null,null,null,null,null,null,"Pierrelatte",{"$f":"_xlfn.XLOOKUP(O560,'Liste des DT-EIC-SITES'!D:D,'Liste des DT-EIC-SITES'!C:C)","v":"EIC Rhône Alpes Lyon"}]
[null,null,null,null,null,null,null,null,null,null,null,null,null,null,"Pithiviers",{"$f":"_xlfn.XLOOKUP(O561,'Liste des DT-EIC-SITES'!D:D,'Liste des DT-EIC-SITES'!C:C)","v":"EIC Centre Limousin"}]
[null,null,null,null,null,null,null,null,null,null,null,null,null,null,"Plaisir-Grignon",{"$f":"_xlfn.XLOOKUP(O562,'Liste des DT-EIC-SITES'!D:D,'Liste des DT-EIC-SITES'!C:C)","v":"EIC Paris Rive Gauche"}]
[null,null,null,null,null,null,null,null,null,null,null,null,null,null,"Plestan",{"$f":"_xlfn.XLOOKUP(O563,'Liste des DT-EIC-SITES'!D:D,'Liste des DT-EIC-SITES'!C:C)","v":"EIC Bretagne Pays de la Loire"}]
[null,null,null,null,null,null,null,null,null,null,null,null,null,null,"Pleyber-Christ",{"$f":"_xlfn.XLOOKUP(O564,'Liste des DT-EIC-SITES'!D:D,'Liste des DT-EIC-SITES'!C:C)","v":"EIC Bretagne Pays de la Loire"}]
[null,null,null,null,null,null,null,null,null,null,null,null,null,null,"Plouaret-Trégor",{"$f":"_xlfn.XLOOKUP(O565,'Liste des DT-EIC-SITES'!D:D,'Liste des DT-EIC-SITES'!C:C)","v":"EIC Bretagne Pays de la Loire"}]
[null,null,null,null,null,null,null,null,null,null,null,null,null,null,"Poissy",{"$f":"_xlfn.XLOOKUP(O566,'Liste des DT-EIC-SITES'!D:D,'Liste des DT-EIC-SITES'!C:C)","v":"EIC Paris Est Ouest Francilien"}]
[null,null,null,null,null,null,null,null,null,null,null,null,null,null,"Poitiers",{"$f":"_xlfn.XLOOKUP(O567,'Liste des DT-EIC-SITES'!D:D,'Liste des DT-EIC-SITES'!C:C)","v":"EIC Aquitaine Poitou Charentes"}]
[null,null,null,null,null,null,null,null,null,null,null,null,null,null,"Poix-de-Picardie",{"$f":"_xlfn.XLOOKUP(O568,'Liste des DT-EIC-SITES'!D:D,'Liste des DT-EIC-SITES'!C:C)","v":"EIC Hauts de France"}]
[null,null,null,null,null,null,null,null,null,null,null,null,null,null,"Pont-à-Mousson",{"$f":"_xlfn.XLOOKUP(O569,'Liste des DT-EIC-SITES'!D:D,'Liste des DT-EIC-SITES'!C:C)","v":"EIC Lorraine Champagne Ardenne"}]
[null,null,null,null,null,null,null,null,null,null,null,null,null,null,"Pontarlier",{"$f":"_xlfn.XLOOKUP(O570,'Liste des DT-EIC-SITES'!D:D,'Liste des DT-EIC-SITES'!C:C)","v":"EIC Bourgogne Franche Comté"}]
[null,null,null,null,null,null,null,null,null,null,null,null,null,null,"Pont-à-Vendin",{"$f":"_xlfn.XLOOKUP(O571,'Liste des DT-EIC-SITES'!D:D,'Liste des DT-EIC-SITES'!C:C)","v":"EIC Hauts de France"}]
[null,null,null,null,null,null,null,null,null,null,null,null,null,null,"Pont-Cardinet",{"$f":"_xlfn.XLOOKUP(O572,'Liste des DT-EIC-SITES'!D:D,'Liste des DT-EIC-SITES'!C:C)","v":"EIC Paris Est Ouest Francilien"}]
[null,null,null,null,null,null,null,null,null,null,null,null,null,null,"Pontcharra-sur-Breda-Allevard",{"$f":"_xlfn.XLOOKUP(O573,'Liste des DT-EIC-SITES'!D:D,'Liste des DT-EIC-SITES'!C:C)","v":"EIC Alpes"}]
[null,null,null,null,null,null,null,null,null,null,null,null,null,null,"Pont-de-Claix",{"$f":"_xlfn.XLOOKUP(O574,'Liste des DT-EIC-SITES'!D:D,'Liste des DT-EIC-SITES'!C:C)","v":"EIC Alpes"}]
[null,null,null,null,null,null,null,null,null,null,null,null,null,null,"Pont-de-Dore",{"$f":"_xlfn.XLOOKUP(O575,'Liste des DT-EIC-SITES'!D:D,'Liste des DT-EIC-SITES'!C:C)","v":"EIC Auvergne Nivernais"}]
[null,null,null,null,null,null,null,null,null,null,null,null,null,null,"Pont-de-l'Arche",{"$f":"_xlfn.XLOOKUP(O576,'Liste des DT-EIC-SITES'!D:D,'Liste des DT-EIC-SITES'!C:C)","v":"EIC Normandie"}]
[null,null,null,null,null,null,null,null,null,null,null,null,null,null,"Pontivy",{"$f":"_xlfn.XLOOKUP(O577,'Liste des DT-EIC-SITES'!D:D,'Liste des DT-EIC-SITES'!C:C)","v":"EIC Bretagne Pays de la Loire"}]
[null,null,null,null,null,null,null,null,null,null,null,null,null,null,"Pontoise",{"$f":"_xlfn.XLOOKUP(O578,'Liste des DT-EIC-SITES'!D:D,'Liste des DT-EIC-SITES'!C:C)","v":"EIC Paris Nord"}]
[null,null,null,null,null,null,null,null,null,null,null,null,null,null,"Pont-St-Vincent",{"$f":"_xlfn.XLOOKUP(O579,'Liste des DT-EIC-SITES'!D:D,'Liste des DT-EIC-SITES'!C:C)","v":"EIC Lorraine Champagne Ardenne"}]
[null,null,null,null,null,null,null,null,null,null,null,null,null,null,"Pornic",{"$f":"_xlfn.XLOOKUP(O580,'Liste des DT-EIC-SITES'!D:D,'Liste des DT-EIC-SITES'!C:C)","v":"EIC Bretagne Pays de la Loire"}]
[null,null,null,null,null,null,null,null,null,null,null,null,null,null,"Port-Boulet",{"$f":"_xlfn.XLOOKUP(O581,'Liste des DT-EIC-SITES'!D:D,'Liste des DT-EIC-SITES'!C:C)","v":"EIC Centre Limousin"}]
[null,null,null,null,null,null,null,null,null,null,null,null,null,null,"Port-de-Piles",{"$f":"_xlfn.XLOOKUP(O582,'Liste des DT-EIC-SITES'!D:D,'Liste des DT-EIC-SITES'!C:C)","v":"EIC Centre Limousin"}]
[null,null,null,null,null,null,null,null,null,null,null,null,null,null,"Portes",{"$f":"_xlfn.XLOOKUP(O583,'Liste des DT-EIC-SITES'!D:D,'Liste des DT-EIC-SITES'!C:C)","v":"EIC Rhône Alpes Lyon"}]
[null,null,null,null,null,null,null,null,null,null,null,null,null,null,"Portet-St-Simon",{"$f":"_xlfn.XLOOKUP(O584,'Liste des DT-EIC-SITES'!D:D,'Liste des DT-EIC-SITES'!C:C)","v":"EIC Midi Pyrénées"}]
[null,null,null,null,null,null,null,null,null,null,null,null,null,null,"Port-la-Nouvelle",{"$f":"_xlfn.XLOOKUP(O585,'Liste des DT-EIC-SITES'!D:D,'Liste des DT-EIC-SITES'!C:C)","v":"EIC Languedoc Roussillon"}]
[null,null,null,null,null,null,null,null,null,null,null,null,null,null,"Port-Sec-de-Pacy",{"$f":"_xlfn.XLOOKUP(O586,'Liste des DT-EIC-SITES'!D:D,'Liste des DT-EIC-SITES'!C:C)","v":"EIC Paris Sud Est"}]
[null,null,null,null,null,null,null,null,null,null,null,null,null,null,"Prouvy-Thiant",{"$f":"_xlfn.XLOOKUP(O587,'Liste des DT-EIC-SITES'!D:D,'Liste des DT-EIC-SITES'!C:C)","v":"EIC Hauts de France"}]
[null,null,null,null,null,null,null,null,null,null,null,null,null,null,"Provins",{"$f":"_xlfn.XLOOKUP(O588,'Liste des DT-EIC-SITES'!D:D,'Liste des DT-EIC-SITES'!C:C)","v":"EIC Paris Est Ouest Francilien"}]
[null,null,null,null,null,null,null,null,null,null,null,null,null,null,"Puy-Guillaume",{"$f":"_xlfn.XLOOKUP(O589,'Liste des DT-EIC-SITES'!D:D,'Liste des DT-EIC-SITES'!C:C)","v":"EIC Auvergne Nivernais"}]
[null,null,null,null,null,null,null,null,null,null,null,null,null,null,"Puyoô",{"$f":"_xlfn.XLOOKUP(O590,'Liste des DT-EIC-SITES'!D:D,'Liste des DT-EIC-SITES'!C:C)","v":"EIC Aquitaine Poitou Charentes"}]
[null,null,null,null,null,null,null,null,null,null,null,null,null,null,"Quimper",{"$f":"_xlfn.XLOOKUP(O591,'Liste des DT-EIC-SITES'!D:D,'Liste des DT-EIC-SITES'!C:C)","v":"EIC Bretagne Pays de la Loire"}]
[null,null,null,null,null,null,null,null,null,null,null,null,null,null,"Rambouillet",{"$f":"_xlfn.XLOOKUP(O592,'Liste des DT-EIC-SITES'!D:D,'Liste des DT-EIC-SITES'!C:C)","v":"EIC Paris Rive Gauche"}]
[null,null,null,null,null,null,null,null,null,null,null,null,null,null,"Raon-l'Étape",{"$f":"_xlfn.XLOOKUP(O593,'Liste des DT-EIC-SITES'!D:D,'Liste des DT-EIC-SITES'!C:C)","v":"EIC Lorraine Champagne Ardenne"}]
[null,null,null,null,null,null,null,null,null,null,null,null,null,null,"Réding",{"$f":"_xlfn.XLOOKUP(O594,'Liste des DT-EIC-SITES'!D:D,'Liste des DT-EIC-SITES'!C:C)","v":"EIC Alsace"}]
[null,null,null,null,null,null,null,null,null,null,null,null,null,null,"Redon",{"$f":"_xlfn.XLOOKUP(O595,'Liste des DT-EIC-SITES'!D:D,'Liste des DT-EIC-SITES'!C:C)","v":"EIC Bretagne Pays de la Loire"}]
[null,null,null,null,null,null,null,null,null,null,null,null,null,null,"Reignac",{"$f":"_xlfn.XLOOKUP(O596,'Liste des DT-EIC-SITES'!D:D,'Liste des DT-EIC-SITES'!C:C)","v":"EIC Centre Limousin"}]
[null,null,null,null,null,null,null,null,null,null,null,null,null,null,"Reims",{"$f":"_xlfn.XLOOKUP(O597,'Liste des DT-EIC-SITES'!D:D,'Liste des DT-EIC-SITES'!C:C)","v":"EIC Lorraine Champagne Ardenne"}]
[null,null,null,null,null,null,null,null,null,null,null,null,null,null,"Remiremont",{"$f":"_xlfn.XLOOKUP(O598,'Liste des DT-EIC-SITES'!D:D,'Liste des DT-EIC-SITES'!C:C)","v":"EIC Lorraine Champagne Ardenne"}]
[null,null,null,null,null,null,null,null,null,null,null,null,null,null,"Remoulins-Pont-du-Gard",{"$f":"_xlfn.XLOOKUP(O599,'Liste des DT-EIC-SITES'!D:D,'Liste des DT-EIC-SITES'!C:C)","v":"EIC Languedoc Roussillon"}]
[null,null,null,null,null,null,null,null,null,null,null,null,null,null,"Rennes",{"$f":"_xlfn.XLOOKUP(O600,'Liste des DT-EIC-SITES'!D:D,'Liste des DT-EIC-SITES'!C:C)","v":"EIC Bretagne Pays de la Loire"}]
[null,null,null,null,null,null,null,null,null,null,null,null,null,null,"Revigny",{"$f":"_xlfn.XLOOKUP(O601,'Liste des DT-EIC-SITES'!D:D,'Liste des DT-EIC-SITES'!C:C)","v":"EIC Lorraine Champagne Ardenne"}]
[null,null,null,null,null,null,null,null,null,null,null,null,null,null,"Ribécourt",{"$f":"_xlfn.XLOOKUP(O602,'Liste des DT-EIC-SITES'!D:D,'Liste des DT-EIC-SITES'!C:C)","v":"EIC Paris Nord"}]
[null,null,null,null,null,null,null,null,null,null,null,null,null,null,"Riom-Châtel-Guyon",{"$f":"_xlfn.XLOOKUP(O603,'Liste des DT-EIC-SITES'!D:D,'Liste des DT-EIC-SITES'!C:C)","v":"EIC Auvergne Nivernais"}]
[null,null,null,null,null,null,null,null,null,null,null,null,null,null,"Rion-des-Landes",{"$f":"_xlfn.XLOOKUP(O604,'Liste des DT-EIC-SITES'!D:D,'Liste des DT-EIC-SITES'!C:C)","v":"EIC Aquitaine Poitou Charentes"}]
[null,null,null,null,null,null,null,null,null,null,null,null,null,null,"Ris-Orangis",{"$f":"_xlfn.XLOOKUP(O605,'Liste des DT-EIC-SITES'!D:D,'Liste des DT-EIC-SITES'!C:C)","v":"EIC Paris Sud Est"}]
[null,null,null,null,null,null,null,null,null,null,null,null,null,null,"Rive-de-Gier",{"$f":"_xlfn.XLOOKUP(O606,'Liste des DT-EIC-SITES'!D:D,'Liste des DT-EIC-SITES'!C:C)","v":"EIC Rhône Alpes Lyon"}]
[null,null,null,null,null,null,null,null,null,null,null,null,null,null,"Rives",{"$f":"_xlfn.XLOOKUP(O607,'Liste des DT-EIC-SITES'!D:D,'Liste des DT-EIC-SITES'!C:C)","v":"EIC Alpes"}]
[null,null,null,null,null,null,null,null,null,null,null,null,null,null,"Rivesaltes",{"$f":"_xlfn.XLOOKUP(O608,'Liste des DT-EIC-SITES'!D:D,'Liste des DT-EIC-SITES'!C:C)","v":"EIC Languedoc Roussillon"}]
[null,null,null,null,null,null,null,null,null,null,null,null,null,null,"RNUR Accès Est",{"$f":"_xlfn.XLOOKUP(O609,'Liste des DT-EIC-SITES'!D:D,'Liste des DT-EIC-SITES'!C:C)","v":"EIC Paris Est Ouest Francilien"}]
[null,null,null,null,null,null,null,null,null,null,null,null,null,null,"Roanne",{"$f":"_xlfn.XLOOKUP(O610,'Liste des DT-EIC-SITES'!D:D,'Liste des DT-EIC-SITES'!C:C)","v":"EIC Rhône Alpes Lyon"}]
[null,null,null,null,null,null,null,null,null,null,null,null,null,null,"Rochefort",{"$f":"_xlfn.XLOOKUP(O611,'Liste des DT-EIC-SITES'!D:D,'Liste des DT-EIC-SITES'!C:C)","v":"EIC Aquitaine Poitou Charentes"}]
[null,null,null,null,null,null,null,null,null,null,null,null,null,null,"Rodez",{"$f":"_xlfn.XLOOKUP(O612,'Liste des DT-EIC-SITES'!D:D,'Liste des DT-EIC-SITES'!C:C)","v":"EIC Midi Pyrénées"}]
[null,null,null,null,null,null,null,null,null,null,null,null,null,null,"Rognac",{"$f":"_xlfn.XLOOKUP(O613,'Liste des DT-EIC-SITES'!D:D,'Liste des DT-EIC-SITES'!C:C)","v":"EIC Provence Alpes Côte d'Azur"}]
[null,null,null,null,null,null,null,null,null,null,null,null,null,null,"Romans-Bourg-de-Péage",{"$f":"_xlfn.XLOOKUP(O614,'Liste des DT-EIC-SITES'!D:D,'Liste des DT-EIC-SITES'!C:C)","v":"EIC Rhône Alpes Lyon"}]
[null,null,null,null,null,null,null,null,null,null,null,null,null,null,"Rosny-sur-Seine",{"$f":"_xlfn.XLOOKUP(O615,'Liste des DT-EIC-SITES'!D:D,'Liste des DT-EIC-SITES'!C:C)","v":"EIC Paris Est Ouest Francilien"}]
[null,null,null,null,null,null,null,null,null,null,null,null,null,null,"Rosporden",{"$f":"_xlfn.XLOOKUP(O616,'Liste des DT-EIC-SITES'!D:D,'Liste des DT-EIC-SITES'!C:C)","v":"EIC Bretagne Pays de la Loire"}]
[null,null,null,null,null,null,null,null,null,null,null,null,null,null,"Rouen-Orléans",{"$f":"_xlfn.XLOOKUP(O617,'Liste des DT-EIC-SITES'!D:D,'Liste des DT-EIC-SITES'!C:C)","v":"EIC Normandie"}]
[null,null,null,null,null,null,null,null,null,null,null,null,null,null,"Rouen-Rive-Droite",{"$f":"_xlfn.XLOOKUP(O618,'Liste des DT-EIC-SITES'!D:D,'Liste des DT-EIC-SITES'!C:C)","v":"EIC Normandie"}]
[null,null,null,null,null,null,null,null,null,null,null,null,null,null,"Rouxmesnil",{"$f":"_xlfn.XLOOKUP(O619,'Liste des DT-EIC-SITES'!D:D,'Liste des DT-EIC-SITES'!C:C)","v":"EIC Normandie"}]
[null,null,null,null,null,null,null,null,null,null,null,null,null,null,"Royan",{"$f":"_xlfn.XLOOKUP(O620,'Liste des DT-EIC-SITES'!D:D,'Liste des DT-EIC-SITES'!C:C)","v":"EIC Aquitaine Poitou Charentes"}]
[null,null,null,null,null,null,null,null,null,null,null,null,null,null,"Saales",{"$f":"_xlfn.XLOOKUP(O621,'Liste des DT-EIC-SITES'!D:D,'Liste des DT-EIC-SITES'!C:C)","v":"EIC Alsace"}]
[null,null,null,null,null,null,null,null,null,null,null,null,null,null,"Sablé-sur-Sarthe",{"$f":"_xlfn.XLOOKUP(O622,'Liste des DT-EIC-SITES'!D:D,'Liste des DT-EIC-SITES'!C:C)","v":"EIC Bretagne Pays de la Loire"}]
[null,null,null,null,null,null,null,null,null,null,null,null,null,null,"Saillagouse",{"$f":"_xlfn.XLOOKUP(O623,'Liste des DT-EIC-SITES'!D:D,'Liste des DT-EIC-SITES'!C:C)","v":"EIC Languedoc Roussillon"}]
[null,null,null,null,null,null,null,null,null,null,null,null,null,null,"Saincaize",{"$f":"_xlfn.XLOOKUP(O624,'Liste des DT-EIC-SITES'!D:D,'Liste des DT-EIC-SITES'!C:C)","v":"EIC Auvergne Nivernais"}]
[null,null,null,null,null,null,null,null,null,null,null,null,null,null,"Saintes",{"$f":"_xlfn.XLOOKUP(O625,'Liste des DT-EIC-SITES'!D:D,'Liste des DT-EIC-SITES'!C:C)","v":"EIC Aquitaine Poitou Charentes"}]
[null,null,null,null,null,null,null,null,null,null,null,null,null,null,"Salbris",{"$f":"_xlfn.XLOOKUP(O626,'Liste des DT-EIC-SITES'!D:D,'Liste des DT-EIC-SITES'!C:C)","v":"EIC Centre Limousin"}]
[null,null,null,null,null,null,null,null,null,null,null,null,null,null,"Saleux",{"$f":"_xlfn.XLOOKUP(O627,'Liste des DT-EIC-SITES'!D:D,'Liste des DT-EIC-SITES'!C:C)","v":"EIC Hauts de France"}]
[null,null,null,null,null,null,null,null,null,null,null,null,null,null,"Sallanches-Combloux-Megève",{"$f":"_xlfn.XLOOKUP(O628,'Liste des DT-EIC-SITES'!D:D,'Liste des DT-EIC-SITES'!C:C)","v":"EIC Alpes"}]
[null,null,null,null,null,null,null,null,null,null,null,null,null,null,"Sarliève-Cournon",{"$f":"_xlfn.XLOOKUP(O629,'Liste des DT-EIC-SITES'!D:D,'Liste des DT-EIC-SITES'!C:C)","v":"EIC Auvergne Nivernais"}]
[null,null,null,null,null,null,null,null,null,null,null,null,null,null,"Sarrebourg",{"$f":"_xlfn.XLOOKUP(O630,'Liste des DT-EIC-SITES'!D:D,'Liste des DT-EIC-SITES'!C:C)","v":"EIC Alsace"}]
[null,null,null,null,null,null,null,null,null,null,null,null,null,null,"Sarreguemines",{"$f":"_xlfn.XLOOKUP(O631,'Liste des DT-EIC-SITES'!D:D,'Liste des DT-EIC-SITES'!C:C)","v":"EIC Lorraine Champagne Ardenne"}]
[null,null,null,null,null,null,null,null,null,null,null,null,null,null,"Sathonay-Rillieux",{"$f":"_xlfn.XLOOKUP(O632,'Liste des DT-EIC-SITES'!D:D,'Liste des DT-EIC-SITES'!C:C)","v":"EIC Rhône Alpes Lyon"}]
[null,null,null,null,null,null,null,null,null,null,null,null,null,null,"Saumur",{"$f":"_xlfn.XLOOKUP(O633,'Liste des DT-EIC-SITES'!D:D,'Liste des DT-EIC-SITES'!C:C)","v":"EIC Bretagne Pays de la Loire"}]
[null,null,null,null,null,null,null,null,null,null,null,null,null,null,"Saverdun",{"$f":"_xlfn.XLOOKUP(O634,'Liste des DT-EIC-SITES'!D:D,'Liste des DT-EIC-SITES'!C:C)","v":"EIC Midi Pyrénées"}]
[null,null,null,null,null,null,null,null,null,null,null,null,null,null,"Saverne",{"$f":"_xlfn.XLOOKUP(O635,'Liste des DT-EIC-SITES'!D:D,'Liste des DT-EIC-SITES'!C:C)","v":"EIC Alsace"}]
[null,null,null,null,null,null,null,null,null,null,null,null,null,null,"SCV (Poste 1)",{"$f":"_xlfn.XLOOKUP(O636,'Liste des DT-EIC-SITES'!D:D,'Liste des DT-EIC-SITES'!C:C)","v":"EIC Bretagne Pays de la Loire"}]
[null,null,null,null,null,null,null,null,null,null,null,null,null,null,"Sedan",{"$f":"_xlfn.XLOOKUP(O637,'Liste des DT-EIC-SITES'!D:D,'Liste des DT-EIC-SITES'!C:C)","v":"EIC Lorraine Champagne Ardenne"}]
[null,null,null,null,null,null,null,null,null,null,null,null,null,null,"Sélestat",{"$f":"_xlfn.XLOOKUP(O638,'Liste des DT-EIC-SITES'!D:D,'Liste des DT-EIC-SITES'!C:C)","v":"EIC Alsace"}]
[null,null,null,null,null,null,null,null,null,null,null,null,null,null,"Sens",{"$f":"_xlfn.XLOOKUP(O639,'Liste des DT-EIC-SITES'!D:D,'Liste des DT-EIC-SITES'!C:C)","v":"EIC Paris Sud Est"}]
[null,null,null,null,null,null,null,null,null,null,null,null,null,null,"Sérignac",{"$f":"_xlfn.XLOOKUP(O640,'Liste des DT-EIC-SITES'!D:D,'Liste des DT-EIC-SITES'!C:C)","v":"EIC Midi Pyrénées"}]
[null,null,null,null,null,null,null,null,null,null,null,null,null,null,"Serqueux",{"$f":"_xlfn.XLOOKUP(O641,'Liste des DT-EIC-SITES'!D:D,'Liste des DT-EIC-SITES'!C:C)","v":"EIC Normandie"}]
[null,null,null,null,null,null,null,null,null,null,null,null,null,null,"Serquigny",{"$f":"_xlfn.XLOOKUP(O642,'Liste des DT-EIC-SITES'!D:D,'Liste des DT-EIC-SITES'!C:C)","v":"EIC Normandie"}]
[null,null,null,null,null,null,null,null,null,null,null,null,null,null,"Sète",{"$f":"_xlfn.XLOOKUP(O643,'Liste des DT-EIC-SITES'!D:D,'Liste des DT-EIC-SITES'!C:C)","v":"EIC Languedoc Roussillon"}]
[null,null,null,null,null,null,null,null,null,null,null,null,null,null,"Sète (IE)",{"$f":"_xlfn.XLOOKUP(O644,'Liste des DT-EIC-SITES'!D:D,'Liste des DT-EIC-SITES'!C:C)","v":"EIC Languedoc Roussillon"}]
[null,null,null,null,null,null,null,null,null,null,null,null,null,null,"Sète-Voies-des-Quais",{"$f":"_xlfn.XLOOKUP(O645,'Liste des DT-EIC-SITES'!D:D,'Liste des DT-EIC-SITES'!C:C)","v":"EIC Languedoc Roussillon"}]
[null,null,null,null,null,null,null,null,null,null,null,null,null,null,"Seurre",{"$f":"_xlfn.XLOOKUP(O646,'Liste des DT-EIC-SITES'!D:D,'Liste des DT-EIC-SITES'!C:C)","v":"EIC Bourgogne Franche Comté"}]
[null,null,null,null,null,null,null,null,null,null,null,null,null,null,"Sèvres-Rive-Gauche",{"$f":"_xlfn.XLOOKUP(O647,'Liste des DT-EIC-SITES'!D:D,'Liste des DT-EIC-SITES'!C:C)","v":"EIC Paris Rive Gauche"}]
[null,null,null,null,null,null,null,null,null,null,null,null,null,null,"Sibelin",{"$f":"_xlfn.XLOOKUP(O648,'Liste des DT-EIC-SITES'!D:D,'Liste des DT-EIC-SITES'!C:C)","v":"EIC Rhône Alpes Lyon"}]
[null,null,null,null,null,null,null,null,null,null,null,null,null,null,"Sireuil",{"$f":"_xlfn.XLOOKUP(O649,'Liste des DT-EIC-SITES'!D:D,'Liste des DT-EIC-SITES'!C:C)","v":"EIC Aquitaine Poitou Charentes"}]
[null,null,null,null,null,null,null,null,null,null,null,null,null,null,"Sisteron",{"$f":"_xlfn.XLOOKUP(O650,'Liste des DT-EIC-SITES'!D:D,'Liste des DT-EIC-SITES'!C:C)","v":"EIC Provence Alpes Côte d'Azur"}]
[null,null,null,null,null,null,null,null,null,null,null,null,null,null,"Soissons",{"$f":"_xlfn.XLOOKUP(O651,'Liste des DT-EIC-SITES'!D:D,'Liste des DT-EIC-SITES'!C:C)","v":"EIC Hauts de France"}]
[null,null,null,null,null,null,null,null,null,null,null,null,null,null,"Solférino",{"$f":"_xlfn.XLOOKUP(O652,'Liste des DT-EIC-SITES'!D:D,'Liste des DT-EIC-SITES'!C:C)","v":"EIC Aquitaine Poitou Charentes"}]
[null,null,null,null,null,null,null,null,null,null,null,null,null,null,"Somain",{"$f":"_xlfn.XLOOKUP(O653,'Liste des DT-EIC-SITES'!D:D,'Liste des DT-EIC-SITES'!C:C)","v":"EIC Hauts de France"}]
[null,null,null,null,null,null,null,null,null,null,null,null,null,null,"Sorgues-Châteauneuf-du-Pape",{"$f":"_xlfn.XLOOKUP(O654,'Liste des DT-EIC-SITES'!D:D,'Liste des DT-EIC-SITES'!C:C)","v":"EIC Provence Alpes Côte d'Azur"}]
[null,null,null,null,null,null,null,null,null,null,null,null,null,null,"Sotteville",{"$f":"_xlfn.XLOOKUP(O655,'Liste des DT-EIC-SITES'!D:D,'Liste des DT-EIC-SITES'!C:C)","v":"EIC Normandie"}]
[null,null,null,null,null,null,null,null,null,null,null,null,null,null,"St-Aignan-Noyers",{"$f":"_xlfn.XLOOKUP(O656,'Liste des DT-EIC-SITES'!D:D,'Liste des DT-EIC-SITES'!C:C)","v":"EIC Centre Limousin"}]
[null,null,null,null,null,null,null,null,null,null,null,null,null,null,"St-Amand-Montrond-Orval",{"$f":"_xlfn.XLOOKUP(O657,'Liste des DT-EIC-SITES'!D:D,'Liste des DT-EIC-SITES'!C:C)","v":"EIC Centre Limousin"}]
[null,null,null,null,null,null,null,null,null,null,null,null,null,null,"St-André-le-Gaz",{"$f":"_xlfn.XLOOKUP(O658,'Liste des DT-EIC-SITES'!D:D,'Liste des DT-EIC-SITES'!C:C)","v":"EIC Alpes"}]
[null,null,null,null,null,null,null,null,null,null,null,null,null,null,"St-Avre-la-Chambre",{"$f":"_xlfn.XLOOKUP(O659,'Liste des DT-EIC-SITES'!D:D,'Liste des DT-EIC-SITES'!C:C)","v":"EIC Alpes"}]
[null,null,null,null,null,null,null,null,null,null,null,null,null,null,"St-Brieuc",{"$f":"_xlfn.XLOOKUP(O660,'Liste des DT-EIC-SITES'!D:D,'Liste des DT-EIC-SITES'!C:C)","v":"EIC Bretagne Pays de la Loire"}]
[null,null,null,null,null,null,null,null,null,null,null,null,null,null,"St-Césaire",{"$f":"_xlfn.XLOOKUP(O661,'Liste des DT-EIC-SITES'!D:D,'Liste des DT-EIC-SITES'!C:C)","v":"EIC Languedoc Roussillon"}]
[null,null,null,null,null,null,null,null,null,null,null,null,null,null,"St-Chély-d'Apcher",{"$f":"_xlfn.XLOOKUP(O662,'Liste des DT-EIC-SITES'!D:D,'Liste des DT-EIC-SITES'!C:C)","v":"EIC Languedoc Roussillon"}]
[null,null,null,null,null,null,null,null,null,null,null,null,null,null,"St-Christophe",{"$f":"_xlfn.XLOOKUP(O663,'Liste des DT-EIC-SITES'!D:D,'Liste des DT-EIC-SITES'!C:C)","v":"EIC Midi Pyrénées"}]
[null,null,null,null,null,null,null,null,null,null,null,null,null,null,"St-Clair-les-Roches",{"$f":"_xlfn.XLOOKUP(O664,'Liste des DT-EIC-SITES'!D:D,'Liste des DT-EIC-SITES'!C:C)","v":"EIC Rhône Alpes Lyon"}]
[null,null,null,null,null,null,null,null,null,null,null,null,null,null,"St-Claude",{"$f":"_xlfn.XLOOKUP(O665,'Liste des DT-EIC-SITES'!D:D,'Liste des DT-EIC-SITES'!C:C)","v":"EIC Bourgogne Franche Comté"}]
[null,null,null,null,null,null,null,null,null,null,null,null,null,null,"St-Cloud",{"$f":"_xlfn.XLOOKUP(O666,'Liste des DT-EIC-SITES'!D:D,'Liste des DT-EIC-SITES'!C:C)","v":"EIC Paris Est Ouest Francilien"}]
[null,null,null,null,null,null,null,null,null,null,null,null,null,null,"St-Cyr-en-Val-La Source",{"$f":"_xlfn.XLOOKUP(O667,'Liste des DT-EIC-SITES'!D:D,'Liste des DT-EIC-SITES'!C:C)","v":"EIC Centre Limousin"}]
[null,null,null,null,null,null,null,null,null,null,null,null,null,null,"St-Denis",{"$f":"_xlfn.XLOOKUP(O668,'Liste des DT-EIC-SITES'!D:D,'Liste des DT-EIC-SITES'!C:C)","v":"EIC Paris Nord"}]
[null,null,null,null,null,null,null,null,null,null,null,null,null,null,"St-Denis-Catus",{"$f":"_xlfn.XLOOKUP(O669,'Liste des DT-EIC-SITES'!D:D,'Liste des DT-EIC-SITES'!C:C)","v":"EIC Midi Pyrénées"}]
[null,null,null,null,null,null,null,null,null,null,null,null,null,null,"St-Denis-près-Martel",{"$f":"_xlfn.XLOOKUP(O670,'Liste des DT-EIC-SITES'!D:D,'Liste des DT-EIC-SITES'!C:C)","v":"EIC Centre Limousin"}]
[null,null,null,null,null,null,null,null,null,null,null,null,null,null,"St-Dié-des-Vosges",{"$f":"_xlfn.XLOOKUP(O671,'Liste des DT-EIC-SITES'!D:D,'Liste des DT-EIC-SITES'!C:C)","v":"EIC Lorraine Champagne Ardenne"}]
[null,null,null,null,null,null,null,null,null,null,null,null,null,null,"St-Dizier",{"$f":"_xlfn.XLOOKUP(O672,'Liste des DT-EIC-SITES'!D:D,'Liste des DT-EIC-SITES'!C:C)","v":"EIC Lorraine Champagne Ardenne"}]
[null,null,null,null,null,null,null,null,null,null,null,null,null,null,"St-Erme",{"$f":"_xlfn.XLOOKUP(O673,'Liste des DT-EIC-SITES'!D:D,'Liste des DT-EIC-SITES'!C:C)","v":"EIC Hauts de France"}]
[null,null,null,null,null,null,null,null,null,null,null,null,null,null,"St-Étienne-Châteaucreux",{"$f":"_xlfn.XLOOKUP(O674,'Liste des DT-EIC-SITES'!D:D,'Liste des DT-EIC-SITES'!C:C)","v":"EIC Rhône Alpes Lyon"}]
[null,null,null,null,null,null,null,null,null,null,null,null,null,null,"St-Étienne-Pont-de-l'Âne",{"$f":"_xlfn.XLOOKUP(O675,'Liste des DT-EIC-SITES'!D:D,'Liste des DT-EIC-SITES'!C:C)","v":"EIC Rhône Alpes Lyon"}]
[null,null,null,null,null,null,null,null,null,null,null,null,null,null,"St-Florentin-Vergigny",{"$f":"_xlfn.XLOOKUP(O676,'Liste des DT-EIC-SITES'!D:D,'Liste des DT-EIC-SITES'!C:C)","v":"EIC Paris Sud Est"}]
[null,null,null,null,null,null,null,null,null,null,null,null,null,null,"St-Florent-sur-Cher",{"$f":"_xlfn.XLOOKUP(O677,'Liste des DT-EIC-SITES'!D:D,'Liste des DT-EIC-SITES'!C:C)","v":"EIC Centre Limousin"}]
[null,null,null,null,null,null,null,null,null,null,null,null,null,null,"St-Fons",{"$f":"_xlfn.XLOOKUP(O678,'Liste des DT-EIC-SITES'!D:D,'Liste des DT-EIC-SITES'!C:C)","v":"EIC Rhône Alpes Lyon"}]
[null,null,null,null,null,null,null,null,null,null,null,null,null,null,"St-Gaudens",{"$f":"_xlfn.XLOOKUP(O679,'Liste des DT-EIC-SITES'!D:D,'Liste des DT-EIC-SITES'!C:C)","v":"EIC Midi Pyrénées"}]
[null,null,null,null,null,null,null,null,null,null,null,null,null,null,"St-Germain-au-Mont-d'Or",{"$f":"_xlfn.XLOOKUP(O680,'Liste des DT-EIC-SITES'!D:D,'Liste des DT-EIC-SITES'!C:C)","v":"EIC Rhône Alpes Lyon"}]
[null,null,null,null,null,null,null,null,null,null,null,null,null,null,"St-Germain-des-Fossés",{"$f":"_xlfn.XLOOKUP(O681,'Liste des DT-EIC-SITES'!D:D,'Liste des DT-EIC-SITES'!C:C)","v":"EIC Auvergne Nivernais"}]
[null,null,null,null,null,null,null,null,null,null,null,null,null,null,"St-Gervais-les-Bains-Le Fayet",{"$f":"_xlfn.XLOOKUP(O682,'Liste des DT-EIC-SITES'!D:D,'Liste des DT-EIC-SITES'!C:C)","v":"EIC Alpes"}]
[null,null,null,null,null,null,null,null,null,null,null,null,null,null,"St-Jean-d'Angély",{"$f":"_xlfn.XLOOKUP(O683,'Liste des DT-EIC-SITES'!D:D,'Liste des DT-EIC-SITES'!C:C)","v":"EIC Aquitaine Poitou Charentes"}]
[null,null,null,null,null,null,null,null,null,null,null,null,null,null,"St-Jean-de-Maurienne-Arvan",{"$f":"_xlfn.XLOOKUP(O684,'Liste des DT-EIC-SITES'!D:D,'Liste des DT-EIC-SITES'!C:C)","v":"EIC Alpes"}]
[null,null,null,null,null,null,null,null,null,null,null,null,null,null,"St-Jean-Pied-de-Port",{"$f":"_xlfn.XLOOKUP(O685,'Liste des DT-EIC-SITES'!D:D,'Liste des DT-EIC-SITES'!C:C)","v":"EIC Aquitaine Poitou Charentes"}]
[null,null,null,null,null,null,null,null,null,null,null,null,null,null,"St-Jean-Pla-de-Corts",{"$f":"_xlfn.XLOOKUP(O686,'Liste des DT-EIC-SITES'!D:D,'Liste des DT-EIC-SITES'!C:C)","v":"EIC Languedoc Roussillon"}]
[null,null,null,null,null,null,null,null,null,null,null,null,null,null,"St-Jory",{"$f":"_xlfn.XLOOKUP(O687,'Liste des DT-EIC-SITES'!D:D,'Liste des DT-EIC-SITES'!C:C)","v":"EIC Midi Pyrénées"}]
[null,null,null,null,null,null,null,null,null,null,null,null,null,null,"St-Junien",{"$f":"_xlfn.XLOOKUP(O688,'Liste des DT-EIC-SITES'!D:D,'Liste des DT-EIC-SITES'!C:C)","v":"EIC Centre Limousin"}]
[null,null,null,null,null,null,null,null,null,null,null,null,null,null,"St-Just-St-Rambert",{"$f":"_xlfn.XLOOKUP(O689,'Liste des DT-EIC-SITES'!D:D,'Liste des DT-EIC-SITES'!C:C)","v":"EIC Rhône Alpes Lyon"}]
[null,null,null,null,null,null,null,null,null,null,null,null,null,null,"St-Leu-la-Forêt",{"$f":"_xlfn.XLOOKUP(O690,'Liste des DT-EIC-SITES'!D:D,'Liste des DT-EIC-SITES'!C:C)","v":"EIC Paris Nord"}]
[null,null,null,null,null,null,null,null,null,null,null,null,null,null,"St-Louis",{"$f":"_xlfn.XLOOKUP(O691,'Liste des DT-EIC-SITES'!D:D,'Liste des DT-EIC-SITES'!C:C)","v":"EIC Alsace"}]
[null,null,null,null,null,null,null,null,null,null,null,null,null,null,"St-Louis-les-Aygalades",{"$f":"_xlfn.XLOOKUP(O692,'Liste des DT-EIC-SITES'!D:D,'Liste des DT-EIC-SITES'!C:C)","v":"EIC Provence Alpes Côte d'Azur"}]
[null,null,null,null,null,null,null,null,null,null,null,null,null,null,"St-Malo",{"$f":"_xlfn.XLOOKUP(O693,'Liste des DT-EIC-SITES'!D:D,'Liste des DT-EIC-SITES'!C:C)","v":"EIC Bretagne Pays de la Loire"}]
[null,null,null,null,null,null,null,null,null,null,null,null,null,null,"St-Marcel",{"$f":"_xlfn.XLOOKUP(O694,'Liste des DT-EIC-SITES'!D:D,'Liste des DT-EIC-SITES'!C:C)","v":"EIC Provence Alpes Côte d'Azur"}]
[null,null,null,null,null,null,null,null,null,null,null,null,null,null,"St-Marcellin",{"$f":"_xlfn.XLOOKUP(O695,'Liste des DT-EIC-SITES'!D:D,'Liste des DT-EIC-SITES'!C:C)","v":"EIC Alpes"}]
[null,null,null,null,null,null,null,null,null,null,null,null,null,null,"St-Mariens-St-Yzan",{"$f":"_xlfn.XLOOKUP(O696,'Liste des DT-EIC-SITES'!D:D,'Liste des DT-EIC-SITES'!C:C)","v":"EIC Aquitaine Poitou Charentes"}]
[null,null,null,null,null,null,null,null,null,null,null,null,null,null,"St-Martin-de-Crau",{"$f":"_xlfn.XLOOKUP(O697,'Liste des DT-EIC-SITES'!D:D,'Liste des DT-EIC-SITES'!C:C)","v":"EIC Provence Alpes Côte d'Azur"}]
[null,null,null,null,null,null,null,null,null,null,null,null,null,null,"St-Michel-Valloire",{"$f":"_xlfn.XLOOKUP(O698,'Liste des DT-EIC-SITES'!D:D,'Liste des DT-EIC-SITES'!C:C)","v":"EIC Alpes"}]
[null,null,null,null,null,null,null,null,null,null,null,null,null,null,"St-Nazaire",{"$f":"_xlfn.XLOOKUP(O699,'Liste des DT-EIC-SITES'!D:D,'Liste des DT-EIC-SITES'!C:C)","v":"EIC Bretagne Pays de la Loire"}]
[null,null,null,null,null,null,null,null,null,null,null,null,null,null,"St-Omer",{"$f":"_xlfn.XLOOKUP(O700,'Liste des DT-EIC-SITES'!D:D,'Liste des DT-EIC-SITES'!C:C)","v":"EIC Hauts de France"}]
[null,null,null,null,null,null,null,null,null,null,null,null,null,null,"St-Ouen-les-Docks",{"$f":"_xlfn.XLOOKUP(O701,'Liste des DT-EIC-SITES'!D:D,'Liste des DT-EIC-SITES'!C:C)","v":"EIC Paris Nord"}]
[null,null,null,null,null,null,null,null,null,null,null,null,null,null,"St-Pierre-des-Corps",{"$f":"_xlfn.XLOOKUP(O702,'Liste des DT-EIC-SITES'!D:D,'Liste des DT-EIC-SITES'!C:C)","v":"EIC Centre Limousin"}]
[null,null,null,null,null,null,null,null,null,null,null,null,null,null,"St-Pierre-lès-Elbeuf",{"$f":"_xlfn.XLOOKUP(O703,'Liste des DT-EIC-SITES'!D:D,'Liste des DT-EIC-SITES'!C:C)","v":"EIC Normandie"}]
[null,null,null,null,null,null,null,null,null,null,null,null,null,null,"St-Pol-sur-Ternoise",{"$f":"_xlfn.XLOOKUP(O704,'Liste des DT-EIC-SITES'!D:D,'Liste des DT-EIC-SITES'!C:C)","v":"EIC Hauts de France"}]
[null,null,null,null,null,null,null,null,null,null,null,null,null,null,"St-Priest",{"$f":"_xlfn.XLOOKUP(O705,'Liste des DT-EIC-SITES'!D:D,'Liste des DT-EIC-SITES'!C:C)","v":"EIC Rhône Alpes Lyon"}]
[null,null,null,null,null,null,null,null,null,null,null,null,null,null,"St-Quentin",{"$f":"_xlfn.XLOOKUP(O706,'Liste des DT-EIC-SITES'!D:D,'Liste des DT-EIC-SITES'!C:C)","v":"EIC Hauts de France"}]
[null,null,null,null,null,null,null,null,null,null,null,null,null,null,"St-Quentin-Fallavier",{"$f":"_xlfn.XLOOKUP(O707,'Liste des DT-EIC-SITES'!D:D,'Liste des DT-EIC-SITES'!C:C)","v":"EIC Rhône Alpes Lyon"}]
[null,null,null,null,null,null,null,null,null,null,null,null,null,null,"St-Rambert d'Albon",{"$f":"_xlfn.XLOOKUP(O708,'Liste des DT-EIC-SITES'!D:D,'Liste des DT-EIC-SITES'!C:C)","v":"EIC Rhône Alpes Lyon"}]
[null,null,null,null,null,null,null,null,null,null,null,null,null,null,"St-Rambert-d'Albon",{"$f":"_xlfn.XLOOKUP(O709,'Liste des DT-EIC-SITES'!D:D,'Liste des DT-EIC-SITES'!C:C)","v":"EIC Rhône Alpes Lyon"}]
[null,null,null,null,null,null,null,null,null,null,null,null,null,null,"St-Raphaël-Valescure",{"$f":"_xlfn.XLOOKUP(O710,'Liste des DT-EIC-SITES'!D:D,'Liste des DT-EIC-SITES'!C:C)","v":"EIC Provence Alpes Côte d'Azur"}]
[null,null,null,null,null,null,null,null,null,null,null,null,null,null,"Strasbourg-Neudorf",{"$f":"_xlfn.XLOOKUP(O711,'Liste des DT-EIC-SITES'!D:D,'Liste des DT-EIC-SITES'!C:C)","v":"EIC Alsace"}]
[null,null,null,null,null,null,null,null,null,null,null,null,null,null,"Strasbourg-Ville",{"$f":"_xlfn.XLOOKUP(O712,'Liste des DT-EIC-SITES'!D:D,'Liste des DT-EIC-SITES'!C:C)","v":"EIC Alsace"}]
[null,null,null,null,null,null,null,null,null,null,null,null,null,null,"St-Romain-le-Puy",{"$f":"_xlfn.XLOOKUP(O713,'Liste des DT-EIC-SITES'!D:D,'Liste des DT-EIC-SITES'!C:C)","v":"EIC Rhône Alpes Lyon"}]
[null,null,null,null,null,null,null,null,null,null,null,null,null,null,"St-Sauveur-de-Peyre",{"$f":"_xlfn.XLOOKUP(O714,'Liste des DT-EIC-SITES'!D:D,'Liste des DT-EIC-SITES'!C:C)","v":"EIC Languedoc Roussillon"}]
[null,null,null,null,null,null,null,null,null,null,null,null,null,null,"St-Saviol",{"$f":"_xlfn.XLOOKUP(O715,'Liste des DT-EIC-SITES'!D:D,'Liste des DT-EIC-SITES'!C:C)","v":"EIC Aquitaine Poitou Charentes"}]
[null,null,null,null,null,null,null,null,null,null,null,null,null,null,"St-Sulpice",{"$f":"_xlfn.XLOOKUP(O716,'Liste des DT-EIC-SITES'!D:D,'Liste des DT-EIC-SITES'!C:C)","v":"EIC Midi Pyrénées"}]
[null,null,null,null,null,null,null,null,null,null,null,null,null,null,"St-Sulpice-Laurière",{"$f":"_xlfn.XLOOKUP(O717,'Liste des DT-EIC-SITES'!D:D,'Liste des DT-EIC-SITES'!C:C)","v":"EIC Centre Limousin"}]
[null,null,null,null,null,null,null,null,null,null,null,null,null,null,"St-Ustre",{"$f":"_xlfn.XLOOKUP(O718,'Liste des DT-EIC-SITES'!D:D,'Liste des DT-EIC-SITES'!C:C)","v":"EIC Aquitaine Poitou Charentes"}]
[null,null,null,null,null,null,null,null,null,null,null,null,null,null,"St-Valéry-en-Caux",{"$f":"_xlfn.XLOOKUP(O719,'Liste des DT-EIC-SITES'!D:D,'Liste des DT-EIC-SITES'!C:C)","v":"EIC Normandie"}]
[null,null,null,null,null,null,null,null,null,null,null,null,null,null,"St-Vallier-sur-Rhône",{"$f":"_xlfn.XLOOKUP(O720,'Liste des DT-EIC-SITES'!D:D,'Liste des DT-EIC-SITES'!C:C)","v":"EIC Rhône Alpes Lyon"}]
[null,null,null,null,null,null,null,null,null,null,null,null,null,null,"St-Varent",{"$f":"_xlfn.XLOOKUP(O721,'Liste des DT-EIC-SITES'!D:D,'Liste des DT-EIC-SITES'!C:C)","v":"EIC Bretagne Pays de la Loire"}]
[null,null,null,null,null,null,null,null,null,null,null,null,null,null,"Sucy-Bonneuil",{"$f":"_xlfn.XLOOKUP(O722,'Liste des DT-EIC-SITES'!D:D,'Liste des DT-EIC-SITES'!C:C)","v":"EIC Paris Sud Est"}]
[null,null,null,null,null,null,null,null,null,null,null,null,null,null,"Tarascon",{"$f":"_xlfn.XLOOKUP(O723,'Liste des DT-EIC-SITES'!D:D,'Liste des DT-EIC-SITES'!C:C)","v":"EIC Provence Alpes Côte d'Azur"}]
[null,null,null,null,null,null,null,null,null,null,null,null,null,null,"Tarascon-sur-Ariège",{"$f":"_xlfn.XLOOKUP(O724,'Liste des DT-EIC-SITES'!D:D,'Liste des DT-EIC-SITES'!C:C)","v":"EIC Midi Pyrénées"}]
[null,null,null,null,null,null,null,null,null,null,null,null,null,null,"Tarbes",{"$f":"_xlfn.XLOOKUP(O725,'Liste des DT-EIC-SITES'!D:D,'Liste des DT-EIC-SITES'!C:C)","v":"EIC Midi Pyrénées"}]
[null,null,null,null,null,null,null,null,null,null,null,null,null,null,"Tassin",{"$f":"_xlfn.XLOOKUP(O726,'Liste des DT-EIC-SITES'!D:D,'Liste des DT-EIC-SITES'!C:C)","v":"EIC Rhône Alpes Lyon"}]
[null,null,null,null,null,null,null,null,null,null,null,null,null,null,"Tavaux",{"$f":"_xlfn.XLOOKUP(O727,'Liste des DT-EIC-SITES'!D:D,'Liste des DT-EIC-SITES'!C:C)","v":"EIC Bourgogne Franche Comté"}]
[null,null,null,null,null,null,null,null,null,null,null,null,null,null,"Technicentre TGV de Lyon",{"$f":"_xlfn.XLOOKUP(O728,'Liste des DT-EIC-SITES'!D:D,'Liste des DT-EIC-SITES'!C:C)","v":"EIC Rhône Alpes Lyon"}]
[null,null,null,null,null,null,null,null,null,null,null,null,null,null,"Tergnier",{"$f":"_xlfn.XLOOKUP(O729,'Liste des DT-EIC-SITES'!D:D,'Liste des DT-EIC-SITES'!C:C)","v":"EIC Hauts de France"}]
[null,null,null,null,null,null,null,null,null,null,null,null,null,null,"Tessonnières",{"$f":"_xlfn.XLOOKUP(O730,'Liste des DT-EIC-SITES'!D:D,'Liste des DT-EIC-SITES'!C:C)","v":"EIC Midi Pyrénées"}]
[null,null,null,null,null,null,null,null,null,null,null,null,null,null,"Thann",{"$f":"_xlfn.XLOOKUP(O731,'Liste des DT-EIC-SITES'!D:D,'Liste des DT-EIC-SITES'!C:C)","v":"EIC Alsace"}]
[null,null,null,null,null,null,null,null,null,null,null,null,null,null,"Thiers",{"$f":"_xlfn.XLOOKUP(O732,'Liste des DT-EIC-SITES'!D:D,'Liste des DT-EIC-SITES'!C:C)","v":"EIC Auvergne Nivernais"}]
[null,null,null,null,null,null,null,null,null,null,null,null,null,null,"Thionville",{"$f":"_xlfn.XLOOKUP(O733,'Liste des DT-EIC-SITES'!D:D,'Liste des DT-EIC-SITES'!C:C)","v":"EIC Lorraine Champagne Ardenne"}]
[null,null,null,null,null,null,null,null,null,null,null,null,null,null,"Thiviers",{"$f":"_xlfn.XLOOKUP(O734,'Liste des DT-EIC-SITES'!D:D,'Liste des DT-EIC-SITES'!C:C)","v":"EIC Aquitaine Poitou Charentes"}]
[null,null,null,null,null,null,null,null,null,null,null,null,null,null,"Thonon-les-Bains",{"$f":"_xlfn.XLOOKUP(O735,'Liste des DT-EIC-SITES'!D:D,'Liste des DT-EIC-SITES'!C:C)","v":"EIC Alpes"}]
[null,null,null,null,null,null,null,null,null,null,null,null,null,null,"Thoré-la-Rochette",{"$f":"_xlfn.XLOOKUP(O736,'Liste des DT-EIC-SITES'!D:D,'Liste des DT-EIC-SITES'!C:C)","v":"EIC Centre Limousin"}]
[null,null,null,null,null,null,null,null,null,null,null,null,null,null,"Thouars",{"$f":"_xlfn.XLOOKUP(O737,'Liste des DT-EIC-SITES'!D:D,'Liste des DT-EIC-SITES'!C:C)","v":"EIC Bretagne Pays de la Loire"}]
[null,null,null,null,null,null,null,null,null,null,null,null,null,null,"Thourotte",{"$f":"_xlfn.XLOOKUP(O738,'Liste des DT-EIC-SITES'!D:D,'Liste des DT-EIC-SITES'!C:C)","v":"EIC Paris Nord"}]
[null,null,null,null,null,null,null,null,null,null,null,null,null,null,"Tiroir",{"$f":"_xlfn.XLOOKUP(O739,'Liste des DT-EIC-SITES'!D:D,'Liste des DT-EIC-SITES'!C:C)","v":"EIC Bourgogne Franche Comté"}]
[null,null,null,null,null,null,null,null,null,null,null,null,null,null,"Tonneins",{"$f":"_xlfn.XLOOKUP(O740,'Liste des DT-EIC-SITES'!D:D,'Liste des DT-EIC-SITES'!C:C)","v":"EIC Aquitaine Poitou Charentes"}]
[null,null,null,null,null,null,null,null,null,null,null,null,null,null,"Toul",{"$f":"_xlfn.XLOOKUP(O741,'Liste des DT-EIC-SITES'!D:D,'Liste des DT-EIC-SITES'!C:C)","v":"EIC Lorraine Champagne Ardenne"}]
[null,null,null,null,null,null,null,null,null,null,null,null,null,null,"Toulon",{"$f":"_xlfn.XLOOKUP(O742,'Liste des DT-EIC-SITES'!D:D,'Liste des DT-EIC-SITES'!C:C)","v":"EIC Provence Alpes Côte d'Azur"}]
[null,null,null,null,null,null,null,null,null,null,null,null,null,null,"Toulouse-Matabiau",{"$f":"_xlfn.XLOOKUP(O743,'Liste des DT-EIC-SITES'!D:D,'Liste des DT-EIC-SITES'!C:C)","v":"EIC Midi Pyrénées"}]
[null,null,null,null,null,null,null,null,null,null,null,null,null,null,"Tourcoing",{"$f":"_xlfn.XLOOKUP(O744,'Liste des DT-EIC-SITES'!D:D,'Liste des DT-EIC-SITES'!C:C)","v":"EIC Hauts de France"}]
[null,null,null,null,null,null,null,null,null,null,null,null,null,null,"Tournan",{"$f":"_xlfn.XLOOKUP(O745,'Liste des DT-EIC-SITES'!D:D,'Liste des DT-EIC-SITES'!C:C)","v":"EIC Paris Est Ouest Francilien"}]
[null,null,null,null,null,null,null,null,null,null,null,null,null,null,"Tours",{"$f":"_xlfn.XLOOKUP(O746,'Liste des DT-EIC-SITES'!D:D,'Liste des DT-EIC-SITES'!C:C)","v":"EIC Centre Limousin"}]
[null,null,null,null,null,null,null,null,null,null,null,null,null,null,"Toury",{"$f":"_xlfn.XLOOKUP(O747,'Liste des DT-EIC-SITES'!D:D,'Liste des DT-EIC-SITES'!C:C)","v":"EIC Centre Limousin"}]
[null,null,null,null,null,null,null,null,null,null,null,null,null,null,"Trappes-Marchandises",{"$f":"_xlfn.XLOOKUP(O748,'Liste des DT-EIC-SITES'!D:D,'Liste des DT-EIC-SITES'!C:C)","v":"EIC Paris Rive Gauche"}]
[null,null,null,null,null,null,null,null,null,null,null,null,null,null,"Triage Avignon",{"$f":"_xlfn.XLOOKUP(O749,'Liste des DT-EIC-SITES'!D:D,'Liste des DT-EIC-SITES'!C:C)","v":"EIC Provence Alpes Côte d'Azur"}]
[null,null,null,null,null,null,null,null,null,null,null,null,null,null,"Triage Miramas",{"$f":"_xlfn.XLOOKUP(O750,'Liste des DT-EIC-SITES'!D:D,'Liste des DT-EIC-SITES'!C:C)","v":"EIC Provence Alpes Côte d'Azur"}]
[null,null,null,null,null,null,null,null,null,null,null,null,null,null,"Trith-St-Léger",{"$f":"_xlfn.XLOOKUP(O751,'Liste des DT-EIC-SITES'!D:D,'Liste des DT-EIC-SITES'!C:C)","v":"EIC Hauts de France"}]
[null,null,null,null,null,null,null,null,null,null,null,null,null,null,"Trouville-Deauville",{"$f":"_xlfn.XLOOKUP(O752,'Liste des DT-EIC-SITES'!D:D,'Liste des DT-EIC-SITES'!C:C)","v":"EIC Normandie"}]
[null,null,null,null,null,null,null,null,null,null,null,null,null,null,"Troyes",{"$f":"_xlfn.XLOOKUP(O753,'Liste des DT-EIC-SITES'!D:D,'Liste des DT-EIC-SITES'!C:C)","v":"EIC Lorraine Champagne Ardenne"}]
[null,null,null,null,null,null,null,null,null,null,null,null,null,null,"Uckange",{"$f":"_xlfn.XLOOKUP(O754,'Liste des DT-EIC-SITES'!D:D,'Liste des DT-EIC-SITES'!C:C)","v":"EIC Lorraine Champagne Ardenne"}]
[null,null,null,null,null,null,null,null,null,null,null,null,null,null,"UP Miramas (Technicentre PACA)",{"$f":"_xlfn.XLOOKUP(O755,'Liste des DT-EIC-SITES'!D:D,'Liste des DT-EIC-SITES'!C:C)","v":"EIC Provence Alpes Côte d'Azur"}]
[null,null,null,null,null,null,null,null,null,null,null,null,null,null,"UPM Ivry- Masséna (Technicentre PRG)",{"$f":"_xlfn.XLOOKUP(O756,'Liste des DT-EIC-SITES'!D:D,'Liste des DT-EIC-SITES'!C:C)","v":"EIC Paris Rive Gauche"}]
[null,null,null,null,null,null,null,null,null,null,null,null,null,null,"UPT Tarbes (ET Midi-Pyrénées)",{"$f":"_xlfn.XLOOKUP(O757,'Liste des DT-EIC-SITES'!D:D,'Liste des DT-EIC-SITES'!C:C)","v":"EIC Midi Pyrénées"}]
[null,null,null,null,null,null,null,null,null,null,null,null,null,null,"Ussac",{"$f":"_xlfn.XLOOKUP(O758,'Liste des DT-EIC-SITES'!D:D,'Liste des DT-EIC-SITES'!C:C)","v":"EIC Centre Limousin"}]
[null,null,null,null,null,null,null,null,null,null,null,null,null,null,"Ussel",{"$f":"_xlfn.XLOOKUP(O759,'Liste des DT-EIC-SITES'!D:D,'Liste des DT-EIC-SITES'!C:C)","v":"EIC Centre Limousin"}]
[null,null,null,null,null,null,null,null,null,null,null,null,null,null,"Vaires-Torcy",{"$f":"_xlfn.XLOOKUP(O760,'Liste des DT-EIC-SITES'!D:D,'Liste des DT-EIC-SITES'!C:C)","v":"EIC Paris Est Ouest Francilien"}]
[null,null,null,null,null,null,null,null,null,null,null,null,null,null,"Valence",{"$f":"_xlfn.XLOOKUP(O761,'Liste des DT-EIC-SITES'!D:D,'Liste des DT-EIC-SITES'!C:C)","v":"EIC Rhône Alpes Lyon"}]
[null,null,null,null,null,null,null,null,null,null,null,null,null,null,"Valence-d'Agen",{"$f":"_xlfn.XLOOKUP(O762,'Liste des DT-EIC-SITES'!D:D,'Liste des DT-EIC-SITES'!C:C)","v":"EIC Midi Pyrénées"}]
[null,null,null,null,null,null,null,null,null,null,null,null,null,null,"Valenciennes",{"$f":"_xlfn.XLOOKUP(O763,'Liste des DT-EIC-SITES'!D:D,'Liste des DT-EIC-SITES'!C:C)","v":"EIC Hauts de France"}]
[null,null,null,null,null,null,null,null,null,null,null,null,null,null,"Valenton",{"$f":"_xlfn.XLOOKUP(O764,'Liste des DT-EIC-SITES'!D:D,'Liste des DT-EIC-SITES'!C:C)","v":"EIC Paris Sud Est"}]
[null,null,null,null,null,null,null,null,null,null,null,null,null,null,"Valmondois",{"$f":"_xlfn.XLOOKUP(O765,'Liste des DT-EIC-SITES'!D:D,'Liste des DT-EIC-SITES'!C:C)","v":"EIC Paris Nord"}]
[null,null,null,null,null,null,null,null,null,null,null,null,null,null,"Valognes",{"$f":"_xlfn.XLOOKUP(O766,'Liste des DT-EIC-SITES'!D:D,'Liste des DT-EIC-SITES'!C:C)","v":"EIC Normandie"}]
[null,null,null,null,null,null,null,null,null,null,null,null,null,null,"Vannes",{"$f":"_xlfn.XLOOKUP(O767,'Liste des DT-EIC-SITES'!D:D,'Liste des DT-EIC-SITES'!C:C)","v":"EIC Bretagne Pays de la Loire"}]
[null,null,null,null,null,null,null,null,null,null,null,null,null,null,"Varangéville-St-Nicolas",{"$f":"_xlfn.XLOOKUP(O768,'Liste des DT-EIC-SITES'!D:D,'Liste des DT-EIC-SITES'!C:C)","v":"EIC Lorraine Champagne Ardenne"}]
[null,null,null,null,null,null,null,null,null,null,null,null,null,null,"Vauvert",{"$f":"_xlfn.XLOOKUP(O769,'Liste des DT-EIC-SITES'!D:D,'Liste des DT-EIC-SITES'!C:C)","v":"EIC Languedoc Roussillon"}]
[null,null,null,null,null,null,null,null,null,null,null,null,null,null,"Veauche-St-Galmier",{"$f":"_xlfn.XLOOKUP(O770,'Liste des DT-EIC-SITES'!D:D,'Liste des DT-EIC-SITES'!C:C)","v":"EIC Rhône Alpes Lyon"}]
[null,null,null,null,null,null,null,null,null,null,null,null,null,null,"Vendôme",{"$f":"_xlfn.XLOOKUP(O771,'Liste des DT-EIC-SITES'!D:D,'Liste des DT-EIC-SITES'!C:C)","v":"EIC Centre Limousin"}]
[null,null,null,null,null,null,null,null,null,null,null,null,null,null,"Vénissieux",{"$f":"_xlfn.XLOOKUP(O772,'Liste des DT-EIC-SITES'!D:D,'Liste des DT-EIC-SITES'!C:C)","v":"EIC Rhône Alpes Lyon"}]
[null,null,null,null,null,null,null,null,null,null,null,null,null,null,"Vénissieux-Sud",{"$f":"_xlfn.XLOOKUP(O773,'Liste des DT-EIC-SITES'!D:D,'Liste des DT-EIC-SITES'!C:C)","v":"EIC Rhône Alpes Lyon"}]
[null,null,null,null,null,null,null,null,null,null,null,null,null,null,"Verdun",{"$f":"_xlfn.XLOOKUP(O774,'Liste des DT-EIC-SITES'!D:D,'Liste des DT-EIC-SITES'!C:C)","v":"EIC Lorraine Champagne Ardenne"}]
[null,null,null,null,null,null,null,null,null,null,null,null,null,null,"Verneuil-sur-Vienne",{"$f":"_xlfn.XLOOKUP(O775,'Liste des DT-EIC-SITES'!D:D,'Liste des DT-EIC-SITES'!C:C)","v":"EIC Centre Limousin"}]
[null,null,null,null,null,null,null,null,null,null,null,null,null,null,"Vernon-Giverny",{"$f":"_xlfn.XLOOKUP(O776,'Liste des DT-EIC-SITES'!D:D,'Liste des DT-EIC-SITES'!C:C)","v":"EIC Normandie"}]
[null,null,null,null,null,null,null,null,null,null,null,null,null,null,"Vernou-sur-Seine",{"$f":"_xlfn.XLOOKUP(O777,'Liste des DT-EIC-SITES'!D:D,'Liste des DT-EIC-SITES'!C:C)","v":"EIC Paris Sud Est"}]
[null,null,null,null,null,null,null,null,null,null,null,null,null,null,"Versailles-Chantiers",{"$f":"_xlfn.XLOOKUP(O778,'Liste des DT-EIC-SITES'!D:D,'Liste des DT-EIC-SITES'!C:C)","v":"EIC Paris Rive Gauche"}]
[null,null,null,null,null,null,null,null,null,null,null,null,null,null,"Versailles-Matelots",{"$f":"_xlfn.XLOOKUP(O779,'Liste des DT-EIC-SITES'!D:D,'Liste des DT-EIC-SITES'!C:C)","v":"EIC Paris Rive Gauche"}]
[null,null,null,null,null,null,null,null,null,null,null,null,null,null,"Versailles-Rive-Droite",{"$f":"_xlfn.XLOOKUP(O780,'Liste des DT-EIC-SITES'!D:D,'Liste des DT-EIC-SITES'!C:C)","v":"EIC Paris Est Ouest Francilien"}]
[null,null,null,null,null,null,null,null,null,null,null,null,null,null,"Versailles-Rive-Gauche",{"$f":"_xlfn.XLOOKUP(O781,'Liste des DT-EIC-SITES'!D:D,'Liste des DT-EIC-SITES'!C:C)","v":"EIC Paris Rive Gauche"}]
[null,null,null,null,null,null,null,null,null,null,null,null,null,null,"Vesoul",{"$f":"_xlfn.XLOOKUP(O782,'Liste des DT-EIC-SITES'!D:D,'Liste des DT-EIC-SITES'!C:C)","v":"EIC Bourgogne Franche Comté"}]
[null,null,null,null,null,null,null,null,null,null,null,null,null,null,"Vichy",{"$f":"_xlfn.XLOOKUP(O783,'Liste des DT-EIC-SITES'!D:D,'Liste des DT-EIC-SITES'!C:C)","v":"EIC Auvergne Nivernais"}]
[null,null,null,null,null,null,null,null,null,null,null,null,null,null,"Vic-le-Comte",{"$f":"_xlfn.XLOOKUP(O784,'Liste des DT-EIC-SITES'!D:D,'Liste des DT-EIC-SITES'!C:C)","v":"EIC Auvergne Nivernais"}]
[null,null,null,null,null,null,null,null,null,null,null,null,null,null,"Vierzon-Ville",{"$f":"_xlfn.XLOOKUP(O785,'Liste des DT-EIC-SITES'!D:D,'Liste des DT-EIC-SITES'!C:C)","v":"EIC Centre Limousin"}]
[null,null,null,null,null,null,null,null,null,null,null,null,null,null,"Villars-les-Dombes",{"$f":"_xlfn.XLOOKUP(O786,'Liste des DT-EIC-SITES'!D:D,'Liste des DT-EIC-SITES'!C:C)","v":"EIC Rhône Alpes Lyon"}]
[null,null,null,null,null,null,null,null,null,null,null,null,null,null,"Villefranche-de-Lauragais",{"$f":"_xlfn.XLOOKUP(O787,'Liste des DT-EIC-SITES'!D:D,'Liste des DT-EIC-SITES'!C:C)","v":"EIC Midi Pyrénées"}]
[null,null,null,null,null,null,null,null,null,null,null,null,null,null,"Villefranche-sur-Saône",{"$f":"_xlfn.XLOOKUP(O788,'Liste des DT-EIC-SITES'!D:D,'Liste des DT-EIC-SITES'!C:C)","v":"EIC Rhône Alpes Lyon"}]
[null,null,null,null,null,null,null,null,null,null,null,null,null,null,"Villefranche-Vernet-les-Bains",{"$f":"_xlfn.XLOOKUP(O789,'Liste des DT-EIC-SITES'!D:D,'Liste des DT-EIC-SITES'!C:C)","v":"EIC Languedoc Roussillon"}]
[null,null,null,null,null,null,null,null,null,null,null,null,null,null,"Villeneuve-le-Roi",{"$f":"_xlfn.XLOOKUP(O790,'Liste des DT-EIC-SITES'!D:D,'Liste des DT-EIC-SITES'!C:C)","v":"EIC Paris Rive Gauche"}]
[null,null,null,null,null,null,null,null,null,null,null,null,null,null,"Villeneuve-St-Georges",{"$f":"_xlfn.XLOOKUP(O791,'Liste des DT-EIC-SITES'!D:D,'Liste des DT-EIC-SITES'!C:C)","v":"EIC Paris Sud Est"}]
[null,null,null,null,null,null,null,null,null,null,null,null,null,null,"Villeneuve-Triage",{"$f":"_xlfn.XLOOKUP(O792,'Liste des DT-EIC-SITES'!D:D,'Liste des DT-EIC-SITES'!C:C)","v":"EIC Paris Sud Est"}]
[null,null,null,null,null,null,null,null,null,null,null,null,null,null,"Villeparisis",{"$f":"_xlfn.XLOOKUP(O793,'Liste des DT-EIC-SITES'!D:D,'Liste des DT-EIC-SITES'!C:C)","v":"EIC Paris Nord"}]
[null,null,null,null,null,null,null,null,null,null,null,null,null,null,"Villers-Cotterêts",{"$f":"_xlfn.XLOOKUP(O794,'Liste des DT-EIC-SITES'!D:D,'Liste des DT-EIC-SITES'!C:C)","v":"EIC Hauts de France"}]
[null,null,null,null,null,null,null,null,null,null,null,null,null,null,"Viry",{"$f":"_xlfn.XLOOKUP(O795,'Liste des DT-EIC-SITES'!D:D,'Liste des DT-EIC-SITES'!C:C)","v":"EIC Alpes"}]
[null,null,null,null,null,null,null,null,null,null,null,null,null,null,"Vitry-la-Ville",{"$f":"_xlfn.XLOOKUP(O796,'Liste des DT-EIC-SITES'!D:D,'Liste des DT-EIC-SITES'!C:C)","v":"EIC Lorraine Champagne Ardenne"}]
[null,null,null,null,null,null,null,null,null,null,null,null,null,null,"Vitry-le-François",{"$f":"_xlfn.XLOOKUP(O797,'Liste des DT-EIC-SITES'!D:D,'Liste des DT-EIC-SITES'!C:C)","v":"EIC Lorraine Champagne Ardenne"}]
[null,null,null,null,null,null,null,null,null,null,null,null,null,null,"Vittel",{"$f":"_xlfn.XLOOKUP(O798,'Liste des DT-EIC-SITES'!D:D,'Liste des DT-EIC-SITES'!C:C)","v":"EIC Lorraine Champagne Ardenne"}]
[null,null,null,null,null,null,null,null,null,null,null,null,null,null,"Viviez-Decazeville",{"$f":"_xlfn.XLOOKUP(O799,'Liste des DT-EIC-SITES'!D:D,'Liste des DT-EIC-SITES'!C:C)","v":"EIC Midi Pyrénées"}]
[null,null,null,null,null,null,null,null,null,null,null,null,null,null,"Volvic",{"$f":"_xlfn.XLOOKUP(O800,'Liste des DT-EIC-SITES'!D:D,'Liste des DT-EIC-SITES'!C:C)","v":"EIC Auvergne Nivernais"}]
[null,null,null,null,null,null,null,null,null,null,null,null,null,null,"Voves",{"$f":"_xlfn.XLOOKUP(O801,'Liste des DT-EIC-SITES'!D:D,'Liste des DT-EIC-SITES'!C:C)","v":"EIC Centre Limousin"}]
[null,null,null,null,null,null,null,null,null,null,null,null,null,null,"Wesserling",{"$f":"_xlfn.XLOOKUP(O802,'Liste des DT-EIC-SITES'!D:D,'Liste des DT-EIC-SITES'!C:C)","v":"EIC Alsace"}]
[null,null,null,null,null,null,null,null,null,null,null,null,null,null,"Woippy",{"$f":"_xlfn.XLOOKUP(O803,'Liste des DT-EIC-SITES'!D:D,'Liste des DT-EIC-SITES'!C:C)","v":"EIC Lorraine Champagne Ardenne"}]
[null,null,null,null,null,null,null,null,null,null,null,null,null,null,"Woippy Triage"]
[null,null,null,null,null,null,null,null,null,null,null,null,null,null,"Ychoux"]